Workbook

Sheet Resource Key
A1: Candidate | B1: CSP Category
A2: Candidate_CAISO_Advanced_CCGT | B2: (blank)
A3: Candidate_CAISO_Aero_CT | B3: (blank)
A4: Candidate_CAISO_New_BTM_Li_Battery | B4: (blank)
A5: Candidate_CAISO_Reciprocating_Engine | B5: (blank)
A6: Candidate_Arizona_Li_Battery | B6: Battery Storage
A7: Candidate_Greater_Kramer_Li_Battery | B7: Battery Storage
A8: Candidate_Greater_LA_Li_Battery | B8: Battery Storage
A9: Candidate_Imperial_Li_Battery | B9: Battery Storage
A10: Candidate_Northern_California_Li_Battery | B10: Battery Storage
A11: Candidate_Riverside_Li_Battery | B11: Battery Storage
A12: Candidate_San_Diego_Li_Battery | B12: Battery Storage
A13: Candidate_Southern_NV_Eldorado_Li_Battery | B13: Battery Storage
A14: Candidate_Southern_PGAE_Li_Battery | B14: Battery Storage
A15: Candidate_Tehachapi_Li_Battery | B15: Battery Storage
A16: Candidate_InState_Biomass | B16: Biomass
A17: Candidate_Greater_Imperial_Geothermal | B17: Geothermal
A18: Candidate_Inyokern_North_Kramer_Geothermal | B18: Geothermal
A19: Candidate_Northern_California_Geothermal | B19: Geothermal
A20: Candidate_Riverside_Palm_Springs_Geothermal | B20: Geothermal
A21: Candidate_Solano_Geothermal | B21: Geothermal
A22: Candidate_Southern_Nevada_Geothermal | B22: Geothermal
A23: Candidate_Riverside_East_Pumped_Storage | B23: Pumped Storage
A24: Candidate_Riverside_West_Pumped_Storage | B24: Pumped Storage
A25: Candidate_San_Diego_Pumped_Storage | B25: Pumped Storage
A26: Candidate_Tehachapi_Pumped_Storage | B26: Pumped Storage
A27: Candidate_CAISO_Shed_DR_Tranche3 | B27: Shed DR
A28: Candidate_CAISO_Shed_DR_Tranche4 | B28: Shed DR
A29: Candidate_CAISO_Shed_DR_Tranche5 | B29: Shed DR
A30: Candidate_CAISO_Shed_DR_Tranche6 | B30: Shed DR
A31: Candidate_CAISO_Shed_DR_Tranche7 | B31: Shed DR
A32: Candidate_CAISO_Shed_DR_Tranche8 | B32: Shed DR
A33: Candidate_Arizona_Solar | B33: Solar New SCE SDG&E
A34: Candidate_Distributed_Solar | B34: Solar New SCE SDG&E
A35: Candidate_Greater_Kramer_Solar | B35: Solar New SCE SDG&E
A36: Candidate_Greater_LA_Solar | B36: Solar New SCE SDG&E
A37: Candidate_Imperial_Solar | B37: Solar New SCE SDG&E
A38: Candidate_Northern_California_Solar | B38: Solar New SCE SDG&E
A39: Candidate_Riverside_Solar | B39: Solar New SCE SDG&E
A40: Candidate_Southern_NV_Eldorado_Solar | B40: Solar New SCE SDG&E
A41: Candidate_Southern_PGAE_Solar | B41: Solar New SCE SDG&E
A42: Candidate_Tehachapi_Solar | B42: Solar New SCE SDG&E
A43: Candidate_New_Mexico_Wind | B43: Wind New Mexico
A44: Candidate_Baja_California_Wind | B44: Wind New SCE SDG&E
A45: Candidate_Carrizo_Wind | B45: Wind New SCE SDG&E
A46: Candidate_Central_Valley_North_Los_Banos_Wind | B46: Wind New SCE SDG&E
A47: Candidate_Humboldt_Wind | B47: Wind New SCE SDG&E
A48: Candidate_Kern_Greater_Carrizo_Wind | B48: Wind New SCE SDG&E
A49: Candidate_Northern_California_Wind | B49: Wind New SCE SDG&E
A50: Candidate_NW_Ext_Tx_Wind | B50: Wind New SCE SDG&E
A51: Candidate_Solano_Wind | B51: Wind New SCE SDG&E
A52: Candidate_Southern_Nevada_Wind | B52: Wind New SCE SDG&E
A53: Candidate_SW_Ext_Tx_Wind | B53: Wind New SCE SDG&E
A54: Candidate_Tehachapi_Wind | B54: Wind New SCE SDG&E
A55: Candidate_Humboldt_Bay_Offshore_Wind | B55: Wind Offshore Humboldt
A56: Candidate_Morro_Bay_Offshore_Wind | B56: Wind Offshore Morro Bay
A57: Candidate_Wyoming_Wind | B57: Wind Wyoming

Sheet Input Source
A1: Run # | B1: Title | C1: Description | D1: Resource Name | E1: PLEXOS Category | F1: Type | G1: Type-Detailed | H1: Year | I1: Value | J1: SD Region | K1: Bundled | L1: CSP Type | O1: Wind-Specific Scenario | P1: No
A2: 86 | B2: 25 MMT | C2: Partial 0yr_wk24 25MMT BC GHG ELCC noPerp | D2: Candidate_Baja_California_Wind | E2: C_RESOLVE WIND | F2: Wind OOS | G2: Wind OOS | H2: 2022 | I2: 0 | J2: 1 | K2: 0 | L2: =IF(OR(VLOOKUP(D2,Table5[#All],2,FALSE)='Resource Key'!$B$57,VLOOKUP(D2,Table5[#All],2,FALSE)='Resource Key'!$B$43),IF('Input Source'!$P$1="No","Wind New SCE SDG&E",VLOOKUP(D2,Table5[#All],2,FALSE)),VLOOKUP(Table1[[#This Row],[Resource Name]],Table5[#All],2,FALSE)) -> Wind New SCE SDG&E
A3: 86 | B3: 25 MMT | C3: Partial 0yr_wk24 25MMT BC GHG ELCC noPerp | D3: Candidate_Baja_California_Wind | E3: C_RESOLVE WIND | F3: Wind OOS | G3: Wind OOS | H3: 2023 | I3: 0 | J3: 1 | K3: 0 | L3: =IF(OR(VLOOKUP(D3,Table5[#All],2,FALSE)='Resource Key'!$B$57,VLOOKUP(D3,Table5[#All],2,FALSE)='Resource Key'!$B$43),IF('Input Source'!$P$1="No","Wind New SCE SDG&E",VLOOKUP(D3,Table5[#All],2,FALSE)),VLOOKUP(Table1[[#This Row],[Resource Name]],Table5[#All],2,FALSE)) -> Wind New SCE SDG&E
A4: 86 | B4: 25 MMT | C4: Partial 0yr_wk24 25MMT BC GHG ELCC noPerp | D4: Candidate_Baja_California_Wind | E4: C_RESOLVE WIND | F4: Wind OOS | G4: Wind OOS | H4: 2024 | I4: 600 | J4: 1 | K4: 14.76 | L4: =IF(OR(VLOOKUP(D4,Table5[#All],2,FALSE)='Resource Key'!$B$57,VLOOKUP(D4,Table5[#All],2,FALSE)='Resource Key'!$B$43),IF('Input Source'!$P$1="No","Wind New SCE SDG&E",VLOOKUP(D4,Table5[#All],2,FALSE)),VLOOKUP(Table1[[#This Row],[Resource Name]],Table5[#All],2,FALSE)) -> Wind New SCE SDG&E
A5: 86 | B5: 25 MMT | C5: Partial 0yr_wk24 25MMT BC GHG ELCC noPerp | D5: Candidate_Baja_California_Wind | E5: C_RESOLVE WIND | F5: Wind OOS | G5: Wind OOS | H5: 2025 | I5: 600 | J5: 1 | K5: 14.76 | L5: =IF(OR(VLOOKUP(D5,Table5[#All],2,FALSE)='Resource Key'!$B$57,VLOOKUP(D5,Table5[#All],2,FALSE)='Resource Key'!$B$43),IF('Input Source'!$P$1="No","Wind New SCE SDG&E",VLOOKUP(D5,Table5[#All],2,FALSE)),VLOOKUP(Table1[[#This Row],[Resource Name]],Table5[#All],2,FALSE)) -> Wind New SCE SDG&E
A6: 86 | B6: 25 MMT | C6: Partial 0yr_wk24 25MMT BC GHG ELCC noPerp | D6: Candidate_Baja_California_Wind | E6: C_RESOLVE WIND | F6: Wind OOS | G6: Wind OOS | H6: 2026 | I6: 600 | J6: 1 | K6: 14.76 | L6: =IF(OR(VLOOKUP(D6,Table5[#All],2,FALSE)='Resource Key'!$B$57,VLOOKUP(D6,Table5[#All],2,FALSE)='Resource Key'!$B$43),IF('Input Source'!$P$1="No","Wind New SCE SDG&E",VLOOKUP(D6,Table5[#All],2,FALSE)),VLOOKUP(Table1[[#This Row],[Resource Name]],Table5[#All],2,FALSE)) -> Wind New SCE SDG&E
A7: 86 | B7: 25 MMT | C7: Partial 0yr_wk24 25MMT BC GHG ELCC noPerp | D7: Candidate_Baja_California_Wind | E7: C_RESOLVE WIND | F7: Wind OOS | G7: Wind OOS | H7: 2027 | I7: 600 | J7: 1 | K7: 14.76 | L7: =IF(OR(VLOOKUP(D7,Table5[#All],2,FALSE)='Resource Key'!$B$57,VLOOKUP(D7,Table5[#All],2,FALSE)='Resource Key'!$B$43),IF('Input Source'!$P$1="No","Wind New SCE SDG&E",VLOOKUP(D7,Table5[#All],2,FALSE)),VLOOKUP(Table1[[#This Row],[Resource Name]],Table5[#All],2,FALSE)) -> Wind New SCE SDG&E
A8: 86 | B8: 25 MMT | C8: Partial 0yr_wk24 25MMT BC GHG ELCC noPerp | D8: Candidate_Baja_California_Wind | E8: C_RESOLVE WIND | F8: Wind OOS | G8: Wind OOS | H8: 2028 | I8: 600 | J8: 1 | K8: 14.76 | L8: =IF(OR(VLOOKUP(D8,Table5[#All],2,FALSE)='Resource Key'!$B$57,VLOOKUP(D8,Table5[#All],2,FALSE)='Resource Key'!$B$43),IF('Input Source'!$P$1="No","Wind New SCE SDG&E",VLOOKUP(D8,Table5[#All],2,FALSE)),VLOOKUP(Table1[[#This Row],[Resource Name]],Table5[#All],2,FALSE)) -> Wind New SCE SDG&E
A9: 86 | B9: 25 MMT | C9: Partial 0yr_wk24 25MMT BC GHG ELCC noPerp | D9: Candidate_Baja_California_Wind | E9: C_RESOLVE WIND | F9: Wind OOS | G9: Wind OOS | H9: 2029 | I9: 600 | J9: 1 | K9: 14.76 | L9: =IF(OR(VLOOKUP(D9,Table5[#All],2,FALSE)='Resource Key'!$B$57,VLOOKUP(D9,Table5[#All],2,FALSE)='Resource Key'!$B$43),IF('Input Source'!$P$1="No","Wind New SCE SDG&E",VLOOKUP(D9,Table5[#All],2,FALSE)),VLOOKUP(Table1[[#This Row],[Resource Name]],Table5[#All],2,FALSE)) -> Wind New SCE SDG&E
A10: 86 | B10: 25 MMT | C10: Partial 0yr_wk24 25MMT BC GHG ELCC noPerp | D10: Candidate_Baja_California_Wind | E10: C_RESOLVE WIND | F10: Wind OOS | G10: Wind OOS | H10: 2030 | I10: 600 | J10: 1 | K10: 14.76 | L10: =IF(OR(VLOOKUP(D10,Table5[#All],2,FALSE)='Resource Key'!$B$57,VLOOKUP(D10,Table5[#All],2,FALSE)='Resource Key'!$B$43),IF('Input Source'!$P$1="No","Wind New SCE SDG&E",VLOOKUP(D10,Table5[#All],2,FALSE)),VLOOKUP(Table1[[#This Row],[Resource Name]],Table5[#All],2,FALSE)) -> Wind New SCE SDG&E
A11: 86 | B11: 25 MMT | C11: Partial 0yr_wk24 25MMT BC GHG ELCC noPerp | D11: Candidate_Baja_California_Wind | E11: C_RESOLVE WIND | F11: Wind OOS | G11: Wind OOS | H11: 2031 | I11: 600 | J11: 1 | K11: 14.76 | L11: =IF(OR(VLOOKUP(D11,Table5[#All],2,FALSE)='Resource Key'!$B$57,VLOOKUP(D11,Table5[#All],2,FALSE)='Resource Key'!$B$43),IF('Input Source'!$P$1="No","Wind New SCE SDG&E",VLOOKUP(D11,Table5[#All],2,FALSE)),VLOOKUP(Table1[[#This Row],[Resource Name]],Table5[#All],2,FALSE)) -> Wind New SCE SDG&E
A12: 86 | B12: 25 MMT | C12: Partial 0yr_wk24 25MMT BC GHG ELCC noPerp | D12: Candidate_Baja_California_Wind | E12: C_RESOLVE WIND | F12: Wind OOS | G12: Wind OOS | H12: 2032 | I12: 600 | J12: 1 | K12: 14.76 | L12: =IF(OR(VLOOKUP(D12,Table5[#All],2,FALSE)='Resource Key'!$B$57,VLOOKUP(D12,Table5[#All],2,FALSE)='Resource Key'!$B$43),IF('Input Source'!$P$1="No","Wind New SCE SDG&E",VLOOKUP(D12,Table5[#All],2,FALSE)),VLOOKUP(Table1[[#This Row],[Resource Name]],Table5[#All],2,FALSE)) -> Wind New SCE SDG&E
A13: 86 | B13: 25 MMT | C13: Partial 0yr_wk24 25MMT BC GHG ELCC noPerp | D13: Candidate_Baja_California_Wind | E13: C_RESOLVE WIND | F13: Wind OOS | G13: Wind OOS | H13: 2033 | I13: 600 | J13: 1 | K13: 14.76 | L13: =IF(OR(VLOOKUP(D13,Table5[#All],2,FALSE)='Resource Key'!$B$57,VLOOKUP(D13,Table5[#All],2,FALSE)='Resource Key'!$B$43),IF('Input Source'!$P$1="No","Wind New SCE SDG&E",VLOOKUP(D13,Table5[#All],2,FALSE)),VLOOKUP(Table1[[#This Row],[Resource Name]],Table5[#All],2,FALSE)) -> Wind New SCE SDG&E
A14: 86 | B14: 25 MMT | C14: Partial 0yr_wk24 25MMT BC GHG ELCC noPerp | D14: Candidate_Baja_California_Wind | E14: C_RESOLVE WIND | F14: Wind OOS | G14: Wind OOS | H14: 2034 | I14: 600 | J14: 1 | K14: 14.76 | L14: =IF(OR(VLOOKUP(D14,Table5[#All],2,FALSE)='Resource Key'!$B$57,VLOOKUP(D14,Table5[#All],2,FALSE)='Resource Key'!$B$43),IF('Input Source'!$P$1="No","Wind New SCE SDG&E",VLOOKUP(D14,Table5[#All],2,FALSE)),VLOOKUP(Table1[[#This Row],[Resource Name]],Table5[#All],2,FALSE)) -> Wind New SCE SDG&E
A15: 86 | B15: 25 MMT | C15: Partial 0yr_wk24 25MMT BC GHG ELCC noPerp | D15: Candidate_Baja_California_Wind | E15: C_RESOLVE WIND | F15: Wind OOS | G15: Wind OOS | H15: 2035 | I15: 600 | J15: 1 | K15: 14.76 | L15: =IF(OR(VLOOKUP(D15,Table5[#All],2,FALSE)='Resource Key'!$B$57,VLOOKUP(D15,Table5[#All],2,FALSE)='Resource Key'!$B$43),IF('Input Source'!$P$1="No","Wind New SCE SDG&E",VLOOKUP(D15,Table5[#All],2,FALSE)),VLOOKUP(Table1[[#This Row],[Resource Name]],Table5[#All],2,FALSE)) -> Wind New SCE SDG&E
A16: 86 | B16: 25 MMT | C16: Partial 0yr_wk24 25MMT BC GHG ELCC noPerp | D16: Candidate_Carrizo_Wind | E16: C_RESOLVE WIND | F16: Wind | G16: Wind | H16: 2022 | I16: 0 | J16: 0 | K16: 0 | L16: =IF(OR(VLOOKUP(D16,Table5[#All],2,FALSE)='Resource Key'!$B$57,VLOOKUP(D16,Table5[#All],2,FALSE)='Resource Key'!$B$43),IF('Input Source'!$P$1="No","Wind New SCE SDG&E",VLOOKUP(D16,Table5[#All],2,FALSE)),VLOOKUP(Table1[[#This Row],[Resource Name]],Table5[#All],2,FALSE)) -> Wind New SCE SDG&E
A17: 86 | B17: 25 MMT | C17: Partial 0yr_wk24 25MMT BC GHG ELCC noPerp | D17: Candidate_Carrizo_Wind | E17: C_RESOLVE WIND | F17: Wind | G17: Wind | H17: 2023 | I17: 287 | J17: 0 | K17: 7.0602 | L17: =IF(OR(VLOOKUP(D17,Table5[#All],2,FALSE)='Resource Key'!$B$57,VLOOKUP(D17,Table5[#All],2,FALSE)='Resource Key'!$B$43),IF('Input Source'!$P$1="No","Wind New SCE SDG&E",VLOOKUP(D17,Table5[#All],2,FALSE)),VLOOKUP(Table1[[#This Row],[Resource Name]],Table5[#All],2,FALSE)) -> Wind New SCE SDG&E
A18: 86 | B18: 25 MMT | C18: Partial 0yr_wk24 25MMT BC GHG ELCC noPerp | D18: Candidate_Carrizo_Wind | E18: C_RESOLVE WIND | F18: Wind | G18: Wind | H18: 2024 | I18: 287 | J18: 0 | K18: 7.0602 | L18: =IF(OR(VLOOKUP(D18,Table5[#All],2,FALSE)='Resource Key'!$B$57,VLOOKUP(D18,Table5[#All],2,FALSE)='Resource Key'!$B$43),IF('Input Source'!$P$1="No","Wind New SCE SDG&E",VLOOKUP(D18,Table5[#All],2,FALSE)),VLOOKUP(Table1[[#This Row],[Resource Name]],Table5[#All],2,FALSE)) -> Wind New SCE SDG&E
A19: 86 | B19: 25 MMT | C19: Partial 0yr_wk24 25MMT BC GHG ELCC noPerp | D19: Candidate_Carrizo_Wind | E19: C_RESOLVE WIND | F19: Wind | G19: Wind | H19: 2025 | I19: 287 | J19: 0 | K19: 7.0602 | L19: =IF(OR(VLOOKUP(D19,Table5[#All],2,FALSE)='Resource Key'!$B$57,VLOOKUP(D19,Table5[#All],2,FALSE)='Resource Key'!$B$43),IF('Input Source'!$P$1="No","Wind New SCE SDG&E",VLOOKUP(D19,Table5[#All],2,FALSE)),VLOOKUP(Table1[[#This Row],[Resource Name]],Table5[#All],2,FALSE)) -> Wind New SCE SDG&E
A20: 86 | B20: 25 MMT | C20: Partial 0yr_wk24 25MMT BC GHG ELCC noPerp | D20: Candidate_Carrizo_Wind | E20: C_RESOLVE WIND | F20: Wind | G20: Wind | H20: 2026 | I20: 287 | J20: 0 | K20: 7.0602 | L20: =IF(OR(VLOOKUP(D20,Table5[#All],2,FALSE)='Resource Key'!$B$57,VLOOKUP(D20,Table5[#All],2,FALSE)='Resource Key'!$B$43),IF('Input Source'!$P$1="No","Wind New SCE SDG&E",VLOOKUP(D20,Table5[#All],2,FALSE)),VLOOKUP(Table1[[#This Row],[Resource Name]],Table5[#All],2,FALSE)) -> Wind New SCE SDG&E
A21: 86 | B21: 25 MMT | C21: Partial 0yr_wk24 25MMT BC GHG ELCC noPerp | D21: Candidate_Carrizo_Wind | E21: C_RESOLVE WIND | F21: Wind | G21: Wind | H21: 2027 | I21: 287 | J21: 0 | K21: 7.0602 | L21: =IF(OR(VLOOKUP(D21,Table5[#All],2,FALSE)='Resource Key'!$B$57,VLOOKUP(D21,Table5[#All],2,FALSE)='Resource Key'!$B$43),IF('Input Source'!$P$1="No","Wind New SCE SDG&E",VLOOKUP(D21,Table5[#All],2,FALSE)),VLOOKUP(Table1[[#This Row],[Resource Name]],Table5[#All],2,FALSE)) -> Wind New SCE SDG&E
A22: 86 | B22: 25 MMT | C22: Partial 0yr_wk24 25MMT BC GHG ELCC noPerp | D22: Candidate_Carrizo_Wind | E22: C_RESOLVE WIND | F22: Wind | G22: Wind | H22: 2028 | I22: 287 | J22: 0 | K22: 7.0602 | L22: =IF(OR(VLOOKUP(D22,Table5[#All],2,FALSE)='Resource Key'!$B$57,VLOOKUP(D22,Table5[#All],2,FALSE)='Resource Key'!$B$43),IF('Input Source'!$P$1="No","Wind New SCE SDG&E",VLOOKUP(D22,Table5[#All],2,FALSE)),VLOOKUP(Table1[[#This Row],[Resource Name]],Table5[#All],2,FALSE)) -> Wind New SCE SDG&E
A23: 86 | B23: 25 MMT | C23: Partial 0yr_wk24 25MMT BC GHG ELCC noPerp | D23: Candidate_Carrizo_Wind | E23: C_RESOLVE WIND | F23: Wind | G23: Wind | H23: 2029 | I23: 287 | J23: 0 | K23: 7.0602 | L23: =IF(OR(VLOOKUP(D23,Table5[#All],2,FALSE)='Resource Key'!$B$57,VLOOKUP(D23,Table5[#All],2,FALSE)='Resource Key'!$B$43),IF('Input Source'!$P$1="No","Wind New SCE SDG&E",VLOOKUP(D23,Table5[#All],2,FALSE)),VLOOKUP(Table1[[#This Row],[Resource Name]],Table5[#All],2,FALSE)) -> Wind New SCE SDG&E
A24: 86 | B24: 25 MMT | C24: Partial 0yr_wk24 25MMT BC GHG ELCC noPerp | D24: Candidate_Carrizo_Wind | E24: C_RESOLVE WIND | F24: Wind | G24: Wind | H24: 2030 | I24: 287 | J24: 0 | K24: 7.0602 | L24: =IF(OR(VLOOKUP(D24,Table5[#All],2,FALSE)='Resource Key'!$B$57,VLOOKUP(D24,Table5[#All],2,FALSE)='Resource Key'!$B$43),IF('Input Source'!$P$1="No","Wind New SCE SDG&E",VLOOKUP(D24,Table5[#All],2,FALSE)),VLOOKUP(Table1[[#This Row],[Resource Name]],Table5[#All],2,FALSE)) -> Wind New SCE SDG&E
A25: 86 | B25: 25 MMT | C25: Partial 0yr_wk24 25MMT BC GHG ELCC noPerp | D25: Candidate_Carrizo_Wind | E25: C_RESOLVE WIND | F25: Wind | G25: Wind | H25: 2031 | I25: 287 | J25: 0 | K25: 7.0602 | L25: =IF(OR(VLOOKUP(D25,Table5[#All],2,FALSE)='Resource Key'!$B$57,VLOOKUP(D25,Table5[#All],2,FALSE)='Resource Key'!$B$43),IF('Input Source'!$P$1="No","Wind New SCE SDG&E",VLOOKUP(D25,Table5[#All],2,FALSE)),VLOOKUP(Table1[[#This Row],[Resource Name]],Table5[#All],2,FALSE)) -> Wind New SCE SDG&E
A26: 86 | B26: 25 MMT | C26: Partial 0yr_wk24 25MMT BC GHG ELCC noPerp | D26: Candidate_Carrizo_Wind | E26: C_RESOLVE WIND | F26: Wind | G26: Wind | H26: 2032 | I26: 287 | J26: 0 | K26: 7.0602 | L26: =IF(OR(VLOOKUP(D26,Table5[#All],2,FALSE)='Resource Key'!$B$57,VLOOKUP(D26,Table5[#All],2,FALSE)='Resource Key'!$B$43),IF('Input Source'!$P$1="No","Wind New SCE SDG&E",VLOOKUP(D26,Table5[#All],2,FALSE)),VLOOKUP(Table1[[#This Row],[Resource Name]],Table5[#All],2,FALSE)) -> Wind New SCE SDG&E
A27: 86 | B27: 25 MMT | C27: Partial 0yr_wk24 25MMT BC GHG ELCC noPerp | D27: Candidate_Carrizo_Wind | E27: C_RESOLVE WIND | F27: Wind | G27: Wind | H27: 2033 | I27: 287 | J27: 0 | K27: 7.0602 | L27: =IF(OR(VLOOKUP(D27,Table5[#All],2,FALSE)='Resource Key'!$B$57,VLOOKUP(D27,Table5[#All],2,FALSE)='Resource Key'!$B$43),IF('Input Source'!$P$1="No","Wind New SCE SDG&E",VLOOKUP(D27,Table5[#All],2,FALSE)),VLOOKUP(Table1[[#This Row],[Resource Name]],Table5[#All],2,FALSE)) -> Wind New SCE SDG&E
A28: 86 | B28: 25 MMT | C28: Partial 0yr_wk24 25MMT BC GHG ELCC noPerp | D28: Candidate_Carrizo_Wind | E28: C_RESOLVE WIND | F28: Wind | G28: Wind | H28: 2034 | I28: 287 | J28: 0 | K28: 7.0602 | L28: =IF(OR(VLOOKUP(D28,Table5[#All],2,FALSE)='Resource Key'!$B$57,VLOOKUP(D28,Table5[#All],2,FALSE)='Resource Key'!$B$43),IF('Input Source'!$P$1="No","Wind New SCE SDG&E",VLOOKUP(D28,Table5[#All],2,FALSE)),VLOOKUP(Table1[[#This Row],[Resource Name]],Table5[#All],2,FALSE)) -> Wind New SCE SDG&E
A29: 86 | B29: 25 MMT | C29: Partial 0yr_wk24 25MMT BC GHG ELCC noPerp | D29: Candidate_Carrizo_Wind | E29: C_RESOLVE WIND | F29: Wind | G29: Wind | H29: 2035 | I29: 287 | J29: 0 | K29: 7.0602 | L29: =IF(OR(VLOOKUP(D29,Table5[#All],2,FALSE)='Resource Key'!$B$57,VLOOKUP(D29,Table5[#All],2,FALSE)='Resource Key'!$B$43),IF('Input Source'!$P$1="No","Wind New SCE SDG&E",VLOOKUP(D29,Table5[#All],2,FALSE)),VLOOKUP(Table1[[#This Row],[Resource Name]],Table5[#All],2,FALSE)) -> Wind New SCE SDG&E
A30: 86 | B30: 25 MMT | C30: Partial 0yr_wk24 25MMT BC GHG ELCC noPerp | D30: Candidate_Central_Valley_North_Los_Banos_Wind | E30: C_RESOLVE WIND | F30: Wind | G30: Wind | H30: 2022 | I30: 0 | J30: 0 | K30: 0 | L30: =IF(OR(VLOOKUP(D30,Table5[#All],2,FALSE)='Resource Key'!$B$57,VLOOKUP(D30,Table5[#All],2,FALSE)='Resource Key'!$B$43),IF('Input Source'!$P$1="No","Wind New SCE SDG&E",VLOOKUP(D30,Table5[#All],2,FALSE)),VLOOKUP(Table1[[#This Row],[Resource Name]],Table5[#All],2,FALSE)) -> Wind New SCE SDG&E
A31: 86 | B31: 25 MMT | C31: Partial 0yr_wk24 25MMT BC GHG ELCC noPerp | D31: Candidate_Central_Valley_North_Los_Banos_Wind | E31: C_RESOLVE WIND | F31: Wind | G31: Wind | H31: 2023 | I31: 0 | J31: 0 | K31: 0 | L31: =IF(OR(VLOOKUP(D31,Table5[#All],2,FALSE)='Resource Key'!$B$57,VLOOKUP(D31,Table5[#All],2,FALSE)='Resource Key'!$B$43),IF('Input Source'!$P$1="No","Wind New SCE SDG&E",VLOOKUP(D31,Table5[#All],2,FALSE)),VLOOKUP(Table1[[#This Row],[Resource Name]],Table5[#All],2,FALSE)) -> Wind New SCE SDG&E
A32: 86 | B32: 25 MMT | C32: Partial 0yr_wk24 25MMT BC GHG ELCC noPerp | D32: Candidate_Central_Valley_North_Los_Banos_Wind | E32: C_RESOLVE WIND | F32: Wind | G32: Wind | H32: 2024 | I32: 0 | J32: 0 | K32: 0 | L32: =IF(OR(VLOOKUP(D32,Table5[#All],2,FALSE)='Resource Key'!$B$57,VLOOKUP(D32,Table5[#All],2,FALSE)='Resource Key'!$B$43),IF('Input Source'!$P$1="No","Wind New SCE SDG&E",VLOOKUP(D32,Table5[#All],2,FALSE)),VLOOKUP(Table1[[#This Row],[Resource Name]],Table5[#All],2,FALSE)) -> Wind New SCE SDG&E
A33: 86 | B33: 25 MMT | C33: Partial 0yr_wk24 25MMT BC GHG ELCC noPerp | D33: Candidate_Central_Valley_North_Los_Banos_Wind | E33: C_RESOLVE WIND | F33: Wind | G33: Wind | H33: 2025 | I33: 0 | J33: 0 | K33: 0 | L33: =IF(OR(VLOOKUP(D33,Table5[#All],2,FALSE)='Resource Key'!$B$57,VLOOKUP(D33,Table5[#All],2,FALSE)='Resource Key'!$B$43),IF('Input Source'!$P$1="No","Wind New SCE SDG&E",VLOOKUP(D33,Table5[#All],2,FALSE)),VLOOKUP(Table1[[#This Row],[Resource Name]],Table5[#All],2,FALSE)) -> Wind New SCE SDG&E
A34: 86 | B34: 25 MMT | C34: Partial 0yr_wk24 25MMT BC GHG ELCC noPerp | D34: Candidate_Central_Valley_North_Los_Banos_Wind | E34: C_RESOLVE WIND | F34: Wind | G34: Wind | H34: 2026 | I34: 0 | J34: 0 | K34: 0 | L34: =IF(OR(VLOOKUP(D34,Table5[#All],2,FALSE)='Resource Key'!$B$57,VLOOKUP(D34,Table5[#All],2,FALSE)='Resource Key'!$B$43),IF('Input Source'!$P$1="No","Wind New SCE SDG&E",VLOOKUP(D34,Table5[#All],2,FALSE)),VLOOKUP(Table1[[#This Row],[Resource Name]],Table5[#All],2,FALSE)) -> Wind New SCE SDG&E
A35: 86 | B35: 25 MMT | C35: Partial 0yr_wk24 25MMT BC GHG ELCC noPerp | D35: Candidate_Central_Valley_North_Los_Banos_Wind | E35: C_RESOLVE WIND | F35: Wind | G35: Wind | H35: 2027 | I35: 0 | J35: 0 | K35: 0 | L35: =IF(OR(VLOOKUP(D35,Table5[#All],2,FALSE)='Resource Key'!$B$57,VLOOKUP(D35,Table5[#All],2,FALSE)='Resource Key'!$B$43),IF('Input Source'!$P$1="No","Wind New SCE SDG&E",VLOOKUP(D35,Table5[#All],2,FALSE)),VLOOKUP(Table1[[#This Row],[Resource Name]],Table5[#All],2,FALSE)) -> Wind New SCE SDG&E
A36: 86 | B36: 25 MMT | C36: Partial 0yr_wk24 25MMT BC GHG ELCC noPerp | D36: Candidate_Central_Valley_North_Los_Banos_Wind | E36: C_RESOLVE WIND | F36: Wind | G36: Wind | H36: 2028 | I36: 0 | J36: 0 | K36: 0 | L36: =IF(OR(VLOOKUP(D36,Table5[#All],2,FALSE)='Resource Key'!$B$57,VLOOKUP(D36,Table5[#All],2,FALSE)='Resource Key'!$B$43),IF('Input Source'!$P$1="No","Wind New SCE SDG&E",VLOOKUP(D36,Table5[#All],2,FALSE)),VLOOKUP(Table1[[#This Row],[Resource Name]],Table5[#All],2,FALSE)) -> Wind New SCE SDG&E
A37: 86 | B37: 25 MMT | C37: Partial 0yr_wk24 25MMT BC GHG ELCC noPerp | D37: Candidate_Central_Valley_North_Los_Banos_Wind | E37: C_RESOLVE WIND | F37: Wind | G37: Wind | H37: 2029 | I37: 0 | J37: 0 | K37: 0 | L37: =IF(OR(VLOOKUP(D37,Table5[#All],2,FALSE)='Resource Key'!$B$57,VLOOKUP(D37,Table5[#All],2,FALSE)='Resource Key'!$B$43),IF('Input Source'!$P$1="No","Wind New SCE SDG&E",VLOOKUP(D37,Table5[#All],2,FALSE)),VLOOKUP(Table1[[#This Row],[Resource Name]],Table5[#All],2,FALSE)) -> Wind New SCE SDG&E
A38: 86 | B38: 25 MMT | C38: Partial 0yr_wk24 25MMT BC GHG ELCC noPerp | D38: Candidate_Central_Valley_North_Los_Banos_Wind | E38: C_RESOLVE WIND | F38: Wind | G38: Wind | H38: 2030 | I38: 0 | J38: 0 | K38: 0 | L38: =IF(OR(VLOOKUP(D38,Table5[#All],2,FALSE)='Resource Key'!$B$57,VLOOKUP(D38,Table5[#All],2,FALSE)='Resource Key'!$B$43),IF('Input Source'!$P$1="No","Wind New SCE SDG&E",VLOOKUP(D38,Table5[#All],2,FALSE)),VLOOKUP(Table1[[#This Row],[Resource Name]],Table5[#All],2,FALSE)) -> Wind New SCE SDG&E
A39: 86 | B39: 25 MMT | C39: Partial 0yr_wk24 25MMT BC GHG ELCC noPerp | D39: Candidate_Central_Valley_North_Los_Banos_Wind | E39: C_RESOLVE WIND | F39: Wind | G39: Wind | H39: 2031 | I39: 0 | J39: 0 | K39: 0 | L39: =IF(OR(VLOOKUP(D39,Table5[#All],2,FALSE)='Resource Key'!$B$57,VLOOKUP(D39,Table5[#All],2,FALSE)='Resource Key'!$B$43),IF('Input Source'!$P$1="No","Wind New SCE SDG&E",VLOOKUP(D39,Table5[#All],2,FALSE)),VLOOKUP(Table1[[#This Row],[Resource Name]],Table5[#All],2,FALSE)) -> Wind New SCE SDG&E
A40: 86 | B40: 25 MMT | C40: Partial 0yr_wk24 25MMT BC GHG ELCC noPerp | D40: Candidate_Central_Valley_North_Los_Banos_Wind | E40: C_RESOLVE WIND | F40: Wind | G40: Wind | H40: 2032 | I40: 0 | J40: 0 | K40: 0 | L40: =IF(OR(VLOOKUP(D40,Table5[#All],2,FALSE)='Resource Key'!$B$57,VLOOKUP(D40,Table5[#All],2,FALSE)='Resource Key'!$B$43),IF('Input Source'!$P$1="No","Wind New SCE SDG&E",VLOOKUP(D40,Table5[#All],2,FALSE)),VLOOKUP(Table1[[#This Row],[Resource Name]],Table5[#All],2,FALSE)) -> Wind New SCE SDG&E
A41: 86 | B41: 25 MMT | C41: Partial 0yr_wk24 25MMT BC GHG ELCC noPerp | D41: Candidate_Central_Valley_North_Los_Banos_Wind | E41: C_RESOLVE WIND | F41: Wind | G41: Wind | H41: 2033 | I41: 0 | J41: 0 | K41: 0 | L41: =IF(OR(VLOOKUP(D41,Table5[#All],2,FALSE)='Resource Key'!$B$57,VLOOKUP(D41,Table5[#All],2,FALSE)='Resource Key'!$B$43),IF('Input Source'!$P$1="No","Wind New SCE SDG&E",VLOOKUP(D41,Table5[#All],2,FALSE)),VLOOKUP(Table1[[#This Row],[Resource Name]],Table5[#All],2,FALSE)) -> Wind New SCE SDG&E
A42: 86 | B42: 25 MMT | C42: Partial 0yr_wk24 25MMT BC GHG ELCC noPerp | D42: Candidate_Central_Valley_North_Los_Banos_Wind | E42: C_RESOLVE WIND | F42: Wind | G42: Wind | H42: 2034 | I42: 0 | J42: 0 | K42: 0 | L42: =IF(OR(VLOOKUP(D42,Table5[#All],2,FALSE)='Resource Key'!$B$57,VLOOKUP(D42,Table5[#All],2,FALSE)='Resource Key'!$B$43),IF('Input Source'!$P$1="No","Wind New SCE SDG&E",VLOOKUP(D42,Table5[#All],2,FALSE)),VLOOKUP(Table1[[#This Row],[Resource Name]],Table5[#All],2,FALSE)) -> Wind New SCE SDG&E
A43: 86 | B43: 25 MMT | C43: Partial 0yr_wk24 25MMT BC GHG ELCC noPerp | D43: Candidate_Central_Valley_North_Los_Banos_Wind | E43: C_RESOLVE WIND | F43: Wind | G43: Wind | H43: 2035 | I43: 0 | J43: 0 | K43: 0 | L43: =IF(OR(VLOOKUP(D43,Table5[#All],2,FALSE)='Resource Key'!$B$57,VLOOKUP(D43,Table5[#All],2,FALSE)='Resource Key'!$B$43),IF('Input Source'!$P$1="No","Wind New SCE SDG&E",VLOOKUP(D43,Table5[#All],2,FALSE)),VLOOKUP(Table1[[#This Row],[Resource Name]],Table5[#All],2,FALSE)) -> Wind New SCE SDG&E
A44: 86 | B44: 25 MMT | C44: Partial 0yr_wk24 25MMT BC GHG ELCC noPerp | D44: Candidate_Humboldt_Wind | E44: C_RESOLVE WIND | F44: Wind | G44: Wind | H44: 2022 | I44: 0 | J44: 0 | K44: 0 | L44: =IF(OR(VLOOKUP(D44,Table5[#All],2,FALSE)='Resource Key'!$B$57,VLOOKUP(D44,Table5[#All],2,FALSE)='Resource Key'!$B$43),IF('Input Source'!$P$1="No","Wind New SCE SDG&E",VLOOKUP(D44,Table5[#All],2,FALSE)),VLOOKUP(Table1[[#This Row],[Resource Name]],Table5[#All],2,FALSE)) -> Wind New SCE SDG&E
A45: 86 | B45: 25 MMT | C45: Partial 0yr_wk24 25MMT BC GHG ELCC noPerp | D45: Candidate_Humboldt_Wind | E45: C_RESOLVE WIND | F45: Wind | G45: Wind | H45: 2023 | I45: 0 | J45: 0 | K45: 0 | L45: =IF(OR(VLOOKUP(D45,Table5[#All],2,FALSE)='Resource Key'!$B$57,VLOOKUP(D45,Table5[#All],2,FALSE)='Resource Key'!$B$43),IF('Input Source'!$P$1="No","Wind New SCE SDG&E",VLOOKUP(D45,Table5[#All],2,FALSE)),VLOOKUP(Table1[[#This Row],[Resource Name]],Table5[#All],2,FALSE)) -> Wind New SCE SDG&E
A46: 86 | B46: 25 MMT | C46: Partial 0yr_wk24 25MMT BC GHG ELCC noPerp | D46: Candidate_Humboldt_Wind | E46: C_RESOLVE WIND | F46: Wind | G46: Wind | H46: 2024 | I46: 0 | J46: 0 | K46: 0 | L46: =IF(OR(VLOOKUP(D46,Table5[#All],2,FALSE)='Resource Key'!$B$57,VLOOKUP(D46,Table5[#All],2,FALSE)='Resource Key'!$B$43),IF('Input Source'!$P$1="No","Wind New SCE SDG&E",VLOOKUP(D46,Table5[#All],2,FALSE)),VLOOKUP(Table1[[#This Row],[Resource Name]],Table5[#All],2,FALSE)) -> Wind New SCE SDG&E
A47: 86 | B47: 25 MMT | C47: Partial 0yr_wk24 25MMT BC GHG ELCC noPerp | D47: Candidate_Humboldt_Wind | E47: C_RESOLVE WIND | F47: Wind | G47: Wind | H47: 2025 | I47: 0 | J47: 0 | K47: 0 | L47: =IF(OR(VLOOKUP(D47,Table5[#All],2,FALSE)='Resource Key'!$B$57,VLOOKUP(D47,Table5[#All],2,FALSE)='Resource Key'!$B$43),IF('Input Source'!$P$1="No","Wind New SCE SDG&E",VLOOKUP(D47,Table5[#All],2,FALSE)),VLOOKUP(Table1[[#This Row],[Resource Name]],Table5[#All],2,FALSE)) -> Wind New SCE SDG&E
A48: 86 | B48: 25 MMT | C48: Partial 0yr_wk24 25MMT BC GHG ELCC noPerp | D48: Candidate_Humboldt_Wind | E48: C_RESOLVE WIND | F48: Wind | G48: Wind | H48: 2026 | I48: 0 | J48: 0 | K48: 0 | L48: =IF(OR(VLOOKUP(D48,Table5[#All],2,FALSE)='Resource Key'!$B$57,VLOOKUP(D48,Table5[#All],2,FALSE)='Resource Key'!$B$43),IF('Input Source'!$P$1="No","Wind New SCE SDG&E",VLOOKUP(D48,Table5[#All],2,FALSE)),VLOOKUP(Table1[[#This Row],[Resource Name]],Table5[#All],2,FALSE)) -> Wind New SCE SDG&E
A49: 86 | B49: 25 MMT | C49: Partial 0yr_wk24 25MMT BC GHG ELCC noPerp | D49: Candidate_Humboldt_Wind | E49: C_RESOLVE WIND | F49: Wind | G49: Wind | H49: 2027 | I49: 0 | J49: 0 | K49: 0 | L49: =IF(OR(VLOOKUP(D49,Table5[#All],2,FALSE)='Resource Key'!$B$57,VLOOKUP(D49,Table5[#All],2,FALSE)='Resource Key'!$B$43),IF('Input Source'!$P$1="No","Wind New SCE SDG&E",VLOOKUP(D49,Table5[#All],2,FALSE)),VLOOKUP(Table1[[#This Row],[Resource Name]],Table5[#All],2,FALSE)) -> Wind New SCE SDG&E
A50: 86 | B50: 25 MMT | C50: Partial 0yr_wk24 25MMT BC GHG ELCC noPerp | D50: Candidate_Humboldt_Wind | E50: C_RESOLVE WIND | F50: Wind | G50: Wind | H50: 2028 | I50: 0 | J50: 0 | K50: 0 | L50: =IF(OR(VLOOKUP(D50,Table5[#All],2,FALSE)='Resource Key'!$B$57,VLOOKUP(D50,Table5[#All],2,FALSE)='Resource Key'!$B$43),IF('Input Source'!$P$1="No","Wind New SCE SDG&E",VLOOKUP(D50,Table5[#All],2,FALSE)),VLOOKUP(Table1[[#This Row],[Resource Name]],Table5[#All],2,FALSE)) -> Wind New SCE SDG&E
A51: 86 | B51: 25 MMT | C51: Partial 0yr_wk24 25MMT BC GHG ELCC noPerp | D51: Candidate_Humboldt_Wind | E51: C_RESOLVE WIND | F51: Wind | G51: Wind | H51: 2029 | I51: 0 | J51: 0 | K51: 0 | L51: =IF(OR(VLOOKUP(D51,Table5[#All],2,FALSE)='Resource Key'!$B$57,VLOOKUP(D51,Table5[#All],2,FALSE)='Resource Key'!$B$43),IF('Input Source'!$P$1="No","Wind New SCE SDG&E",VLOOKUP(D51,Table5[#All],2,FALSE)),VLOOKUP(Table1[[#This Row],[Resource Name]],Table5[#All],2,FALSE)) -> Wind New SCE SDG&E
A52: 86 | B52: 25 MMT | C52: Partial 0yr_wk24 25MMT BC GHG ELCC noPerp | D52: Candidate_Humboldt_Wind | E52: C_RESOLVE WIND | F52: Wind | G52: Wind | H52: 2030 | I52: 0 | J52: 0 | K52: 0 | L52: =IF(OR(VLOOKUP(D52,Table5[#All],2,FALSE)='Resource Key'!$B$57,VLOOKUP(D52,Table5[#All],2,FALSE)='Resource Key'!$B$43),IF('Input Source'!$P$1="No","Wind New SCE SDG&E",VLOOKUP(D52,Table5[#All],2,FALSE)),VLOOKUP(Table1[[#This Row],[Resource Name]],Table5[#All],2,FALSE)) -> Wind New SCE SDG&E
A53: 86 | B53: 25 MMT | C53: Partial 0yr_wk24 25MMT BC GHG ELCC noPerp | D53: Candidate_Humboldt_Wind | E53: C_RESOLVE WIND | F53: Wind | G53: Wind | H53: 2031 | I53: 0 | J53: 0 | K53: 0 | L53: =IF(OR(VLOOKUP(D53,Table5[#All],2,FALSE)='Resource Key'!$B$57,VLOOKUP(D53,Table5[#All],2,FALSE)='Resource Key'!$B$43),IF('Input Source'!$P$1="No","Wind New SCE SDG&E",VLOOKUP(D53,Table5[#All],2,FALSE)),VLOOKUP(Table1[[#This Row],[Resource Name]],Table5[#All],2,FALSE)) -> Wind New SCE SDG&E
A54: 86 | B54: 25 MMT | C54: Partial 0yr_wk24 25MMT BC GHG ELCC noPerp | D54: Candidate_Humboldt_Wind | E54: C_RESOLVE WIND | F54: Wind | G54: Wind | H54: 2032 | I54: 0 | J54: 0 | K54: 0 | L54: =IF(OR(VLOOKUP(D54,Table5[#All],2,FALSE)='Resource Key'!$B$57,VLOOKUP(D54,Table5[#All],2,FALSE)='Resource Key'!$B$43),IF('Input Source'!$P$1="No","Wind New SCE SDG&E",VLOOKUP(D54,Table5[#All],2,FALSE)),VLOOKUP(Table1[[#This Row],[Resource Name]],Table5[#All],2,FALSE)) -> Wind New SCE SDG&E
A55: 86 | B55: 25 MMT | C55: Partial 0yr_wk24 25MMT BC GHG ELCC noPerp | D55: Candidate_Humboldt_Wind | E55: C_RESOLVE WIND | F55: Wind | G55: Wind | H55: 2033 | I55: 0 | J55: 0 | K55: 0 | L55: =IF(OR(VLOOKUP(D55,Table5[#All],2,FALSE)='Resource Key'!$B$57,VLOOKUP(D55,Table5[#All],2,FALSE)='Resource Key'!$B$43),IF('Input Source'!$P$1="No","Wind New SCE SDG&E",VLOOKUP(D55,Table5[#All],2,FALSE)),VLOOKUP(Table1[[#This Row],[Resource Name]],Table5[#All],2,FALSE)) -> Wind New SCE SDG&E
A56: 86 | B56: 25 MMT | C56: Partial 0yr_wk24 25MMT BC GHG ELCC noPerp | D56: Candidate_Humboldt_Wind | E56: C_RESOLVE WIND | F56: Wind | G56: Wind | H56: 2034 | I56: 0 | J56: 0 | K56: 0 | L56: =IF(OR(VLOOKUP(D56,Table5[#All],2,FALSE)='Resource Key'!$B$57,VLOOKUP(D56,Table5[#All],2,FALSE)='Resource Key'!$B$43),IF('Input Source'!$P$1="No","Wind New SCE SDG&E",VLOOKUP(D56,Table5[#All],2,FALSE)),VLOOKUP(Table1[[#This Row],[Resource Name]],Table5[#All],2,FALSE)) -> Wind New SCE SDG&E
A57: 86 | B57: 25 MMT | C57: Partial 0yr_wk24 25MMT BC GHG ELCC noPerp | D57: Candidate_Humboldt_Wind | E57: C_RESOLVE WIND | F57: Wind | G57: Wind | H57: 2035 | I57: 0 | J57: 0 | K57: 0 | L57: =IF(OR(VLOOKUP(D57,Table5[#All],2,FALSE)='Resource Key'!$B$57,VLOOKUP(D57,Table5[#All],2,FALSE)='Resource Key'!$B$43),IF('Input Source'!$P$1="No","Wind New SCE SDG&E",VLOOKUP(D57,Table5[#All],2,FALSE)),VLOOKUP(Table1[[#This Row],[Resource Name]],Table5[#All],2,FALSE)) -> Wind New SCE SDG&E
A58: 86 | B58: 25 MMT | C58: Partial 0yr_wk24 25MMT BC GHG ELCC noPerp | D58: Candidate_Kern_Greater_Carrizo_Wind | E58: C_RESOLVE WIND | F58: Wind | G58: Wind | H58: 2022 | I58: 0 | J58: 0 | K58: 0 | L58: =IF(OR(VLOOKUP(D58,Table5[#All],2,FALSE)='Resource Key'!$B$57,VLOOKUP(D58,Table5[#All],2,FALSE)='Resource Key'!$B$43),IF('Input Source'!$P$1="No","Wind New SCE SDG&E",VLOOKUP(D58,Table5[#All],2,FALSE)),VLOOKUP(Table1[[#This Row],[Resource Name]],Table5[#All],2,FALSE)) -> Wind New SCE SDG&E
A59: 86 | B59: 25 MMT | C59: Partial 0yr_wk24 25MMT BC GHG ELCC noPerp | D59: Candidate_Kern_Greater_Carrizo_Wind | E59: C_RESOLVE WIND | F59: Wind | G59: Wind | H59: 2023 | I59: 0 | J59: 0 | K59: 0 | L59: =IF(OR(VLOOKUP(D59,Table5[#All],2,FALSE)='Resource Key'!$B$57,VLOOKUP(D59,Table5[#All],2,FALSE)='Resource Key'!$B$43),IF('Input Source'!$P$1="No","Wind New SCE SDG&E",VLOOKUP(D59,Table5[#All],2,FALSE)),VLOOKUP(Table1[[#This Row],[Resource Name]],Table5[#All],2,FALSE)) -> Wind New SCE SDG&E
A60: 86 | B60: 25 MMT | C60: Partial 0yr_wk24 25MMT BC GHG ELCC noPerp | D60: Candidate_Kern_Greater_Carrizo_Wind | E60: C_RESOLVE WIND | F60: Wind | G60: Wind | H60: 2024 | I60: 0 | J60: 0 | K60: 0 | L60: =IF(OR(VLOOKUP(D60,Table5[#All],2,FALSE)='Resource Key'!$B$57,VLOOKUP(D60,Table5[#All],2,FALSE)='Resource Key'!$B$43),IF('Input Source'!$P$1="No","Wind New SCE SDG&E",VLOOKUP(D60,Table5[#All],2,FALSE)),VLOOKUP(Table1[[#This Row],[Resource Name]],Table5[#All],2,FALSE)) -> Wind New SCE SDG&E
A61: 86 | B61: 25 MMT | C61: Partial 0yr_wk24 25MMT BC GHG ELCC noPerp | D61: Candidate_Kern_Greater_Carrizo_Wind | E61: C_RESOLVE WIND | F61: Wind | G61: Wind | H61: 2025 | I61: 0 | J61: 0 | K61: 0 | L61: =IF(OR(VLOOKUP(D61,Table5[#All],2,FALSE)='Resource Key'!$B$57,VLOOKUP(D61,Table5[#All],2,FALSE)='Resource Key'!$B$43),IF('Input Source'!$P$1="No","Wind New SCE SDG&E",VLOOKUP(D61,Table5[#All],2,FALSE)),VLOOKUP(Table1[[#This Row],[Resource Name]],Table5[#All],2,FALSE)) -> Wind New SCE SDG&E
A62: 86 | B62: 25 MMT | C62: Partial 0yr_wk24 25MMT BC GHG ELCC noPerp | D62: Candidate_Kern_Greater_Carrizo_Wind | E62: C_RESOLVE WIND | F62: Wind | G62: Wind | H62: 2026 | I62: 0 | J62: 0 | K62: 0 | L62: =IF(OR(VLOOKUP(D62,Table5[#All],2,FALSE)='Resource Key'!$B$57,VLOOKUP(D62,Table5[#All],2,FALSE)='Resource Key'!$B$43),IF('Input Source'!$P$1="No","Wind New SCE SDG&E",VLOOKUP(D62,Table5[#All],2,FALSE)),VLOOKUP(Table1[[#This Row],[Resource Name]],Table5[#All],2,FALSE)) -> Wind New SCE SDG&E
A63: 86 | B63: 25 MMT | C63: Partial 0yr_wk24 25MMT BC GHG ELCC noPerp | D63: Candidate_Kern_Greater_Carrizo_Wind | E63: C_RESOLVE WIND | F63: Wind | G63: Wind | H63: 2027 | I63: 0 | J63: 0 | K63: 0 | L63: =IF(OR(VLOOKUP(D63,Table5[#All],2,FALSE)='Resource Key'!$B$57,VLOOKUP(D63,Table5[#All],2,FALSE)='Resource Key'!$B$43),IF('Input Source'!$P$1="No","Wind New SCE SDG&E",VLOOKUP(D63,Table5[#All],2,FALSE)),VLOOKUP(Table1[[#This Row],[Resource Name]],Table5[#All],2,FALSE)) -> Wind New SCE SDG&E
A64: 86 | B64: 25 MMT | C64: Partial 0yr_wk24 25MMT BC GHG ELCC noPerp | D64: Candidate_Kern_Greater_Carrizo_Wind | E64: C_RESOLVE WIND | F64: Wind | G64: Wind | H64: 2028 | I64: 0 | J64: 0 | K64: 0 | L64: =IF(OR(VLOOKUP(D64,Table5[#All],2,FALSE)='Resource Key'!$B$57,VLOOKUP(D64,Table5[#All],2,FALSE)='Resource Key'!$B$43),IF('Input Source'!$P$1="No","Wind New SCE SDG&E",VLOOKUP(D64,Table5[#All],2,FALSE)),VLOOKUP(Table1[[#This Row],[Resource Name]],Table5[#All],2,FALSE)) -> Wind New SCE SDG&E
A65: 86 | B65: 25 MMT | C65: Partial 0yr_wk24 25MMT BC GHG ELCC noPerp | D65: Candidate_Kern_Greater_Carrizo_Wind | E65: C_RESOLVE WIND | F65: Wind | G65: Wind | H65: 2029 | I65: 0 | J65: 0 | K65: 0 | L65: =IF(OR(VLOOKUP(D65,Table5[#All],2,FALSE)='Resource Key'!$B$57,VLOOKUP(D65,Table5[#All],2,FALSE)='Resource Key'!$B$43),IF('Input Source'!$P$1="No","Wind New SCE SDG&E",VLOOKUP(D65,Table5[#All],2,FALSE)),VLOOKUP(Table1[[#This Row],[Resource Name]],Table5[#All],2,FALSE)) -> Wind New SCE SDG&E
A66: 86 | B66: 25 MMT | C66: Partial 0yr_wk24 25MMT BC GHG ELCC noPerp | D66: Candidate_Kern_Greater_Carrizo_Wind | E66: C_RESOLVE WIND | F66: Wind | G66: Wind | H66: 2030 | I66: 0 | J66: 0 | K66: 0 | L66: =IF(OR(VLOOKUP(D66,Table5[#All],2,FALSE)='Resource Key'!$B$57,VLOOKUP(D66,Table5[#All],2,FALSE)='Resource Key'!$B$43),IF('Input Source'!$P$1="No","Wind New SCE SDG&E",VLOOKUP(D66,Table5[#All],2,FALSE)),VLOOKUP(Table1[[#This Row],[Resource Name]],Table5[#All],2,FALSE)) -> Wind New SCE SDG&E
A67: 86 | B67: 25 MMT | C67: Partial 0yr_wk24 25MMT BC GHG ELCC noPerp | D67: Candidate_Kern_Greater_Carrizo_Wind | E67: C_RESOLVE WIND | F67: Wind | G67: Wind | H67: 2031 | I67: 0 | J67: 0 | K67: 0 | L67: =IF(OR(VLOOKUP(D67,Table5[#All],2,FALSE)='Resource Key'!$B$57,VLOOKUP(D67,Table5[#All],2,FALSE)='Resource Key'!$B$43),IF('Input Source'!$P$1="No","Wind New SCE SDG&E",VLOOKUP(D67,Table5[#All],2,FALSE)),VLOOKUP(Table1[[#This Row],[Resource Name]],Table5[#All],2,FALSE)) -> Wind New SCE SDG&E
A68: 86 | B68: 25 MMT | C68: Partial 0yr_wk24 25MMT BC GHG ELCC noPerp | D68: Candidate_Kern_Greater_Carrizo_Wind | E68: C_RESOLVE WIND | F68: Wind | G68: Wind | H68: 2032 | I68: 0 | J68: 0 | K68: 0 | L68: =IF(OR(VLOOKUP(D68,Table5[#All],2,FALSE)='Resource Key'!$B$57,VLOOKUP(D68,Table5[#All],2,FALSE)='Resource Key'!$B$43),IF('Input Source'!$P$1="No","Wind New SCE SDG&E",VLOOKUP(D68,Table5[#All],2,FALSE)),VLOOKUP(Table1[[#This Row],[Resource Name]],Table5[#All],2,FALSE)) -> Wind New SCE SDG&E
A69: 86 | B69: 25 MMT | C69: Partial 0yr_wk24 25MMT BC GHG ELCC noPerp | D69: Candidate_Kern_Greater_Carrizo_Wind | E69: C_RESOLVE WIND | F69: Wind | G69: Wind | H69: 2033 | I69: 0 | J69: 0 | K69: 0 | L69: =IF(OR(VLOOKUP(D69,Table5[#All],2,FALSE)='Resource Key'!$B$57,VLOOKUP(D69,Table5[#All],2,FALSE)='Resource Key'!$B$43),IF('Input Source'!$P$1="No","Wind New SCE SDG&E",VLOOKUP(D69,Table5[#All],2,FALSE)),VLOOKUP(Table1[[#This Row],[Resource Name]],Table5[#All],2,FALSE)) -> Wind New SCE SDG&E
A70: 86 | B70: 25 MMT | C70: Partial 0yr_wk24 25MMT BC GHG ELCC noPerp | D70: Candidate_Kern_Greater_Carrizo_Wind | E70: C_RESOLVE WIND | F70: Wind | G70: Wind | H70: 2034 | I70: 0 | J70: 0 | K70: 0 | L70: =IF(OR(VLOOKUP(D70,Table5[#All],2,FALSE)='Resource Key'!$B$57,VLOOKUP(D70,Table5[#All],2,FALSE)='Resource Key'!$B$43),IF('Input Source'!$P$1="No","Wind New SCE SDG&E",VLOOKUP(D70,Table5[#All],2,FALSE)),VLOOKUP(Table1[[#This Row],[Resource Name]],Table5[#All],2,FALSE)) -> Wind New SCE SDG&E
A71: 86 | B71: 25 MMT | C71: Partial 0yr_wk24 25MMT BC GHG ELCC noPerp | D71: Candidate_Kern_Greater_Carrizo_Wind | E71: C_RESOLVE WIND | F71: Wind | G71: Wind | H71: 2035 | I71: 0 | J71: 0 | K71: 0 | L71: =IF(OR(VLOOKUP(D71,Table5[#All],2,FALSE)='Resource Key'!$B$57,VLOOKUP(D71,Table5[#All],2,FALSE)='Resource Key'!$B$43),IF('Input Source'!$P$1="No","Wind New SCE SDG&E",VLOOKUP(D71,Table5[#All],2,FALSE)),VLOOKUP(Table1[[#This Row],[Resource Name]],Table5[#All],2,FALSE)) -> Wind New SCE SDG&E
A72: 86 | B72: 25 MMT | C72: Partial 0yr_wk24 25MMT BC GHG ELCC noPerp | D72: Candidate_New_Mexico_Wind | E72: C_RESOLVE WIND | F72: Wind OOS | G72: Wind OOS | H72: 2022 | I72: 0 | J72: 0 | K72: 0 | L72: =IF(OR(VLOOKUP(D72,Table5[#All],2,FALSE)='Resource Key'!$B$57,VLOOKUP(D72,Table5[#All],2,FALSE)='Resource Key'!$B$43),IF('Input Source'!$P$1="No","Wind New SCE SDG&E",VLOOKUP(D72,Table5[#All],2,FALSE)),VLOOKUP(Table1[[#This Row],[Resource Name]],Table5[#All],2,FALSE)) -> Wind New SCE SDG&E
A73: 86 | B73: 25 MMT | C73: Partial 0yr_wk24 25MMT BC GHG ELCC noPerp | D73: Candidate_New_Mexico_Wind | E73: C_RESOLVE WIND | F73: Wind OOS | G73: Wind OOS | H73: 2023 | I73: 0 | J73: 0 | K73: 0 | L73: =IF(OR(VLOOKUP(D73,Table5[#All],2,FALSE)='Resource Key'!$B$57,VLOOKUP(D73,Table5[#All],2,FALSE)='Resource Key'!$B$43),IF('Input Source'!$P$1="No","Wind New SCE SDG&E",VLOOKUP(D73,Table5[#All],2,FALSE)),VLOOKUP(Table1[[#This Row],[Resource Name]],Table5[#All],2,FALSE)) -> Wind New SCE SDG&E
A74: 86 | B74: 25 MMT | C74: Partial 0yr_wk24 25MMT BC GHG ELCC noPerp | D74: Candidate_New_Mexico_Wind | E74: C_RESOLVE WIND | F74: Wind OOS | G74: Wind OOS | H74: 2024 | I74: 0 | J74: 0 | K74: 0 | L74: =IF(OR(VLOOKUP(D74,Table5[#All],2,FALSE)='Resource Key'!$B$57,VLOOKUP(D74,Table5[#All],2,FALSE)='Resource Key'!$B$43),IF('Input Source'!$P$1="No","Wind New SCE SDG&E",VLOOKUP(D74,Table5[#All],2,FALSE)),VLOOKUP(Table1[[#This Row],[Resource Name]],Table5[#All],2,FALSE)) -> Wind New SCE SDG&E
A75: 86 | B75: 25 MMT | C75: Partial 0yr_wk24 25MMT BC GHG ELCC noPerp | D75: Candidate_New_Mexico_Wind | E75: C_RESOLVE WIND | F75: Wind OOS | G75: Wind OOS | H75: 2025 | I75: 0 | J75: 0 | K75: 0 | L75: =IF(OR(VLOOKUP(D75,Table5[#All],2,FALSE)='Resource Key'!$B$57,VLOOKUP(D75,Table5[#All],2,FALSE)='Resource Key'!$B$43),IF('Input Source'!$P$1="No","Wind New SCE SDG&E",VLOOKUP(D75,Table5[#All],2,FALSE)),VLOOKUP(Table1[[#This Row],[Resource Name]],Table5[#All],2,FALSE)) -> Wind New SCE SDG&E
A76: 86 | B76: 25 MMT | C76: Partial 0yr_wk24 25MMT BC GHG ELCC noPerp | D76: Candidate_New_Mexico_Wind | E76: C_RESOLVE WIND | F76: Wind OOS | G76: Wind OOS | H76: 2026 | I76: 2500 | J76: 0 | K76: 61.5 | L76: =IF(OR(VLOOKUP(D76,Table5[#All],2,FALSE)='Resource Key'!$B$57,VLOOKUP(D76,Table5[#All],2,FALSE)='Resource Key'!$B$43),IF('Input Source'!$P$1="No","Wind New SCE SDG&E",VLOOKUP(D76,Table5[#All],2,FALSE)),VLOOKUP(Table1[[#This Row],[Resource Name]],Table5[#All],2,FALSE)) -> Wind New SCE SDG&E
A77: 86 | B77: 25 MMT | C77: Partial 0yr_wk24 25MMT BC GHG ELCC noPerp | D77: Candidate_New_Mexico_Wind | E77: C_RESOLVE WIND | F77: Wind OOS | G77: Wind OOS | H77: 2027 | I77: 2500 | J77: 0 | K77: 61.5 | L77: =IF(OR(VLOOKUP(D77,Table5[#All],2,FALSE)='Resource Key'!$B$57,VLOOKUP(D77,Table5[#All],2,FALSE)='Resource Key'!$B$43),IF('Input Source'!$P$1="No","Wind New SCE SDG&E",VLOOKUP(D77,Table5[#All],2,FALSE)),VLOOKUP(Table1[[#This Row],[Resource Name]],Table5[#All],2,FALSE)) -> Wind New SCE SDG&E
A78: 86 | B78: 25 MMT | C78: Partial 0yr_wk24 25MMT BC GHG ELCC noPerp | D78: Candidate_New_Mexico_Wind | E78: C_RESOLVE WIND | F78: Wind OOS | G78: Wind OOS | H78: 2028 | I78: 2500 | J78: 0 | K78: 61.5 | L78: =IF(OR(VLOOKUP(D78,Table5[#All],2,FALSE)='Resource Key'!$B$57,VLOOKUP(D78,Table5[#All],2,FALSE)='Resource Key'!$B$43),IF('Input Source'!$P$1="No","Wind New SCE SDG&E",VLOOKUP(D78,Table5[#All],2,FALSE)),VLOOKUP(Table1[[#This Row],[Resource Name]],Table5[#All],2,FALSE)) -> Wind New SCE SDG&E
A79: 86 | B79: 25 MMT | C79: Partial 0yr_wk24 25MMT BC GHG ELCC noPerp | D79: Candidate_New_Mexico_Wind | E79: C_RESOLVE WIND | F79: Wind OOS | G79: Wind OOS | H79: 2029 | I79: 2500 | J79: 0 | K79: 61.5 | L79: =IF(OR(VLOOKUP(D79,Table5[#All],2,FALSE)='Resource Key'!$B$57,VLOOKUP(D79,Table5[#All],2,FALSE)='Resource Key'!$B$43),IF('Input Source'!$P$1="No","Wind New SCE SDG&E",VLOOKUP(D79,Table5[#All],2,FALSE)),VLOOKUP(Table1[[#This Row],[Resource Name]],Table5[#All],2,FALSE)) -> Wind New SCE SDG&E
A80: 86 | B80: 25 MMT | C80: Partial 0yr_wk24 25MMT BC GHG ELCC noPerp | D80: Candidate_New_Mexico_Wind | E80: C_RESOLVE WIND | F80: Wind OOS | G80: Wind OOS | H80: 2030 | I80: 2500 | J80: 0 | K80: 61.5 | L80: =IF(OR(VLOOKUP(D80,Table5[#All],2,FALSE)='Resource Key'!$B$57,VLOOKUP(D80,Table5[#All],2,FALSE)='Resource Key'!$B$43),IF('Input Source'!$P$1="No","Wind New SCE SDG&E",VLOOKUP(D80,Table5[#All],2,FALSE)),VLOOKUP(Table1[[#This Row],[Resource Name]],Table5[#All],2,FALSE)) -> Wind New SCE SDG&E
A81: 86 | B81: 25 MMT | C81: Partial 0yr_wk24 25MMT BC GHG ELCC noPerp | D81: Candidate_New_Mexico_Wind | E81: C_RESOLVE WIND | F81: Wind OOS | G81: Wind OOS | H81: 2031 | I81: 2500 | J81: 0 | K81: 61.5 | L81: =IF(OR(VLOOKUP(D81,Table5[#All],2,FALSE)='Resource Key'!$B$57,VLOOKUP(D81,Table5[#All],2,FALSE)='Resource Key'!$B$43),IF('Input Source'!$P$1="No","Wind New SCE SDG&E",VLOOKUP(D81,Table5[#All],2,FALSE)),VLOOKUP(Table1[[#This Row],[Resource Name]],Table5[#All],2,FALSE)) -> Wind New SCE SDG&E
A82: 86 | B82: 25 MMT | C82: Partial 0yr_wk24 25MMT BC GHG ELCC noPerp | D82: Candidate_New_Mexico_Wind | E82: C_RESOLVE WIND | F82: Wind OOS | G82: Wind OOS | H82: 2032 | I82: 2500 | J82: 0 | K82: 61.5 | L82: =IF(OR(VLOOKUP(D82,Table5[#All],2,FALSE)='Resource Key'!$B$57,VLOOKUP(D82,Table5[#All],2,FALSE)='Resource Key'!$B$43),IF('Input Source'!$P$1="No","Wind New SCE SDG&E",VLOOKUP(D82,Table5[#All],2,FALSE)),VLOOKUP(Table1[[#This Row],[Resource Name]],Table5[#All],2,FALSE)) -> Wind New SCE SDG&E
A83: 86 | B83: 25 MMT | C83: Partial 0yr_wk24 25MMT BC GHG ELCC noPerp | D83: Candidate_New_Mexico_Wind | E83: C_RESOLVE WIND | F83: Wind OOS | G83: Wind OOS | H83: 2033 | I83: 2500 | J83: 0 | K83: 61.5 | L83: =IF(OR(VLOOKUP(D83,Table5[#All],2,FALSE)='Resource Key'!$B$57,VLOOKUP(D83,Table5[#All],2,FALSE)='Resource Key'!$B$43),IF('Input Source'!$P$1="No","Wind New SCE SDG&E",VLOOKUP(D83,Table5[#All],2,FALSE)),VLOOKUP(Table1[[#This Row],[Resource Name]],Table5[#All],2,FALSE)) -> Wind New SCE SDG&E
A84: 86 | B84: 25 MMT | C84: Partial 0yr_wk24 25MMT BC GHG ELCC noPerp | D84: Candidate_New_Mexico_Wind | E84: C_RESOLVE WIND | F84: Wind OOS | G84: Wind OOS | H84: 2034 | I84: 2500 | J84: 0 | K84: 61.5 | L84: =IF(OR(VLOOKUP(D84,Table5[#All],2,FALSE)='Resource Key'!$B$57,VLOOKUP(D84,Table5[#All],2,FALSE)='Resource Key'!$B$43),IF('Input Source'!$P$1="No","Wind New SCE SDG&E",VLOOKUP(D84,Table5[#All],2,FALSE)),VLOOKUP(Table1[[#This Row],[Resource Name]],Table5[#All],2,FALSE)) -> Wind New SCE SDG&E
A85: 86 | B85: 25 MMT | C85: Partial 0yr_wk24 25MMT BC GHG ELCC noPerp | D85: Candidate_New_Mexico_Wind | E85: C_RESOLVE WIND | F85: Wind OOS | G85: Wind OOS | H85: 2035 | I85: 2500 | J85: 0 | K85: 61.5 | L85: =IF(OR(VLOOKUP(D85,Table5[#All],2,FALSE)='Resource Key'!$B$57,VLOOKUP(D85,Table5[#All],2,FALSE)='Resource Key'!$B$43),IF('Input Source'!$P$1="No","Wind New SCE SDG&E",VLOOKUP(D85,Table5[#All],2,FALSE)),VLOOKUP(Table1[[#This Row],[Resource Name]],Table5[#All],2,FALSE)) -> Wind New SCE SDG&E
A86: 86 | B86: 25 MMT | C86: Partial 0yr_wk24 25MMT BC GHG ELCC noPerp | D86: Candidate_Northern_California_Wind | E86: C_RESOLVE WIND | F86: Wind | G86: Wind | H86: 2022 | I86: 0 | J86: 0 | K86: 0 | L86: =IF(OR(VLOOKUP(D86,Table5[#All],2,FALSE)='Resource Key'!$B$57,VLOOKUP(D86,Table5[#All],2,FALSE)='Resource Key'!$B$43),IF('Input Source'!$P$1="No","Wind New SCE SDG&E",VLOOKUP(D86,Table5[#All],2,FALSE)),VLOOKUP(Table1[[#This Row],[Resource Name]],Table5[#All],2,FALSE)) -> Wind New SCE SDG&E
A87: 86 | B87: 25 MMT | C87: Partial 0yr_wk24 25MMT BC GHG ELCC noPerp | D87: Candidate_Northern_California_Wind | E87: C_RESOLVE WIND | F87: Wind | G87: Wind | H87: 2023 | I87: 0 | J87: 0 | K87: 0 | L87: =IF(OR(VLOOKUP(D87,Table5[#All],2,FALSE)='Resource Key'!$B$57,VLOOKUP(D87,Table5[#All],2,FALSE)='Resource Key'!$B$43),IF('Input Source'!$P$1="No","Wind New SCE SDG&E",VLOOKUP(D87,Table5[#All],2,FALSE)),VLOOKUP(Table1[[#This Row],[Resource Name]],Table5[#All],2,FALSE)) -> Wind New SCE SDG&E
A88: 86 | B88: 25 MMT | C88: Partial 0yr_wk24 25MMT BC GHG ELCC noPerp | D88: Candidate_Northern_California_Wind | E88: C_RESOLVE WIND | F88: Wind | G88: Wind | H88: 2024 | I88: 0 | J88: 0 | K88: 0 | L88: =IF(OR(VLOOKUP(D88,Table5[#All],2,FALSE)='Resource Key'!$B$57,VLOOKUP(D88,Table5[#All],2,FALSE)='Resource Key'!$B$43),IF('Input Source'!$P$1="No","Wind New SCE SDG&E",VLOOKUP(D88,Table5[#All],2,FALSE)),VLOOKUP(Table1[[#This Row],[Resource Name]],Table5[#All],2,FALSE)) -> Wind New SCE SDG&E
A89: 86 | B89: 25 MMT | C89: Partial 0yr_wk24 25MMT BC GHG ELCC noPerp | D89: Candidate_Northern_California_Wind | E89: C_RESOLVE WIND | F89: Wind | G89: Wind | H89: 2025 | I89: 0 | J89: 0 | K89: 0 | L89: =IF(OR(VLOOKUP(D89,Table5[#All],2,FALSE)='Resource Key'!$B$57,VLOOKUP(D89,Table5[#All],2,FALSE)='Resource Key'!$B$43),IF('Input Source'!$P$1="No","Wind New SCE SDG&E",VLOOKUP(D89,Table5[#All],2,FALSE)),VLOOKUP(Table1[[#This Row],[Resource Name]],Table5[#All],2,FALSE)) -> Wind New SCE SDG&E
A90: 86 | B90: 25 MMT | C90: Partial 0yr_wk24 25MMT BC GHG ELCC noPerp | D90: Candidate_Northern_California_Wind | E90: C_RESOLVE WIND | F90: Wind | G90: Wind | H90: 2026 | I90: 0 | J90: 0 | K90: 0 | L90: =IF(OR(VLOOKUP(D90,Table5[#All],2,FALSE)='Resource Key'!$B$57,VLOOKUP(D90,Table5[#All],2,FALSE)='Resource Key'!$B$43),IF('Input Source'!$P$1="No","Wind New SCE SDG&E",VLOOKUP(D90,Table5[#All],2,FALSE)),VLOOKUP(Table1[[#This Row],[Resource Name]],Table5[#All],2,FALSE)) -> Wind New SCE SDG&E
A91: 86 | B91: 25 MMT | C91: Partial 0yr_wk24 25MMT BC GHG ELCC noPerp | D91: Candidate_Northern_California_Wind | E91: C_RESOLVE WIND | F91: Wind | G91: Wind | H91: 2027 | I91: 0 | J91: 0 | K91: 0 | L91: =IF(OR(VLOOKUP(D91,Table5[#All],2,FALSE)='Resource Key'!$B$57,VLOOKUP(D91,Table5[#All],2,FALSE)='Resource Key'!$B$43),IF('Input Source'!$P$1="No","Wind New SCE SDG&E",VLOOKUP(D91,Table5[#All],2,FALSE)),VLOOKUP(Table1[[#This Row],[Resource Name]],Table5[#All],2,FALSE)) -> Wind New SCE SDG&E
A92: 86 | B92: 25 MMT | C92: Partial 0yr_wk24 25MMT BC GHG ELCC noPerp | D92: Candidate_Northern_California_Wind | E92: C_RESOLVE WIND | F92: Wind | G92: Wind | H92: 2028 | I92: 0 | J92: 0 | K92: 0 | L92: =IF(OR(VLOOKUP(D92,Table5[#All],2,FALSE)='Resource Key'!$B$57,VLOOKUP(D92,Table5[#All],2,FALSE)='Resource Key'!$B$43),IF('Input Source'!$P$1="No","Wind New SCE SDG&E",VLOOKUP(D92,Table5[#All],2,FALSE)),VLOOKUP(Table1[[#This Row],[Resource Name]],Table5[#All],2,FALSE)) -> Wind New SCE SDG&E
A93: 86 | B93: 25 MMT | C93: Partial 0yr_wk24 25MMT BC GHG ELCC noPerp | D93: Candidate_Northern_California_Wind | E93: C_RESOLVE WIND | F93: Wind | G93: Wind | H93: 2029 | I93: 0 | J93: 0 | K93: 0 | L93: =IF(OR(VLOOKUP(D93,Table5[#All],2,FALSE)='Resource Key'!$B$57,VLOOKUP(D93,Table5[#All],2,FALSE)='Resource Key'!$B$43),IF('Input Source'!$P$1="No","Wind New SCE SDG&E",VLOOKUP(D93,Table5[#All],2,FALSE)),VLOOKUP(Table1[[#This Row],[Resource Name]],Table5[#All],2,FALSE)) -> Wind New SCE SDG&E
A94: 86 | B94: 25 MMT | C94: Partial 0yr_wk24 25MMT BC GHG ELCC noPerp | D94: Candidate_Northern_California_Wind | E94: C_RESOLVE WIND | F94: Wind | G94: Wind | H94: 2030 | I94: 0 | J94: 0 | K94: 0 | L94: =IF(OR(VLOOKUP(D94,Table5[#All],2,FALSE)='Resource Key'!$B$57,VLOOKUP(D94,Table5[#All],2,FALSE)='Resource Key'!$B$43),IF('Input Source'!$P$1="No","Wind New SCE SDG&E",VLOOKUP(D94,Table5[#All],2,FALSE)),VLOOKUP(Table1[[#This Row],[Resource Name]],Table5[#All],2,FALSE)) -> Wind New SCE SDG&E
A95: 86 | B95: 25 MMT | C95: Partial 0yr_wk24 25MMT BC GHG ELCC noPerp | D95: Candidate_Northern_California_Wind | E95: C_RESOLVE WIND | F95: Wind | G95: Wind | H95: 2031 | I95: 0 | J95: 0 | K95: 0 | L95: =IF(OR(VLOOKUP(D95,Table5[#All],2,FALSE)='Resource Key'!$B$57,VLOOKUP(D95,Table5[#All],2,FALSE)='Resource Key'!$B$43),IF('Input Source'!$P$1="No","Wind New SCE SDG&E",VLOOKUP(D95,Table5[#All],2,FALSE)),VLOOKUP(Table1[[#This Row],[Resource Name]],Table5[#All],2,FALSE)) -> Wind New SCE SDG&E
A96: 86 | B96: 25 MMT | C96: Partial 0yr_wk24 25MMT BC GHG ELCC noPerp | D96: Candidate_Northern_California_Wind | E96: C_RESOLVE WIND | F96: Wind | G96: Wind | H96: 2032 | I96: 0 | J96: 0 | K96: 0 | L96: =IF(OR(VLOOKUP(D96,Table5[#All],2,FALSE)='Resource Key'!$B$57,VLOOKUP(D96,Table5[#All],2,FALSE)='Resource Key'!$B$43),IF('Input Source'!$P$1="No","Wind New SCE SDG&E",VLOOKUP(D96,Table5[#All],2,FALSE)),VLOOKUP(Table1[[#This Row],[Resource Name]],Table5[#All],2,FALSE)) -> Wind New SCE SDG&E
A97: 86 | B97: 25 MMT | C97: Partial 0yr_wk24 25MMT BC GHG ELCC noPerp | D97: Candidate_Northern_California_Wind | E97: C_RESOLVE WIND | F97: Wind | G97: Wind | H97: 2033 | I97: 0 | J97: 0 | K97: 0 | L97: =IF(OR(VLOOKUP(D97,Table5[#All],2,FALSE)='Resource Key'!$B$57,VLOOKUP(D97,Table5[#All],2,FALSE)='Resource Key'!$B$43),IF('Input Source'!$P$1="No","Wind New SCE SDG&E",VLOOKUP(D97,Table5[#All],2,FALSE)),VLOOKUP(Table1[[#This Row],[Resource Name]],Table5[#All],2,FALSE)) -> Wind New SCE SDG&E
A98: 86 | B98: 25 MMT | C98: Partial 0yr_wk24 25MMT BC GHG ELCC noPerp | D98: Candidate_Northern_California_Wind | E98: C_RESOLVE WIND | F98: Wind | G98: Wind | H98: 2034 | I98: 0 | J98: 0 | K98: 0 | L98: =IF(OR(VLOOKUP(D98,Table5[#All],2,FALSE)='Resource Key'!$B$57,VLOOKUP(D98,Table5[#All],2,FALSE)='Resource Key'!$B$43),IF('Input Source'!$P$1="No","Wind New SCE SDG&E",VLOOKUP(D98,Table5[#All],2,FALSE)),VLOOKUP(Table1[[#This Row],[Resource Name]],Table5[#All],2,FALSE)) -> Wind New SCE SDG&E
A99: 86 | B99: 25 MMT | C99: Partial 0yr_wk24 25MMT BC GHG ELCC noPerp | D99: Candidate_Northern_California_Wind | E99: C_RESOLVE WIND | F99: Wind | G99: Wind | H99: 2035 | I99: 0 | J99: 0 | K99: 0 | L99: =IF(OR(VLOOKUP(D99,Table5[#All],2,FALSE)='Resource Key'!$B$57,VLOOKUP(D99,Table5[#All],2,FALSE)='Resource Key'!$B$43),IF('Input Source'!$P$1="No","Wind New SCE SDG&E",VLOOKUP(D99,Table5[#All],2,FALSE)),VLOOKUP(Table1[[#This Row],[Resource Name]],Table5[#All],2,FALSE)) -> Wind New SCE SDG&E
A100: 86 | B100: 25 MMT | C100: Partial 0yr_wk24 25MMT BC GHG ELCC noPerp | D100: Candidate_NW_Ext_Tx_Wind | E100: C_RESOLVE WIND | F100: Wind OOS | G100: Wind OOS | H100: 2022 | I100: 0 | J100: 0 | K100: 0 | L100: =IF(OR(VLOOKUP(D100,Table5[#All],2,FALSE)='Resource Key'!$B$57,VLOOKUP(D100,Table5[#All],2,FALSE)='Resource Key'!$B$43),IF('Input Source'!$P$1="No","Wind New SCE SDG&E",VLOOKUP(D100,Table5[#All],2,FALSE)),VLOOKUP(Table1[[#This Row],[Resource Name]],Table5[#All],2,FALSE)) -> Wind New SCE SDG&E
A101: 86 | B101: 25 MMT | C101: Partial 0yr_wk24 25MMT BC GHG ELCC noPerp | D101: Candidate_NW_Ext_Tx_Wind | E101: C_RESOLVE WIND | F101: Wind OOS | G101: Wind OOS | H101: 2023 | I101: 0 | J101: 0 | K101: 0 | L101: =IF(OR(VLOOKUP(D101,Table5[#All],2,FALSE)='Resource Key'!$B$57,VLOOKUP(D101,Table5[#All],2,FALSE)='Resource Key'!$B$43),IF('Input Source'!$P$1="No","Wind New SCE SDG&E",VLOOKUP(D101,Table5[#All],2,FALSE)),VLOOKUP(Table1[[#This Row],[Resource Name]],Table5[#All],2,FALSE)) -> Wind New SCE SDG&E
A102: 86 | B102: 25 MMT | C102: Partial 0yr_wk24 25MMT BC GHG ELCC noPerp | D102: Candidate_NW_Ext_Tx_Wind | E102: C_RESOLVE WIND | F102: Wind OOS | G102: Wind OOS | H102: 2024 | I102: 0 | J102: 0 | K102: 0 | L102: =IF(OR(VLOOKUP(D102,Table5[#All],2,FALSE)='Resource Key'!$B$57,VLOOKUP(D102,Table5[#All],2,FALSE)='Resource Key'!$B$43),IF('Input Source'!$P$1="No","Wind New SCE SDG&E",VLOOKUP(D102,Table5[#All],2,FALSE)),VLOOKUP(Table1[[#This Row],[Resource Name]],Table5[#All],2,FALSE)) -> Wind New SCE SDG&E
A103: 86 | B103: 25 MMT | C103: Partial 0yr_wk24 25MMT BC GHG ELCC noPerp | D103: Candidate_NW_Ext_Tx_Wind | E103: C_RESOLVE WIND | F103: Wind OOS | G103: Wind OOS | H103: 2025 | I103: 0 | J103: 0 | K103: 0 | L103: =IF(OR(VLOOKUP(D103,Table5[#All],2,FALSE)='Resource Key'!$B$57,VLOOKUP(D103,Table5[#All],2,FALSE)='Resource Key'!$B$43),IF('Input Source'!$P$1="No","Wind New SCE SDG&E",VLOOKUP(D103,Table5[#All],2,FALSE)),VLOOKUP(Table1[[#This Row],[Resource Name]],Table5[#All],2,FALSE)) -> Wind New SCE SDG&E
A104: 86 | B104: 25 MMT | C104: Partial 0yr_wk24 25MMT BC GHG ELCC noPerp | D104: Candidate_NW_Ext_Tx_Wind | E104: C_RESOLVE WIND | F104: Wind OOS | G104: Wind OOS | H104: 2026 | I104: 0 | J104: 0 | K104: 0 | L104: =IF(OR(VLOOKUP(D104,Table5[#All],2,FALSE)='Resource Key'!$B$57,VLOOKUP(D104,Table5[#All],2,FALSE)='Resource Key'!$B$43),IF('Input Source'!$P$1="No","Wind New SCE SDG&E",VLOOKUP(D104,Table5[#All],2,FALSE)),VLOOKUP(Table1[[#This Row],[Resource Name]],Table5[#All],2,FALSE)) -> Wind New SCE SDG&E
A105: 86 | B105: 25 MMT | C105: Partial 0yr_wk24 25MMT BC GHG ELCC noPerp | D105: Candidate_NW_Ext_Tx_Wind | E105: C_RESOLVE WIND | F105: Wind OOS | G105: Wind OOS | H105: 2027 | I105: 0 | J105: 0 | K105: 0 | L105: =IF(OR(VLOOKUP(D105,Table5[#All],2,FALSE)='Resource Key'!$B$57,VLOOKUP(D105,Table5[#All],2,FALSE)='Resource Key'!$B$43),IF('Input Source'!$P$1="No","Wind New SCE SDG&E",VLOOKUP(D105,Table5[#All],2,FALSE)),VLOOKUP(Table1[[#This Row],[Resource Name]],Table5[#All],2,FALSE)) -> Wind New SCE SDG&E
A106: 86 | B106: 25 MMT | C106: Partial 0yr_wk24 25MMT BC GHG ELCC noPerp | D106: Candidate_NW_Ext_Tx_Wind | E106: C_RESOLVE WIND | F106: Wind OOS | G106: Wind OOS | H106: 2028 | I106: 0 | J106: 0 | K106: 0 | L106: =IF(OR(VLOOKUP(D106,Table5[#All],2,FALSE)='Resource Key'!$B$57,VLOOKUP(D106,Table5[#All],2,FALSE)='Resource Key'!$B$43),IF('Input Source'!$P$1="No","Wind New SCE SDG&E",VLOOKUP(D106,Table5[#All],2,FALSE)),VLOOKUP(Table1[[#This Row],[Resource Name]],Table5[#All],2,FALSE)) -> Wind New SCE SDG&E
A107: 86 | B107: 25 MMT | C107: Partial 0yr_wk24 25MMT BC GHG ELCC noPerp | D107: Candidate_NW_Ext_Tx_Wind | E107: C_RESOLVE WIND | F107: Wind OOS | G107: Wind OOS | H107: 2029 | I107: 0 | J107: 0 | K107: 0 | L107: =IF(OR(VLOOKUP(D107,Table5[#All],2,FALSE)='Resource Key'!$B$57,VLOOKUP(D107,Table5[#All],2,FALSE)='Resource Key'!$B$43),IF('Input Source'!$P$1="No","Wind New SCE SDG&E",VLOOKUP(D107,Table5[#All],2,FALSE)),VLOOKUP(Table1[[#This Row],[Resource Name]],Table5[#All],2,FALSE)) -> Wind New SCE SDG&E
A108: 86 | B108: 25 MMT | C108: Partial 0yr_wk24 25MMT BC GHG ELCC noPerp | D108: Candidate_NW_Ext_Tx_Wind | E108: C_RESOLVE WIND | F108: Wind OOS | G108: Wind OOS | H108: 2030 | I108: 0 | J108: 0 | K108: 0 | L108: =IF(OR(VLOOKUP(D108,Table5[#All],2,FALSE)='Resource Key'!$B$57,VLOOKUP(D108,Table5[#All],2,FALSE)='Resource Key'!$B$43),IF('Input Source'!$P$1="No","Wind New SCE SDG&E",VLOOKUP(D108,Table5[#All],2,FALSE)),VLOOKUP(Table1[[#This Row],[Resource Name]],Table5[#All],2,FALSE)) -> Wind New SCE SDG&E
A109: 86 | B109: 25 MMT | C109: Partial 0yr_wk24 25MMT BC GHG ELCC noPerp | D109: Candidate_NW_Ext_Tx_Wind | E109: C_RESOLVE WIND | F109: Wind OOS | G109: Wind OOS | H109: 2031 | I109: 0 | J109: 0 | K109: 0 | L109: =IF(OR(VLOOKUP(D109,Table5[#All],2,FALSE)='Resource Key'!$B$57,VLOOKUP(D109,Table5[#All],2,FALSE)='Resource Key'!$B$43),IF('Input Source'!$P$1="No","Wind New SCE SDG&E",VLOOKUP(D109,Table5[#All],2,FALSE)),VLOOKUP(Table1[[#This Row],[Resource Name]],Table5[#All],2,FALSE)) -> Wind New SCE SDG&E
A110: 86 | B110: 25 MMT | C110: Partial 0yr_wk24 25MMT BC GHG ELCC noPerp | D110: Candidate_NW_Ext_Tx_Wind | E110: C_RESOLVE WIND | F110: Wind OOS | G110: Wind OOS | H110: 2032 | I110: 0 | J110: 0 | K110: 0 | L110: =IF(OR(VLOOKUP(D110,Table5[#All],2,FALSE)='Resource Key'!$B$57,VLOOKUP(D110,Table5[#All],2,FALSE)='Resource Key'!$B$43),IF('Input Source'!$P$1="No","Wind New SCE SDG&E",VLOOKUP(D110,Table5[#All],2,FALSE)),VLOOKUP(Table1[[#This Row],[Resource Name]],Table5[#All],2,FALSE)) -> Wind New SCE SDG&E
A111: 86 | B111: 25 MMT | C111: Partial 0yr_wk24 25MMT BC GHG ELCC noPerp | D111: Candidate_NW_Ext_Tx_Wind | E111: C_RESOLVE WIND | F111: Wind OOS | G111: Wind OOS | H111: 2033 | I111: 0 | J111: 0 | K111: 0 | L111: =IF(OR(VLOOKUP(D111,Table5[#All],2,FALSE)='Resource Key'!$B$57,VLOOKUP(D111,Table5[#All],2,FALSE)='Resource Key'!$B$43),IF('Input Source'!$P$1="No","Wind New SCE SDG&E",VLOOKUP(D111,Table5[#All],2,FALSE)),VLOOKUP(Table1[[#This Row],[Resource Name]],Table5[#All],2,FALSE)) -> Wind New SCE SDG&E
A112: 86 | B112: 25 MMT | C112: Partial 0yr_wk24 25MMT BC GHG ELCC noPerp | D112: Candidate_NW_Ext_Tx_Wind | E112: C_RESOLVE WIND | F112: Wind OOS | G112: Wind OOS | H112: 2034 | I112: 0 | J112: 0 | K112: 0 | L112: =IF(OR(VLOOKUP(D112,Table5[#All],2,FALSE)='Resource Key'!$B$57,VLOOKUP(D112,Table5[#All],2,FALSE)='Resource Key'!$B$43),IF('Input Source'!$P$1="No","Wind New SCE SDG&E",VLOOKUP(D112,Table5[#All],2,FALSE)),VLOOKUP(Table1[[#This Row],[Resource Name]],Table5[#All],2,FALSE)) -> Wind New SCE SDG&E
A113: 86 | B113: 25 MMT | C113: Partial 0yr_wk24 25MMT BC GHG ELCC noPerp | D113: Candidate_NW_Ext_Tx_Wind | E113: C_RESOLVE WIND | F113: Wind OOS | G113: Wind OOS | H113: 2035 | I113: 0 | J113: 0 | K113: 0 | L113: =IF(OR(VLOOKUP(D113,Table5[#All],2,FALSE)='Resource Key'!$B$57,VLOOKUP(D113,Table5[#All],2,FALSE)='Resource Key'!$B$43),IF('Input Source'!$P$1="No","Wind New SCE SDG&E",VLOOKUP(D113,Table5[#All],2,FALSE)),VLOOKUP(Table1[[#This Row],[Resource Name]],Table5[#All],2,FALSE)) -> Wind New SCE SDG&E
A114: 86 | B114: 25 MMT | C114: Partial 0yr_wk24 25MMT BC GHG ELCC noPerp | D114: Candidate_Solano_Wind | E114: C_RESOLVE WIND | F114: Wind | G114: Wind | H114: 2022 | I114: 0 | J114: 0 | K114: 0 | L114: =IF(OR(VLOOKUP(D114,Table5[#All],2,FALSE)='Resource Key'!$B$57,VLOOKUP(D114,Table5[#All],2,FALSE)='Resource Key'!$B$43),IF('Input Source'!$P$1="No","Wind New SCE SDG&E",VLOOKUP(D114,Table5[#All],2,FALSE)),VLOOKUP(Table1[[#This Row],[Resource Name]],Table5[#All],2,FALSE)) -> Wind New SCE SDG&E
A115: 86 | B115: 25 MMT | C115: Partial 0yr_wk24 25MMT BC GHG ELCC noPerp | D115: Candidate_Solano_Wind | E115: C_RESOLVE WIND | F115: Wind | G115: Wind | H115: 2023 | I115: 0 | J115: 0 | K115: 0 | L115: =IF(OR(VLOOKUP(D115,Table5[#All],2,FALSE)='Resource Key'!$B$57,VLOOKUP(D115,Table5[#All],2,FALSE)='Resource Key'!$B$43),IF('Input Source'!$P$1="No","Wind New SCE SDG&E",VLOOKUP(D115,Table5[#All],2,FALSE)),VLOOKUP(Table1[[#This Row],[Resource Name]],Table5[#All],2,FALSE)) -> Wind New SCE SDG&E
A116: 86 | B116: 25 MMT | C116: Partial 0yr_wk24 25MMT BC GHG ELCC noPerp | D116: Candidate_Solano_Wind | E116: C_RESOLVE WIND | F116: Wind | G116: Wind | H116: 2024 | I116: 0 | J116: 0 | K116: 0 | L116: =IF(OR(VLOOKUP(D116,Table5[#All],2,FALSE)='Resource Key'!$B$57,VLOOKUP(D116,Table5[#All],2,FALSE)='Resource Key'!$B$43),IF('Input Source'!$P$1="No","Wind New SCE SDG&E",VLOOKUP(D116,Table5[#All],2,FALSE)),VLOOKUP(Table1[[#This Row],[Resource Name]],Table5[#All],2,FALSE)) -> Wind New SCE SDG&E
A117: 86 | B117: 25 MMT | C117: Partial 0yr_wk24 25MMT BC GHG ELCC noPerp | D117: Candidate_Solano_Wind | E117: C_RESOLVE WIND | F117: Wind | G117: Wind | H117: 2025 | I117: 0 | J117: 0 | K117: 0 | L117: =IF(OR(VLOOKUP(D117,Table5[#All],2,FALSE)='Resource Key'!$B$57,VLOOKUP(D117,Table5[#All],2,FALSE)='Resource Key'!$B$43),IF('Input Source'!$P$1="No","Wind New SCE SDG&E",VLOOKUP(D117,Table5[#All],2,FALSE)),VLOOKUP(Table1[[#This Row],[Resource Name]],Table5[#All],2,FALSE)) -> Wind New SCE SDG&E
A118: 86 | B118: 25 MMT | C118: Partial 0yr_wk24 25MMT BC GHG ELCC noPerp | D118: Candidate_Solano_Wind | E118: C_RESOLVE WIND | F118: Wind | G118: Wind | H118: 2026 | I118: 0 | J118: 0 | K118: 0 | L118: =IF(OR(VLOOKUP(D118,Table5[#All],2,FALSE)='Resource Key'!$B$57,VLOOKUP(D118,Table5[#All],2,FALSE)='Resource Key'!$B$43),IF('Input Source'!$P$1="No","Wind New SCE SDG&E",VLOOKUP(D118,Table5[#All],2,FALSE)),VLOOKUP(Table1[[#This Row],[Resource Name]],Table5[#All],2,FALSE)) -> Wind New SCE SDG&E
A119: 86 | B119: 25 MMT | C119: Partial 0yr_wk24 25MMT BC GHG ELCC noPerp | D119: Candidate_Solano_Wind | E119: C_RESOLVE WIND | F119: Wind | G119: Wind | H119: 2027 | I119: 0 | J119: 0 | K119: 0 | L119: =IF(OR(VLOOKUP(D119,Table5[#All],2,FALSE)='Resource Key'!$B$57,VLOOKUP(D119,Table5[#All],2,FALSE)='Resource Key'!$B$43),IF('Input Source'!$P$1="No","Wind New SCE SDG&E",VLOOKUP(D119,Table5[#All],2,FALSE)),VLOOKUP(Table1[[#This Row],[Resource Name]],Table5[#All],2,FALSE)) -> Wind New SCE SDG&E
A120: 86 | B120: 25 MMT | C120: Partial 0yr_wk24 25MMT BC GHG ELCC noPerp | D120: Candidate_Solano_Wind | E120: C_RESOLVE WIND | F120: Wind | G120: Wind | H120: 2028 | I120: 0 | J120: 0 | K120: 0 | L120: =IF(OR(VLOOKUP(D120,Table5[#All],2,FALSE)='Resource Key'!$B$57,VLOOKUP(D120,Table5[#All],2,FALSE)='Resource Key'!$B$43),IF('Input Source'!$P$1="No","Wind New SCE SDG&E",VLOOKUP(D120,Table5[#All],2,FALSE)),VLOOKUP(Table1[[#This Row],[Resource Name]],Table5[#All],2,FALSE)) -> Wind New SCE SDG&E
A121: 86 | B121: 25 MMT | C121: Partial 0yr_wk24 25MMT BC GHG ELCC noPerp | D121: Candidate_Solano_Wind | E121: C_RESOLVE WIND | F121: Wind | G121: Wind | H121: 2029 | I121: 0 | J121: 0 | K121: 0 | L121: =IF(OR(VLOOKUP(D121,Table5[#All],2,FALSE)='Resource Key'!$B$57,VLOOKUP(D121,Table5[#All],2,FALSE)='Resource Key'!$B$43),IF('Input Source'!$P$1="No","Wind New SCE SDG&E",VLOOKUP(D121,Table5[#All],2,FALSE)),VLOOKUP(Table1[[#This Row],[Resource Name]],Table5[#All],2,FALSE)) -> Wind New SCE SDG&E
A122: 86 | B122: 25 MMT | C122: Partial 0yr_wk24 25MMT BC GHG ELCC noPerp | D122: Candidate_Solano_Wind | E122: C_RESOLVE WIND | F122: Wind | G122: Wind | H122: 2030 | I122: 0 | J122: 0 | K122: 0 | L122: =IF(OR(VLOOKUP(D122,Table5[#All],2,FALSE)='Resource Key'!$B$57,VLOOKUP(D122,Table5[#All],2,FALSE)='Resource Key'!$B$43),IF('Input Source'!$P$1="No","Wind New SCE SDG&E",VLOOKUP(D122,Table5[#All],2,FALSE)),VLOOKUP(Table1[[#This Row],[Resource Name]],Table5[#All],2,FALSE)) -> Wind New SCE SDG&E
A123: 86 | B123: 25 MMT | C123: Partial 0yr_wk24 25MMT BC GHG ELCC noPerp | D123: Candidate_Solano_Wind | E123: C_RESOLVE WIND | F123: Wind | G123: Wind | H123: 2031 | I123: 0 | J123: 0 | K123: 0 | L123: =IF(OR(VLOOKUP(D123,Table5[#All],2,FALSE)='Resource Key'!$B$57,VLOOKUP(D123,Table5[#All],2,FALSE)='Resource Key'!$B$43),IF('Input Source'!$P$1="No","Wind New SCE SDG&E",VLOOKUP(D123,Table5[#All],2,FALSE)),VLOOKUP(Table1[[#This Row],[Resource Name]],Table5[#All],2,FALSE)) -> Wind New SCE SDG&E
A124: 86 | B124: 25 MMT | C124: Partial 0yr_wk24 25MMT BC GHG ELCC noPerp | D124: Candidate_Solano_Wind | E124: C_RESOLVE WIND | F124: Wind | G124: Wind | H124: 2032 | I124: 0 | J124: 0 | K124: 0 | L124: =IF(OR(VLOOKUP(D124,Table5[#All],2,FALSE)='Resource Key'!$B$57,VLOOKUP(D124,Table5[#All],2,FALSE)='Resource Key'!$B$43),IF('Input Source'!$P$1="No","Wind New SCE SDG&E",VLOOKUP(D124,Table5[#All],2,FALSE)),VLOOKUP(Table1[[#This Row],[Resource Name]],Table5[#All],2,FALSE)) -> Wind New SCE SDG&E
A125: 86 | B125: 25 MMT | C125: Partial 0yr_wk24 25MMT BC GHG ELCC noPerp | D125: Candidate_Solano_Wind | E125: C_RESOLVE WIND | F125: Wind | G125: Wind | H125: 2033 | I125: 0 | J125: 0 | K125: 0 | L125: =IF(OR(VLOOKUP(D125,Table5[#All],2,FALSE)='Resource Key'!$B$57,VLOOKUP(D125,Table5[#All],2,FALSE)='Resource Key'!$B$43),IF('Input Source'!$P$1="No","Wind New SCE SDG&E",VLOOKUP(D125,Table5[#All],2,FALSE)),VLOOKUP(Table1[[#This Row],[Resource Name]],Table5[#All],2,FALSE)) -> Wind New SCE SDG&E
A126: 86 | B126: 25 MMT | C126: Partial 0yr_wk24 25MMT BC GHG ELCC noPerp | D126: Candidate_Solano_Wind | E126: C_RESOLVE WIND | F126: Wind | G126: Wind | H126: 2034 | I126: 0 | J126: 0 | K126: 0 | L126: =IF(OR(VLOOKUP(D126,Table5[#All],2,FALSE)='Resource Key'!$B$57,VLOOKUP(D126,Table5[#All],2,FALSE)='Resource Key'!$B$43),IF('Input Source'!$P$1="No","Wind New SCE SDG&E",VLOOKUP(D126,Table5[#All],2,FALSE)),VLOOKUP(Table1[[#This Row],[Resource Name]],Table5[#All],2,FALSE)) -> Wind New SCE SDG&E
A127: 86 | B127: 25 MMT | C127: Partial 0yr_wk24 25MMT BC GHG ELCC noPerp | D127: Candidate_Solano_Wind | E127: C_RESOLVE WIND | F127: Wind | G127: Wind | H127: 2035 | I127: 0 | J127: 0 | K127: 0 | L127: =IF(OR(VLOOKUP(D127,Table5[#All],2,FALSE)='Resource Key'!$B$57,VLOOKUP(D127,Table5[#All],2,FALSE)='Resource Key'!$B$43),IF('Input Source'!$P$1="No","Wind New SCE SDG&E",VLOOKUP(D127,Table5[#All],2,FALSE)),VLOOKUP(Table1[[#This Row],[Resource Name]],Table5[#All],2,FALSE)) -> Wind New SCE SDG&E
A128: 86 | B128: 25 MMT | C128: Partial 0yr_wk24 25MMT BC GHG ELCC noPerp | D128: Candidate_Southern_Nevada_Wind | E128: C_RESOLVE WIND | F128: Wind OOS | G128: Wind OOS | H128: 2022 | I128: 0 | J128: 0 | K128: 0 | L128: =IF(OR(VLOOKUP(D128,Table5[#All],2,FALSE)='Resource Key'!$B$57,VLOOKUP(D128,Table5[#All],2,FALSE)='Resource Key'!$B$43),IF('Input Source'!$P$1="No","Wind New SCE SDG&E",VLOOKUP(D128,Table5[#All],2,FALSE)),VLOOKUP(Table1[[#This Row],[Resource Name]],Table5[#All],2,FALSE)) -> Wind New SCE SDG&E
A129: 86 | B129: 25 MMT | C129: Partial 0yr_wk24 25MMT BC GHG ELCC noPerp | D129: Candidate_Southern_Nevada_Wind | E129: C_RESOLVE WIND | F129: Wind OOS | G129: Wind OOS | H129: 2023 | I129: 0 | J129: 0 | K129: 0 | L129: =IF(OR(VLOOKUP(D129,Table5[#All],2,FALSE)='Resource Key'!$B$57,VLOOKUP(D129,Table5[#All],2,FALSE)='Resource Key'!$B$43),IF('Input Source'!$P$1="No","Wind New SCE SDG&E",VLOOKUP(D129,Table5[#All],2,FALSE)),VLOOKUP(Table1[[#This Row],[Resource Name]],Table5[#All],2,FALSE)) -> Wind New SCE SDG&E
A130: 86 | B130: 25 MMT | C130: Partial 0yr_wk24 25MMT BC GHG ELCC noPerp | D130: Candidate_Southern_Nevada_Wind | E130: C_RESOLVE WIND | F130: Wind OOS | G130: Wind OOS | H130: 2024 | I130: 0 | J130: 0 | K130: 0 | L130: =IF(OR(VLOOKUP(D130,Table5[#All],2,FALSE)='Resource Key'!$B$57,VLOOKUP(D130,Table5[#All],2,FALSE)='Resource Key'!$B$43),IF('Input Source'!$P$1="No","Wind New SCE SDG&E",VLOOKUP(D130,Table5[#All],2,FALSE)),VLOOKUP(Table1[[#This Row],[Resource Name]],Table5[#All],2,FALSE)) -> Wind New SCE SDG&E
A131: 86 | B131: 25 MMT | C131: Partial 0yr_wk24 25MMT BC GHG ELCC noPerp | D131: Candidate_Southern_Nevada_Wind | E131: C_RESOLVE WIND | F131: Wind OOS | G131: Wind OOS | H131: 2025 | I131: 0 | J131: 0 | K131: 0 | L131: =IF(OR(VLOOKUP(D131,Table5[#All],2,FALSE)='Resource Key'!$B$57,VLOOKUP(D131,Table5[#All],2,FALSE)='Resource Key'!$B$43),IF('Input Source'!$P$1="No","Wind New SCE SDG&E",VLOOKUP(D131,Table5[#All],2,FALSE)),VLOOKUP(Table1[[#This Row],[Resource Name]],Table5[#All],2,FALSE)) -> Wind New SCE SDG&E
A132: 86 | B132: 25 MMT | C132: Partial 0yr_wk24 25MMT BC GHG ELCC noPerp | D132: Candidate_Southern_Nevada_Wind | E132: C_RESOLVE WIND | F132: Wind OOS | G132: Wind OOS | H132: 2026 | I132: 0 | J132: 0 | K132: 0 | L132: =IF(OR(VLOOKUP(D132,Table5[#All],2,FALSE)='Resource Key'!$B$57,VLOOKUP(D132,Table5[#All],2,FALSE)='Resource Key'!$B$43),IF('Input Source'!$P$1="No","Wind New SCE SDG&E",VLOOKUP(D132,Table5[#All],2,FALSE)),VLOOKUP(Table1[[#This Row],[Resource Name]],Table5[#All],2,FALSE)) -> Wind New SCE SDG&E
A133: 86 | B133: 25 MMT | C133: Partial 0yr_wk24 25MMT BC GHG ELCC noPerp | D133: Candidate_Southern_Nevada_Wind | E133: C_RESOLVE WIND | F133: Wind OOS | G133: Wind OOS | H133: 2027 | I133: 0 | J133: 0 | K133: 0 | L133: =IF(OR(VLOOKUP(D133,Table5[#All],2,FALSE)='Resource Key'!$B$57,VLOOKUP(D133,Table5[#All],2,FALSE)='Resource Key'!$B$43),IF('Input Source'!$P$1="No","Wind New SCE SDG&E",VLOOKUP(D133,Table5[#All],2,FALSE)),VLOOKUP(Table1[[#This Row],[Resource Name]],Table5[#All],2,FALSE)) -> Wind New SCE SDG&E
A134: 86 | B134: 25 MMT | C134: Partial 0yr_wk24 25MMT BC GHG ELCC noPerp | D134: Candidate_Southern_Nevada_Wind | E134: C_RESOLVE WIND | F134: Wind OOS | G134: Wind OOS | H134: 2028 | I134: 0 | J134: 0 | K134: 0 | L134: =IF(OR(VLOOKUP(D134,Table5[#All],2,FALSE)='Resource Key'!$B$57,VLOOKUP(D134,Table5[#All],2,FALSE)='Resource Key'!$B$43),IF('Input Source'!$P$1="No","Wind New SCE SDG&E",VLOOKUP(D134,Table5[#All],2,FALSE)),VLOOKUP(Table1[[#This Row],[Resource Name]],Table5[#All],2,FALSE)) -> Wind New SCE SDG&E
A135: 86 | B135: 25 MMT | C135: Partial 0yr_wk24 25MMT BC GHG ELCC noPerp | D135: Candidate_Southern_Nevada_Wind | E135: C_RESOLVE WIND | F135: Wind OOS | G135: Wind OOS | H135: 2029 | I135: 0 | J135: 0 | K135: 0 | L135: =IF(OR(VLOOKUP(D135,Table5[#All],2,FALSE)='Resource Key'!$B$57,VLOOKUP(D135,Table5[#All],2,FALSE)='Resource Key'!$B$43),IF('Input Source'!$P$1="No","Wind New SCE SDG&E",VLOOKUP(D135,Table5[#All],2,FALSE)),VLOOKUP(Table1[[#This Row],[Resource Name]],Table5[#All],2,FALSE)) -> Wind New SCE SDG&E
A136: 86 | B136: 25 MMT | C136: Partial 0yr_wk24 25MMT BC GHG ELCC noPerp | D136: Candidate_Southern_Nevada_Wind | E136: C_RESOLVE WIND | F136: Wind OOS | G136: Wind OOS | H136: 2030 | I136: 0 | J136: 0 | K136: 0 | L136: =IF(OR(VLOOKUP(D136,Table5[#All],2,FALSE)='Resource Key'!$B$57,VLOOKUP(D136,Table5[#All],2,FALSE)='Resource Key'!$B$43),IF('Input Source'!$P$1="No","Wind New SCE SDG&E",VLOOKUP(D136,Table5[#All],2,FALSE)),VLOOKUP(Table1[[#This Row],[Resource Name]],Table5[#All],2,FALSE)) -> Wind New SCE SDG&E
A137: 86 | B137: 25 MMT | C137: Partial 0yr_wk24 25MMT BC GHG ELCC noPerp | D137: Candidate_Southern_Nevada_Wind | E137: C_RESOLVE WIND | F137: Wind OOS | G137: Wind OOS | H137: 2031 | I137: 0 | J137: 0 | K137: 0 | L137: =IF(OR(VLOOKUP(D137,Table5[#All],2,FALSE)='Resource Key'!$B$57,VLOOKUP(D137,Table5[#All],2,FALSE)='Resource Key'!$B$43),IF('Input Source'!$P$1="No","Wind New SCE SDG&E",VLOOKUP(D137,Table5[#All],2,FALSE)),VLOOKUP(Table1[[#This Row],[Resource Name]],Table5[#All],2,FALSE)) -> Wind New SCE SDG&E
A138: 86 | B138: 25 MMT | C138: Partial 0yr_wk24 25MMT BC GHG ELCC noPerp | D138: Candidate_Southern_Nevada_Wind | E138: C_RESOLVE WIND | F138: Wind OOS | G138: Wind OOS | H138: 2032 | I138: 0 | J138: 0 | K138: 0 | L138: =IF(OR(VLOOKUP(D138,Table5[#All],2,FALSE)='Resource Key'!$B$57,VLOOKUP(D138,Table5[#All],2,FALSE)='Resource Key'!$B$43),IF('Input Source'!$P$1="No","Wind New SCE SDG&E",VLOOKUP(D138,Table5[#All],2,FALSE)),VLOOKUP(Table1[[#This Row],[Resource Name]],Table5[#All],2,FALSE)) -> Wind New SCE SDG&E
A139: 86 | B139: 25 MMT | C139: Partial 0yr_wk24 25MMT BC GHG ELCC noPerp | D139: Candidate_Southern_Nevada_Wind | E139: C_RESOLVE WIND | F139: Wind OOS | G139: Wind OOS | H139: 2033 | I139: 0 | J139: 0 | K139: 0 | L139: =IF(OR(VLOOKUP(D139,Table5[#All],2,FALSE)='Resource Key'!$B$57,VLOOKUP(D139,Table5[#All],2,FALSE)='Resource Key'!$B$43),IF('Input Source'!$P$1="No","Wind New SCE SDG&E",VLOOKUP(D139,Table5[#All],2,FALSE)),VLOOKUP(Table1[[#This Row],[Resource Name]],Table5[#All],2,FALSE)) -> Wind New SCE SDG&E
A140: 86 | B140: 25 MMT | C140: Partial 0yr_wk24 25MMT BC GHG ELCC noPerp | D140: Candidate_Southern_Nevada_Wind | E140: C_RESOLVE WIND | F140: Wind OOS | G140: Wind OOS | H140: 2034 | I140: 0 | J140: 0 | K140: 0 | L140: =IF(OR(VLOOKUP(D140,Table5[#All],2,FALSE)='Resource Key'!$B$57,VLOOKUP(D140,Table5[#All],2,FALSE)='Resource Key'!$B$43),IF('Input Source'!$P$1="No","Wind New SCE SDG&E",VLOOKUP(D140,Table5[#All],2,FALSE)),VLOOKUP(Table1[[#This Row],[Resource Name]],Table5[#All],2,FALSE)) -> Wind New SCE SDG&E
A141: 86 | B141: 25 MMT | C141: Partial 0yr_wk24 25MMT BC GHG ELCC noPerp | D141: Candidate_Southern_Nevada_Wind | E141: C_RESOLVE WIND | F141: Wind OOS | G141: Wind OOS | H141: 2035 | I141: 0 | J141: 0 | K141: 0 | L141: =IF(OR(VLOOKUP(D141,Table5[#All],2,FALSE)='Resource Key'!$B$57,VLOOKUP(D141,Table5[#All],2,FALSE)='Resource Key'!$B$43),IF('Input Source'!$P$1="No","Wind New SCE SDG&E",VLOOKUP(D141,Table5[#All],2,FALSE)),VLOOKUP(Table1[[#This Row],[Resource Name]],Table5[#All],2,FALSE)) -> Wind New SCE SDG&E
A142: 86 | B142: 25 MMT | C142: Partial 0yr_wk24 25MMT BC GHG ELCC noPerp | D142: Candidate_SW_Ext_Tx_Wind | E142: C_RESOLVE WIND | F142: Wind OOS | G142: Wind OOS | H142: 2022 | I142: 0 | J142: 0 | K142: 0 | L142: =IF(OR(VLOOKUP(D142,Table5[#All],2,FALSE)='Resource Key'!$B$57,VLOOKUP(D142,Table5[#All],2,FALSE)='Resource Key'!$B$43),IF('Input Source'!$P$1="No","Wind New SCE SDG&E",VLOOKUP(D142,Table5[#All],2,FALSE)),VLOOKUP(Table1[[#This Row],[Resource Name]],Table5[#All],2,FALSE)) -> Wind New SCE SDG&E
A143: 86 | B143: 25 MMT | C143: Partial 0yr_wk24 25MMT BC GHG ELCC noPerp | D143: Candidate_SW_Ext_Tx_Wind | E143: C_RESOLVE WIND | F143: Wind OOS | G143: Wind OOS | H143: 2023 | I143: 0 | J143: 0 | K143: 0 | L143: =IF(OR(VLOOKUP(D143,Table5[#All],2,FALSE)='Resource Key'!$B$57,VLOOKUP(D143,Table5[#All],2,FALSE)='Resource Key'!$B$43),IF('Input Source'!$P$1="No","Wind New SCE SDG&E",VLOOKUP(D143,Table5[#All],2,FALSE)),VLOOKUP(Table1[[#This Row],[Resource Name]],Table5[#All],2,FALSE)) -> Wind New SCE SDG&E
A144: 86 | B144: 25 MMT | C144: Partial 0yr_wk24 25MMT BC GHG ELCC noPerp | D144: Candidate_SW_Ext_Tx_Wind | E144: C_RESOLVE WIND | F144: Wind OOS | G144: Wind OOS | H144: 2024 | I144: 0 | J144: 0 | K144: 0 | L144: =IF(OR(VLOOKUP(D144,Table5[#All],2,FALSE)='Resource Key'!$B$57,VLOOKUP(D144,Table5[#All],2,FALSE)='Resource Key'!$B$43),IF('Input Source'!$P$1="No","Wind New SCE SDG&E",VLOOKUP(D144,Table5[#All],2,FALSE)),VLOOKUP(Table1[[#This Row],[Resource Name]],Table5[#All],2,FALSE)) -> Wind New SCE SDG&E
A145: 86 | B145: 25 MMT | C145: Partial 0yr_wk24 25MMT BC GHG ELCC noPerp | D145: Candidate_SW_Ext_Tx_Wind | E145: C_RESOLVE WIND | F145: Wind OOS | G145: Wind OOS | H145: 2025 | I145: 0 | J145: 0 | K145: 0 | L145: =IF(OR(VLOOKUP(D145,Table5[#All],2,FALSE)='Resource Key'!$B$57,VLOOKUP(D145,Table5[#All],2,FALSE)='Resource Key'!$B$43),IF('Input Source'!$P$1="No","Wind New SCE SDG&E",VLOOKUP(D145,Table5[#All],2,FALSE)),VLOOKUP(Table1[[#This Row],[Resource Name]],Table5[#All],2,FALSE)) -> Wind New SCE SDG&E
A146: 86 | B146: 25 MMT | C146: Partial 0yr_wk24 25MMT BC GHG ELCC noPerp | D146: Candidate_SW_Ext_Tx_Wind | E146: C_RESOLVE WIND | F146: Wind OOS | G146: Wind OOS | H146: 2026 | I146: 0 | J146: 0 | K146: 0 | L146: =IF(OR(VLOOKUP(D146,Table5[#All],2,FALSE)='Resource Key'!$B$57,VLOOKUP(D146,Table5[#All],2,FALSE)='Resource Key'!$B$43),IF('Input Source'!$P$1="No","Wind New SCE SDG&E",VLOOKUP(D146,Table5[#All],2,FALSE)),VLOOKUP(Table1[[#This Row],[Resource Name]],Table5[#All],2,FALSE)) -> Wind New SCE SDG&E
A147: 86 | B147: 25 MMT | C147: Partial 0yr_wk24 25MMT BC GHG ELCC noPerp | D147: Candidate_SW_Ext_Tx_Wind | E147: C_RESOLVE WIND | F147: Wind OOS | G147: Wind OOS | H147: 2027 | I147: 0 | J147: 0 | K147: 0 | L147: =IF(OR(VLOOKUP(D147,Table5[#All],2,FALSE)='Resource Key'!$B$57,VLOOKUP(D147,Table5[#All],2,FALSE)='Resource Key'!$B$43),IF('Input Source'!$P$1="No","Wind New SCE SDG&E",VLOOKUP(D147,Table5[#All],2,FALSE)),VLOOKUP(Table1[[#This Row],[Resource Name]],Table5[#All],2,FALSE)) -> Wind New SCE SDG&E
A148: 86 | B148: 25 MMT | C148: Partial 0yr_wk24 25MMT BC GHG ELCC noPerp | D148: Candidate_SW_Ext_Tx_Wind | E148: C_RESOLVE WIND | F148: Wind OOS | G148: Wind OOS | H148: 2028 | I148: 0 | J148: 0 | K148: 0 | L148: =IF(OR(VLOOKUP(D148,Table5[#All],2,FALSE)='Resource Key'!$B$57,VLOOKUP(D148,Table5[#All],2,FALSE)='Resource Key'!$B$43),IF('Input Source'!$P$1="No","Wind New SCE SDG&E",VLOOKUP(D148,Table5[#All],2,FALSE)),VLOOKUP(Table1[[#This Row],[Resource Name]],Table5[#All],2,FALSE)) -> Wind New SCE SDG&E
A149: 86 | B149: 25 MMT | C149: Partial 0yr_wk24 25MMT BC GHG ELCC noPerp | D149: Candidate_SW_Ext_Tx_Wind | E149: C_RESOLVE WIND | F149: Wind OOS | G149: Wind OOS | H149: 2029 | I149: 0 | J149: 0 | K149: 0 | L149: =IF(OR(VLOOKUP(D149,Table5[#All],2,FALSE)='Resource Key'!$B$57,VLOOKUP(D149,Table5[#All],2,FALSE)='Resource Key'!$B$43),IF('Input Source'!$P$1="No","Wind New SCE SDG&E",VLOOKUP(D149,Table5[#All],2,FALSE)),VLOOKUP(Table1[[#This Row],[Resource Name]],Table5[#All],2,FALSE)) -> Wind New SCE SDG&E
A150: 86 | B150: 25 MMT | C150: Partial 0yr_wk24 25MMT BC GHG ELCC noPerp | D150: Candidate_SW_Ext_Tx_Wind | E150: C_RESOLVE WIND | F150: Wind OOS | G150: Wind OOS | H150: 2030 | I150: 0 | J150: 0 | K150: 0 | L150: =IF(OR(VLOOKUP(D150,Table5[#All],2,FALSE)='Resource Key'!$B$57,VLOOKUP(D150,Table5[#All],2,FALSE)='Resource Key'!$B$43),IF('Input Source'!$P$1="No","Wind New SCE SDG&E",VLOOKUP(D150,Table5[#All],2,FALSE)),VLOOKUP(Table1[[#This Row],[Resource Name]],Table5[#All],2,FALSE)) -> Wind New SCE SDG&E
A151: 86 | B151: 25 MMT | C151: Partial 0yr_wk24 25MMT BC GHG ELCC noPerp | D151: Candidate_SW_Ext_Tx_Wind | E151: C_RESOLVE WIND | F151: Wind OOS | G151: Wind OOS | H151: 2031 | I151: 0 | J151: 0 | K151: 0 | L151: =IF(OR(VLOOKUP(D151,Table5[#All],2,FALSE)='Resource Key'!$B$57,VLOOKUP(D151,Table5[#All],2,FALSE)='Resource Key'!$B$43),IF('Input Source'!$P$1="No","Wind New SCE SDG&E",VLOOKUP(D151,Table5[#All],2,FALSE)),VLOOKUP(Table1[[#This Row],[Resource Name]],Table5[#All],2,FALSE)) -> Wind New SCE SDG&E
A152: 86 | B152: 25 MMT | C152: Partial 0yr_wk24 25MMT BC GHG ELCC noPerp | D152: Candidate_SW_Ext_Tx_Wind | E152: C_RESOLVE WIND | F152: Wind OOS | G152: Wind OOS | H152: 2032 | I152: 0 | J152: 0 | K152: 0 | L152: =IF(OR(VLOOKUP(D152,Table5[#All],2,FALSE)='Resource Key'!$B$57,VLOOKUP(D152,Table5[#All],2,FALSE)='Resource Key'!$B$43),IF('Input Source'!$P$1="No","Wind New SCE SDG&E",VLOOKUP(D152,Table5[#All],2,FALSE)),VLOOKUP(Table1[[#This Row],[Resource Name]],Table5[#All],2,FALSE)) -> Wind New SCE SDG&E
A153: 86 | B153: 25 MMT | C153: Partial 0yr_wk24 25MMT BC GHG ELCC noPerp | D153: Candidate_SW_Ext_Tx_Wind | E153: C_RESOLVE WIND | F153: Wind OOS | G153: Wind OOS | H153: 2033 | I153: 0 | J153: 0 | K153: 0 | L153: =IF(OR(VLOOKUP(D153,Table5[#All],2,FALSE)='Resource Key'!$B$57,VLOOKUP(D153,Table5[#All],2,FALSE)='Resource Key'!$B$43),IF('Input Source'!$P$1="No","Wind New SCE SDG&E",VLOOKUP(D153,Table5[#All],2,FALSE)),VLOOKUP(Table1[[#This Row],[Resource Name]],Table5[#All],2,FALSE)) -> Wind New SCE SDG&E
A154: 86 | B154: 25 MMT | C154: Partial 0yr_wk24 25MMT BC GHG ELCC noPerp | D154: Candidate_SW_Ext_Tx_Wind | E154: C_RESOLVE WIND | F154: Wind OOS | G154: Wind OOS | H154: 2034 | I154: 0 | J154: 0 | K154: 0 | L154: =IF(OR(VLOOKUP(D154,Table5[#All],2,FALSE)='Resource Key'!$B$57,VLOOKUP(D154,Table5[#All],2,FALSE)='Resource Key'!$B$43),IF('Input Source'!$P$1="No","Wind New SCE SDG&E",VLOOKUP(D154,Table5[#All],2,FALSE)),VLOOKUP(Table1[[#This Row],[Resource Name]],Table5[#All],2,FALSE)) -> Wind New SCE SDG&E
A155: 86 | B155: 25 MMT | C155: Partial 0yr_wk24 25MMT BC GHG ELCC noPerp | D155: Candidate_SW_Ext_Tx_Wind | E155: C_RESOLVE WIND | F155: Wind OOS | G155: Wind OOS | H155: 2035 | I155: 0 | J155: 0 | K155: 0 | L155: =IF(OR(VLOOKUP(D155,Table5[#All],2,FALSE)='Resource Key'!$B$57,VLOOKUP(D155,Table5[#All],2,FALSE)='Resource Key'!$B$43),IF('Input Source'!$P$1="No","Wind New SCE SDG&E",VLOOKUP(D155,Table5[#All],2,FALSE)),VLOOKUP(Table1[[#This Row],[Resource Name]],Table5[#All],2,FALSE)) -> Wind New SCE SDG&E
A156: 86 | B156: 25 MMT | C156: Partial 0yr_wk24 25MMT BC GHG ELCC noPerp | D156: Candidate_Tehachapi_Wind | E156: C_RESOLVE WIND | F156: Wind | G156: Wind | H156: 2022 | I156: 0 | J156: 0 | K156: 0 | L156: =IF(OR(VLOOKUP(D156,Table5[#All],2,FALSE)='Resource Key'!$B$57,VLOOKUP(D156,Table5[#All],2,FALSE)='Resource Key'!$B$43),IF('Input Source'!$P$1="No","Wind New SCE SDG&E",VLOOKUP(D156,Table5[#All],2,FALSE)),VLOOKUP(Table1[[#This Row],[Resource Name]],Table5[#All],2,FALSE)) -> Wind New SCE SDG&E
A157: 86 | B157: 25 MMT | C157: Partial 0yr_wk24 25MMT BC GHG ELCC noPerp | D157: Candidate_Tehachapi_Wind | E157: C_RESOLVE WIND | F157: Wind | G157: Wind | H157: 2023 | I157: 0 | J157: 0 | K157: 0 | L157: =IF(OR(VLOOKUP(D157,Table5[#All],2,FALSE)='Resource Key'!$B$57,VLOOKUP(D157,Table5[#All],2,FALSE)='Resource Key'!$B$43),IF('Input Source'!$P$1="No","Wind New SCE SDG&E",VLOOKUP(D157,Table5[#All],2,FALSE)),VLOOKUP(Table1[[#This Row],[Resource Name]],Table5[#All],2,FALSE)) -> Wind New SCE SDG&E
A158: 86 | B158: 25 MMT | C158: Partial 0yr_wk24 25MMT BC GHG ELCC noPerp | D158: Candidate_Tehachapi_Wind | E158: C_RESOLVE WIND | F158: Wind | G158: Wind | H158: 2024 | I158: 0 | J158: 0 | K158: 0 | L158: =IF(OR(VLOOKUP(D158,Table5[#All],2,FALSE)='Resource Key'!$B$57,VLOOKUP(D158,Table5[#All],2,FALSE)='Resource Key'!$B$43),IF('Input Source'!$P$1="No","Wind New SCE SDG&E",VLOOKUP(D158,Table5[#All],2,FALSE)),VLOOKUP(Table1[[#This Row],[Resource Name]],Table5[#All],2,FALSE)) -> Wind New SCE SDG&E
A159: 86 | B159: 25 MMT | C159: Partial 0yr_wk24 25MMT BC GHG ELCC noPerp | D159: Candidate_Tehachapi_Wind | E159: C_RESOLVE WIND | F159: Wind | G159: Wind | H159: 2025 | I159: 0 | J159: 0 | K159: 0 | L159: =IF(OR(VLOOKUP(D159,Table5[#All],2,FALSE)='Resource Key'!$B$57,VLOOKUP(D159,Table5[#All],2,FALSE)='Resource Key'!$B$43),IF('Input Source'!$P$1="No","Wind New SCE SDG&E",VLOOKUP(D159,Table5[#All],2,FALSE)),VLOOKUP(Table1[[#This Row],[Resource Name]],Table5[#All],2,FALSE)) -> Wind New SCE SDG&E
A160: 86 | B160: 25 MMT | C160: Partial 0yr_wk24 25MMT BC GHG ELCC noPerp | D160: Candidate_Tehachapi_Wind | E160: C_RESOLVE WIND | F160: Wind | G160: Wind | H160: 2026 | I160: 0 | J160: 0 | K160: 0 | L160: =IF(OR(VLOOKUP(D160,Table5[#All],2,FALSE)='Resource Key'!$B$57,VLOOKUP(D160,Table5[#All],2,FALSE)='Resource Key'!$B$43),IF('Input Source'!$P$1="No","Wind New SCE SDG&E",VLOOKUP(D160,Table5[#All],2,FALSE)),VLOOKUP(Table1[[#This Row],[Resource Name]],Table5[#All],2,FALSE)) -> Wind New SCE SDG&E
A161: 86 | B161: 25 MMT | C161: Partial 0yr_wk24 25MMT BC GHG ELCC noPerp | D161: Candidate_Tehachapi_Wind | E161: C_RESOLVE WIND | F161: Wind | G161: Wind | H161: 2027 | I161: 0 | J161: 0 | K161: 0 | L161: =IF(OR(VLOOKUP(D161,Table5[#All],2,FALSE)='Resource Key'!$B$57,VLOOKUP(D161,Table5[#All],2,FALSE)='Resource Key'!$B$43),IF('Input Source'!$P$1="No","Wind New SCE SDG&E",VLOOKUP(D161,Table5[#All],2,FALSE)),VLOOKUP(Table1[[#This Row],[Resource Name]],Table5[#All],2,FALSE)) -> Wind New SCE SDG&E
A162: 86 | B162: 25 MMT | C162: Partial 0yr_wk24 25MMT BC GHG ELCC noPerp | D162: Candidate_Tehachapi_Wind | E162: C_RESOLVE WIND | F162: Wind | G162: Wind | H162: 2028 | I162: 0 | J162: 0 | K162: 0 | L162: =IF(OR(VLOOKUP(D162,Table5[#All],2,FALSE)='Resource Key'!$B$57,VLOOKUP(D162,Table5[#All],2,FALSE)='Resource Key'!$B$43),IF('Input Source'!$P$1="No","Wind New SCE SDG&E",VLOOKUP(D162,Table5[#All],2,FALSE)),VLOOKUP(Table1[[#This Row],[Resource Name]],Table5[#All],2,FALSE)) -> Wind New SCE SDG&E
A163: 86 | B163: 25 MMT | C163: Partial 0yr_wk24 25MMT BC GHG ELCC noPerp | D163: Candidate_Tehachapi_Wind | E163: C_RESOLVE WIND | F163: Wind | G163: Wind | H163: 2029 | I163: 0 | J163: 0 | K163: 0 | L163: =IF(OR(VLOOKUP(D163,Table5[#All],2,FALSE)='Resource Key'!$B$57,VLOOKUP(D163,Table5[#All],2,FALSE)='Resource Key'!$B$43),IF('Input Source'!$P$1="No","Wind New SCE SDG&E",VLOOKUP(D163,Table5[#All],2,FALSE)),VLOOKUP(Table1[[#This Row],[Resource Name]],Table5[#All],2,FALSE)) -> Wind New SCE SDG&E
A164: 86 | B164: 25 MMT | C164: Partial 0yr_wk24 25MMT BC GHG ELCC noPerp | D164: Candidate_Tehachapi_Wind | E164: C_RESOLVE WIND | F164: Wind | G164: Wind | H164: 2030 | I164: 0 | J164: 0 | K164: 0 | L164: =IF(OR(VLOOKUP(D164,Table5[#All],2,FALSE)='Resource Key'!$B$57,VLOOKUP(D164,Table5[#All],2,FALSE)='Resource Key'!$B$43),IF('Input Source'!$P$1="No","Wind New SCE SDG&E",VLOOKUP(D164,Table5[#All],2,FALSE)),VLOOKUP(Table1[[#This Row],[Resource Name]],Table5[#All],2,FALSE)) -> Wind New SCE SDG&E
A165: 86 | B165: 25 MMT | C165: Partial 0yr_wk24 25MMT BC GHG ELCC noPerp | D165: Candidate_Tehachapi_Wind | E165: C_RESOLVE WIND | F165: Wind | G165: Wind | H165: 2031 | I165: 0 | J165: 0 | K165: 0 | L165: =IF(OR(VLOOKUP(D165,Table5[#All],2,FALSE)='Resource Key'!$B$57,VLOOKUP(D165,Table5[#All],2,FALSE)='Resource Key'!$B$43),IF('Input Source'!$P$1="No","Wind New SCE SDG&E",VLOOKUP(D165,Table5[#All],2,FALSE)),VLOOKUP(Table1[[#This Row],[Resource Name]],Table5[#All],2,FALSE)) -> Wind New SCE SDG&E
A166: 86 | B166: 25 MMT | C166: Partial 0yr_wk24 25MMT BC GHG ELCC noPerp | D166: Candidate_Tehachapi_Wind | E166: C_RESOLVE WIND | F166: Wind | G166: Wind | H166: 2032 | I166: 0 | J166: 0 | K166: 0 | L166: =IF(OR(VLOOKUP(D166,Table5[#All],2,FALSE)='Resource Key'!$B$57,VLOOKUP(D166,Table5[#All],2,FALSE)='Resource Key'!$B$43),IF('Input Source'!$P$1="No","Wind New SCE SDG&E",VLOOKUP(D166,Table5[#All],2,FALSE)),VLOOKUP(Table1[[#This Row],[Resource Name]],Table5[#All],2,FALSE)) -> Wind New SCE SDG&E
A167: 86 | B167: 25 MMT | C167: Partial 0yr_wk24 25MMT BC GHG ELCC noPerp | D167: Candidate_Tehachapi_Wind | E167: C_RESOLVE WIND | F167: Wind | G167: Wind | H167: 2033 | I167: 0 | J167: 0 | K167: 0 | L167: =IF(OR(VLOOKUP(D167,Table5[#All],2,FALSE)='Resource Key'!$B$57,VLOOKUP(D167,Table5[#All],2,FALSE)='Resource Key'!$B$43),IF('Input Source'!$P$1="No","Wind New SCE SDG&E",VLOOKUP(D167,Table5[#All],2,FALSE)),VLOOKUP(Table1[[#This Row],[Resource Name]],Table5[#All],2,FALSE)) -> Wind New SCE SDG&E
A168: 86 | B168: 25 MMT | C168: Partial 0yr_wk24 25MMT BC GHG ELCC noPerp | D168: Candidate_Tehachapi_Wind | E168: C_RESOLVE WIND | F168: Wind | G168: Wind | H168: 2034 | I168: 0 | J168: 0 | K168: 0 | L168: =IF(OR(VLOOKUP(D168,Table5[#All],2,FALSE)='Resource Key'!$B$57,VLOOKUP(D168,Table5[#All],2,FALSE)='Resource Key'!$B$43),IF('Input Source'!$P$1="No","Wind New SCE SDG&E",VLOOKUP(D168,Table5[#All],2,FALSE)),VLOOKUP(Table1[[#This Row],[Resource Name]],Table5[#All],2,FALSE)) -> Wind New SCE SDG&E
A169: 86 | B169: 25 MMT | C169: Partial 0yr_wk24 25MMT BC GHG ELCC noPerp | D169: Candidate_Tehachapi_Wind | E169: C_RESOLVE WIND | F169: Wind | G169: Wind | H169: 2035 | I169: 0 | J169: 0 | K169: 0 | L169: =IF(OR(VLOOKUP(D169,Table5[#All],2,FALSE)='Resource Key'!$B$57,VLOOKUP(D169,Table5[#All],2,FALSE)='Resource Key'!$B$43),IF('Input Source'!$P$1="No","Wind New SCE SDG&E",VLOOKUP(D169,Table5[#All],2,FALSE)),VLOOKUP(Table1[[#This Row],[Resource Name]],Table5[#All],2,FALSE)) -> Wind New SCE SDG&E
A170: 86 | B170: 25 MMT | C170: Partial 0yr_wk24 25MMT BC GHG ELCC noPerp | D170: Candidate_Wyoming_Wind | E170: C_RESOLVE WIND | F170: Wind OOS | G170: Wind OOS | H170: 2022 | I170: 0 | J170: 0 | K170: 0 | L170: =IF(OR(VLOOKUP(D170,Table5[#All],2,FALSE)='Resource Key'!$B$57,VLOOKUP(D170,Table5[#All],2,FALSE)='Resource Key'!$B$43),IF('Input Source'!$P$1="No","Wind New SCE SDG&E",VLOOKUP(D170,Table5[#All],2,FALSE)),VLOOKUP(Table1[[#This Row],[Resource Name]],Table5[#All],2,FALSE)) -> Wind New SCE SDG&E
A171: 86 | B171: 25 MMT | C171: Partial 0yr_wk24 25MMT BC GHG ELCC noPerp | D171: Candidate_Wyoming_Wind | E171: C_RESOLVE WIND | F171: Wind OOS | G171: Wind OOS | H171: 2023 | I171: 0 | J171: 0 | K171: 0 | L171: =IF(OR(VLOOKUP(D171,Table5[#All],2,FALSE)='Resource Key'!$B$57,VLOOKUP(D171,Table5[#All],2,FALSE)='Resource Key'!$B$43),IF('Input Source'!$P$1="No","Wind New SCE SDG&E",VLOOKUP(D171,Table5[#All],2,FALSE)),VLOOKUP(Table1[[#This Row],[Resource Name]],Table5[#All],2,FALSE)) -> Wind New SCE SDG&E
A172: 86 | B172: 25 MMT | C172: Partial 0yr_wk24 25MMT BC GHG ELCC noPerp | D172: Candidate_Wyoming_Wind | E172: C_RESOLVE WIND | F172: Wind OOS | G172: Wind OOS | H172: 2024 | I172: 0 | J172: 0 | K172: 0 | L172: =IF(OR(VLOOKUP(D172,Table5[#All],2,FALSE)='Resource Key'!$B$57,VLOOKUP(D172,Table5[#All],2,FALSE)='Resource Key'!$B$43),IF('Input Source'!$P$1="No","Wind New SCE SDG&E",VLOOKUP(D172,Table5[#All],2,FALSE)),VLOOKUP(Table1[[#This Row],[Resource Name]],Table5[#All],2,FALSE)) -> Wind New SCE SDG&E
A173: 86 | B173: 25 MMT | C173: Partial 0yr_wk24 25MMT BC GHG ELCC noPerp | D173: Candidate_Wyoming_Wind | E173: C_RESOLVE WIND | F173: Wind OOS | G173: Wind OOS | H173: 2025 | I173: 0 | J173: 0 | K173: 0 | L173: =IF(OR(VLOOKUP(D173,Table5[#All],2,FALSE)='Resource Key'!$B$57,VLOOKUP(D173,Table5[#All],2,FALSE)='Resource Key'!$B$43),IF('Input Source'!$P$1="No","Wind New SCE SDG&E",VLOOKUP(D173,Table5[#All],2,FALSE)),VLOOKUP(Table1[[#This Row],[Resource Name]],Table5[#All],2,FALSE)) -> Wind New SCE SDG&E
A174: 86 | B174: 25 MMT | C174: Partial 0yr_wk24 25MMT BC GHG ELCC noPerp | D174: Candidate_Wyoming_Wind | E174: C_RESOLVE WIND | F174: Wind OOS | G174: Wind OOS | H174: 2026 | I174: 2500 | J174: 0 | K174: 61.5 | L174: =IF(OR(VLOOKUP(D174,Table5[#All],2,FALSE)='Resource Key'!$B$57,VLOOKUP(D174,Table5[#All],2,FALSE)='Resource Key'!$B$43),IF('Input Source'!$P$1="No","Wind New SCE SDG&E",VLOOKUP(D174,Table5[#All],2,FALSE)),VLOOKUP(Table1[[#This Row],[Resource Name]],Table5[#All],2,FALSE)) -> Wind New SCE SDG&E
A175: 86 | B175: 25 MMT | C175: Partial 0yr_wk24 25MMT BC GHG ELCC noPerp | D175: Candidate_Wyoming_Wind | E175: C_RESOLVE WIND | F175: Wind OOS | G175: Wind OOS | H175: 2027 | I175: 2500 | J175: 0 | K175: 61.5 | L175: =IF(OR(VLOOKUP(D175,Table5[#All],2,FALSE)='Resource Key'!$B$57,VLOOKUP(D175,Table5[#All],2,FALSE)='Resource Key'!$B$43),IF('Input Source'!$P$1="No","Wind New SCE SDG&E",VLOOKUP(D175,Table5[#All],2,FALSE)),VLOOKUP(Table1[[#This Row],[Resource Name]],Table5[#All],2,FALSE)) -> Wind New SCE SDG&E
A176: 86 | B176: 25 MMT | C176: Partial 0yr_wk24 25MMT BC GHG ELCC noPerp | D176: Candidate_Wyoming_Wind | E176: C_RESOLVE WIND | F176: Wind OOS | G176: Wind OOS | H176: 2028 | I176: 2500 | J176: 0 | K176: 61.5 | L176: =IF(OR(VLOOKUP(D176,Table5[#All],2,FALSE)='Resource Key'!$B$57,VLOOKUP(D176,Table5[#All],2,FALSE)='Resource Key'!$B$43),IF('Input Source'!$P$1="No","Wind New SCE SDG&E",VLOOKUP(D176,Table5[#All],2,FALSE)),VLOOKUP(Table1[[#This Row],[Resource Name]],Table5[#All],2,FALSE)) -> Wind New SCE SDG&E
A177: 86 | B177: 25 MMT | C177: Partial 0yr_wk24 25MMT BC GHG ELCC noPerp | D177: Candidate_Wyoming_Wind | E177: C_RESOLVE WIND | F177: Wind OOS | G177: Wind OOS | H177: 2029 | I177: 2500 | J177: 0 | K177: 61.5 | L177: =IF(OR(VLOOKUP(D177,Table5[#All],2,FALSE)='Resource Key'!$B$57,VLOOKUP(D177,Table5[#All],2,FALSE)='Resource Key'!$B$43),IF('Input Source'!$P$1="No","Wind New SCE SDG&E",VLOOKUP(D177,Table5[#All],2,FALSE)),VLOOKUP(Table1[[#This Row],[Resource Name]],Table5[#All],2,FALSE)) -> Wind New SCE SDG&E
A178: 86 | B178: 25 MMT | C178: Partial 0yr_wk24 25MMT BC GHG ELCC noPerp | D178: Candidate_Wyoming_Wind | E178: C_RESOLVE WIND | F178: Wind OOS | G178: Wind OOS | H178: 2030 | I178: 2500 | J178: 0 | K178: 61.5 | L178: =IF(OR(VLOOKUP(D178,Table5[#All],2,FALSE)='Resource Key'!$B$57,VLOOKUP(D178,Table5[#All],2,FALSE)='Resource Key'!$B$43),IF('Input Source'!$P$1="No","Wind New SCE SDG&E",VLOOKUP(D178,Table5[#All],2,FALSE)),VLOOKUP(Table1[[#This Row],[Resource Name]],Table5[#All],2,FALSE)) -> Wind New SCE SDG&E
A179: 86 | B179: 25 MMT | C179: Partial 0yr_wk24 25MMT BC GHG ELCC noPerp | D179: Candidate_Wyoming_Wind | E179: C_RESOLVE WIND | F179: Wind OOS | G179: Wind OOS | H179: 2031 | I179: 2500 | J179: 0 | K179: 61.5 | L179: =IF(OR(VLOOKUP(D179,Table5[#All],2,FALSE)='Resource Key'!$B$57,VLOOKUP(D179,Table5[#All],2,FALSE)='Resource Key'!$B$43),IF('Input Source'!$P$1="No","Wind New SCE SDG&E",VLOOKUP(D179,Table5[#All],2,FALSE)),VLOOKUP(Table1[[#This Row],[Resource Name]],Table5[#All],2,FALSE)) -> Wind New SCE SDG&E
A180: 86 | B180: 25 MMT | C180: Partial 0yr_wk24 25MMT BC GHG ELCC noPerp | D180: Candidate_Wyoming_Wind | E180: C_RESOLVE WIND | F180: Wind OOS | G180: Wind OOS | H180: 2032 | I180: 2500 | J180: 0 | K180: 61.5 | L180: =IF(OR(VLOOKUP(D180,Table5[#All],2,FALSE)='Resource Key'!$B$57,VLOOKUP(D180,Table5[#All],2,FALSE)='Resource Key'!$B$43),IF('Input Source'!$P$1="No","Wind New SCE SDG&E",VLOOKUP(D180,Table5[#All],2,FALSE)),VLOOKUP(Table1[[#This Row],[Resource Name]],Table5[#All],2,FALSE)) -> Wind New SCE SDG&E
A181: 86 | B181: 25 MMT | C181: Partial 0yr_wk24 25MMT BC GHG ELCC noPerp | D181: Candidate_Wyoming_Wind | E181: C_RESOLVE WIND | F181: Wind OOS | G181: Wind OOS | H181: 2033 | I181: 2500 | J181: 0 | K181: 61.5 | L181: =IF(OR(VLOOKUP(D181,Table5[#All],2,FALSE)='Resource Key'!$B$57,VLOOKUP(D181,Table5[#All],2,FALSE)='Resource Key'!$B$43),IF('Input Source'!$P$1="No","Wind New SCE SDG&E",VLOOKUP(D181,Table5[#All],2,FALSE)),VLOOKUP(Table1[[#This Row],[Resource Name]],Table5[#All],2,FALSE)) -> Wind New SCE SDG&E
A182: 86 | B182: 25 MMT | C182: Partial 0yr_wk24 25MMT BC GHG ELCC noPerp | D182: Candidate_Wyoming_Wind | E182: C_RESOLVE WIND | F182: Wind OOS | G182: Wind OOS | H182: 2034 | I182: 2500 | J182: 0 | K182: 61.5 | L182: =IF(OR(VLOOKUP(D182,Table5[#All],2,FALSE)='Resource Key'!$B$57,VLOOKUP(D182,Table5[#All],2,FALSE)='Resource Key'!$B$43),IF('Input Source'!$P$1="No","Wind New SCE SDG&E",VLOOKUP(D182,Table5[#All],2,FALSE)),VLOOKUP(Table1[[#This Row],[Resource Name]],Table5[#All],2,FALSE)) -> Wind New SCE SDG&E
A183: 86 | B183: 25 MMT | C183: Partial 0yr_wk24 25MMT BC GHG ELCC noPerp | D183: Candidate_Wyoming_Wind | E183: C_RESOLVE WIND | F183: Wind OOS | G183: Wind OOS | H183: 2035 | I183: 2500 | J183: 0 | K183: 61.5 | L183: =IF(OR(VLOOKUP(D183,Table5[#All],2,FALSE)='Resource Key'!$B$57,VLOOKUP(D183,Table5[#All],2,FALSE)='Resource Key'!$B$43),IF('Input Source'!$P$1="No","Wind New SCE SDG&E",VLOOKUP(D183,Table5[#All],2,FALSE)),VLOOKUP(Table1[[#This Row],[Resource Name]],Table5[#All],2,FALSE)) -> Wind New SCE SDG&E
A184: 86 | B184: 25 MMT | C184: Partial 0yr_wk24 25MMT BC GHG ELCC noPerp | D184: Candidate_Humboldt_Bay_Offshore_Wind | E184: C_RESOLVE WIND_OFFSHORE | F184: Wind Offshore | G184: Wind Offshore | H184: 2022 | I184: 0 | J184: 0 | K184: 0 | L184: =IF(OR(VLOOKUP(D184,Table5[#All],2,FALSE)='Resource Key'!$B$57,VLOOKUP(D184,Table5[#All],2,FALSE)='Resource Key'!$B$43),IF('Input Source'!$P$1="No","Wind New SCE SDG&E",VLOOKUP(D184,Table5[#All],2,FALSE)),VLOOKUP(Table1[[#This Row],[Resource Name]],Table5[#All],2,FALSE)) -> Wind Offshore Humboldt
A185: 86 | B185: 25 MMT | C185: Partial 0yr_wk24 25MMT BC GHG ELCC noPerp | D185: Candidate_Humboldt_Bay_Offshore_Wind | E185: C_RESOLVE WIND_OFFSHORE | F185: Wind Offshore | G185: Wind Offshore | H185: 2023 | I185: 0 | J185: 0 | K185: 0 | L185: =IF(OR(VLOOKUP(D185,Table5[#All],2,FALSE)='Resource Key'!$B$57,VLOOKUP(D185,Table5[#All],2,FALSE)='Resource Key'!$B$43),IF('Input Source'!$P$1="No","Wind New SCE SDG&E",VLOOKUP(D185,Table5[#All],2,FALSE)),VLOOKUP(Table1[[#This Row],[Resource Name]],Table5[#All],2,FALSE)) -> Wind Offshore Humboldt
A186: 86 | B186: 25 MMT | C186: Partial 0yr_wk24 25MMT BC GHG ELCC noPerp | D186: Candidate_Humboldt_Bay_Offshore_Wind | E186: C_RESOLVE WIND_OFFSHORE | F186: Wind Offshore | G186: Wind Offshore | H186: 2024 | I186: 0 | J186: 0 | K186: 0 | L186: =IF(OR(VLOOKUP(D186,Table5[#All],2,FALSE)='Resource Key'!$B$57,VLOOKUP(D186,Table5[#All],2,FALSE)='Resource Key'!$B$43),IF('Input Source'!$P$1="No","Wind New SCE SDG&E",VLOOKUP(D186,Table5[#All],2,FALSE)),VLOOKUP(Table1[[#This Row],[Resource Name]],Table5[#All],2,FALSE)) -> Wind Offshore Humboldt
A187: 86 | B187: 25 MMT | C187: Partial 0yr_wk24 25MMT BC GHG ELCC noPerp | D187: Candidate_Humboldt_Bay_Offshore_Wind | E187: C_RESOLVE WIND_OFFSHORE | F187: Wind Offshore | G187: Wind Offshore | H187: 2025 | I187: 0 | J187: 0 | K187: 0 | L187: =IF(OR(VLOOKUP(D187,Table5[#All],2,FALSE)='Resource Key'!$B$57,VLOOKUP(D187,Table5[#All],2,FALSE)='Resource Key'!$B$43),IF('Input Source'!$P$1="No","Wind New SCE SDG&E",VLOOKUP(D187,Table5[#All],2,FALSE)),VLOOKUP(Table1[[#This Row],[Resource Name]],Table5[#All],2,FALSE)) -> Wind Offshore Humboldt
A188: 86 | B188: 25 MMT | C188: Partial 0yr_wk24 25MMT BC GHG ELCC noPerp | D188: Candidate_Humboldt_Bay_Offshore_Wind | E188: C_RESOLVE WIND_OFFSHORE | F188: Wind Offshore | G188: Wind Offshore | H188: 2026 | I188: 0 | J188: 0 | K188: 0 | L188: =IF(OR(VLOOKUP(D188,Table5[#All],2,FALSE)='Resource Key'!$B$57,VLOOKUP(D188,Table5[#All],2,FALSE)='Resource Key'!$B$43),IF('Input Source'!$P$1="No","Wind New SCE SDG&E",VLOOKUP(D188,Table5[#All],2,FALSE)),VLOOKUP(Table1[[#This Row],[Resource Name]],Table5[#All],2,FALSE)) -> Wind Offshore Humboldt
A189: 86 | B189: 25 MMT | C189: Partial 0yr_wk24 25MMT BC GHG ELCC noPerp | D189: Candidate_Humboldt_Bay_Offshore_Wind | E189: C_RESOLVE WIND_OFFSHORE | F189: Wind Offshore | G189: Wind Offshore | H189: 2027 | I189: 0 | J189: 0 | K189: 0 | L189: =IF(OR(VLOOKUP(D189,Table5[#All],2,FALSE)='Resource Key'!$B$57,VLOOKUP(D189,Table5[#All],2,FALSE)='Resource Key'!$B$43),IF('Input Source'!$P$1="No","Wind New SCE SDG&E",VLOOKUP(D189,Table5[#All],2,FALSE)),VLOOKUP(Table1[[#This Row],[Resource Name]],Table5[#All],2,FALSE)) -> Wind Offshore Humboldt
A190: 86 | B190: 25 MMT | C190: Partial 0yr_wk24 25MMT BC GHG ELCC noPerp | D190: Candidate_Humboldt_Bay_Offshore_Wind | E190: C_RESOLVE WIND_OFFSHORE | F190: Wind Offshore | G190: Wind Offshore | H190: 2028 | I190: 0 | J190: 0 | K190: 0 | L190: =IF(OR(VLOOKUP(D190,Table5[#All],2,FALSE)='Resource Key'!$B$57,VLOOKUP(D190,Table5[#All],2,FALSE)='Resource Key'!$B$43),IF('Input Source'!$P$1="No","Wind New SCE SDG&E",VLOOKUP(D190,Table5[#All],2,FALSE)),VLOOKUP(Table1[[#This Row],[Resource Name]],Table5[#All],2,FALSE)) -> Wind Offshore Humboldt
A191: 86 | B191: 25 MMT | C191: Partial 0yr_wk24 25MMT BC GHG ELCC noPerp | D191: Candidate_Humboldt_Bay_Offshore_Wind | E191: C_RESOLVE WIND_OFFSHORE | F191: Wind Offshore | G191: Wind Offshore | H191: 2029 | I191: 0 | J191: 0 | K191: 0 | L191: =IF(OR(VLOOKUP(D191,Table5[#All],2,FALSE)='Resource Key'!$B$57,VLOOKUP(D191,Table5[#All],2,FALSE)='Resource Key'!$B$43),IF('Input Source'!$P$1="No","Wind New SCE SDG&E",VLOOKUP(D191,Table5[#All],2,FALSE)),VLOOKUP(Table1[[#This Row],[Resource Name]],Table5[#All],2,FALSE)) -> Wind Offshore Humboldt
A192: 86 | B192: 25 MMT | C192: Partial 0yr_wk24 25MMT BC GHG ELCC noPerp | D192: Candidate_Humboldt_Bay_Offshore_Wind | E192: C_RESOLVE WIND_OFFSHORE | F192: Wind Offshore | G192: Wind Offshore | H192: 2030 | I192: 1607.04 | J192: 0 | K192: 39.533184 | L192: =IF(OR(VLOOKUP(D192,Table5[#All],2,FALSE)='Resource Key'!$B$57,VLOOKUP(D192,Table5[#All],2,FALSE)='Resource Key'!$B$43),IF('Input Source'!$P$1="No","Wind New SCE SDG&E",VLOOKUP(D192,Table5[#All],2,FALSE)),VLOOKUP(Table1[[#This Row],[Resource Name]],Table5[#All],2,FALSE)) -> Wind Offshore Humboldt
A193: 86 | B193: 25 MMT | C193: Partial 0yr_wk24 25MMT BC GHG ELCC noPerp | D193: Candidate_Humboldt_Bay_Offshore_Wind | E193: C_RESOLVE WIND_OFFSHORE | F193: Wind Offshore | G193: Wind Offshore | H193: 2031 | I193: 1607.04 | J193: 0 | K193: 39.533184 | L193: =IF(OR(VLOOKUP(D193,Table5[#All],2,FALSE)='Resource Key'!$B$57,VLOOKUP(D193,Table5[#All],2,FALSE)='Resource Key'!$B$43),IF('Input Source'!$P$1="No","Wind New SCE SDG&E",VLOOKUP(D193,Table5[#All],2,FALSE)),VLOOKUP(Table1[[#This Row],[Resource Name]],Table5[#All],2,FALSE)) -> Wind Offshore Humboldt
A194: 86 | B194: 25 MMT | C194: Partial 0yr_wk24 25MMT BC GHG ELCC noPerp | D194: Candidate_Humboldt_Bay_Offshore_Wind | E194: C_RESOLVE WIND_OFFSHORE | F194: Wind Offshore | G194: Wind Offshore | H194: 2032 | I194: 1607.04 | J194: 0 | K194: 39.533184 | L194: =IF(OR(VLOOKUP(D194,Table5[#All],2,FALSE)='Resource Key'!$B$57,VLOOKUP(D194,Table5[#All],2,FALSE)='Resource Key'!$B$43),IF('Input Source'!$P$1="No","Wind New SCE SDG&E",VLOOKUP(D194,Table5[#All],2,FALSE)),VLOOKUP(Table1[[#This Row],[Resource Name]],Table5[#All],2,FALSE)) -> Wind Offshore Humboldt
A195: 86 | B195: 25 MMT | C195: Partial 0yr_wk24 25MMT BC GHG ELCC noPerp | D195: Candidate_Humboldt_Bay_Offshore_Wind | E195: C_RESOLVE WIND_OFFSHORE | F195: Wind Offshore | G195: Wind Offshore | H195: 2033 | I195: 1607.04 | J195: 0 | K195: 39.533184 | L195: =IF(OR(VLOOKUP(D195,Table5[#All],2,FALSE)='Resource Key'!$B$57,VLOOKUP(D195,Table5[#All],2,FALSE)='Resource Key'!$B$43),IF('Input Source'!$P$1="No","Wind New SCE SDG&E",VLOOKUP(D195,Table5[#All],2,FALSE)),VLOOKUP(Table1[[#This Row],[Resource Name]],Table5[#All],2,FALSE)) -> Wind Offshore Humboldt
A196: 86 | B196: 25 MMT | C196: Partial 0yr_wk24 25MMT BC GHG ELCC noPerp | D196: Candidate_Humboldt_Bay_Offshore_Wind | E196: C_RESOLVE WIND_OFFSHORE | F196: Wind Offshore | G196: Wind Offshore | H196: 2034 | I196: 1607.04 | J196: 0 | K196: 39.533184 | L196: =IF(OR(VLOOKUP(D196,Table5[#All],2,FALSE)='Resource Key'!$B$57,VLOOKUP(D196,Table5[#All],2,FALSE)='Resource Key'!$B$43),IF('Input Source'!$P$1="No","Wind New SCE SDG&E",VLOOKUP(D196,Table5[#All],2,FALSE)),VLOOKUP(Table1[[#This Row],[Resource Name]],Table5[#All],2,FALSE)) -> Wind Offshore Humboldt
A197: 86 | B197: 25 MMT | C197: Partial 0yr_wk24 25MMT BC GHG ELCC noPerp | D197: Candidate_Humboldt_Bay_Offshore_Wind | E197: C_RESOLVE WIND_OFFSHORE | F197: Wind Offshore | G197: Wind Offshore | H197: 2035 | I197: 1607.04 | J197: 0 | K197: 39.533184 | L197: =IF(OR(VLOOKUP(D197,Table5[#All],2,FALSE)='Resource Key'!$B$57,VLOOKUP(D197,Table5[#All],2,FALSE)='Resource Key'!$B$43),IF('Input Source'!$P$1="No","Wind New SCE SDG&E",VLOOKUP(D197,Table5[#All],2,FALSE)),VLOOKUP(Table1[[#This Row],[Resource Name]],Table5[#All],2,FALSE)) -> Wind Offshore Humboldt
A198: 86 | B198: 25 MMT | C198: Partial 0yr_wk24 25MMT BC GHG ELCC noPerp | D198: Candidate_Morro_Bay_Offshore_Wind | E198: C_RESOLVE WIND_OFFSHORE | F198: Wind Offshore | G198: Wind Offshore | H198: 2022 | I198: 0 | J198: 0 | K198: 0 | L198: =IF(OR(VLOOKUP(D198,Table5[#All],2,FALSE)='Resource Key'!$B$57,VLOOKUP(D198,Table5[#All],2,FALSE)='Resource Key'!$B$43),IF('Input Source'!$P$1="No","Wind New SCE SDG&E",VLOOKUP(D198,Table5[#All],2,FALSE)),VLOOKUP(Table1[[#This Row],[Resource Name]],Table5[#All],2,FALSE)) -> Wind Offshore Morro Bay
A199: 86 | B199: 25 MMT | C199: Partial 0yr_wk24 25MMT BC GHG ELCC noPerp | D199: Candidate_Morro_Bay_Offshore_Wind | E199: C_RESOLVE WIND_OFFSHORE | F199: Wind Offshore | G199: Wind Offshore | H199: 2023 | I199: 0 | J199: 0 | K199: 0 | L199: =IF(OR(VLOOKUP(D199,Table5[#All],2,FALSE)='Resource Key'!$B$57,VLOOKUP(D199,Table5[#All],2,FALSE)='Resource Key'!$B$43),IF('Input Source'!$P$1="No","Wind New SCE SDG&E",VLOOKUP(D199,Table5[#All],2,FALSE)),VLOOKUP(Table1[[#This Row],[Resource Name]],Table5[#All],2,FALSE)) -> Wind Offshore Morro Bay
A200: 86 | B200: 25 MMT | C200: Partial 0yr_wk24 25MMT BC GHG ELCC noPerp | D200: Candidate_Morro_Bay_Offshore_Wind | E200: C_RESOLVE WIND_OFFSHORE | F200: Wind Offshore | G200: Wind Offshore | H200: 2024 | I200: 0 | J200: 0 | K200: 0 | L200: =IF(OR(VLOOKUP(D200,Table5[#All],2,FALSE)='Resource Key'!$B$57,VLOOKUP(D200,Table5[#All],2,FALSE)='Resource Key'!$B$43),IF('Input Source'!$P$1="No","Wind New SCE SDG&E",VLOOKUP(D200,Table5[#All],2,FALSE)),VLOOKUP(Table1[[#This Row],[Resource Name]],Table5[#All],2,FALSE)) -> Wind Offshore Morro Bay
... 362 more rows

Sheet Input Calculations
A1: Run # | B1: 86 | E1: Run # | F1: 86 | L1: Renewable Capacity Factors
L2: Resource | M2: 2024 | N2: 2026 | O2: 2030 | P2: 2035
A3: Sum of Bundled | B3: Column Labels | E3: Sum of Bundled | F3: Column Labels | L3: Wind Existing California (GWh) | M3: 0.3066651929 | N3: 0.3066651929 | O3: 0.3066651929 | P3: 0.3066651929
A4: Row Labels | B4: 2030 | C4: 2035 | E4: Row Labels | F4: 2030 | G4: 2035 | L4: Wind New SCE SDG&E (GWh) | M4: 0.3121347032 | N4: 0.3121347032 | O4: 0.3121347032 | P4: 0.3121347032
A5: Battery Storage | B5: 0.2208990424 | C5: 0.1943745237 | E5: Battery Storage | F5: 286.823208 | G5: 286.823208 | L5: Solar Existing California (GWh) | M5: 0.302325672 | N5: 0.302325672 | O5: 0.302325672 | P5: 0.302325672
A6: Shed DR | B6: 0.05203143348 | C6: 0.04578374353 | E6: Shed DR | F6: 67.559472 | G6: 67.559472 | L6: Solar New SCE SDG&E (GWh) | M6: 0.3398982877 | N6: 0.3398982877 | O6: 0.3398982877 | P6: 0.3398982877
A7: Solar New SCE SDG&E | B7: 0.5263561741 | C7: 0.5830623888 | E7: Solar New SCE SDG&E | F7: 683.43966 | G7: 860.379342 | L7: Small Hydro (GWh) | M7: 0.338062553 | N7: 0.338062553 | O7: 0.338062553 | P7: 0.338062553
A8: Wind New SCE SDG&E | B8: 0.1115343619 | C8: 0.09830854948 | E8: Wind New SCE SDG&E | F8: 144.8202 | G8: 145.0662 | L8: Battery Storage (MWh Energy Capacity) | M8: 0.4241062776 | N8: 0.4469733124 | O8: 0.440361517 | P8: 0.2158968599
A9: Wind Offshore Humboldt | B9: 0.03044677782 | C9: 0.02679087186 | E9: Wind Offshore Humboldt | F9: 39.533184 | G9: 39.533184 | L9: Large Hydro (GWh) | M9: 0.4207658027 | N9: 0.4207597487 | O9: 0.4207565901 | P9: 0.4207689993
A10: Wind Offshore Morro Bay | B10: 0.0587322103 | C10: 0.05167992257 | E10: Wind Offshore Morro Bay | F10: 76.26 | G10: 76.26 | L10: Biomass (GWh) | M10: 0.7214588182 | N10: 0.7225136651 | O10: 0.6334765405 | P10: 0.6799405116
A11: Grand Total | B11: 1 | C11: 1 | E11: Grand Total | F11: 1298.435724 | G11: 1475.621406 | L11: Biogas (GWh) | M11: 0.6669720627 | N11: 0.6548569964 | O11: 0.5726239505 | P11: 0.5943677849
L12: Hybrid_or_Paired_Solar_and_Battery (GWh) | M12: 0.33 | N12: 0.34 | O12: 0.33 | P12: 0.34
L13: Wind Offshore Humboldt Bay | M13: 0.5501 | N13: 0.5501 | O13: 0.5501 | P13: 0.5501
L14: Wind Offshore Morro Bay | M14: 0.4646 | N14: 0.4646 | O14: 0.4646 | P14: 0.4646
L15: Wind New Mexico | M15: 0.4728173516 | N15: 0.4728173516 | O15: 0.4728173516 | P15: 0.4728173516
A16: 2030 | L16: Wind Wyoming | M16: 0.512336758 | N16: 0.512336758 | O16: 0.512336758 | P16: 0.512336758
A17: Resource | B17: Proportion | C17: MW | D17: CSP Unit | E17: CSP Input | G17: MW Adjusted
A18: Battery Storage | B18: =IFERROR(VLOOKUP(A18,$A$5:$B$13,2,FALSE),0) -> 0.2208990424 | C18: =G18 -> 286.823208 | D18: MWh | E18: =Table3[[#This Row],[MW]]*4 -> 1147.292832 | G18: =VLOOKUP(A18,$E$5:$F$13,2,FALSE)*$H$18 -> 286.823208 | H18: 1
A19: Shed DR | B19: 0.05203143348 | C19: 67.559472 | D19: MW | E19: =Table3[[#This Row],[MW]] -> 67.559472 | G19: =VLOOKUP(A19,$E$5:$F$13,2,FALSE)*$H$18 -> 67.559472
A20: Solar New SCE SDG&E | B20: 0.5263561741 | C20: 683.43966 | D20: GWh | E20: =(Table3[[#This Row],[MW]]*8760*$O$6)/1000 -> 2034.947739 | G20: 683.43966
A21: Wind New Mexico | B21: 0 | C21: 0 | D21: GWh | E21: =(Table3[[#This Row],[MW]]*8760*$O$15)/1000 -> 0 | G21: =IFERROR(VLOOKUP(A21,$E$5:$F$13,2,FALSE)*$H$18,0) -> 0
A22: Wind New SCE SDG&E | B22: 0.1115343619 | C22: 144.8202 | D22: GWh | E22: =(Table3[[#This Row],[MW]]*8760*$O$4)/1000 -> 395.9818729 | G22: 144.8202
A23: Wind Offshore Humboldt | B23: 0.03044677782 | C23: 39.533184 | D23: GWh | E23: =(Table3[[#This Row],[MW]]*8760*$O$13)/1000 -> 190.5055116 | G23: 39.533184
A24: Wind Offshore Morro Bay | B24: 0.0587322103 | C24: 76.26 | D24: GWh | E24: =(Table3[[#This Row],[MW]]*8760*$O$14)/1000 -> 310.370269 | G24: 76.26
A25: Wind Wyoming | B25: 0 | C25: 0 | D25: GWh | E25: =(Table3[[#This Row],[MW]]*8760*$O$16)/1000 -> 0 | G25: =IFERROR(VLOOKUP(A25,$E$5:$F$13,2,FALSE)*$H$18,0) -> 0
C26: =SUM(Table3[MW]) -> 1298.435724
A29: 2035
A30: Resource | B30: Proportion | C30: MW | D30: CSP Unit | E30: CSP Input | G30: MW Adjusted
A31: Battery Storage | B31: =IFERROR(VLOOKUP(A31,$A$5:$C$13,3,FALSE),0) -> 0.1943745237 | C31: =G31 -> 286.823208 | D31: MWh | E31: =Table35[[#This Row],[MW]]*4 -> 1147.292832 | G31: =VLOOKUP(A31,$E$5:$G$13,3,FALSE)*$H$31 -> 286.823208 | H31: 1
A32: Shed DR | B32: 0.04578374353 | C32: 67.559472 | D32: MW | E32: =Table35[[#This Row],[MW]] -> 67.559472 | G32: =VLOOKUP(A32,$E$5:$G$13,3,FALSE)*$H$31 -> 67.559472
A33: Solar New SCE SDG&E | B33: 0.5830623888 | C33: 860.379342 | D33: GWh | E33: =(Table35[[#This Row],[MW]]*8760*$P$6)/1000 -> 2561.787234 | G33: 860.379342
A34: Wind New Mexico | B34: 0 | C34: 0 | D34: GWh | E34: =(Table35[[#This Row],[MW]]*8760*P15)/1000 -> 0 | G34: =IFERROR(VLOOKUP(A34,$E$5:$G$13,3,FALSE)*$H$31,0) -> 0
A35: Wind New SCE SDG&E | B35: 0.09830854948 | C35: 145.0662 | D35: GWh | E35: =(Table35[[#This Row],[MW]]*8760*P4)/1000 -> 396.6545107 | G35: 145.0662
A36: Wind Offshore Humboldt | B36: 0.02679087186 | C36: 39.533184 | D36: GWh | E36: =(Table35[[#This Row],[MW]]*8760*P13)/1000 -> 190.5055116 | G36: 39.533184
A37: Wind Offshore Morro Bay | B37: 0.05167992257 | C37: 76.26 | D37: GWh | E37: =(Table35[[#This Row],[MW]]*8760*P14)/1000 -> 310.370269 | G37: 76.26
A38: Wind Wyoming | B38: 0 | C38: 0 | D38: GWh | E38: =(Table35[[#This Row],[MW]]*8760*P16)/1000 -> 0 | G38: =IFERROR(VLOOKUP(A38,$E$5:$G$13,3,FALSE)*$H$31,0) -> 0
C39: =SUM(Table35[MW]) -> 1475.621406

Sheet Cover + Data Sources
B2: Tab Color Scheme
B3: Gray tab describes data sources; further description available in accompanying documentation
B4: Light Orange tabs are where the user inputs values
B5: Blue tabs contain LSE-specific data provided by the CPUC that the user should either input into the "Managed Retail Sales Forecast" or "BTM PV Forecast" rows on the Demand Inputs tab, or use as a point of comparison when assessing CO2 emissions in the Results tab
B6: Yellow tabs are read-only tabs that contain inputs and calculations
B7: Green tab contains results
B9: Cell Color Scheme
B10: Yellow cells are inputs that can be changed by the user. Users should only input data into the Supply Inputs and Demand Inputs tabs, unless they represent an ESP in which case they should also input data into the ESP GHG Benchmarks tab
B11: Orange cells contain drop-down menus that allow the user to input custom values
B12: Blue cells are input data that should NOT be changed by the user
B13: Grey cells are intermediate calculations that should NOT be changed by the user
B14: Green cells are final outputs
B16: Notes:
B17: Input values in yellow cells on the Supply Inputs and Demand Inputs tabs are placeholders that represent the entire CAISO system. Users should replace all inputs with values specific to their resources and demand.
B18: The years 2024, 2026, 2030, and 2035 are simulated within this tool. Any intermediate years should be interpolated outside of this tool.
B19: Hourly renewable, demand, and dispatch profiles are based on 2009 weather conditions and are in standard time throughout the year. If possible, users should synchronize custom shapes with 2009 weather.
B20: The SERVM model demand profiles for all future years with the convention that the first day of the year is a Monday.
B21: All emissions factors and total emissions values are in metric tonnes (as opposed to Imperial system units)
B23: Data Sources
B25: 1. Hourly Profiles: Solar and Wind
B26: Variable renewable profiles are gathered from the SERVM model maintained by the CPUC Energy Division's Energy Resource Modeling group
B27: 2. Demand Modifier Shapes
B28: Baseline demand, energy efficiency, electric vehicle, buildling electrification, behind the meter photovoltatic, and behind the meter storage profiles are based on SERVM hourly profiles for the year 2009
B29: The default Commerical and Industrial (C&I) demand shape is from the CEC's California Commercial End-Use Survey (https://www.energy.ca.gov/data-reports/surveys/california-commercial-end-use-survey).
B30: 3. Emissions Factors: CO2, SO2, NOx, PM2.5
B31: System Power emissions factors on the Emissions Profiles tab are based on SERVM hourly weighted-average emissions from CAISO dispatchable gas resources and unspecified imports. The resource portfolio simulated in SERVM is the 2021 Preferred System Plan Portfolio as updated by IRP staff with more recent inputs ("2021 PSP Portfolio with updates")
B32: Criteria pollutant emissions factor data was compiled from a combination of CAISO dispatch data, scientific literature, and EPA and CARB criteria pollutant data.
B33: The Asset Controlling Supplier CO2 emissions factor is consistent with recent ACS emissions factors reported by CARB https://ww2.arb.ca.gov/mrr-acs
B34: 4. Resource Dispatch
B35: The following dispatch profiles are based on SERVM model dispatch: Combined Heat and Power (CHP), Coal, Large Hydro, Nuclear, Geothermal, Biomass, Biogas, and Hybrid or Paired Solar and Battery
B36: The small hydro dispatch profile is based on historical CAISO data
B37: The Shed Demand Response (DR) dispatch profile is created by setting a target capacity factor based on average Shed DR dispatch over 22 years of SERVM simulations, and then allocating dispatch in each CSP year to the hours with the most dispatchable gas generation in SERVM. A 0.8 hourly capacity factor is set based on observed 2020 Shed DR dispatch (http://www.caiso.com/Documents/ReportonDemandResponseIssuesandPerformance-Feb252021.pdf)
B38: 5. Battery Storage and Pumped Storage Dispatch
B39: The storage charge/discharge tables on the Resource Profiles tab are based on SERVM modeled charge/discharge patterns of 4-hour batteries and pumped hydro storage resources
B40: 6. Hydro Specified Imports Dispatch
B41: The hydro dispatch tables on the Hydro Specified Imports Profile tab are based on dispatch patterns of the NW_Hydro_for_CAISO resource in the 2021 PSP Portfolio with updates RESOLVE model runs
B42: 7. LSE Demand Forecasts, BTM PV Forecasts, and GHG Benchmarks
B43: Assigned to LSEs per Administrative Law Judge's Ruling Finalizing Load Forecasts and Greenhouse Gas Emissions Benchmarks for 2022 Integrated Resource Plan Filings, June 15, 2022. Available here:
B44: https://docs.cpuc.ca.gov/SearchRes.aspx?docformat=ALL&docid=485625915
B45: 8. IEPR CAISO Load Modifiers
B46: CEC 2021 IEPR: CAISO Peak and Energy Forecasts: CED 2021 Mid Baseline / AAEE Scenario 3 / AAFS Scenario 3
B47: 9. Commercial and Industrial fraction of baseline consumption
B48: CEC 2021 IEPR CED Forecast: Form 1.1 for PG&E, SCE, SDG&E for the Mid Demand Case. Available here:
B49: https://efiling.energy.ca.gov/Lists/DocketLog.aspx?docketnumber=21-IEPR-03

Sheet Supply Inputs
B1: 25 MMT in 2035 | K1: INFORMATION ONLY - Calculated capacity, energy, and capacity factor values for all supply resources | Z1: Constants - Do Not Edit
B2: Supply Inputs: Values should be pasted directly from the Resource Data Template using Excel's "Paste Values" option | K2: Calculated Capacity (MW) | P2: Calculated Energy Production Potential (GWh, pre-curtailment) | U2: Capacity Factors (%) | Z2: 8760 | AA2: Hours per year
B3: Resource | C3: 2024 | D3: 2026 | E3: 2030 | F3: 2035 | G3: Units | H3: Type | K3: =$C$3 -> 2024 | L3: =$D$3 -> 2026 | M3: =$E$3 -> 2030 | N3: =$F$3 -> 2035 | P3: =$C$3 -> 2024 | Q3: =$D$3 -> 2026 | R3: =$E$3 -> 2030 | S3: =$F$3 -> 2035 | U3: =$C$3 -> 2024 | V3: =$D$3 -> 2026 | W3: =$E$3 -> 2030 | X3: =$F$3 -> 2035 | Z3: 1000 | AA3: GW -> MW
B4: Large Hydro | G4: GWh | H4: GHG-Free | K4: =C4*('Supply Inputs'!$Z$3/('Supply Inputs'!$Z$2*U4)) -> 0 | L4: =D4*('Supply Inputs'!$Z$3/('Supply Inputs'!$Z$2*V4)) -> 0 | M4: =E4*('Supply Inputs'!$Z$3/('Supply Inputs'!$Z$2*W4)) -> 0 | N4: =F4*('Supply Inputs'!$Z$3/('Supply Inputs'!$Z$2*X4)) -> 0 | P4: =C4 -> 0 | Q4: =D4 -> 0 | R4: =E4 -> 0 | S4: =F4 -> 0 | U4: ='Resource Profiles'!M2 -> 0.4208485731 | V4: ='Resource Profiles'!N2 -> 0.4207594521 | W4: ='Resource Profiles'!O2 -> 0.41954871 | X4: ='Resource Profiles'!P2 -> 0.4195045662 | Z4: 4 | AA4: Battery duration of SERVM battery profile (hours)
B5: Imported Hydro | G5: GWh | H5: GHG-Free | K5: =C5*('Supply Inputs'!$Z$3/('Supply Inputs'!$Z$2*U5)) -> 0 | L5: =D5*('Supply Inputs'!$Z$3/('Supply Inputs'!$Z$2*V5)) -> 0 | M5: =E5*('Supply Inputs'!$Z$3/('Supply Inputs'!$Z$2*W5)) -> 0 | N5: =F5*('Supply Inputs'!$Z$3/('Supply Inputs'!$Z$2*X5)) -> 0 | P5: =C5 -> 0 | Q5: =D5 -> 0 | R5: =E5 -> 0 | S5: =F5 -> 0 | U5: ='Resource Profiles'!E2 -> 0.4413413242 | V5: ='Resource Profiles'!F2 -> 0.4411312785 | W5: ='Resource Profiles'!G2 -> 0.4413025114 | X5: ='Resource Profiles'!H2 -> 0.4411369863 | Z5: 100 | AA5: Curtailment threshold (MW)
B6: Asset Controlling Supplier | G6: GWh | H6: GHG-Free (Partial) | K6: =C6*('Supply Inputs'!$Z$3/('Supply Inputs'!$Z$2*U6)) -> 0 | L6: =D6*('Supply Inputs'!$Z$3/('Supply Inputs'!$Z$2*V6)) -> 0 | M6: =E6*('Supply Inputs'!$Z$3/('Supply Inputs'!$Z$2*W6)) -> 0 | N6: =F6*('Supply Inputs'!$Z$3/('Supply Inputs'!$Z$2*X6)) -> 0 | P6: 0 | Q6: =D6 -> 0 | R6: =E6 -> 0 | S6: 0 | U6: ='Resource Profiles'!I2 -> 0.4413413242 | V6: ='Resource Profiles'!J2 -> 0.4411312785 | W6: ='Resource Profiles'!K2 -> 0.4413025114 | X6: ='Resource Profiles'!L2 -> 0.4411369863 | Z6: 0.02 | AA6: Asset Controlling Supplier Emissions Factor (tCO2/MWh)
B7: Nuclear | G7: GWh | H7: GHG-Free | K7: =C7*('Supply Inputs'!$Z$3/('Supply Inputs'!$Z$2*U7)) -> 0 | L7: =D7*('Supply Inputs'!$Z$3/('Supply Inputs'!$Z$2*V7)) -> 0 | M7: =E7*('Supply Inputs'!$Z$3/('Supply Inputs'!$Z$2*W7)) -> 0 | N7: =F7*('Supply Inputs'!$Z$3/('Supply Inputs'!$Z$2*X7)) -> 0 | P7: 0 | Q7: 0 | R7: 0 | S7: 0 | U7: ='Resource Profiles'!Q2 -> 0.9764694116 | V7: ='Resource Profiles'!R2 -> 0.9777845548 | W7: ='Resource Profiles'!S2 -> 0.90205371 | X7: ='Resource Profiles'!T2 -> 0.9755960274 | Z7: 0.428 | AA7: Unspecified Import Emissions Factor (tCO2/MWh)
B8: Biogas | C8: 17.7511976 | D8: 4.095488021 | E8: 3.569901955 | F8: 0 | G8: GWh | H8: RPS Eligible | K8: =C8*('Supply Inputs'!$Z$3/('Supply Inputs'!$Z$2*U8)) -> 2.958 | L8: =D8*('Supply Inputs'!$Z$3/('Supply Inputs'!$Z$2*V8)) -> 0.708 | M8: =E8*('Supply Inputs'!$Z$3/('Supply Inputs'!$Z$2*W8)) -> 0.708 | N8: =F8*('Supply Inputs'!$Z$3/('Supply Inputs'!$Z$2*X8)) -> 0 | P8: 17.7511976 | Q8: 4.095488021 | R8: 3.569901955 | S8: 0 | U8: ='Resource Profiles'!U2 -> 0.6850549087 | V8: ='Resource Profiles'!V2 -> 0.6603410502 | W8: ='Resource Profiles'!W2 -> 0.5755975342 | X8: ='Resource Profiles'!X2 -> 0.5588768151 | Z8: =(Z7-Z6)/Z7 -> 0.953271028 | AA8: Fraction of Asset Controlling Supplier Imports to count as GHG-free
B9: Biomass | D9: 143.9685432 | E9: 0 | F9: 0 | G9: GWh | H9: RPS Eligible | K9: =C9*('Supply Inputs'!$Z$3/('Supply Inputs'!$Z$2*U9)) -> 0 | L9: =D9*('Supply Inputs'!$Z$3/('Supply Inputs'!$Z$2*V9)) -> 24 | M9: =E9*('Supply Inputs'!$Z$3/('Supply Inputs'!$Z$2*W9)) -> 0 | N9: =F9*('Supply Inputs'!$Z$3/('Supply Inputs'!$Z$2*X9)) -> 0 | P9: 0 | Q9: 143.9685432 | R9: 0 | S9: 0 | U9: ='Resource Profiles'!Y2 -> 0.6958756507 | V9: ='Resource Profiles'!Z2 -> 0.6847818836 | W9: ='Resource Profiles'!AA2 -> 0.5792441096 | X9: ='Resource Profiles'!AB2 -> 0.5488326142
B10: Geothermal | C10: 0 | D10: 335.7568074 | E10: 328.5745176 | F10: 326.3876322 | G10: GWh | H10: RPS Eligible | K10: =C10*('Supply Inputs'!$Z$3/('Supply Inputs'!$Z$2*U10)) -> 0 | L10: =D10*('Supply Inputs'!$Z$3/('Supply Inputs'!$Z$2*V10)) -> 42 | M10: =E10*('Supply Inputs'!$Z$3/('Supply Inputs'!$Z$2*W10)) -> 42 | N10: =F10*('Supply Inputs'!$Z$3/('Supply Inputs'!$Z$2*X10)) -> 42 | P10: 0 | Q10: 335.7568074 | R10: 328.5745176 | S10: 326.3876322 | U10: ='Resource Profiles'!AC2 -> 0.9152107648 | V10: ='Resource Profiles'!AD2 -> 0.912581016 | W10: ='Resource Profiles'!AE2 -> 0.8930596804 | X10: ='Resource Profiles'!AF2 -> 0.8871157648
B11: Small Hydro | C11: 8.588141097 | D11: 8.588141097 | E11: 6.811284318 | F11: 5.478641734 | G11: GWh | H11: RPS Eligible | K11: =C11*('Supply Inputs'!$Z$3/('Supply Inputs'!$Z$2*U11)) -> 2.900002707 | L11: =D11*('Supply Inputs'!$Z$3/('Supply Inputs'!$Z$2*V11)) -> 2.900002707 | M11: =E11*('Supply Inputs'!$Z$3/('Supply Inputs'!$Z$2*W11)) -> 2.300002147 | N11: =F11*('Supply Inputs'!$Z$3/('Supply Inputs'!$Z$2*X11)) -> 1.850001727 | P11: 8.588141097 | Q11: 8.588141097 | R11: 6.811284318 | S11: 5.478641734 | U11: ='Resource Profiles'!AG2 -> 0.3380622374 | V11: ='Resource Profiles'!AH2 -> 0.3380622374 | W11: ='Resource Profiles'!AI2 -> 0.3380622374 | X11: ='Resource Profiles'!AJ2 -> 0.3380622374
B12: Wind Resources
B13: Wind Baseline California | C13: 530.9580684 | D13: 489.9390866 | E13: 485.1841815 | F13: 164.8367118 | G13: GWh | H13: RPS Eligible | K13: =C13*('Supply Inputs'!$Z$3/('Supply Inputs'!$Z$2*U13)) -> 197.6474553 | L13: =D13*('Supply Inputs'!$Z$3/('Supply Inputs'!$Z$2*V13)) -> 182.3782696 | M13: =E13*('Supply Inputs'!$Z$3/('Supply Inputs'!$Z$2*W13)) -> 180.6082712 | N13: =F13*('Supply Inputs'!$Z$3/('Supply Inputs'!$Z$2*X13)) -> 61.35994266 | P13: 530.9580684 | Q13: 489.9390866 | R13: 485.1841815 | S13: 164.8367118 | U13: =INDEX('Renewable Profiles'!$E$2:$P$2,0,MATCH('Supply Inputs'!$B13,'Renewable Profiles'!$E$4:$P$4,0)) -> 0.3066654795 | V13: =INDEX('Renewable Profiles'!$E$2:$P$2,0,MATCH('Supply Inputs'!$B13,'Renewable Profiles'!$E$4:$P$4,0)) -> 0.3066654795 | W13: =INDEX('Renewable Profiles'!$E$2:$P$2,0,MATCH('Supply Inputs'!$B13,'Renewable Profiles'!$E$4:$P$4,0)) -> 0.3066654795 | X13: =INDEX('Renewable Profiles'!$E$2:$P$2,0,MATCH('Supply Inputs'!$B13,'Renewable Profiles'!$E$4:$P$4,0)) -> 0.3066654795
B14: Wind New PG&E | G14: GWh | H14: RPS Eligible | K14: =C14*('Supply Inputs'!$Z$3/('Supply Inputs'!$Z$2*U14)) -> 0 | L14: =D14*('Supply Inputs'!$Z$3/('Supply Inputs'!$Z$2*V14)) -> 0 | M14: =E14*('Supply Inputs'!$Z$3/('Supply Inputs'!$Z$2*W14)) -> 0 | N14: =F14*('Supply Inputs'!$Z$3/('Supply Inputs'!$Z$2*X14)) -> 0 | P14: 0 | Q14: 0 | R14: 0 | S14: 0 | U14: =INDEX('Renewable Profiles'!$E$2:$P$2,0,MATCH('Supply Inputs'!$B14,'Renewable Profiles'!$E$4:$P$4,0)) -> 0.2455791096 | V14: =INDEX('Renewable Profiles'!$E$2:$P$2,0,MATCH('Supply Inputs'!$B14,'Renewable Profiles'!$E$4:$P$4,0)) -> 0.2455791096 | W14: =INDEX('Renewable Profiles'!$E$2:$P$2,0,MATCH('Supply Inputs'!$B14,'Renewable Profiles'!$E$4:$P$4,0)) -> 0.2455791096 | X14: =INDEX('Renewable Profiles'!$E$2:$P$2,0,MATCH('Supply Inputs'!$B14,'Renewable Profiles'!$E$4:$P$4,0)) -> 0.2455791096
B15: Wind New SCE SDG&E | C15: 0 | D15: 0 | E15: 393.7392 | F15: 393.7392 | G15: GWh | H15: RPS Eligible | K15: =C15*('Supply Inputs'!$Z$3/('Supply Inputs'!$Z$2*U15)) -> 0 | L15: =D15*('Supply Inputs'!$Z$3/('Supply Inputs'!$Z$2*V15)) -> 0 | M15: =E15*('Supply Inputs'!$Z$3/('Supply Inputs'!$Z$2*W15)) -> 144 | N15: =F15*('Supply Inputs'!$Z$3/('Supply Inputs'!$Z$2*X15)) -> 144 | P15: 0 | Q15: 0 | R15: 393.7392 | S15: 393.7392 | U15: =INDEX('Renewable Profiles'!$E$2:$P$2,0,MATCH('Supply Inputs'!$B15,'Renewable Profiles'!$E$4:$P$4,0)) -> 0.3121347032 | V15: =INDEX('Renewable Profiles'!$E$2:$P$2,0,MATCH('Supply Inputs'!$B15,'Renewable Profiles'!$E$4:$P$4,0)) -> 0.3121347032 | W15: =INDEX('Renewable Profiles'!$E$2:$P$2,0,MATCH('Supply Inputs'!$B15,'Renewable Profiles'!$E$4:$P$4,0)) -> 0.3121347032 | X15: =INDEX('Renewable Profiles'!$E$2:$P$2,0,MATCH('Supply Inputs'!$B15,'Renewable Profiles'!$E$4:$P$4,0)) -> 0.3121347032
B16: Wind Pacific Northwest | G16: GWh | H16: RPS Eligible | K16: =C16*('Supply Inputs'!$Z$3/('Supply Inputs'!$Z$2*U16)) -> 0 | L16: =D16*('Supply Inputs'!$Z$3/('Supply Inputs'!$Z$2*V16)) -> 0 | M16: =E16*('Supply Inputs'!$Z$3/('Supply Inputs'!$Z$2*W16)) -> 0 | N16: =F16*('Supply Inputs'!$Z$3/('Supply Inputs'!$Z$2*X16)) -> 0 | P16: 0 | Q16: 0 | R16: 0 | S16: 0 | U16: =INDEX('Renewable Profiles'!$E$2:$P$2,0,MATCH('Supply Inputs'!$B16,'Renewable Profiles'!$E$4:$P$4,0)) -> 0.2374634703 | V16: =INDEX('Renewable Profiles'!$E$2:$P$2,0,MATCH('Supply Inputs'!$B16,'Renewable Profiles'!$E$4:$P$4,0)) -> 0.2374634703 | W16: =INDEX('Renewable Profiles'!$E$2:$P$2,0,MATCH('Supply Inputs'!$B16,'Renewable Profiles'!$E$4:$P$4,0)) -> 0.2374634703 | X16: =INDEX('Renewable Profiles'!$E$2:$P$2,0,MATCH('Supply Inputs'!$B16,'Renewable Profiles'!$E$4:$P$4,0)) -> 0.2374634703
B17: Wind Wyoming | G17: GWh | H17: RPS Eligible | K17: =C17*('Supply Inputs'!$Z$3/('Supply Inputs'!$Z$2*U17)) -> 0 | L17: =D17*('Supply Inputs'!$Z$3/('Supply Inputs'!$Z$2*V17)) -> 0 | M17: =E17*('Supply Inputs'!$Z$3/('Supply Inputs'!$Z$2*W17)) -> 0 | N17: =F17*('Supply Inputs'!$Z$3/('Supply Inputs'!$Z$2*X17)) -> 0 | P17: 0 | Q17: 0 | R17: 0 | S17: 0 | U17: =INDEX('Renewable Profiles'!$E$2:$P$2,0,MATCH('Supply Inputs'!$B17,'Renewable Profiles'!$E$4:$P$4,0)) -> 0.512336758 | V17: =INDEX('Renewable Profiles'!$E$2:$P$2,0,MATCH('Supply Inputs'!$B17,'Renewable Profiles'!$E$4:$P$4,0)) -> 0.512336758 | W17: =INDEX('Renewable Profiles'!$E$2:$P$2,0,MATCH('Supply Inputs'!$B17,'Renewable Profiles'!$E$4:$P$4,0)) -> 0.512336758 | X17: =INDEX('Renewable Profiles'!$E$2:$P$2,0,MATCH('Supply Inputs'!$B17,'Renewable Profiles'!$E$4:$P$4,0)) -> 0.512336758
B18: Wind New Mexico | G18: GWh | H18: RPS Eligible | K18: =C18*('Supply Inputs'!$Z$3/('Supply Inputs'!$Z$2*U18)) -> 0 | L18: =D18*('Supply Inputs'!$Z$3/('Supply Inputs'!$Z$2*V18)) -> 0 | M18: =E18*('Supply Inputs'!$Z$3/('Supply Inputs'!$Z$2*W18)) -> 0 | N18: =F18*('Supply Inputs'!$Z$3/('Supply Inputs'!$Z$2*X18)) -> 0 | P18: 0 | Q18: 0 | R18: 0 | S18: 0 | U18: =INDEX('Renewable Profiles'!$E$2:$P$2,0,MATCH('Supply Inputs'!$B18,'Renewable Profiles'!$E$4:$P$4,0)) -> 0.4728173516 | V18: =INDEX('Renewable Profiles'!$E$2:$P$2,0,MATCH('Supply Inputs'!$B18,'Renewable Profiles'!$E$4:$P$4,0)) -> 0.4728173516 | W18: =INDEX('Renewable Profiles'!$E$2:$P$2,0,MATCH('Supply Inputs'!$B18,'Renewable Profiles'!$E$4:$P$4,0)) -> 0.4728173516 | X18: =INDEX('Renewable Profiles'!$E$2:$P$2,0,MATCH('Supply Inputs'!$B18,'Renewable Profiles'!$E$4:$P$4,0)) -> 0.4728173516
B19: Wind Offshore Morro Bay | C19: 0 | D19: 0 | E19: 310.3904016 | F19: 310.3904016 | G19: GWh | H19: RPS Eligible | K19: =C19*('Supply Inputs'!$Z$3/('Supply Inputs'!$Z$2*U19)) -> 0 | L19: =D19*('Supply Inputs'!$Z$3/('Supply Inputs'!$Z$2*V19)) -> 0 | M19: =E19*('Supply Inputs'!$Z$3/('Supply Inputs'!$Z$2*W19)) -> 76.26 | N19: =F19*('Supply Inputs'!$Z$3/('Supply Inputs'!$Z$2*X19)) -> 76.26 | P19: 0 | Q19: 0 | R19: 310.3904016 | S19: 310.3904016 | U19: =INDEX('Renewable Profiles'!$E$2:$P$2,0,MATCH('Supply Inputs'!$B19,'Renewable Profiles'!$E$4:$P$4,0)) -> 0.464630137 | V19: =INDEX('Renewable Profiles'!$E$2:$P$2,0,MATCH('Supply Inputs'!$B19,'Renewable Profiles'!$E$4:$P$4,0)) -> 0.464630137 | W19: =INDEX('Renewable Profiles'!$E$2:$P$2,0,MATCH('Supply Inputs'!$B19,'Renewable Profiles'!$E$4:$P$4,0)) -> 0.464630137 | X19: =INDEX('Renewable Profiles'!$E$2:$P$2,0,MATCH('Supply Inputs'!$B19,'Renewable Profiles'!$E$4:$P$4,0)) -> 0.464630137
B20: Wind Offshore Humboldt | C20: 0 | D20: 0 | E20: 190.4890658 | F20: 190.4890658 | G20: GWh | H20: RPS Eligible | K20: =C20*('Supply Inputs'!$Z$3/('Supply Inputs'!$Z$2*U20)) -> 0 | L20: =D20*('Supply Inputs'!$Z$3/('Supply Inputs'!$Z$2*V20)) -> 0 | M20: =E20*('Supply Inputs'!$Z$3/('Supply Inputs'!$Z$2*W20)) -> 39.533184 | N20: =F20*('Supply Inputs'!$Z$3/('Supply Inputs'!$Z$2*X20)) -> 39.533184 | P20: 0 | Q20: 0 | R20: 190.4890658 | S20: 190.4890658 | U20: =INDEX('Renewable Profiles'!$E$2:$P$2,0,MATCH('Supply Inputs'!$B20,'Renewable Profiles'!$E$4:$P$4,0)) -> 0.5500525114 | V20: =INDEX('Renewable Profiles'!$E$2:$P$2,0,MATCH('Supply Inputs'!$B20,'Renewable Profiles'!$E$4:$P$4,0)) -> 0.5500525114 | W20: =INDEX('Renewable Profiles'!$E$2:$P$2,0,MATCH('Supply Inputs'!$B20,'Renewable Profiles'!$E$4:$P$4,0)) -> 0.5500525114 | X20: =INDEX('Renewable Profiles'!$E$2:$P$2,0,MATCH('Supply Inputs'!$B20,'Renewable Profiles'!$E$4:$P$4,0)) -> 0.5500525114
B21: Solar Resources
B22: Solar Baseline California | C22: 854.7748496 | D22: 854.7748496 | E22: 854.7748496 | F22: 637.5817892 | G22: GWh | H22: RPS Eligible | K22: =C22*('Supply Inputs'!$Z$3/('Supply Inputs'!$Z$2*U22)) -> 322.8519383 | L22: =D22*('Supply Inputs'!$Z$3/('Supply Inputs'!$Z$2*V22)) -> 322.8519383 | M22: =E22*('Supply Inputs'!$Z$3/('Supply Inputs'!$Z$2*W22)) -> 322.8519383 | N22: =F22*('Supply Inputs'!$Z$3/('Supply Inputs'!$Z$2*X22)) -> 240.8172357 | P22: 854.7748496 | Q22: 854.7748496 | R22: 854.7748496 | S22: 637.5817892 | U22: =INDEX('Renewable Profiles'!$E$2:$P$2,0,MATCH('Supply Inputs'!$B22,'Renewable Profiles'!$E$4:$P$4,0)) -> 0.3022346347 | V22: =INDEX('Renewable Profiles'!$E$2:$P$2,0,MATCH('Supply Inputs'!$B22,'Renewable Profiles'!$E$4:$P$4,0)) -> 0.3022346347 | W22: =INDEX('Renewable Profiles'!$E$2:$P$2,0,MATCH('Supply Inputs'!$B22,'Renewable Profiles'!$E$4:$P$4,0)) -> 0.3022346347 | X22: =INDEX('Renewable Profiles'!$E$2:$P$2,0,MATCH('Supply Inputs'!$B22,'Renewable Profiles'!$E$4:$P$4,0)) -> 0.3022346347
B23: Solar New PG&E | G23: GWh | H23: RPS Eligible | K23: =C23*('Supply Inputs'!$Z$3/('Supply Inputs'!$Z$2*U23)) -> 0 | L23: =D23*('Supply Inputs'!$Z$3/('Supply Inputs'!$Z$2*V23)) -> 0 | M23: =E23*('Supply Inputs'!$Z$3/('Supply Inputs'!$Z$2*W23)) -> 0 | N23: =F23*('Supply Inputs'!$Z$3/('Supply Inputs'!$Z$2*X23)) -> 0 | P23: 0 | Q23: 0 | R23: 0 | S23: 0 | U23: =INDEX('Renewable Profiles'!$E$2:$P$2,0,MATCH('Supply Inputs'!$B23,'Renewable Profiles'!$E$4:$P$4,0)) -> 0.3261876712 | V23: =INDEX('Renewable Profiles'!$E$2:$P$2,0,MATCH('Supply Inputs'!$B23,'Renewable Profiles'!$E$4:$P$4,0)) -> 0.3261876712 | W23: =INDEX('Renewable Profiles'!$E$2:$P$2,0,MATCH('Supply Inputs'!$B23,'Renewable Profiles'!$E$4:$P$4,0)) -> 0.3261876712 | X23: =INDEX('Renewable Profiles'!$E$2:$P$2,0,MATCH('Supply Inputs'!$B23,'Renewable Profiles'!$E$4:$P$4,0)) -> 0.3261876712
B24: Solar New SCE SDG&E | E24: 1271.396343 | F24: 1795.437927 | G24: GWh | H24: RPS Eligible | K24: =C24*('Supply Inputs'!$Z$3/('Supply Inputs'!$Z$2*U24)) -> 0 | L24: =D24*('Supply Inputs'!$Z$3/('Supply Inputs'!$Z$2*V24)) -> 0 | M24: =E24*('Supply Inputs'!$Z$3/('Supply Inputs'!$Z$2*W24)) -> 427 | N24: =F24*('Supply Inputs'!$Z$3/('Supply Inputs'!$Z$2*X24)) -> 603 | P24: 0 | Q24: 0 | R24: 1271.396343 | S24: 1795.437927 | U24: =INDEX('Renewable Profiles'!$E$2:$P$2,0,MATCH('Supply Inputs'!$B24,'Renewable Profiles'!$E$4:$P$4,0)) -> 0.3398982877 | V24: =INDEX('Renewable Profiles'!$E$2:$P$2,0,MATCH('Supply Inputs'!$B24,'Renewable Profiles'!$E$4:$P$4,0)) -> 0.3398982877 | W24: =INDEX('Renewable Profiles'!$E$2:$P$2,0,MATCH('Supply Inputs'!$B24,'Renewable Profiles'!$E$4:$P$4,0)) -> 0.3398982877 | X24: =INDEX('Renewable Profiles'!$E$2:$P$2,0,MATCH('Supply Inputs'!$B24,'Renewable Profiles'!$E$4:$P$4,0)) -> 0.3398982877
B25: Solar Distributed | G25: GWh | H25: RPS Eligible | K25: =C25*('Supply Inputs'!$Z$3/('Supply Inputs'!$Z$2*U25)) -> 0 | L25: =D25*('Supply Inputs'!$Z$3/('Supply Inputs'!$Z$2*V25)) -> 0 | M25: =E25*('Supply Inputs'!$Z$3/('Supply Inputs'!$Z$2*W25)) -> 0 | N25: =F25*('Supply Inputs'!$Z$3/('Supply Inputs'!$Z$2*X25)) -> 0 | P25: 0 | Q25: 0 | R25: 0 | S25: 0 | U25: =INDEX('Renewable Profiles'!$E$2:$P$2,0,MATCH('Supply Inputs'!$B25,'Renewable Profiles'!$E$4:$P$4,0)) -> 0.2009835616 | V25: =INDEX('Renewable Profiles'!$E$2:$P$2,0,MATCH('Supply Inputs'!$B25,'Renewable Profiles'!$E$4:$P$4,0)) -> 0.2009835616 | W25: =INDEX('Renewable Profiles'!$E$2:$P$2,0,MATCH('Supply Inputs'!$B25,'Renewable Profiles'!$E$4:$P$4,0)) -> 0.2009835616 | X25: =INDEX('Renewable Profiles'!$E$2:$P$2,0,MATCH('Supply Inputs'!$B25,'Renewable Profiles'!$E$4:$P$4,0)) -> 0.2009835616
B26: Hybrid/Paired
B27: Hybrid or Paired Solar and Battery | C27: 244.7127457 | D27: 704.5552408 | E27: 705.6319453 | F27: 692.8680111 | G27: GWh | H27: RPS Eligible | K27: =C27*('Supply Inputs'!$Z$3/('Supply Inputs'!$Z$2*U27)) -> 84.72 | L27: =D27*('Supply Inputs'!$Z$3/('Supply Inputs'!$Z$2*V27)) -> 243.623214 | M27: =E27*('Supply Inputs'!$Z$3/('Supply Inputs'!$Z$2*W27)) -> 243.441923 | N27: =F27*('Supply Inputs'!$Z$3/('Supply Inputs'!$Z$2*X27)) -> 238.5635652 | P27: 244.7127457 | Q27: 704.5552408 | R27: 705.6319453 | S27: 692.8680111 | U27: ='Resource Profiles'!AK2 -> 0.3297361301 | V27: ='Resource Profiles'!AL2 -> 0.3301355365 | W27: ='Resource Profiles'!AM2 -> 0.3308862785 | X27: ='Resource Profiles'!AN2 -> 0.3315448516
B28: Storage & DR
B29: Shed DR | C29: 4.5 | E29: 67 | F29: 67 | G29: MW | H29: GHG-Free | K29: =C29 -> 4.5 | L29: =D29 -> 0 | M29: 67 | N29: 67 | P29: =C29*U29*'Supply Inputs'!$Z$2/'Supply Inputs'!$Z$3 -> 0.0144 | Q29: =D29*V29*'Supply Inputs'!$Z$2/'Supply Inputs'!$Z$3 -> 0 | R29: =E29*W29*'Supply Inputs'!$Z$2/'Supply Inputs'!$Z$3 -> 0.1608 | S29: =F29*X29*'Supply Inputs'!$Z$2/'Supply Inputs'!$Z$3 -> 0.3216 | U29: ='Resource Profiles'!AO2 -> 0.0003652968037 | V29: ='Resource Profiles'!AP2 -> 0.0003652968037 | W29: ='Resource Profiles'!AQ2 -> 0.0002739726027 | X29: ='Resource Profiles'!AR2 -> 0.0005479452055
B30: Pumped Storage | C30: 40 | D30: 40 | E30: 40 | F30: 40 | G30: MW | H30: n/a | K30: =C30 -> 40 | L30: 40 | M30: 40 | N30: 40 | P30: =C30*U30*'Supply Inputs'!$Z$2/'Supply Inputs'!$Z$3 -> -23.20374 | Q30: =D30*V30*'Supply Inputs'!$Z$2/'Supply Inputs'!$Z$3 -> -24.034216 | R30: =E30*W30*'Supply Inputs'!$Z$2/'Supply Inputs'!$Z$3 -> -26.108848 | S30: =F30*X30*'Supply Inputs'!$Z$2/'Supply Inputs'!$Z$3 -> -24.274364 | U30: ='Resource Profiles'!AS2 -> -0.06622071918 | V30: ='Resource Profiles'!AT2 -> -0.06859079909 | W30: ='Resource Profiles'!AU2 -> -0.07451155251 | X30: ='Resource Profiles'!AV2 -> -0.06927615297
B31: Battery Storage | C31: 2144.915 | D31: 2584.915 | E31: 2584.915 | F31: 2184.915 | G31: MWh Energy Capacity | H31: n/a | K31: =C31/$Z$4 -> 536.22875 | L31: =D31/$Z$4 -> 646.22875 | M31: =E31/$Z$4 -> 646.22875 | N31: =F31/$Z$4 -> 546.22875 | P31: =K31*U31*'Supply Inputs'!$Z$2/'Supply Inputs'!$Z$3 -> -118.2522205 | Q31: =L31*V31*'Supply Inputs'!$Z$2/'Supply Inputs'!$Z$3 -> -145.4535548 | R31: =M31*W31*'Supply Inputs'!$Z$2/'Supply Inputs'!$Z$3 -> -200.4180241 | S31: =N31*X31*'Supply Inputs'!$Z$2/'Supply Inputs'!$Z$3 -> -157.5122703 | U31: ='Resource Profiles'!AW2 -> -0.02517416667 | V31: ='Resource Profiles'!AX2 -> -0.02569413242 | W31: ='Resource Profiles'!AY2 -> -0.03540351598 | X31: ='Resource Profiles'!AZ2 -> -0.03291817352
B32: User-Specified Profiles
B33: Storage Resource Custom Profile | C33: 0 | D33: 0 | E33: 0 | F33: 0 | G33: MW | H33: n/a | K33: =C33 -> 0 | L33: =D33 -> 0 | M33: =E33 -> 0 | N33: =F33 -> 0 | P33: n/a | Q33: n/a | R33: n/a | S33: n/a | U33: n/a | V33: n/a | W33: n/a | X33: n/a
B34: RPS Resource Custom Profile | C34: 0 | D34: 0 | E34: 0 | F34: 0 | G34: GWh | H34: RPS Eligible | K34: n/a | L34: n/a | M34: n/a | N34: n/a | P34: =C34 -> 0 | Q34: 0 | R34: 0 | S34: 0 | U34: n/a | V34: n/a | W34: n/a | X34: n/a
B35: GHG-free non-RPS Resource Custom Profile | C35: 0 | D35: 0 | E35: 0 | F35: 0 | G35: GWh | H35: GHG-Free | K35: n/a | L35: n/a | M35: n/a | N35: n/a | P35: 0 | Q35: 0 | R35: 0 | S35: 0 | U35: n/a | V35: n/a | W35: n/a | X35: n/a
B36: Coal
B37: Coal | C37: 0 | D37: 0 | E37: 0 | F37: 0 | G37: GWh | H37: n/a | K37: =IF(U37=0,0,C37*('Supply Inputs'!$Z$3/('Supply Inputs'!$Z$2*U37))) -> 0 | L37: =IF(V37=0,0,D37*('Supply Inputs'!$Z$3/('Supply Inputs'!$Z$2*V37))) -> 0 | M37: =IF(W37=0,0,E37*('Supply Inputs'!$Z$3/('Supply Inputs'!$Z$2*W37))) -> 0 | N37: =IF(X37=0,0,F37*('Supply Inputs'!$Z$3/('Supply Inputs'!$Z$2*X37))) -> 0 | P37: =C37 -> 0 | Q37: =D37 -> 0 | R37: =E37 -> 0 | S37: =F37 -> 0 | U37: ='Resource Profiles'!BA2 -> 0.2434305708 | V37: ='Resource Profiles'!BB2 -> 0 | W37: ='Resource Profiles'!BC2 -> 0 | X37: ='Resource Profiles'!BD2 -> 0
B39: Calculated Share of IFM CHP - do not edit
B40: IFM CHP | C40: ='Demand Inputs'!E44 -> 197.9633426 | D40: ='Demand Inputs'!F44 -> 192.5865011 | E40: ='Demand Inputs'!G44 -> 184.1692482 | F40: ='Demand Inputs'!H44 -> 110.6262919 | G40: GWh | H40: n/a | K40: =C40*('Supply Inputs'!$Z$3/('Supply Inputs'!$Z$2*U40)) -> 40.73378728 | L40: =D40*('Supply Inputs'!$Z$3/('Supply Inputs'!$Z$2*V40)) -> 40.16748242 | M40: =E40*('Supply Inputs'!$Z$3/('Supply Inputs'!$Z$2*W40)) -> 39.56418514 | N40: =F40*('Supply Inputs'!$Z$3/('Supply Inputs'!$Z$2*X40)) -> 23.47742768 | P40: =C40 -> 197.9633426 | Q40: =D40 -> 192.5865011 | R40: =E40 -> 184.1692482 | S40: =F40 -> 110.6262919 | U40: ='Resource Profiles'!BE2 -> 0.5547864954 | V40: ='Resource Profiles'!BF2 -> 0.5473273174 | W40: ='Resource Profiles'!BG2 -> 0.5313868265 | X40: ='Resource Profiles'!BH2 -> 0.5379027169
B42: Checks | C42: =Results!D4 -> 2024 | D42: =Results!E4 -> 2026 | E42: =Results!F4 -> 2030 | F42: =Results!G4 -> 2035
B43: No negative supply inputs | C43: =AND('Supply Inputs'!C4:C37>=0) -> TRUE | D43: =AND('Supply Inputs'!D4:D37>=0) -> TRUE | E43: =AND('Supply Inputs'!E4:E37>=0) -> TRUE | F43: =AND('Supply Inputs'!F4:F37>=0) -> TRUE
B44: Storage Resource Custom Profile does not produce power on a net basis | C44: =(E53<=0) -> TRUE | D44: =(F53<=0) -> TRUE | E44: =(G53<=0) -> TRUE | F44: =(H53<=0) -> TRUE
B45: Storage Resource Custom Profile has values between -1 and 1 | C45: =(AND(E54<=1,E55>=-1)) -> TRUE | D45: =(AND(F54<=1,F55>=-1)) -> TRUE | E45: =(AND(G54<=1,G55>=-1)) -> TRUE | F45: =(AND(H54<=1,H55>=-1)) -> TRUE
B46: Sum of hourly RPS Resource Custom Profile equals annual input | C46: =(ROUND('Supply Inputs'!C34,0)=ROUND(I53/1000,0)) -> TRUE | D46: =(ROUND('Supply Inputs'!D34,0)=ROUND(J53/1000,0)) -> TRUE | E46: =(ROUND('Supply Inputs'!E34,0)=ROUND(K53/1000,0)) -> TRUE | F46: =(ROUND('Supply Inputs'!F34,0)=ROUND(L53/1000,0)) -> TRUE
B47: Sum of hourly GHG-free non-RPS Resource Custom Profile equals annual input | C47: =(ROUND('Supply Inputs'!C35,0)=ROUND(M53/1000,0)) -> TRUE | D47: =(ROUND('Supply Inputs'!D35,0)=ROUND(N53/1000,0)) -> TRUE | E47: =(ROUND('Supply Inputs'!E35,0)=ROUND(O53/1000,0)) -> TRUE | F47: =(ROUND('Supply Inputs'!F35,0)=ROUND(P53/1000,0)) -> TRUE
E49: Custom Hourly Profiles
E50: Users wishing to add multiple custom resources of the same type should add together the hourly production values outside of this tool and input the final 8760 shape below. Power production or storage dispatch entered in this section is incremental to any of the standard resource types entered in the resource table above - entering the same resources in both sections would result in double counting.
E51: =B33 -> Storage Resource Custom Profile | I51: =B34 -> RPS Resource Custom Profile | M51: =B35 -> GHG-free non-RPS Resource Custom Profile
D52: Units | E52: Profile should be normalized to MW of nameplate storage capacity in the "Storage Resource Custom Profile" row above. Values should range between -1 (charging at max) to 1 (discharging at max). | I52: Profile should be in units of MW in each hour (=MWh) The sum of power production in each year must match the annual value in the "User-Specified Profiles" section. | M52: Profile should be in units of MW in each hour (=MWh) The sum of power production in each year must match the annual value in the "User-Specified Profiles" section.
D53: Total | E53: =SUM(E57:E8816) -> 0 | F53: =SUM(F57:F8816) -> 0 | G53: 0 | H53: 0 | I53: 0 | J53: 0 | K53: 0 | L53: 0 | M53: 0 | N53: 0 | O53: 0 | P53: 0
D54: Max | E54: =MAX(E57:E8816) -> 0 | F54: =MAX(F57:F8816) -> 0 | G54: 0 | H54: 0 | I54: 0 | J54: 0 | K54: 0 | L54: 0 | M54: 0 | N54: 0 | O54: 0 | P54: 0
D55: Min | E55: =MIN(E57:E8816) -> 0 | F55: =MIN(F57:F8816) -> 0 | G55: 0 | H55: 0 | I55: 0 | J55: 0 | K55: 0 | L55: 0 | M55: 0 | N55: 0 | O55: 0 | P55: 0
B56: Month | C56: Day | D56: Hour | E56: =C3 -> 2024 | F56: =D3 -> 2026 | G56: =E3 -> 2030 | H56: =F3 -> 2035 | I56: =C3 -> 2024 | J56: =D3 -> 2026 | K56: =E3 -> 2030 | L56: =F3 -> 2035 | M56: =C3 -> 2024 | N56: =D3 -> 2026 | O56: =E3 -> 2030 | P56: =F3 -> 2035
B57: 1 | C57: 1 | D57: 1 | E57: 0 | F57: 0 | G57: 0 | H57: 0 | I57: 0 | J57: 0 | K57: 0 | L57: 0 | M57: 0 | N57: 0 | O57: 0 | P57: 0
B58: 1 | C58: 1 | D58: 2 | E58: 0 | F58: 0 | G58: 0 | H58: 0 | I58: 0 | J58: 0 | K58: 0 | L58: 0 | M58: 0 | N58: 0 | O58: 0 | P58: 0
B59: 1 | C59: 1 | D59: 3 | E59: 0 | F59: 0 | G59: 0 | H59: 0 | I59: 0 | J59: 0 | K59: 0 | L59: 0 | M59: 0 | N59: 0 | O59: 0 | P59: 0
B60: 1 | C60: 1 | D60: 4 | E60: 0 | F60: 0 | G60: 0 | H60: 0 | I60: 0 | J60: 0 | K60: 0 | L60: 0 | M60: 0 | N60: 0 | O60: 0 | P60: 0
B61: 1 | C61: 1 | D61: 5 | E61: 0 | F61: 0 | G61: 0 | H61: 0 | I61: 0 | J61: 0 | K61: 0 | L61: 0 | M61: 0 | N61: 0 | O61: 0 | P61: 0
B62: 1 | C62: 1 | D62: 6 | E62: 0 | F62: 0 | G62: 0 | H62: 0 | I62: 0 | J62: 0 | K62: 0 | L62: 0 | M62: 0 | N62: 0 | O62: 0 | P62: 0
B63: 1 | C63: 1 | D63: 7 | E63: 0 | F63: 0 | G63: 0 | H63: 0 | I63: 0 | J63: 0 | K63: 0 | L63: 0 | M63: 0 | N63: 0 | O63: 0 | P63: 0
B64: 1 | C64: 1 | D64: 8 | E64: 0 | F64: 0 | G64: 0 | H64: 0 | I64: 0 | J64: 0 | K64: 0 | L64: 0 | M64: 0 | N64: 0 | O64: 0 | P64: 0
B65: 1 | C65: 1 | D65: 9 | E65: 0 | F65: 0 | G65: 0 | H65: 0 | I65: 0 | J65: 0 | K65: 0 | L65: 0 | M65: 0 | N65: 0 | O65: 0 | P65: 0
B66: 1 | C66: 1 | D66: 10 | E66: 0 | F66: 0 | G66: 0 | H66: 0 | I66: 0 | J66: 0 | K66: 0 | L66: 0 | M66: 0 | N66: 0 | O66: 0 | P66: 0
B67: 1 | C67: 1 | D67: 11 | E67: 0 | F67: 0 | G67: 0 | H67: 0 | I67: 0 | J67: 0 | K67: 0 | L67: 0 | M67: 0 | N67: 0 | O67: 0 | P67: 0
B68: 1 | C68: 1 | D68: 12 | E68: 0 | F68: 0 | G68: 0 | H68: 0 | I68: 0 | J68: 0 | K68: 0 | L68: 0 | M68: 0 | N68: 0 | O68: 0 | P68: 0
B69: 1 | C69: 1 | D69: 13 | E69: 0 | F69: 0 | G69: 0 | H69: 0 | I69: 0 | J69: 0 | K69: 0 | L69: 0 | M69: 0 | N69: 0 | O69: 0 | P69: 0
B70: 1 | C70: 1 | D70: 14 | E70: 0 | F70: 0 | G70: 0 | H70: 0 | I70: 0 | J70: 0 | K70: 0 | L70: 0 | M70: 0 | N70: 0 | O70: 0 | P70: 0
B71: 1 | C71: 1 | D71: 15 | E71: 0 | F71: 0 | G71: 0 | H71: 0 | I71: 0 | J71: 0 | K71: 0 | L71: 0 | M71: 0 | N71: 0 | O71: 0 | P71: 0
B72: 1 | C72: 1 | D72: 16 | E72: 0 | F72: 0 | G72: 0 | H72: 0 | I72: 0 | J72: 0 | K72: 0 | L72: 0 | M72: 0 | N72: 0 | O72: 0 | P72: 0
B73: 1 | C73: 1 | D73: 17 | E73: 0 | F73: 0 | G73: 0 | H73: 0 | I73: 0 | J73: 0 | K73: 0 | L73: 0 | M73: 0 | N73: 0 | O73: 0 | P73: 0
B74: 1 | C74: 1 | D74: 18 | E74: 0 | F74: 0 | G74: 0 | H74: 0 | I74: 0 | J74: 0 | K74: 0 | L74: 0 | M74: 0 | N74: 0 | O74: 0 | P74: 0
B75: 1 | C75: 1 | D75: 19 | E75: 0 | F75: 0 | G75: 0 | H75: 0 | I75: 0 | J75: 0 | K75: 0 | L75: 0 | M75: 0 | N75: 0 | O75: 0 | P75: 0
B76: 1 | C76: 1 | D76: 20 | E76: 0 | F76: 0 | G76: 0 | H76: 0 | I76: 0 | J76: 0 | K76: 0 | L76: 0 | M76: 0 | N76: 0 | O76: 0 | P76: 0
B77: 1 | C77: 1 | D77: 21 | E77: 0 | F77: 0 | G77: 0 | H77: 0 | I77: 0 | J77: 0 | K77: 0 | L77: 0 | M77: 0 | N77: 0 | O77: 0 | P77: 0
B78: 1 | C78: 1 | D78: 22 | E78: 0 | F78: 0 | G78: 0 | H78: 0 | I78: 0 | J78: 0 | K78: 0 | L78: 0 | M78: 0 | N78: 0 | O78: 0 | P78: 0
B79: 1 | C79: 1 | D79: 23 | E79: 0 | F79: 0 | G79: 0 | H79: 0 | I79: 0 | J79: 0 | K79: 0 | L79: 0 | M79: 0 | N79: 0 | O79: 0 | P79: 0
B80: 1 | C80: 1 | D80: 24 | E80: 0 | F80: 0 | G80: 0 | H80: 0 | I80: 0 | J80: 0 | K80: 0 | L80: 0 | M80: 0 | N80: 0 | O80: 0 | P80: 0
B81: 1 | C81: 2 | D81: 1 | E81: 0 | F81: 0 | G81: 0 | H81: 0 | I81: 0 | J81: 0 | K81: 0 | L81: 0 | M81: 0 | N81: 0 | O81: 0 | P81: 0
B82: 1 | C82: 2 | D82: 2 | E82: 0 | F82: 0 | G82: 0 | H82: 0 | I82: 0 | J82: 0 | K82: 0 | L82: 0 | M82: 0 | N82: 0 | O82: 0 | P82: 0
B83: 1 | C83: 2 | D83: 3 | E83: 0 | F83: 0 | G83: 0 | H83: 0 | I83: 0 | J83: 0 | K83: 0 | L83: 0 | M83: 0 | N83: 0 | O83: 0 | P83: 0
B84: 1 | C84: 2 | D84: 4 | E84: 0 | F84: 0 | G84: 0 | H84: 0 | I84: 0 | J84: 0 | K84: 0 | L84: 0 | M84: 0 | N84: 0 | O84: 0 | P84: 0
B85: 1 | C85: 2 | D85: 5 | E85: 0 | F85: 0 | G85: 0 | H85: 0 | I85: 0 | J85: 0 | K85: 0 | L85: 0 | M85: 0 | N85: 0 | O85: 0 | P85: 0
B86: 1 | C86: 2 | D86: 6 | E86: 0 | F86: 0 | G86: 0 | H86: 0 | I86: 0 | J86: 0 | K86: 0 | L86: 0 | M86: 0 | N86: 0 | O86: 0 | P86: 0
B87: 1 | C87: 2 | D87: 7 | E87: 0 | F87: 0 | G87: 0 | H87: 0 | I87: 0 | J87: 0 | K87: 0 | L87: 0 | M87: 0 | N87: 0 | O87: 0 | P87: 0
B88: 1 | C88: 2 | D88: 8 | E88: 0 | F88: 0 | G88: 0 | H88: 0 | I88: 0 | J88: 0 | K88: 0 | L88: 0 | M88: 0 | N88: 0 | O88: 0 | P88: 0
B89: 1 | C89: 2 | D89: 9 | E89: 0 | F89: 0 | G89: 0 | H89: 0 | I89: 0 | J89: 0 | K89: 0 | L89: 0 | M89: 0 | N89: 0 | O89: 0 | P89: 0
B90: 1 | C90: 2 | D90: 10 | E90: 0 | F90: 0 | G90: 0 | H90: 0 | I90: 0 | J90: 0 | K90: 0 | L90: 0 | M90: 0 | N90: 0 | O90: 0 | P90: 0
B91: 1 | C91: 2 | D91: 11 | E91: 0 | F91: 0 | G91: 0 | H91: 0 | I91: 0 | J91: 0 | K91: 0 | L91: 0 | M91: 0 | N91: 0 | O91: 0 | P91: 0
B92: 1 | C92: 2 | D92: 12 | E92: 0 | F92: 0 | G92: 0 | H92: 0 | I92: 0 | J92: 0 | K92: 0 | L92: 0 | M92: 0 | N92: 0 | O92: 0 | P92: 0
B93: 1 | C93: 2 | D93: 13 | E93: 0 | F93: 0 | G93: 0 | H93: 0 | I93: 0 | J93: 0 | K93: 0 | L93: 0 | M93: 0 | N93: 0 | O93: 0 | P93: 0
B94: 1 | C94: 2 | D94: 14 | E94: 0 | F94: 0 | G94: 0 | H94: 0 | I94: 0 | J94: 0 | K94: 0 | L94: 0 | M94: 0 | N94: 0 | O94: 0 | P94: 0
B95: 1 | C95: 2 | D95: 15 | E95: 0 | F95: 0 | G95: 0 | H95: 0 | I95: 0 | J95: 0 | K95: 0 | L95: 0 | M95: 0 | N95: 0 | O95: 0 | P95: 0
B96: 1 | C96: 2 | D96: 16 | E96: 0 | F96: 0 | G96: 0 | H96: 0 | I96: 0 | J96: 0 | K96: 0 | L96: 0 | M96: 0 | N96: 0 | O96: 0 | P96: 0
B97: 1 | C97: 2 | D97: 17 | E97: 0 | F97: 0 | G97: 0 | H97: 0 | I97: 0 | J97: 0 | K97: 0 | L97: 0 | M97: 0 | N97: 0 | O97: 0 | P97: 0
B98: 1 | C98: 2 | D98: 18 | E98: 0 | F98: 0 | G98: 0 | H98: 0 | I98: 0 | J98: 0 | K98: 0 | L98: 0 | M98: 0 | N98: 0 | O98: 0 | P98: 0
B99: 1 | C99: 2 | D99: 19 | E99: 0 | F99: 0 | G99: 0 | H99: 0 | I99: 0 | J99: 0 | K99: 0 | L99: 0 | M99: 0 | N99: 0 | O99: 0 | P99: 0
B100: 1 | C100: 2 | D100: 20 | E100: 0 | F100: 0 | G100: 0 | H100: 0 | I100: 0 | J100: 0 | K100: 0 | L100: 0 | M100: 0 | N100: 0 | O100: 0 | P100: 0
B101: 1 | C101: 2 | D101: 21 | E101: 0 | F101: 0 | G101: 0 | H101: 0 | I101: 0 | J101: 0 | K101: 0 | L101: 0 | M101: 0 | N101: 0 | O101: 0 | P101: 0
B102: 1 | C102: 2 | D102: 22 | E102: 0 | F102: 0 | G102: 0 | H102: 0 | I102: 0 | J102: 0 | K102: 0 | L102: 0 | M102: 0 | N102: 0 | O102: 0 | P102: 0
B103: 1 | C103: 2 | D103: 23 | E103: 0 | F103: 0 | G103: 0 | H103: 0 | I103: 0 | J103: 0 | K103: 0 | L103: 0 | M103: 0 | N103: 0 | O103: 0 | P103: 0
B104: 1 | C104: 2 | D104: 24 | E104: 0 | F104: 0 | G104: 0 | H104: 0 | I104: 0 | J104: 0 | K104: 0 | L104: 0 | M104: 0 | N104: 0 | O104: 0 | P104: 0
B105: 1 | C105: 3 | D105: 1 | E105: 0 | F105: 0 | G105: 0 | H105: 0 | I105: 0 | J105: 0 | K105: 0 | L105: 0 | M105: 0 | N105: 0 | O105: 0 | P105: 0
B106: 1 | C106: 3 | D106: 2 | E106: 0 | F106: 0 | G106: 0 | H106: 0 | I106: 0 | J106: 0 | K106: 0 | L106: 0 | M106: 0 | N106: 0 | O106: 0 | P106: 0
B107: 1 | C107: 3 | D107: 3 | E107: 0 | F107: 0 | G107: 0 | H107: 0 | I107: 0 | J107: 0 | K107: 0 | L107: 0 | M107: 0 | N107: 0 | O107: 0 | P107: 0
B108: 1 | C108: 3 | D108: 4 | E108: 0 | F108: 0 | G108: 0 | H108: 0 | I108: 0 | J108: 0 | K108: 0 | L108: 0 | M108: 0 | N108: 0 | O108: 0 | P108: 0
B109: 1 | C109: 3 | D109: 5 | E109: 0 | F109: 0 | G109: 0 | H109: 0 | I109: 0 | J109: 0 | K109: 0 | L109: 0 | M109: 0 | N109: 0 | O109: 0 | P109: 0
B110: 1 | C110: 3 | D110: 6 | E110: 0 | F110: 0 | G110: 0 | H110: 0 | I110: 0 | J110: 0 | K110: 0 | L110: 0 | M110: 0 | N110: 0 | O110: 0 | P110: 0
B111: 1 | C111: 3 | D111: 7 | E111: 0 | F111: 0 | G111: 0 | H111: 0 | I111: 0 | J111: 0 | K111: 0 | L111: 0 | M111: 0 | N111: 0 | O111: 0 | P111: 0
B112: 1 | C112: 3 | D112: 8 | E112: 0 | F112: 0 | G112: 0 | H112: 0 | I112: 0 | J112: 0 | K112: 0 | L112: 0 | M112: 0 | N112: 0 | O112: 0 | P112: 0
B113: 1 | C113: 3 | D113: 9 | E113: 0 | F113: 0 | G113: 0 | H113: 0 | I113: 0 | J113: 0 | K113: 0 | L113: 0 | M113: 0 | N113: 0 | O113: 0 | P113: 0
B114: 1 | C114: 3 | D114: 10 | E114: 0 | F114: 0 | G114: 0 | H114: 0 | I114: 0 | J114: 0 | K114: 0 | L114: 0 | M114: 0 | N114: 0 | O114: 0 | P114: 0
B115: 1 | C115: 3 | D115: 11 | E115: 0 | F115: 0 | G115: 0 | H115: 0 | I115: 0 | J115: 0 | K115: 0 | L115: 0 | M115: 0 | N115: 0 | O115: 0 | P115: 0
B116: 1 | C116: 3 | D116: 12 | E116: 0 | F116: 0 | G116: 0 | H116: 0 | I116: 0 | J116: 0 | K116: 0 | L116: 0 | M116: 0 | N116: 0 | O116: 0 | P116: 0
B117: 1 | C117: 3 | D117: 13 | E117: 0 | F117: 0 | G117: 0 | H117: 0 | I117: 0 | J117: 0 | K117: 0 | L117: 0 | M117: 0 | N117: 0 | O117: 0 | P117: 0
B118: 1 | C118: 3 | D118: 14 | E118: 0 | F118: 0 | G118: 0 | H118: 0 | I118: 0 | J118: 0 | K118: 0 | L118: 0 | M118: 0 | N118: 0 | O118: 0 | P118: 0
B119: 1 | C119: 3 | D119: 15 | E119: 0 | F119: 0 | G119: 0 | H119: 0 | I119: 0 | J119: 0 | K119: 0 | L119: 0 | M119: 0 | N119: 0 | O119: 0 | P119: 0
B120: 1 | C120: 3 | D120: 16 | E120: 0 | F120: 0 | G120: 0 | H120: 0 | I120: 0 | J120: 0 | K120: 0 | L120: 0 | M120: 0 | N120: 0 | O120: 0 | P120: 0
B121: 1 | C121: 3 | D121: 17 | E121: 0 | F121: 0 | G121: 0 | H121: 0 | I121: 0 | J121: 0 | K121: 0 | L121: 0 | M121: 0 | N121: 0 | O121: 0 | P121: 0
B122: 1 | C122: 3 | D122: 18 | E122: 0 | F122: 0 | G122: 0 | H122: 0 | I122: 0 | J122: 0 | K122: 0 | L122: 0 | M122: 0 | N122: 0 | O122: 0 | P122: 0
B123: 1 | C123: 3 | D123: 19 | E123: 0 | F123: 0 | G123: 0 | H123: 0 | I123: 0 | J123: 0 | K123: 0 | L123: 0 | M123: 0 | N123: 0 | O123: 0 | P123: 0
B124: 1 | C124: 3 | D124: 20 | E124: 0 | F124: 0 | G124: 0 | H124: 0 | I124: 0 | J124: 0 | K124: 0 | L124: 0 | M124: 0 | N124: 0 | O124: 0 | P124: 0
B125: 1 | C125: 3 | D125: 21 | E125: 0 | F125: 0 | G125: 0 | H125: 0 | I125: 0 | J125: 0 | K125: 0 | L125: 0 | M125: 0 | N125: 0 | O125: 0 | P125: 0
B126: 1 | C126: 3 | D126: 22 | E126: 0 | F126: 0 | G126: 0 | H126: 0 | I126: 0 | J126: 0 | K126: 0 | L126: 0 | M126: 0 | N126: 0 | O126: 0 | P126: 0
B127: 1 | C127: 3 | D127: 23 | E127: 0 | F127: 0 | G127: 0 | H127: 0 | I127: 0 | J127: 0 | K127: 0 | L127: 0 | M127: 0 | N127: 0 | O127: 0 | P127: 0
B128: 1 | C128: 3 | D128: 24 | E128: 0 | F128: 0 | G128: 0 | H128: 0 | I128: 0 | J128: 0 | K128: 0 | L128: 0 | M128: 0 | N128: 0 | O128: 0 | P128: 0
B129: 1 | C129: 4 | D129: 1 | E129: 0 | F129: 0 | G129: 0 | H129: 0 | I129: 0 | J129: 0 | K129: 0 | L129: 0 | M129: 0 | N129: 0 | O129: 0 | P129: 0
B130: 1 | C130: 4 | D130: 2 | E130: 0 | F130: 0 | G130: 0 | H130: 0 | I130: 0 | J130: 0 | K130: 0 | L130: 0 | M130: 0 | N130: 0 | O130: 0 | P130: 0
B131: 1 | C131: 4 | D131: 3 | E131: 0 | F131: 0 | G131: 0 | H131: 0 | I131: 0 | J131: 0 | K131: 0 | L131: 0 | M131: 0 | N131: 0 | O131: 0 | P131: 0
B132: 1 | C132: 4 | D132: 4 | E132: 0 | F132: 0 | G132: 0 | H132: 0 | I132: 0 | J132: 0 | K132: 0 | L132: 0 | M132: 0 | N132: 0 | O132: 0 | P132: 0
B133: 1 | C133: 4 | D133: 5 | E133: 0 | F133: 0 | G133: 0 | H133: 0 | I133: 0 | J133: 0 | K133: 0 | L133: 0 | M133: 0 | N133: 0 | O133: 0 | P133: 0
B134: 1 | C134: 4 | D134: 6 | E134: 0 | F134: 0 | G134: 0 | H134: 0 | I134: 0 | J134: 0 | K134: 0 | L134: 0 | M134: 0 | N134: 0 | O134: 0 | P134: 0
B135: 1 | C135: 4 | D135: 7 | E135: 0 | F135: 0 | G135: 0 | H135: 0 | I135: 0 | J135: 0 | K135: 0 | L135: 0 | M135: 0 | N135: 0 | O135: 0 | P135: 0
B136: 1 | C136: 4 | D136: 8 | E136: 0 | F136: 0 | G136: 0 | H136: 0 | I136: 0 | J136: 0 | K136: 0 | L136: 0 | M136: 0 | N136: 0 | O136: 0 | P136: 0
B137: 1 | C137: 4 | D137: 9 | E137: 0 | F137: 0 | G137: 0 | H137: 0 | I137: 0 | J137: 0 | K137: 0 | L137: 0 | M137: 0 | N137: 0 | O137: 0 | P137: 0
B138: 1 | C138: 4 | D138: 10 | E138: 0 | F138: 0 | G138: 0 | H138: 0 | I138: 0 | J138: 0 | K138: 0 | L138: 0 | M138: 0 | N138: 0 | O138: 0 | P138: 0
B139: 1 | C139: 4 | D139: 11 | E139: 0 | F139: 0 | G139: 0 | H139: 0 | I139: 0 | J139: 0 | K139: 0 | L139: 0 | M139: 0 | N139: 0 | O139: 0 | P139: 0
B140: 1 | C140: 4 | D140: 12 | E140: 0 | F140: 0 | G140: 0 | H140: 0 | I140: 0 | J140: 0 | K140: 0 | L140: 0 | M140: 0 | N140: 0 | O140: 0 | P140: 0
B141: 1 | C141: 4 | D141: 13 | E141: 0 | F141: 0 | G141: 0 | H141: 0 | I141: 0 | J141: 0 | K141: 0 | L141: 0 | M141: 0 | N141: 0 | O141: 0 | P141: 0
B142: 1 | C142: 4 | D142: 14 | E142: 0 | F142: 0 | G142: 0 | H142: 0 | I142: 0 | J142: 0 | K142: 0 | L142: 0 | M142: 0 | N142: 0 | O142: 0 | P142: 0
B143: 1 | C143: 4 | D143: 15 | E143: 0 | F143: 0 | G143: 0 | H143: 0 | I143: 0 | J143: 0 | K143: 0 | L143: 0 | M143: 0 | N143: 0 | O143: 0 | P143: 0
B144: 1 | C144: 4 | D144: 16 | E144: 0 | F144: 0 | G144: 0 | H144: 0 | I144: 0 | J144: 0 | K144: 0 | L144: 0 | M144: 0 | N144: 0 | O144: 0 | P144: 0
B145: 1 | C145: 4 | D145: 17 | E145: 0 | F145: 0 | G145: 0 | H145: 0 | I145: 0 | J145: 0 | K145: 0 | L145: 0 | M145: 0 | N145: 0 | O145: 0 | P145: 0
B146: 1 | C146: 4 | D146: 18 | E146: 0 | F146: 0 | G146: 0 | H146: 0 | I146: 0 | J146: 0 | K146: 0 | L146: 0 | M146: 0 | N146: 0 | O146: 0 | P146: 0
B147: 1 | C147: 4 | D147: 19 | E147: 0 | F147: 0 | G147: 0 | H147: 0 | I147: 0 | J147: 0 | K147: 0 | L147: 0 | M147: 0 | N147: 0 | O147: 0 | P147: 0
B148: 1 | C148: 4 | D148: 20 | E148: 0 | F148: 0 | G148: 0 | H148: 0 | I148: 0 | J148: 0 | K148: 0 | L148: 0 | M148: 0 | N148: 0 | O148: 0 | P148: 0
B149: 1 | C149: 4 | D149: 21 | E149: 0 | F149: 0 | G149: 0 | H149: 0 | I149: 0 | J149: 0 | K149: 0 | L149: 0 | M149: 0 | N149: 0 | O149: 0 | P149: 0
B150: 1 | C150: 4 | D150: 22 | E150: 0 | F150: 0 | G150: 0 | H150: 0 | I150: 0 | J150: 0 | K150: 0 | L150: 0 | M150: 0 | N150: 0 | O150: 0 | P150: 0
B151: 1 | C151: 4 | D151: 23 | E151: 0 | F151: 0 | G151: 0 | H151: 0 | I151: 0 | J151: 0 | K151: 0 | L151: 0 | M151: 0 | N151: 0 | O151: 0 | P151: 0
B152: 1 | C152: 4 | D152: 24 | E152: 0 | F152: 0 | G152: 0 | H152: 0 | I152: 0 | J152: 0 | K152: 0 | L152: 0 | M152: 0 | N152: 0 | O152: 0 | P152: 0
B153: 1 | C153: 5 | D153: 1 | E153: 0 | F153: 0 | G153: 0 | H153: 0 | I153: 0 | J153: 0 | K153: 0 | L153: 0 | M153: 0 | N153: 0 | O153: 0 | P153: 0
B154: 1 | C154: 5 | D154: 2 | E154: 0 | F154: 0 | G154: 0 | H154: 0 | I154: 0 | J154: 0 | K154: 0 | L154: 0 | M154: 0 | N154: 0 | O154: 0 | P154: 0
B155: 1 | C155: 5 | D155: 3 | E155: 0 | F155: 0 | G155: 0 | H155: 0 | I155: 0 | J155: 0 | K155: 0 | L155: 0 | M155: 0 | N155: 0 | O155: 0 | P155: 0
B156: 1 | C156: 5 | D156: 4 | E156: 0 | F156: 0 | G156: 0 | H156: 0 | I156: 0 | J156: 0 | K156: 0 | L156: 0 | M156: 0 | N156: 0 | O156: 0 | P156: 0
B157: 1 | C157: 5 | D157: 5 | E157: 0 | F157: 0 | G157: 0 | H157: 0 | I157: 0 | J157: 0 | K157: 0 | L157: 0 | M157: 0 | N157: 0 | O157: 0 | P157: 0
B158: 1 | C158: 5 | D158: 6 | E158: 0 | F158: 0 | G158: 0 | H158: 0 | I158: 0 | J158: 0 | K158: 0 | L158: 0 | M158: 0 | N158: 0 | O158: 0 | P158: 0
B159: 1 | C159: 5 | D159: 7 | E159: 0 | F159: 0 | G159: 0 | H159: 0 | I159: 0 | J159: 0 | K159: 0 | L159: 0 | M159: 0 | N159: 0 | O159: 0 | P159: 0
B160: 1 | C160: 5 | D160: 8 | E160: 0 | F160: 0 | G160: 0 | H160: 0 | I160: 0 | J160: 0 | K160: 0 | L160: 0 | M160: 0 | N160: 0 | O160: 0 | P160: 0
B161: 1 | C161: 5 | D161: 9 | E161: 0 | F161: 0 | G161: 0 | H161: 0 | I161: 0 | J161: 0 | K161: 0 | L161: 0 | M161: 0 | N161: 0 | O161: 0 | P161: 0
B162: 1 | C162: 5 | D162: 10 | E162: 0 | F162: 0 | G162: 0 | H162: 0 | I162: 0 | J162: 0 | K162: 0 | L162: 0 | M162: 0 | N162: 0 | O162: 0 | P162: 0
B163: 1 | C163: 5 | D163: 11 | E163: 0 | F163: 0 | G163: 0 | H163: 0 | I163: 0 | J163: 0 | K163: 0 | L163: 0 | M163: 0 | N163: 0 | O163: 0 | P163: 0
B164: 1 | C164: 5 | D164: 12 | E164: 0 | F164: 0 | G164: 0 | H164: 0 | I164: 0 | J164: 0 | K164: 0 | L164: 0 | M164: 0 | N164: 0 | O164: 0 | P164: 0
B165: 1 | C165: 5 | D165: 13 | E165: 0 | F165: 0 | G165: 0 | H165: 0 | I165: 0 | J165: 0 | K165: 0 | L165: 0 | M165: 0 | N165: 0 | O165: 0 | P165: 0
B166: 1 | C166: 5 | D166: 14 | E166: 0 | F166: 0 | G166: 0 | H166: 0 | I166: 0 | J166: 0 | K166: 0 | L166: 0 | M166: 0 | N166: 0 | O166: 0 | P166: 0
B167: 1 | C167: 5 | D167: 15 | E167: 0 | F167: 0 | G167: 0 | H167: 0 | I167: 0 | J167: 0 | K167: 0 | L167: 0 | M167: 0 | N167: 0 | O167: 0 | P167: 0
B168: 1 | C168: 5 | D168: 16 | E168: 0 | F168: 0 | G168: 0 | H168: 0 | I168: 0 | J168: 0 | K168: 0 | L168: 0 | M168: 0 | N168: 0 | O168: 0 | P168: 0
B169: 1 | C169: 5 | D169: 17 | E169: 0 | F169: 0 | G169: 0 | H169: 0 | I169: 0 | J169: 0 | K169: 0 | L169: 0 | M169: 0 | N169: 0 | O169: 0 | P169: 0
B170: 1 | C170: 5 | D170: 18 | E170: 0 | F170: 0 | G170: 0 | H170: 0 | I170: 0 | J170: 0 | K170: 0 | L170: 0 | M170: 0 | N170: 0 | O170: 0 | P170: 0
B171: 1 | C171: 5 | D171: 19 | E171: 0 | F171: 0 | G171: 0 | H171: 0 | I171: 0 | J171: 0 | K171: 0 | L171: 0 | M171: 0 | N171: 0 | O171: 0 | P171: 0
B172: 1 | C172: 5 | D172: 20 | E172: 0 | F172: 0 | G172: 0 | H172: 0 | I172: 0 | J172: 0 | K172: 0 | L172: 0 | M172: 0 | N172: 0 | O172: 0 | P172: 0
B173: 1 | C173: 5 | D173: 21 | E173: 0 | F173: 0 | G173: 0 | H173: 0 | I173: 0 | J173: 0 | K173: 0 | L173: 0 | M173: 0 | N173: 0 | O173: 0 | P173: 0
B174: 1 | C174: 5 | D174: 22 | E174: 0 | F174: 0 | G174: 0 | H174: 0 | I174: 0 | J174: 0 | K174: 0 | L174: 0 | M174: 0 | N174: 0 | O174: 0 | P174: 0
B175: 1 | C175: 5 | D175: 23 | E175: 0 | F175: 0 | G175: 0 | H175: 0 | I175: 0 | J175: 0 | K175: 0 | L175: 0 | M175: 0 | N175: 0 | O175: 0 | P175: 0
B176: 1 | C176: 5 | D176: 24 | E176: 0 | F176: 0 | G176: 0 | H176: 0 | I176: 0 | J176: 0 | K176: 0 | L176: 0 | M176: 0 | N176: 0 | O176: 0 | P176: 0
B177: 1 | C177: 6 | D177: 1 | E177: 0 | F177: 0 | G177: 0 | H177: 0 | I177: 0 | J177: 0 | K177: 0 | L177: 0 | M177: 0 | N177: 0 | O177: 0 | P177: 0
B178: 1 | C178: 6 | D178: 2 | E178: 0 | F178: 0 | G178: 0 | H178: 0 | I178: 0 | J178: 0 | K178: 0 | L178: 0 | M178: 0 | N178: 0 | O178: 0 | P178: 0
B179: 1 | C179: 6 | D179: 3 | E179: 0 | F179: 0 | G179: 0 | H179: 0 | I179: 0 | J179: 0 | K179: 0 | L179: 0 | M179: 0 | N179: 0 | O179: 0 | P179: 0
B180: 1 | C180: 6 | D180: 4 | E180: 0 | F180: 0 | G180: 0 | H180: 0 | I180: 0 | J180: 0 | K180: 0 | L180: 0 | M180: 0 | N180: 0 | O180: 0 | P180: 0
B181: 1 | C181: 6 | D181: 5 | E181: 0 | F181: 0 | G181: 0 | H181: 0 | I181: 0 | J181: 0 | K181: 0 | L181: 0 | M181: 0 | N181: 0 | O181: 0 | P181: 0
B182: 1 | C182: 6 | D182: 6 | E182: 0 | F182: 0 | G182: 0 | H182: 0 | I182: 0 | J182: 0 | K182: 0 | L182: 0 | M182: 0 | N182: 0 | O182: 0 | P182: 0
B183: 1 | C183: 6 | D183: 7 | E183: 0 | F183: 0 | G183: 0 | H183: 0 | I183: 0 | J183: 0 | K183: 0 | L183: 0 | M183: 0 | N183: 0 | O183: 0 | P183: 0
B184: 1 | C184: 6 | D184: 8 | E184: 0 | F184: 0 | G184: 0 | H184: 0 | I184: 0 | J184: 0 | K184: 0 | L184: 0 | M184: 0 | N184: 0 | O184: 0 | P184: 0
B185: 1 | C185: 6 | D185: 9 | E185: 0 | F185: 0 | G185: 0 | H185: 0 | I185: 0 | J185: 0 | K185: 0 | L185: 0 | M185: 0 | N185: 0 | O185: 0 | P185: 0
B186: 1 | C186: 6 | D186: 10 | E186: 0 | F186: 0 | G186: 0 | H186: 0 | I186: 0 | J186: 0 | K186: 0 | L186: 0 | M186: 0 | N186: 0 | O186: 0 | P186: 0
B187: 1 | C187: 6 | D187: 11 | E187: 0 | F187: 0 | G187: 0 | H187: 0 | I187: 0 | J187: 0 | K187: 0 | L187: 0 | M187: 0 | N187: 0 | O187: 0 | P187: 0
B188: 1 | C188: 6 | D188: 12 | E188: 0 | F188: 0 | G188: 0 | H188: 0 | I188: 0 | J188: 0 | K188: 0 | L188: 0 | M188: 0 | N188: 0 | O188: 0 | P188: 0
B189: 1 | C189: 6 | D189: 13 | E189: 0 | F189: 0 | G189: 0 | H189: 0 | I189: 0 | J189: 0 | K189: 0 | L189: 0 | M189: 0 | N189: 0 | O189: 0 | P189: 0
B190: 1 | C190: 6 | D190: 14 | E190: 0 | F190: 0 | G190: 0 | H190: 0 | I190: 0 | J190: 0 | K190: 0 | L190: 0 | M190: 0 | N190: 0 | O190: 0 | P190: 0
B191: 1 | C191: 6 | D191: 15 | E191: 0 | F191: 0 | G191: 0 | H191: 0 | I191: 0 | J191: 0 | K191: 0 | L191: 0 | M191: 0 | N191: 0 | O191: 0 | P191: 0
B192: 1 | C192: 6 | D192: 16 | E192: 0 | F192: 0 | G192: 0 | H192: 0 | I192: 0 | J192: 0 | K192: 0 | L192: 0 | M192: 0 | N192: 0 | O192: 0 | P192: 0
B193: 1 | C193: 6 | D193: 17 | E193: 0 | F193: 0 | G193: 0 | H193: 0 | I193: 0 | J193: 0 | K193: 0 | L193: 0 | M193: 0 | N193: 0 | O193: 0 | P193: 0
B194: 1 | C194: 6 | D194: 18 | E194: 0 | F194: 0 | G194: 0 | H194: 0 | I194: 0 | J194: 0 | K194: 0 | L194: 0 | M194: 0 | N194: 0 | O194: 0 | P194: 0
B195: 1 | C195: 6 | D195: 19 | E195: 0 | F195: 0 | G195: 0 | H195: 0 | I195: 0 | J195: 0 | K195: 0 | L195: 0 | M195: 0 | N195: 0 | O195: 0 | P195: 0
B196: 1 | C196: 6 | D196: 20 | E196: 0 | F196: 0 | G196: 0 | H196: 0 | I196: 0 | J196: 0 | K196: 0 | L196: 0 | M196: 0 | N196: 0 | O196: 0 | P196: 0
B197: 1 | C197: 6 | D197: 21 | E197: 0 | F197: 0 | G197: 0 | H197: 0 | I197: 0 | J197: 0 | K197: 0 | L197: 0 | M197: 0 | N197: 0 | O197: 0 | P197: 0
B198: 1 | C198: 6 | D198: 22 | E198: 0 | F198: 0 | G198: 0 | H198: 0 | I198: 0 | J198: 0 | K198: 0 | L198: 0 | M198: 0 | N198: 0 | O198: 0 | P198: 0
B199: 1 | C199: 6 | D199: 23 | E199: 0 | F199: 0 | G199: 0 | H199: 0 | I199: 0 | J199: 0 | K199: 0 | L199: 0 | M199: 0 | N199: 0 | O199: 0 | P199: 0
B200: 1 | C200: 6 | D200: 24 | E200: 0 | F200: 0 | G200: 0 | H200: 0 | I200: 0 | J200: 0 | K200: 0 | L200: 0 | M200: 0 | N200: 0 | O200: 0 | P200: 0
B201: 1 | C201: 7 | D201: 1 | E201: 0 | F201: 0 | G201: 0 | H201: 0 | I201: 0 | J201: 0 | K201: 0 | L201: 0 | M201: 0 | N201: 0 | O201: 0 | P201: 0
B202: 1 | C202: 7 | D202: 2 | E202: 0 | F202: 0 | G202: 0 | H202: 0 | I202: 0 | J202: 0 | K202: 0 | L202: 0 | M202: 0 | N202: 0 | O202: 0 | P202: 0
B203: 1 | C203: 7 | D203: 3 | E203: 0 | F203: 0 | G203: 0 | H203: 0 | I203: 0 | J203: 0 | K203: 0 | L203: 0 | M203: 0 | N203: 0 | O203: 0 | P203: 0
... 357 more rows

Sheet Demand Inputs
B1: ='Supply Inputs'!B1 -> 25 MMT in 2035
B2: Demand Inputs
D3: Units | E3: 2024 | F3: 2026 | G3: 2030 | H3: 2035 | I3: Notes
B4: Managed Retail Sales Forecast (assigned to LSE) | D4: GWh | E4: ='LSE Demand Forecasts'!F71 -> 3637.797969 | F4: ='LSE Demand Forecasts'!F73 -> 3645.460521 | G4: ='LSE Demand Forecasts'!F77 -> 3694.019382 | H4: ='LSE Demand Forecasts'!F82 -> 3787.412872 | I4: Must be entered regardless of demand modifiers selected. Includes impact of BTM PV, Energy Efficiency, etc.
B5: Behind-The-Meter Photovoltaics (BTM PV) Forecast (assigned to LSE) | D5: GWh | E5: 772 | F5: 877 | G5: 1106 | H5: 1393 | I5: Measured at customer, not grossed up for T&D losses
B6: Retail Sales without BTM PV reduction | D6: GWh | E6: =E4+E5 -> 4409.797969 | F6: =F4+F5 -> 4522.460521 | G6: =G4+G5 -> 4800.019382 | H6: =H4+H5 -> 5180.412872 | I6: Used to allocate demand modifiers
B7: Behind-The-Meter Photovoltaics (BTM PV) grossed up for T&D losses | D7: GWh | E7: =E$5*(1+INDEX('IEPR CAISO Load Modifiers'!$E$30:$S$30,MATCH(E$30,'IEPR CAISO Load Modifiers'!$E$27:$S$27,0))) -> 833.1921631 | F7: =F$5*(1+INDEX('IEPR CAISO Load Modifiers'!$E$30:$S$30,MATCH(F$30,'IEPR CAISO Load Modifiers'!$E$27:$S$27,0))) -> 946.4377223 | G7: =G$5*(1+INDEX('IEPR CAISO Load Modifiers'!$E$30:$S$30,MATCH(G$30,'IEPR CAISO Load Modifiers'!$E$27:$S$27,0))) -> 1193.304775 | H7: =H$5*(1+INDEX('IEPR CAISO Load Modifiers'!$E$30:$S$30,MATCH(H$30,'IEPR CAISO Load Modifiers'!$E$27:$S$27,0))) -> 1502.643258 | I7: At generator bus-bar
B8: Calculated share of CAISO system demand (% of Retail Sales) | D8: % | E8: =E4/INDEX('IEPR CAISO Load Modifiers'!$E$22:$S$22,MATCH('Demand Inputs'!E3,'IEPR CAISO Load Modifiers'!$E$4:$S$4,0)) -> 0.01778729462 | F8: =F4/INDEX('IEPR CAISO Load Modifiers'!$E$22:$S$22,MATCH('Demand Inputs'!F3,'IEPR CAISO Load Modifiers'!$E$4:$S$4,0)) -> 0.01754000992 | G8: =G4/INDEX('IEPR CAISO Load Modifiers'!$E$22:$S$22,MATCH('Demand Inputs'!G3,'IEPR CAISO Load Modifiers'!$E$4:$S$4,0)) -> 0.01727654707 | H8: =H4/INDEX('IEPR CAISO Load Modifiers'!$E$22:$S$22,MATCH('Demand Inputs'!H3,'IEPR CAISO Load Modifiers'!$E$4:$S$4,0)) -> 0.0170987376 | I8: Do not edit
B10: Commercial & Industrial Fraction of Baseline Demand | C10: Use Custom? | D10: Units | E10: =E$3 -> 2024 | F10: =F$3 -> 2026 | G10: =G$3 -> 2030 | H10: =H$3 -> 2035 | I10: Notes
B11: Default C&I Percentage of Total | C11: No | D11: % | E11: =INDEX('IEPR CAISO Load Modifiers'!$D$51:$S$51,0,MATCH('Demand Inputs'!E$3,'IEPR CAISO Load Modifiers'!$D$27:$S$27,0)) -> 0.485568517 | F11: =INDEX('IEPR CAISO Load Modifiers'!$D$51:$S$51,0,MATCH('Demand Inputs'!F$3,'IEPR CAISO Load Modifiers'!$D$27:$S$27,0)) -> 0.4873662419 | G11: =INDEX('IEPR CAISO Load Modifiers'!$D$51:$S$51,0,MATCH('Demand Inputs'!G$3,'IEPR CAISO Load Modifiers'!$D$27:$S$27,0)) -> 0.4924416417 | H11: =INDEX('IEPR CAISO Load Modifiers'!$D$51:$S$51,0,MATCH('Demand Inputs'!H$3,'IEPR CAISO Load Modifiers'!$D$27:$S$27,0)) -> 0.5027537951 | I11: Default, do not change. Does not include demand from Light Duty EVs.
B12: Custom C&I Percentage of Total (OPTIONAL) | D12: % | I12: Will be used instead of default if "Use Custom?" = Yes
B14: Calculated Demand, based on sales-weighted share of total from IEPR | D14: Units | E14: =E$3 -> 2024 | F14: =F$3 -> 2026 | G14: =G$3 -> 2030 | H14: =H$3 -> 2035 | I14: Notes
B15: Baseline net energy for load | D15: GWh | E15: =E$6*INDEX('IEPR CAISO Load Modifiers'!$E$45:$S$45,MATCH(E$30,'IEPR CAISO Load Modifiers'!$E$27:$S$27,0)) -> 4642.444062 | F15: =F$6*INDEX('IEPR CAISO Load Modifiers'!$E$45:$S$45,MATCH(F$30,'IEPR CAISO Load Modifiers'!$E$27:$S$27,0)) -> 4726.515926 | G15: =G$6*INDEX('IEPR CAISO Load Modifiers'!$E$45:$S$45,MATCH(G$30,'IEPR CAISO Load Modifiers'!$E$27:$S$27,0)) -> 4944.093103 | H15: =H$6*INDEX('IEPR CAISO Load Modifiers'!$E$45:$S$45,MATCH(H$30,'IEPR CAISO Load Modifiers'!$E$27:$S$27,0)) -> 5201.250809 | I15: Grossed up for T&D losses; demand met by BTM CHP excluded
B16: Electric Vehicle Load | D16: GWh | E16: =E$6*INDEX('IEPR CAISO Load Modifiers'!$E$46:$S$46,MATCH(E$30,'IEPR CAISO Load Modifiers'!$E$27:$S$27,0)) -> 161.8682318 | F16: =F$6*INDEX('IEPR CAISO Load Modifiers'!$E$46:$S$46,MATCH(F$30,'IEPR CAISO Load Modifiers'!$E$27:$S$27,0)) -> 230.4047542 | G16: =G$6*INDEX('IEPR CAISO Load Modifiers'!$E$46:$S$46,MATCH(G$30,'IEPR CAISO Load Modifiers'!$E$27:$S$27,0)) -> 362.9011327 | H16: =H$6*INDEX('IEPR CAISO Load Modifiers'!$E$46:$S$46,MATCH(H$30,'IEPR CAISO Load Modifiers'!$E$27:$S$27,0)) -> 563.2135842 | I16: Grossed up for T&D losses
B17: Building Electrification | D17: GWh | E17: =E$6*INDEX('IEPR CAISO Load Modifiers'!$E$48:$S$48,MATCH(E$30,'IEPR CAISO Load Modifiers'!$E$27:$S$27,0)) -> 18.34575815 | F17: =F$6*INDEX('IEPR CAISO Load Modifiers'!$E$48:$S$48,MATCH(F$30,'IEPR CAISO Load Modifiers'!$E$27:$S$27,0)) -> 33.26587593 | G17: =G$6*INDEX('IEPR CAISO Load Modifiers'!$E$48:$S$48,MATCH(G$30,'IEPR CAISO Load Modifiers'!$E$27:$S$27,0)) -> 66.75279734 | H17: =H$6*INDEX('IEPR CAISO Load Modifiers'!$E$48:$S$48,MATCH(H$30,'IEPR CAISO Load Modifiers'!$E$27:$S$27,0)) -> 112.3526619 | I17: Grossed up for T&D losses
B18: Energy Efficiency | D18: GWh | E18: =E$6*INDEX('IEPR CAISO Load Modifiers'!$E$47:$S$47,MATCH(E$30,'IEPR CAISO Load Modifiers'!$E$27:$S$27,0)) -> -63.28951111 | F18: =F$6*INDEX('IEPR CAISO Load Modifiers'!$E$47:$S$47,MATCH(F$30,'IEPR CAISO Load Modifiers'!$E$27:$S$27,0)) -> -109.6015031 | G18: =G$6*INDEX('IEPR CAISO Load Modifiers'!$E$47:$S$47,MATCH(G$30,'IEPR CAISO Load Modifiers'!$E$27:$S$27,0)) -> -194.7297833 | H18: =H$6*INDEX('IEPR CAISO Load Modifiers'!$E$47:$S$47,MATCH(H$30,'IEPR CAISO Load Modifiers'!$E$27:$S$27,0)) -> -288.5196628 | I18: Grossed up for T&D losses
B19: Behind-The-Meter Photovoltaics (BTM PV) | D19: GWh | E19: =-E7 -> -833.1921631 | F19: =-F7 -> -946.4377223 | G19: =-G7 -> -1193.304775 | H19: =-H7 -> -1502.643258 | I19: Grossed up for T&D losses
B20: Behind-The-Meter Storage Losses (BTM Storage) | D20: GWh | E20: =E$6*INDEX('IEPR CAISO Load Modifiers'!$E$49:$S$49,MATCH(E$30,'IEPR CAISO Load Modifiers'!$E$27:$S$27,0)) -> 1.254219018 | F20: =F$6*INDEX('IEPR CAISO Load Modifiers'!$E$49:$S$49,MATCH(F$30,'IEPR CAISO Load Modifiers'!$E$27:$S$27,0)) -> 2.003609016 | G20: =G$6*INDEX('IEPR CAISO Load Modifiers'!$E$49:$S$49,MATCH(G$30,'IEPR CAISO Load Modifiers'!$E$27:$S$27,0)) -> 3.574144551 | H20: =H$6*INDEX('IEPR CAISO Load Modifiers'!$E$49:$S$49,MATCH(H$30,'IEPR CAISO Load Modifiers'!$E$27:$S$27,0)) -> 5.363239132 | I20: Grossed up for T&D losses
B21: Behind-The-Meter Storage Capacity (BTM Storage) | D21: Nameplate MW | E21: =E$4*INDEX('IEPR CAISO Load Modifiers'!$E$58:$S$58,MATCH(E$30,'IEPR CAISO Load Modifiers'!$E$27:$S$27,0)) -> 20.1086425 | F21: =F$4*INDEX('IEPR CAISO Load Modifiers'!$E$58:$S$58,MATCH(F$30,'IEPR CAISO Load Modifiers'!$E$27:$S$27,0)) -> 27.3844803 | G21: =G$4*INDEX('IEPR CAISO Load Modifiers'!$E$58:$S$58,MATCH(G$30,'IEPR CAISO Load Modifiers'!$E$27:$S$27,0)) -> 42.7454077 | H21: =H$4*INDEX('IEPR CAISO Load Modifiers'!$E$58:$S$58,MATCH(H$30,'IEPR CAISO Load Modifiers'!$E$27:$S$27,0)) -> 63.22844148 | I21: For information only
B22: Custom Demand Inputs (OPTIONAL; overwrites sales-weighted IEPR values from Calculated Demand section) | C22: Use Custom? | D22: Units | E22: =E$3 -> 2024 | F22: =F$3 -> 2026 | G22: =G$3 -> 2030 | H22: =H$3 -> 2035 | I22: Notes
B23: Baseline net energy for load | C23: No | D23: GWh | I23: To overwrite, set "Use Custom" to "Yes" and input forecast. For use in Alternative Plans only. Custom demand values should be grossed up for T&D losses. User-specified demand profiles should be input in the "Custom Profiles" tab. Energy efficiency and BTM PV subtract from demand and therefore should be entered as negative values.
B24: Electric Vehicle Load | C24: No | D24: GWh
B25: Building Electrification | C25: No | D25: GWh
B26: Energy Efficiency | C26: No | D26: GWh
B27: Behind-The-Meter Photovoltaics (BTM PV) | C27: No | D27: GWh
B28: Behind-The-Meter Storage Capacity (BTM Storage) | C28: No | D28: Nameplate MW | I28: Custom BTM storage should be entered in terms of Nameplate MW
B29: Behind-The-Meter Storage Losses (BTM Storage) | D29: GWh | E29: =IF($C$28="YES",-IF($K$51="Yes",SUM($K$56:$K$8815),SUM('Demand Profiles'!AA$4:AA$8763))*E28/1000,"") ->  | F29: =IF($C$28="YES",-IF($K$51="Yes",SUM($K$56:$K$8815),SUM('Demand Profiles'!AB$4:AB$8763))*F28/1000,"") ->  | G29: =IF($C$28="YES",-IF($K$51="Yes",SUM($K$56:$K$8815),SUM('Demand Profiles'!AC$4:AC$8763))*G28/1000,"") ->  | H29: =IF($C$28="YES",-IF($K$51="Yes",SUM($K$56:$K$8815),SUM('Demand Profiles'!AD$4:AD$8763))*H28/1000,"") -> 
B30: Active Demand Inputs | C30: Source | D30: Units | E30: =E$3 -> 2024 | F30: =F$3 -> 2026 | G30: =G$3 -> 2030 | H30: =H$3 -> 2035 | I30: Notes
B31: Baseline net energy for load | C31: =IF(C23="Yes","Custom","IEPR") -> IEPR | D31: GWh | E31: =IF($C23="Yes",E23,E15) -> 4642.444062 | F31: =IF($C23="Yes",F23,F15) -> 4726.515926 | G31: =IF($C23="Yes",G23,G15) -> 4944.093103 | H31: =IF($C23="Yes",H23,H15) -> 5201.250809 | I31: Grossed up for T&D losses; demand met by BTM CHP excluded
B32: Non-commercial/industrial portion of baseline (included in baseline total) | C32: =IF($C$11="Yes","Custom","IEPR") -> IEPR | D32: GWh | E32: =E$31*(1-IF(Custom_CI_percent="No",E$11,E$12)) -> 2388.219383 | F32: =F$31*(1-IF(Custom_CI_percent="No",F$11,F$12)) -> 2422.971622 | G32: =G$31*(1-IF(Custom_CI_percent="No",G$11,G$12)) -> 2509.415779 | H32: =H$31*(1-IF(Custom_CI_percent="No",H$11,H$12)) -> 2586.302226 | I32: Grossed up for T&D losses; demand met by BTM CHP excluded
B33: Commercial/industrial portion of baseline (included in baseline total) | C33: =IF($C$11="Yes","Custom","IEPR") -> IEPR | D33: GWh | E33: =E$31*IF(Custom_CI_percent="No",E$11,E$12) -> 2254.224678 | F33: =F$31*IF(Custom_CI_percent="No",F$11,F$12) -> 2303.544304 | G33: =G$31*IF(Custom_CI_percent="No",G$11,G$12) -> 2434.677324 | H33: =H$31*IF(Custom_CI_percent="No",H$11,H$12) -> 2614.948584 | I33: Grossed up for T&D losses; demand met by BTM CHP excluded
B34: Electric Vehicle Load | C34: =IF(C24="Yes","Custom","IEPR") -> IEPR | D34: GWh | E34: =IF($C24="Yes",E24,E16) -> 161.8682318 | F34: 230.4047542 | G34: 362.9011327 | H34: 563.2135842 | I34: Grossed up for T&D losses
B35: Building Electrification | C35: =IF(C25="Yes","Custom","IEPR") -> IEPR | D35: GWh | E35: 18.34575815 | F35: 33.26587593 | G35: 66.75279734 | H35: 112.3526619 | I35: Grossed up for T&D losses
B36: Energy Efficiency | C36: =IF(C26="Yes","Custom","IEPR") -> IEPR | D36: GWh | E36: -63.28951111 | F36: -109.6015031 | G36: -194.7297833 | H36: -288.5196628 | I36: Grossed up for T&D losses
B37: Behind-The-Meter Photovoltaics (BTM PV) | C37: =IF(C27="Yes","Custom","IEPR") -> IEPR | D37: GWh | E37: -833.1921631 | F37: -946.4377223 | G37: -1193.304775 | H37: -1502.643258 | I37: Grossed up for T&D losses
B38: Behind-The-Meter Storage Losses (BTM Storage) | C38: IEPR | D38: GWh | E38: =IF($C28="Yes",E29,E20) -> 1.254219018 | F38: =IF($C28="Yes",F29,F20) -> 2.003609016 | G38: =IF($C28="Yes",G29,G20) -> 3.574144551 | H38: =IF($C28="Yes",H29,H20) -> 5.363239132 | I38: Grossed up for T&D losses
B40: Calculated demand at utility-scale generator bus-bar | D40: GWh | E40: =SUM(E32:E38) -> 3927.430597 | F40: =SUM(F32:F38) -> 3936.15094 | G40: =SUM(G32:G38) -> 3989.28662 | H40: =SUM(H32:H38) -> 4091.017373 | I40: Total of "Active Demand Inputs"
B42: IFM CHP Calculation | E42: =E$3 -> 2024 | F42: =F$3 -> 2026 | G42: =G$3 -> 2030 | H42: =H$3 -> 2035
B43: CASIO-wide In front of the meter (IFM) Combined Heat and Power (CHP) generation | D43: GWh | E43: 11129.48016 | F43: 10979.83992 | G43: 10660.07273 | H43: 6469.851428 | I43: Input data - do not change. Values are from SERVM disparch
B44: LSE share of IFM CHP | D44: GWh | E44: =E8*E43 -> 197.9633426 | F44: =F8*F43 -> 192.5865011 | G44: =G8*G43 -> 184.1692482 | H44: =H8*H43 -> 110.6262919 | I44: Calculation - do not change
B46: Checks | E46: =E$3 -> 2024 | F46: =F$3 -> 2026 | G46: =G$3 -> 2030 | H46: =H$3 -> 2035
B47: Correct sign (positive/negative) on demand inputs | E47: =AND(E4>=0,E31:E35>=0,-E36:E37>=0,E38>=0) -> TRUE | F47: =AND(F4>=0,F31:F35>=0,-F36:F37>=0,F38>=0) -> TRUE | G47: =AND(G4>=0,G31:G35>=0,-G36:G37>=0,G38>=0) -> TRUE | H47: =AND(H4>=0,H31:H35>=0,-H36:H37>=0,H38>=0) -> TRUE
B48: If custom C&I percentage is used, positive percentage is used | E48: =IF(Custom_CI_percent="Yes",AND('Demand Inputs'!E12>=0,'Demand Inputs'!E12<=1),TRUE) -> TRUE | F48: =IF(Custom_CI_percent="Yes",AND('Demand Inputs'!F12>=0,'Demand Inputs'!F12<=1),TRUE) -> TRUE | G48: =IF(Custom_CI_percent="Yes",AND('Demand Inputs'!G12>=0,'Demand Inputs'!G12<=1),TRUE) -> TRUE | H48: =IF(Custom_CI_percent="Yes",AND('Demand Inputs'!H12>=0,'Demand Inputs'!H12<=1),TRUE) -> TRUE
B50: Custom Demand Shapes (OPTIONAL; overwrites default demand shapes) | E50: Custom Hourly Demand Profiles
C51: Use Custom Shape? | E51: No | F51: No | G51: No | H51: No | I51: No | J51: No | K51: No
D52: Notes: | E52: Set "Use Custom Shape" toggle to "Yes" to override default shape with custom shape below. Shape should be normalized - the sum of the hourly values over the entire year should equal 1 with the exception of BTM Storage. For all profiles except BTM Storage, normalize by dividing every hour of the original non-normalized shape (in MW) by the annual total (in MWh/yr). BTM Storage should be entered in units of MW per MW of installed nameplate capacity.
B53: Check: Sums to 1 if custom shape is defined? | E53: =IF(E51="No",TRUE,IF(ROUND(E54,3)=1,TRUE,FALSE)) -> TRUE | F53: TRUE | G53: TRUE | H53: TRUE | I53: TRUE | J53: TRUE | K53: =IF(K51="No",TRUE,IF(AND(MAX(K56:K8815)<=1,MIN(K56:K8815)>=-1),TRUE,FALSE)) -> TRUE | L53: BTM Storage Check: Between -1 and 1
B54: Total | E54: =SUM(E56:E8815) -> 0 | F54: =SUM(F56:F8815) -> 0 | G54: 0 | H54: 0 | I54: 0 | J54: 0 | K54: =SUM(K56:K8815) -> 0
B55: Month | C55: Day | D55: Hour | E55: Baseline: Non C&I | F55: Baseline: C&I | G55: =B34 -> Electric Vehicle Load | H55: =B35 -> Building Electrification | I55: =B36 -> Energy Efficiency | J55: =B37 -> Behind-The-Meter Photovoltaics (BTM PV) | K55: Behind-The-Meter Storage (BTM Storage)
B56: 1 | C56: 1 | D56: 1 | E56: 0 | F56: 0 | G56: 0 | H56: 0 | I56: 0 | J56: 0 | K56: 0
B57: 1 | C57: 1 | D57: 2 | E57: 0 | F57: 0 | G57: 0 | H57: 0 | I57: 0 | J57: 0 | K57: 0
B58: 1 | C58: 1 | D58: 3 | E58: 0 | F58: 0 | G58: 0 | H58: 0 | I58: 0 | J58: 0 | K58: 0
B59: 1 | C59: 1 | D59: 4 | E59: 0 | F59: 0 | G59: 0 | H59: 0 | I59: 0 | J59: 0 | K59: 0
B60: 1 | C60: 1 | D60: 5 | E60: 0 | F60: 0 | G60: 0 | H60: 0 | I60: 0 | J60: 0 | K60: 0
B61: 1 | C61: 1 | D61: 6 | E61: 0 | F61: 0 | G61: 0 | H61: 0 | I61: 0 | J61: 0 | K61: 0
B62: 1 | C62: 1 | D62: 7 | E62: 0 | F62: 0 | G62: 0 | H62: 0 | I62: 0 | J62: 0 | K62: 0
B63: 1 | C63: 1 | D63: 8 | E63: 0 | F63: 0 | G63: 0 | H63: 0 | I63: 0 | J63: 0 | K63: 0
B64: 1 | C64: 1 | D64: 9 | E64: 0 | F64: 0 | G64: 0 | H64: 0 | I64: 0 | J64: 0 | K64: 0
B65: 1 | C65: 1 | D65: 10 | E65: 0 | F65: 0 | G65: 0 | H65: 0 | I65: 0 | J65: 0 | K65: 0
B66: 1 | C66: 1 | D66: 11 | E66: 0 | F66: 0 | G66: 0 | H66: 0 | I66: 0 | J66: 0 | K66: 0
B67: 1 | C67: 1 | D67: 12 | E67: 0 | F67: 0 | G67: 0 | H67: 0 | I67: 0 | J67: 0 | K67: 0
B68: 1 | C68: 1 | D68: 13 | E68: 0 | F68: 0 | G68: 0 | H68: 0 | I68: 0 | J68: 0 | K68: 0
B69: 1 | C69: 1 | D69: 14 | E69: 0 | F69: 0 | G69: 0 | H69: 0 | I69: 0 | J69: 0 | K69: 0
B70: 1 | C70: 1 | D70: 15 | E70: 0 | F70: 0 | G70: 0 | H70: 0 | I70: 0 | J70: 0 | K70: 0
B71: 1 | C71: 1 | D71: 16 | E71: 0 | F71: 0 | G71: 0 | H71: 0 | I71: 0 | J71: 0 | K71: 0
B72: 1 | C72: 1 | D72: 17 | E72: 0 | F72: 0 | G72: 0 | H72: 0 | I72: 0 | J72: 0 | K72: 0
B73: 1 | C73: 1 | D73: 18 | E73: 0 | F73: 0 | G73: 0 | H73: 0 | I73: 0 | J73: 0 | K73: 0
B74: 1 | C74: 1 | D74: 19 | E74: 0 | F74: 0 | G74: 0 | H74: 0 | I74: 0 | J74: 0 | K74: 0
B75: 1 | C75: 1 | D75: 20 | E75: 0 | F75: 0 | G75: 0 | H75: 0 | I75: 0 | J75: 0 | K75: 0
B76: 1 | C76: 1 | D76: 21 | E76: 0 | F76: 0 | G76: 0 | H76: 0 | I76: 0 | J76: 0 | K76: 0
B77: 1 | C77: 1 | D77: 22 | E77: 0 | F77: 0 | G77: 0 | H77: 0 | I77: 0 | J77: 0 | K77: 0
B78: 1 | C78: 1 | D78: 23 | E78: 0 | F78: 0 | G78: 0 | H78: 0 | I78: 0 | J78: 0 | K78: 0
B79: 1 | C79: 1 | D79: 24 | E79: 0 | F79: 0 | G79: 0 | H79: 0 | I79: 0 | J79: 0 | K79: 0
B80: 1 | C80: 2 | D80: 1 | E80: 0 | F80: 0 | G80: 0 | H80: 0 | I80: 0 | J80: 0 | K80: 0
B81: 1 | C81: 2 | D81: 2 | E81: 0 | F81: 0 | G81: 0 | H81: 0 | I81: 0 | J81: 0 | K81: 0
B82: 1 | C82: 2 | D82: 3 | E82: 0 | F82: 0 | G82: 0 | H82: 0 | I82: 0 | J82: 0 | K82: 0
B83: 1 | C83: 2 | D83: 4 | E83: 0 | F83: 0 | G83: 0 | H83: 0 | I83: 0 | J83: 0 | K83: 0
B84: 1 | C84: 2 | D84: 5 | E84: 0 | F84: 0 | G84: 0 | H84: 0 | I84: 0 | J84: 0 | K84: 0
B85: 1 | C85: 2 | D85: 6 | E85: 0 | F85: 0 | G85: 0 | H85: 0 | I85: 0 | J85: 0 | K85: 0
B86: 1 | C86: 2 | D86: 7 | E86: 0 | F86: 0 | G86: 0 | H86: 0 | I86: 0 | J86: 0 | K86: 0
B87: 1 | C87: 2 | D87: 8 | E87: 0 | F87: 0 | G87: 0 | H87: 0 | I87: 0 | J87: 0 | K87: 0
B88: 1 | C88: 2 | D88: 9 | E88: 0 | F88: 0 | G88: 0 | H88: 0 | I88: 0 | J88: 0 | K88: 0
B89: 1 | C89: 2 | D89: 10 | E89: 0 | F89: 0 | G89: 0 | H89: 0 | I89: 0 | J89: 0 | K89: 0
B90: 1 | C90: 2 | D90: 11 | E90: 0 | F90: 0 | G90: 0 | H90: 0 | I90: 0 | J90: 0 | K90: 0
B91: 1 | C91: 2 | D91: 12 | E91: 0 | F91: 0 | G91: 0 | H91: 0 | I91: 0 | J91: 0 | K91: 0
B92: 1 | C92: 2 | D92: 13 | E92: 0 | F92: 0 | G92: 0 | H92: 0 | I92: 0 | J92: 0 | K92: 0
B93: 1 | C93: 2 | D93: 14 | E93: 0 | F93: 0 | G93: 0 | H93: 0 | I93: 0 | J93: 0 | K93: 0
B94: 1 | C94: 2 | D94: 15 | E94: 0 | F94: 0 | G94: 0 | H94: 0 | I94: 0 | J94: 0 | K94: 0
B95: 1 | C95: 2 | D95: 16 | E95: 0 | F95: 0 | G95: 0 | H95: 0 | I95: 0 | J95: 0 | K95: 0
B96: 1 | C96: 2 | D96: 17 | E96: 0 | F96: 0 | G96: 0 | H96: 0 | I96: 0 | J96: 0 | K96: 0
B97: 1 | C97: 2 | D97: 18 | E97: 0 | F97: 0 | G97: 0 | H97: 0 | I97: 0 | J97: 0 | K97: 0
B98: 1 | C98: 2 | D98: 19 | E98: 0 | F98: 0 | G98: 0 | H98: 0 | I98: 0 | J98: 0 | K98: 0
B99: 1 | C99: 2 | D99: 20 | E99: 0 | F99: 0 | G99: 0 | H99: 0 | I99: 0 | J99: 0 | K99: 0
B100: 1 | C100: 2 | D100: 21 | E100: 0 | F100: 0 | G100: 0 | H100: 0 | I100: 0 | J100: 0 | K100: 0
B101: 1 | C101: 2 | D101: 22 | E101: 0 | F101: 0 | G101: 0 | H101: 0 | I101: 0 | J101: 0 | K101: 0
B102: 1 | C102: 2 | D102: 23 | E102: 0 | F102: 0 | G102: 0 | H102: 0 | I102: 0 | J102: 0 | K102: 0
B103: 1 | C103: 2 | D103: 24 | E103: 0 | F103: 0 | G103: 0 | H103: 0 | I103: 0 | J103: 0 | K103: 0
B104: 1 | C104: 3 | D104: 1 | E104: 0 | F104: 0 | G104: 0 | H104: 0 | I104: 0 | J104: 0 | K104: 0
B105: 1 | C105: 3 | D105: 2 | E105: 0 | F105: 0 | G105: 0 | H105: 0 | I105: 0 | J105: 0 | K105: 0
B106: 1 | C106: 3 | D106: 3 | E106: 0 | F106: 0 | G106: 0 | H106: 0 | I106: 0 | J106: 0 | K106: 0
B107: 1 | C107: 3 | D107: 4 | E107: 0 | F107: 0 | G107: 0 | H107: 0 | I107: 0 | J107: 0 | K107: 0
B108: 1 | C108: 3 | D108: 5 | E108: 0 | F108: 0 | G108: 0 | H108: 0 | I108: 0 | J108: 0 | K108: 0
B109: 1 | C109: 3 | D109: 6 | E109: 0 | F109: 0 | G109: 0 | H109: 0 | I109: 0 | J109: 0 | K109: 0
B110: 1 | C110: 3 | D110: 7 | E110: 0 | F110: 0 | G110: 0 | H110: 0 | I110: 0 | J110: 0 | K110: 0
B111: 1 | C111: 3 | D111: 8 | E111: 0 | F111: 0 | G111: 0 | H111: 0 | I111: 0 | J111: 0 | K111: 0
B112: 1 | C112: 3 | D112: 9 | E112: 0 | F112: 0 | G112: 0 | H112: 0 | I112: 0 | J112: 0 | K112: 0
B113: 1 | C113: 3 | D113: 10 | E113: 0 | F113: 0 | G113: 0 | H113: 0 | I113: 0 | J113: 0 | K113: 0
B114: 1 | C114: 3 | D114: 11 | E114: 0 | F114: 0 | G114: 0 | H114: 0 | I114: 0 | J114: 0 | K114: 0
B115: 1 | C115: 3 | D115: 12 | E115: 0 | F115: 0 | G115: 0 | H115: 0 | I115: 0 | J115: 0 | K115: 0
B116: 1 | C116: 3 | D116: 13 | E116: 0 | F116: 0 | G116: 0 | H116: 0 | I116: 0 | J116: 0 | K116: 0
B117: 1 | C117: 3 | D117: 14 | E117: 0 | F117: 0 | G117: 0 | H117: 0 | I117: 0 | J117: 0 | K117: 0
B118: 1 | C118: 3 | D118: 15 | E118: 0 | F118: 0 | G118: 0 | H118: 0 | I118: 0 | J118: 0 | K118: 0
B119: 1 | C119: 3 | D119: 16 | E119: 0 | F119: 0 | G119: 0 | H119: 0 | I119: 0 | J119: 0 | K119: 0
B120: 1 | C120: 3 | D120: 17 | E120: 0 | F120: 0 | G120: 0 | H120: 0 | I120: 0 | J120: 0 | K120: 0
B121: 1 | C121: 3 | D121: 18 | E121: 0 | F121: 0 | G121: 0 | H121: 0 | I121: 0 | J121: 0 | K121: 0
B122: 1 | C122: 3 | D122: 19 | E122: 0 | F122: 0 | G122: 0 | H122: 0 | I122: 0 | J122: 0 | K122: 0
B123: 1 | C123: 3 | D123: 20 | E123: 0 | F123: 0 | G123: 0 | H123: 0 | I123: 0 | J123: 0 | K123: 0
B124: 1 | C124: 3 | D124: 21 | E124: 0 | F124: 0 | G124: 0 | H124: 0 | I124: 0 | J124: 0 | K124: 0
B125: 1 | C125: 3 | D125: 22 | E125: 0 | F125: 0 | G125: 0 | H125: 0 | I125: 0 | J125: 0 | K125: 0
B126: 1 | C126: 3 | D126: 23 | E126: 0 | F126: 0 | G126: 0 | H126: 0 | I126: 0 | J126: 0 | K126: 0
B127: 1 | C127: 3 | D127: 24 | E127: 0 | F127: 0 | G127: 0 | H127: 0 | I127: 0 | J127: 0 | K127: 0
B128: 1 | C128: 4 | D128: 1 | E128: 0 | F128: 0 | G128: 0 | H128: 0 | I128: 0 | J128: 0 | K128: 0
B129: 1 | C129: 4 | D129: 2 | E129: 0 | F129: 0 | G129: 0 | H129: 0 | I129: 0 | J129: 0 | K129: 0
B130: 1 | C130: 4 | D130: 3 | E130: 0 | F130: 0 | G130: 0 | H130: 0 | I130: 0 | J130: 0 | K130: 0
B131: 1 | C131: 4 | D131: 4 | E131: 0 | F131: 0 | G131: 0 | H131: 0 | I131: 0 | J131: 0 | K131: 0
B132: 1 | C132: 4 | D132: 5 | E132: 0 | F132: 0 | G132: 0 | H132: 0 | I132: 0 | J132: 0 | K132: 0
B133: 1 | C133: 4 | D133: 6 | E133: 0 | F133: 0 | G133: 0 | H133: 0 | I133: 0 | J133: 0 | K133: 0
B134: 1 | C134: 4 | D134: 7 | E134: 0 | F134: 0 | G134: 0 | H134: 0 | I134: 0 | J134: 0 | K134: 0
B135: 1 | C135: 4 | D135: 8 | E135: 0 | F135: 0 | G135: 0 | H135: 0 | I135: 0 | J135: 0 | K135: 0
B136: 1 | C136: 4 | D136: 9 | E136: 0 | F136: 0 | G136: 0 | H136: 0 | I136: 0 | J136: 0 | K136: 0
B137: 1 | C137: 4 | D137: 10 | E137: 0 | F137: 0 | G137: 0 | H137: 0 | I137: 0 | J137: 0 | K137: 0
B138: 1 | C138: 4 | D138: 11 | E138: 0 | F138: 0 | G138: 0 | H138: 0 | I138: 0 | J138: 0 | K138: 0
B139: 1 | C139: 4 | D139: 12 | E139: 0 | F139: 0 | G139: 0 | H139: 0 | I139: 0 | J139: 0 | K139: 0
B140: 1 | C140: 4 | D140: 13 | E140: 0 | F140: 0 | G140: 0 | H140: 0 | I140: 0 | J140: 0 | K140: 0
B141: 1 | C141: 4 | D141: 14 | E141: 0 | F141: 0 | G141: 0 | H141: 0 | I141: 0 | J141: 0 | K141: 0
B142: 1 | C142: 4 | D142: 15 | E142: 0 | F142: 0 | G142: 0 | H142: 0 | I142: 0 | J142: 0 | K142: 0
B143: 1 | C143: 4 | D143: 16 | E143: 0 | F143: 0 | G143: 0 | H143: 0 | I143: 0 | J143: 0 | K143: 0
B144: 1 | C144: 4 | D144: 17 | E144: 0 | F144: 0 | G144: 0 | H144: 0 | I144: 0 | J144: 0 | K144: 0
B145: 1 | C145: 4 | D145: 18 | E145: 0 | F145: 0 | G145: 0 | H145: 0 | I145: 0 | J145: 0 | K145: 0
B146: 1 | C146: 4 | D146: 19 | E146: 0 | F146: 0 | G146: 0 | H146: 0 | I146: 0 | J146: 0 | K146: 0
B147: 1 | C147: 4 | D147: 20 | E147: 0 | F147: 0 | G147: 0 | H147: 0 | I147: 0 | J147: 0 | K147: 0
B148: 1 | C148: 4 | D148: 21 | E148: 0 | F148: 0 | G148: 0 | H148: 0 | I148: 0 | J148: 0 | K148: 0
B149: 1 | C149: 4 | D149: 22 | E149: 0 | F149: 0 | G149: 0 | H149: 0 | I149: 0 | J149: 0 | K149: 0
B150: 1 | C150: 4 | D150: 23 | E150: 0 | F150: 0 | G150: 0 | H150: 0 | I150: 0 | J150: 0 | K150: 0
B151: 1 | C151: 4 | D151: 24 | E151: 0 | F151: 0 | G151: 0 | H151: 0 | I151: 0 | J151: 0 | K151: 0
B152: 1 | C152: 5 | D152: 1 | E152: 0 | F152: 0 | G152: 0 | H152: 0 | I152: 0 | J152: 0 | K152: 0
B153: 1 | C153: 5 | D153: 2 | E153: 0 | F153: 0 | G153: 0 | H153: 0 | I153: 0 | J153: 0 | K153: 0
B154: 1 | C154: 5 | D154: 3 | E154: 0 | F154: 0 | G154: 0 | H154: 0 | I154: 0 | J154: 0 | K154: 0
B155: 1 | C155: 5 | D155: 4 | E155: 0 | F155: 0 | G155: 0 | H155: 0 | I155: 0 | J155: 0 | K155: 0
B156: 1 | C156: 5 | D156: 5 | E156: 0 | F156: 0 | G156: 0 | H156: 0 | I156: 0 | J156: 0 | K156: 0
B157: 1 | C157: 5 | D157: 6 | E157: 0 | F157: 0 | G157: 0 | H157: 0 | I157: 0 | J157: 0 | K157: 0
B158: 1 | C158: 5 | D158: 7 | E158: 0 | F158: 0 | G158: 0 | H158: 0 | I158: 0 | J158: 0 | K158: 0
B159: 1 | C159: 5 | D159: 8 | E159: 0 | F159: 0 | G159: 0 | H159: 0 | I159: 0 | J159: 0 | K159: 0
B160: 1 | C160: 5 | D160: 9 | E160: 0 | F160: 0 | G160: 0 | H160: 0 | I160: 0 | J160: 0 | K160: 0
B161: 1 | C161: 5 | D161: 10 | E161: 0 | F161: 0 | G161: 0 | H161: 0 | I161: 0 | J161: 0 | K161: 0
B162: 1 | C162: 5 | D162: 11 | E162: 0 | F162: 0 | G162: 0 | H162: 0 | I162: 0 | J162: 0 | K162: 0
B163: 1 | C163: 5 | D163: 12 | E163: 0 | F163: 0 | G163: 0 | H163: 0 | I163: 0 | J163: 0 | K163: 0
B164: 1 | C164: 5 | D164: 13 | E164: 0 | F164: 0 | G164: 0 | H164: 0 | I164: 0 | J164: 0 | K164: 0
B165: 1 | C165: 5 | D165: 14 | E165: 0 | F165: 0 | G165: 0 | H165: 0 | I165: 0 | J165: 0 | K165: 0
B166: 1 | C166: 5 | D166: 15 | E166: 0 | F166: 0 | G166: 0 | H166: 0 | I166: 0 | J166: 0 | K166: 0
B167: 1 | C167: 5 | D167: 16 | E167: 0 | F167: 0 | G167: 0 | H167: 0 | I167: 0 | J167: 0 | K167: 0
B168: 1 | C168: 5 | D168: 17 | E168: 0 | F168: 0 | G168: 0 | H168: 0 | I168: 0 | J168: 0 | K168: 0
B169: 1 | C169: 5 | D169: 18 | E169: 0 | F169: 0 | G169: 0 | H169: 0 | I169: 0 | J169: 0 | K169: 0
B170: 1 | C170: 5 | D170: 19 | E170: 0 | F170: 0 | G170: 0 | H170: 0 | I170: 0 | J170: 0 | K170: 0
B171: 1 | C171: 5 | D171: 20 | E171: 0 | F171: 0 | G171: 0 | H171: 0 | I171: 0 | J171: 0 | K171: 0
B172: 1 | C172: 5 | D172: 21 | E172: 0 | F172: 0 | G172: 0 | H172: 0 | I172: 0 | J172: 0 | K172: 0
B173: 1 | C173: 5 | D173: 22 | E173: 0 | F173: 0 | G173: 0 | H173: 0 | I173: 0 | J173: 0 | K173: 0
B174: 1 | C174: 5 | D174: 23 | E174: 0 | F174: 0 | G174: 0 | H174: 0 | I174: 0 | J174: 0 | K174: 0
B175: 1 | C175: 5 | D175: 24 | E175: 0 | F175: 0 | G175: 0 | H175: 0 | I175: 0 | J175: 0 | K175: 0
B176: 1 | C176: 6 | D176: 1 | E176: 0 | F176: 0 | G176: 0 | H176: 0 | I176: 0 | J176: 0 | K176: 0
B177: 1 | C177: 6 | D177: 2 | E177: 0 | F177: 0 | G177: 0 | H177: 0 | I177: 0 | J177: 0 | K177: 0
B178: 1 | C178: 6 | D178: 3 | E178: 0 | F178: 0 | G178: 0 | H178: 0 | I178: 0 | J178: 0 | K178: 0
B179: 1 | C179: 6 | D179: 4 | E179: 0 | F179: 0 | G179: 0 | H179: 0 | I179: 0 | J179: 0 | K179: 0
B180: 1 | C180: 6 | D180: 5 | E180: 0 | F180: 0 | G180: 0 | H180: 0 | I180: 0 | J180: 0 | K180: 0
B181: 1 | C181: 6 | D181: 6 | E181: 0 | F181: 0 | G181: 0 | H181: 0 | I181: 0 | J181: 0 | K181: 0
B182: 1 | C182: 6 | D182: 7 | E182: 0 | F182: 0 | G182: 0 | H182: 0 | I182: 0 | J182: 0 | K182: 0
B183: 1 | C183: 6 | D183: 8 | E183: 0 | F183: 0 | G183: 0 | H183: 0 | I183: 0 | J183: 0 | K183: 0
B184: 1 | C184: 6 | D184: 9 | E184: 0 | F184: 0 | G184: 0 | H184: 0 | I184: 0 | J184: 0 | K184: 0
B185: 1 | C185: 6 | D185: 10 | E185: 0 | F185: 0 | G185: 0 | H185: 0 | I185: 0 | J185: 0 | K185: 0
B186: 1 | C186: 6 | D186: 11 | E186: 0 | F186: 0 | G186: 0 | H186: 0 | I186: 0 | J186: 0 | K186: 0
B187: 1 | C187: 6 | D187: 12 | E187: 0 | F187: 0 | G187: 0 | H187: 0 | I187: 0 | J187: 0 | K187: 0
B188: 1 | C188: 6 | D188: 13 | E188: 0 | F188: 0 | G188: 0 | H188: 0 | I188: 0 | J188: 0 | K188: 0
B189: 1 | C189: 6 | D189: 14 | E189: 0 | F189: 0 | G189: 0 | H189: 0 | I189: 0 | J189: 0 | K189: 0
B190: 1 | C190: 6 | D190: 15 | E190: 0 | F190: 0 | G190: 0 | H190: 0 | I190: 0 | J190: 0 | K190: 0
B191: 1 | C191: 6 | D191: 16 | E191: 0 | F191: 0 | G191: 0 | H191: 0 | I191: 0 | J191: 0 | K191: 0
B192: 1 | C192: 6 | D192: 17 | E192: 0 | F192: 0 | G192: 0 | H192: 0 | I192: 0 | J192: 0 | K192: 0
B193: 1 | C193: 6 | D193: 18 | E193: 0 | F193: 0 | G193: 0 | H193: 0 | I193: 0 | J193: 0 | K193: 0
B194: 1 | C194: 6 | D194: 19 | E194: 0 | F194: 0 | G194: 0 | H194: 0 | I194: 0 | J194: 0 | K194: 0
B195: 1 | C195: 6 | D195: 20 | E195: 0 | F195: 0 | G195: 0 | H195: 0 | I195: 0 | J195: 0 | K195: 0
B196: 1 | C196: 6 | D196: 21 | E196: 0 | F196: 0 | G196: 0 | H196: 0 | I196: 0 | J196: 0 | K196: 0
B197: 1 | C197: 6 | D197: 22 | E197: 0 | F197: 0 | G197: 0 | H197: 0 | I197: 0 | J197: 0 | K197: 0
B198: 1 | C198: 6 | D198: 23 | E198: 0 | F198: 0 | G198: 0 | H198: 0 | I198: 0 | J198: 0 | K198: 0
B199: 1 | C199: 6 | D199: 24 | E199: 0 | F199: 0 | G199: 0 | H199: 0 | I199: 0 | J199: 0 | K199: 0
B200: 1 | C200: 7 | D200: 1 | E200: 0 | F200: 0 | G200: 0 | H200: 0 | I200: 0 | J200: 0 | K200: 0
B201: 1 | C201: 7 | D201: 2 | E201: 0 | F201: 0 | G201: 0 | H201: 0 | I201: 0 | J201: 0 | K201: 0
B202: 1 | C202: 7 | D202: 3 | E202: 0 | F202: 0 | G202: 0 | H202: 0 | I202: 0 | J202: 0 | K202: 0
B203: 1 | C203: 7 | D203: 4 | E203: 0 | F203: 0 | G203: 0 | H203: 0 | I203: 0 | J203: 0 | K203: 0
B204: 1 | C204: 7 | D204: 5 | E204: 0 | F204: 0 | G204: 0 | H204: 0 | I204: 0 | J204: 0 | K204: 0
B205: 1 | C205: 7 | D205: 6 | E205: 0 | F205: 0 | G205: 0 | H205: 0 | I205: 0 | J205: 0 | K205: 0
B206: 1 | C206: 7 | D206: 7 | E206: 0 | F206: 0 | G206: 0 | H206: 0 | I206: 0 | J206: 0 | K206: 0
... 356 more rows

Sheet ESP GHG Benchmarks
A1: ='Supply Inputs'!B1 -> 25 MMT in 2035
A2: LSEs within Utility Territory | B2: 2030 GHG Emissions Benchmark (MMT) | C2: 2035 GHG Emissions Benchmark (MMT) | D2: 2030 DA Load (GWh) | E2: 2035 DA Load (GWh) | F2: ESP 2030 load within each IOU territory (GWh) | G2: ESP 2035 load within each IOU territory (GWh) | H2: ESP 2030 benchmark for each IOU territory (MMT) | I2: ESP 2035 benchmark for each IOU territory (MMT)
A4: Pacific Gas and Electric Company (Direct Access) | B4: ='GHG Benchmarks'!H9 -> 1.2250117 | C4: ='GHG Benchmarks'!I9 -> 0.9412434669 | D4: ='LSE Demand Forecasts'!F12 -> 11393 | E4: ='LSE Demand Forecasts'!F17 -> 11393 | H4: =(F4/D4)*B4 -> 0 | I4: 0
A5: Southern California Edison Company (Direct Access) | B5: ='GHG Benchmarks'!H24 -> 1.227996668 | C5: ='GHG Benchmarks'!I24 -> 0.9694885893 | D5: ='LSE Demand Forecasts'!F25 -> 13420.85103 | E5: ='LSE Demand Forecasts'!F30 -> 13420.85103 | H5: 0 | I5: 0
A6: San Diego Gas and Electric Company (Direct Access) | B6: ='GHG Benchmarks'!H40 -> 0.5049359901 | C6: ='GHG Benchmarks'!I40 -> 0.4013141014 | D6: ='LSE Demand Forecasts'!F38 -> 3940 | E6: ='LSE Demand Forecasts'!F43 -> 3940 | H6: 0 | I6: 0
A7: TOTAL | D7: =SUM(D4:D6) -> 28753.85103 | E7: 28753.85103 | F7: 0 | G7: 0 | H7: 0 | I7: 0
A10: Each ESP is required to calculate its own confidential GHG Emissions Benchmark based on its 2030 and 2035 load share within the host IOU’s territory. For any ESP that serves load in more than one IOU service territory, that ESP should add up the separate GHG Emissions Benchmarks calculated based on its share of direct access load for each IOU service territory to result in a single benchmark.When filling out Columns F and G -- "ESP 2030 load within each IOU territory" and "ESP 2035 load within each IOU territory" -- each ESP should utilize the confidential load forecast communicated to it by Energy Division staff.

Sheet Results
B1: ='Supply Inputs'!B1 -> 25 MMT in 2035
B2: Emissions Summary
B4: Emissions Total | C4: Unit | D4: ='Demand Inputs'!E3 -> 2024 | E4: ='Demand Inputs'!F3 -> 2026 | F4: ='Demand Inputs'!G3 -> 2030 | G4: ='Demand Inputs'!H3 -> 2035 | H4: Notes
B5: CO2 | C5: =C19 -> MMt/yr | D5: =D19 -> 1.011640573 | E5: 0.6823719062 | F5: 0.1046730125 | G5: 0.3037073411 | H5: Includes both in-CAISO and import emissions
B6: PM2.5 | C6: =C29 -> tonnes/yr | D6: 40.13790805 | E6: 67.5827838 | F6: 2.595573015 | G6: 6.691093743 | H6: Only In-CAISO emissions
B7: SO2 | C7: =C38 -> tonnes/yr | D7: 5.71166666 | E7: 18.5627728 | F7: 0.6881063563 | G7: 0.6589969448 | H7: Only In-CAISO emissions
B8: NOx | C8: =C47 -> tonnes/yr | D8: 68.7596465 | E8: 170.7703356 | F8: 18.4643943 | G8: 15.86142015 | H8: Only In-CAISO emissions
B10: Emissions by resource type
B12: CO2 | C12: Unit | D12: =D$4 -> 2024 | E12: =E$4 -> 2026 | F12: =F$4 -> 2030 | G12: =G$4 -> 2035 | H12: Notes
B13: Coal | C13: =$C$19 -> MMt/yr | D13: =INDEX('Emission Calcs'!$E$4:$CF$4,0,MATCH(Results!$B13&"a"&Results!$B$12&"a"&Results!D$12,'Emission Calcs'!$E$1:$CF$1&"a"&'Emission Calcs'!$E$2:$CF$2&"a"&'Emission Calcs'!$E$3:$CF$3,0))/1000000 -> 0 | E13: =INDEX('Emission Calcs'!$E$4:$CF$4,0,MATCH(Results!$B13&"a"&Results!$B$12&"a"&Results!E$12,'Emission Calcs'!$E$1:$CF$1&"a"&'Emission Calcs'!$E$2:$CF$2&"a"&'Emission Calcs'!$E$3:$CF$3,0))/1000000 -> 0 | F13: =INDEX('Emission Calcs'!$E$4:$CF$4,0,MATCH(Results!$B13&"a"&Results!$B$12&"a"&Results!F$12,'Emission Calcs'!$E$1:$CF$1&"a"&'Emission Calcs'!$E$2:$CF$2&"a"&'Emission Calcs'!$E$3:$CF$3,0))/1000000 -> 0 | G13: =INDEX('Emission Calcs'!$E$4:$CF$4,0,MATCH(Results!$B13&"a"&Results!$B$12&"a"&Results!G$12,'Emission Calcs'!$E$1:$CF$1&"a"&'Emission Calcs'!$E$2:$CF$2&"a"&'Emission Calcs'!$E$3:$CF$3,0))/1000000 -> 0 | H13: Included in GHG emissions total
B14: CHP | C14: MMt/yr | D14: =INDEX('Emission Calcs'!$E$4:$CF$4,0,MATCH(Results!$B14&"a"&Results!$B$12&"a"&Results!D$12,'Emission Calcs'!$E$1:$CF$1&"a"&'Emission Calcs'!$E$2:$CF$2&"a"&'Emission Calcs'!$E$3:$CF$3,0))/1000000 -> 0.08796295364 | E14: =INDEX('Emission Calcs'!$E$4:$CF$4,0,MATCH(Results!$B14&"a"&Results!$B$12&"a"&Results!E$12,'Emission Calcs'!$E$1:$CF$1&"a"&'Emission Calcs'!$E$2:$CF$2&"a"&'Emission Calcs'!$E$3:$CF$3,0))/1000000 -> 0.08561542098 | F14: =INDEX('Emission Calcs'!$E$4:$CF$4,0,MATCH(Results!$B14&"a"&Results!$B$12&"a"&Results!F$12,'Emission Calcs'!$E$1:$CF$1&"a"&'Emission Calcs'!$E$2:$CF$2&"a"&'Emission Calcs'!$E$3:$CF$3,0))/1000000 -> 0.08190406991 | G14: =INDEX('Emission Calcs'!$E$4:$CF$4,0,MATCH(Results!$B14&"a"&Results!$B$12&"a"&Results!G$12,'Emission Calcs'!$E$1:$CF$1&"a"&'Emission Calcs'!$E$2:$CF$2&"a"&'Emission Calcs'!$E$3:$CF$3,0))/1000000 -> 0.04921182939
B15: Biogas | C15: MMt/yr | D15: =INDEX('Emission Calcs'!$E$4:$CF$4,0,MATCH(Results!$B15&"a"&Results!$B$12&"a"&Results!D$12,'Emission Calcs'!$E$1:$CF$1&"a"&'Emission Calcs'!$E$2:$CF$2&"a"&'Emission Calcs'!$E$3:$CF$3,0))/1000000 -> 0 | E15: =INDEX('Emission Calcs'!$E$4:$CF$4,0,MATCH(Results!$B15&"a"&Results!$B$12&"a"&Results!E$12,'Emission Calcs'!$E$1:$CF$1&"a"&'Emission Calcs'!$E$2:$CF$2&"a"&'Emission Calcs'!$E$3:$CF$3,0))/1000000 -> 0 | F15: =INDEX('Emission Calcs'!$E$4:$CF$4,0,MATCH(Results!$B15&"a"&Results!$B$12&"a"&Results!F$12,'Emission Calcs'!$E$1:$CF$1&"a"&'Emission Calcs'!$E$2:$CF$2&"a"&'Emission Calcs'!$E$3:$CF$3,0))/1000000 -> 0 | G15: =INDEX('Emission Calcs'!$E$4:$CF$4,0,MATCH(Results!$B15&"a"&Results!$B$12&"a"&Results!G$12,'Emission Calcs'!$E$1:$CF$1&"a"&'Emission Calcs'!$E$2:$CF$2&"a"&'Emission Calcs'!$E$3:$CF$3,0))/1000000 -> 0
B16: Biomass | C16: MMt/yr | D16: =INDEX('Emission Calcs'!$E$4:$CF$4,0,MATCH(Results!$B16&"a"&Results!$B$12&"a"&Results!D$12,'Emission Calcs'!$E$1:$CF$1&"a"&'Emission Calcs'!$E$2:$CF$2&"a"&'Emission Calcs'!$E$3:$CF$3,0))/1000000 -> 0 | E16: =INDEX('Emission Calcs'!$E$4:$CF$4,0,MATCH(Results!$B16&"a"&Results!$B$12&"a"&Results!E$12,'Emission Calcs'!$E$1:$CF$1&"a"&'Emission Calcs'!$E$2:$CF$2&"a"&'Emission Calcs'!$E$3:$CF$3,0))/1000000 -> 0 | F16: =INDEX('Emission Calcs'!$E$4:$CF$4,0,MATCH(Results!$B16&"a"&Results!$B$12&"a"&Results!F$12,'Emission Calcs'!$E$1:$CF$1&"a"&'Emission Calcs'!$E$2:$CF$2&"a"&'Emission Calcs'!$E$3:$CF$3,0))/1000000 -> 0 | G16: =INDEX('Emission Calcs'!$E$4:$CF$4,0,MATCH(Results!$B16&"a"&Results!$B$12&"a"&Results!G$12,'Emission Calcs'!$E$1:$CF$1&"a"&'Emission Calcs'!$E$2:$CF$2&"a"&'Emission Calcs'!$E$3:$CF$3,0))/1000000 -> 0
B17: System Power | C17: MMt/yr | D17: =INDEX('Emission Calcs'!$E$4:$CF$4,0,MATCH(Results!$B17&"a"&Results!$B$12&"a"&Results!D$12,'Emission Calcs'!$E$1:$CF$1&"a"&'Emission Calcs'!$E$2:$CF$2&"a"&'Emission Calcs'!$E$3:$CF$3,0))/1000000 -> 0.9236776197 | E17: =INDEX('Emission Calcs'!$E$4:$CF$4,0,MATCH(Results!$B17&"a"&Results!$B$12&"a"&Results!E$12,'Emission Calcs'!$E$1:$CF$1&"a"&'Emission Calcs'!$E$2:$CF$2&"a"&'Emission Calcs'!$E$3:$CF$3,0))/1000000 -> 0.5967564853 | F17: =INDEX('Emission Calcs'!$E$4:$CF$4,0,MATCH(Results!$B17&"a"&Results!$B$12&"a"&Results!F$12,'Emission Calcs'!$E$1:$CF$1&"a"&'Emission Calcs'!$E$2:$CF$2&"a"&'Emission Calcs'!$E$3:$CF$3,0))/1000000 -> 0.02276894261 | G17: =INDEX('Emission Calcs'!$E$4:$CF$4,0,MATCH(Results!$B17&"a"&Results!$B$12&"a"&Results!G$12,'Emission Calcs'!$E$1:$CF$1&"a"&'Emission Calcs'!$E$2:$CF$2&"a"&'Emission Calcs'!$E$3:$CF$3,0))/1000000 -> 0.2544955117 | H17: Includes emissions from in-CAISO dispatchable gas and unspecified imports
B18: Asset Controlling Supplier | C18: MMt/yr | D18: ='Emission Calcs'!CG$4/1000000 -> 0 | E18: ='Emission Calcs'!CH$4/1000000 -> 0 | F18: ='Emission Calcs'!CI$4/1000000 -> 0 | G18: ='Emission Calcs'!CJ$4/1000000 -> 0
B19: Total | C19: MMt/yr | D19: =SUM(D13:D18) -> 1.011640573 | E19: =SUM(E13:E18) -> 0.6823719062 | F19: =SUM(F13:F18) -> 0.1046730125 | G19: =SUM(G13:G18) -> 0.3037073411 | H19: Includes both in-CAISO and import emissions
B20: Average emissions intensity | C20: tCO2/MWh | D20: =(D19*1000000)/(D$53*1000) -> 0.2780914668 | E20: =(E19*1000000)/(E$53*1000) -> 0.1871840066 | F20: =(F19*1000000)/(F$53*1000) -> 0.02833580491 | G20: =(G19*1000000)/(G$53*1000) -> 0.0801886014 | H20: Emissions per MWh of sales
B21: Oversupply Emissions Credits | C21: =$C$19 -> MMt/yr | D21: =-SUMIFS('Emission Calcs'!E$6:E$8765,'Emission Calcs'!E$6:E$8765,"<0")/1000000 -> 0.0004999769418 | E21: =-SUMIFS('Emission Calcs'!F$6:F$8765,'Emission Calcs'!F$6:F$8765,"<0")/1000000 -> 0.01805995387 | F21: =-SUMIFS('Emission Calcs'!G$6:G$8765,'Emission Calcs'!G$6:G$8765,"<0")/1000000 -> 0.1888203979 | G21: =-SUMIFS('Emission Calcs'!H$6:H$8765,'Emission Calcs'!H$6:H$8765,"<0")/1000000 -> 0.1467275235 | H21: When hourly supply exceeds hourly load and system power is on the margin, LSE recieves credit at the system power emissions rate. Impact included in Total.
B23: PM2.5 | C23: Unit | D23: =D$4 -> 2024 | E23: =E$4 -> 2026 | F23: =F$4 -> 2030 | G23: =G$4 -> 2035 | H23: Notes
B24: Coal | C24: =$C$29 -> tonnes/yr | D24: =INDEX('Emission Calcs'!$E$4:$CF$4,0,MATCH(Results!$B24&"a"&Results!$B$23&"a"&Results!D$23,'Emission Calcs'!$E$1:$CF$1&"a"&'Emission Calcs'!$E$2:$CF$2&"a"&'Emission Calcs'!$E$3:$CF$3,0)) -> 0 | E24: =INDEX('Emission Calcs'!$E$4:$CF$4,0,MATCH(Results!$B24&"a"&Results!$B$23&"a"&Results!E$23,'Emission Calcs'!$E$1:$CF$1&"a"&'Emission Calcs'!$E$2:$CF$2&"a"&'Emission Calcs'!$E$3:$CF$3,0)) -> 0 | F24: =INDEX('Emission Calcs'!$E$4:$CF$4,0,MATCH(Results!$B24&"a"&Results!$B$23&"a"&Results!F$23,'Emission Calcs'!$E$1:$CF$1&"a"&'Emission Calcs'!$E$2:$CF$2&"a"&'Emission Calcs'!$E$3:$CF$3,0)) -> 0 | G24: =INDEX('Emission Calcs'!$E$4:$CF$4,0,MATCH(Results!$B24&"a"&Results!$B$23&"a"&Results!G$23,'Emission Calcs'!$E$1:$CF$1&"a"&'Emission Calcs'!$E$2:$CF$2&"a"&'Emission Calcs'!$E$3:$CF$3,0)) -> 0 | H24: Information only, not included in total
B25: CHP | C25: =$C$29 -> tonnes/yr | D25: =INDEX('Emission Calcs'!$E$4:$CF$4,0,MATCH(Results!$B25&"a"&Results!$B$23&"a"&Results!D$23,'Emission Calcs'!$E$1:$CF$1&"a"&'Emission Calcs'!$E$2:$CF$2&"a"&'Emission Calcs'!$E$3:$CF$3,0)) -> 4.945115189 | E25: =INDEX('Emission Calcs'!$E$4:$CF$4,0,MATCH(Results!$B25&"a"&Results!$B$23&"a"&Results!E$23,'Emission Calcs'!$E$1:$CF$1&"a"&'Emission Calcs'!$E$2:$CF$2&"a"&'Emission Calcs'!$E$3:$CF$3,0)) -> 4.812903079 | F25: =INDEX('Emission Calcs'!$E$4:$CF$4,0,MATCH(Results!$B25&"a"&Results!$B$23&"a"&Results!F$23,'Emission Calcs'!$E$1:$CF$1&"a"&'Emission Calcs'!$E$2:$CF$2&"a"&'Emission Calcs'!$E$3:$CF$3,0)) -> 4.604315401 | G25: =INDEX('Emission Calcs'!$E$4:$CF$4,0,MATCH(Results!$B25&"a"&Results!$B$23&"a"&Results!G$23,'Emission Calcs'!$E$1:$CF$1&"a"&'Emission Calcs'!$E$2:$CF$2&"a"&'Emission Calcs'!$E$3:$CF$3,0)) -> 2.760318366
B26: Biogas | C26: =$C$29 -> tonnes/yr | D26: =INDEX('Emission Calcs'!$E$4:$CF$4,0,MATCH(Results!$B26&"a"&Results!$B$23&"a"&Results!D$23,'Emission Calcs'!$E$1:$CF$1&"a"&'Emission Calcs'!$E$2:$CF$2&"a"&'Emission Calcs'!$E$3:$CF$3,0)) -> 2.968843157 | E26: =INDEX('Emission Calcs'!$E$4:$CF$4,0,MATCH(Results!$B26&"a"&Results!$B$23&"a"&Results!E$23,'Emission Calcs'!$E$1:$CF$1&"a"&'Emission Calcs'!$E$2:$CF$2&"a"&'Emission Calcs'!$E$3:$CF$3,0)) -> 0.6865116125 | F26: =INDEX('Emission Calcs'!$E$4:$CF$4,0,MATCH(Results!$B26&"a"&Results!$B$23&"a"&Results!F$23,'Emission Calcs'!$E$1:$CF$1&"a"&'Emission Calcs'!$E$2:$CF$2&"a"&'Emission Calcs'!$E$3:$CF$3,0)) -> 0.5920056074 | G26: =INDEX('Emission Calcs'!$E$4:$CF$4,0,MATCH(Results!$B26&"a"&Results!$B$23&"a"&Results!G$23,'Emission Calcs'!$E$1:$CF$1&"a"&'Emission Calcs'!$E$2:$CF$2&"a"&'Emission Calcs'!$E$3:$CF$3,0)) -> 0
B27: Biomass | C27: =$C$29 -> tonnes/yr | D27: =INDEX('Emission Calcs'!$E$4:$CF$4,0,MATCH(Results!$B27&"a"&Results!$B$23&"a"&Results!D$23,'Emission Calcs'!$E$1:$CF$1&"a"&'Emission Calcs'!$E$2:$CF$2&"a"&'Emission Calcs'!$E$3:$CF$3,0)) -> 0 | E27: =INDEX('Emission Calcs'!$E$4:$CF$4,0,MATCH(Results!$B27&"a"&Results!$B$23&"a"&Results!E$23,'Emission Calcs'!$E$1:$CF$1&"a"&'Emission Calcs'!$E$2:$CF$2&"a"&'Emission Calcs'!$E$3:$CF$3,0)) -> 40.32331096 | F27: =INDEX('Emission Calcs'!$E$4:$CF$4,0,MATCH(Results!$B27&"a"&Results!$B$23&"a"&Results!F$23,'Emission Calcs'!$E$1:$CF$1&"a"&'Emission Calcs'!$E$2:$CF$2&"a"&'Emission Calcs'!$E$3:$CF$3,0)) -> 0 | G27: =INDEX('Emission Calcs'!$E$4:$CF$4,0,MATCH(Results!$B27&"a"&Results!$B$23&"a"&Results!G$23,'Emission Calcs'!$E$1:$CF$1&"a"&'Emission Calcs'!$E$2:$CF$2&"a"&'Emission Calcs'!$E$3:$CF$3,0)) -> 0
B28: System Power | C28: =$C$29 -> tonnes/yr | D28: =INDEX('Emission Calcs'!$E$4:$CF$4,0,MATCH(Results!$B28&"a"&Results!$B$23&"a"&Results!D$23,'Emission Calcs'!$E$1:$CF$1&"a"&'Emission Calcs'!$E$2:$CF$2&"a"&'Emission Calcs'!$E$3:$CF$3,0)) -> 32.2239497 | E28: =INDEX('Emission Calcs'!$E$4:$CF$4,0,MATCH(Results!$B28&"a"&Results!$B$23&"a"&Results!E$23,'Emission Calcs'!$E$1:$CF$1&"a"&'Emission Calcs'!$E$2:$CF$2&"a"&'Emission Calcs'!$E$3:$CF$3,0)) -> 21.76005814 | F28: =INDEX('Emission Calcs'!$E$4:$CF$4,0,MATCH(Results!$B28&"a"&Results!$B$23&"a"&Results!F$23,'Emission Calcs'!$E$1:$CF$1&"a"&'Emission Calcs'!$E$2:$CF$2&"a"&'Emission Calcs'!$E$3:$CF$3,0)) -> -2.600747994 | G28: =INDEX('Emission Calcs'!$E$4:$CF$4,0,MATCH(Results!$B28&"a"&Results!$B$23&"a"&Results!G$23,'Emission Calcs'!$E$1:$CF$1&"a"&'Emission Calcs'!$E$2:$CF$2&"a"&'Emission Calcs'!$E$3:$CF$3,0)) -> 3.930775378 | H28: In-CAISO emissions only - unspecified import emissions excluded
B29: Total | C29: tonnes/yr | D29: =SUM(D25:D28) -> 40.13790805 | E29: =SUM(E25:E28) -> 67.5827838 | F29: =SUM(F25:F28) -> 2.595573015 | G29: =SUM(G25:G28) -> 6.691093743 | H29: Only In-CAISO emissions
B30: Average emissions intensity | C30: kg/MWh | D30: =(D29*1000)/(D$53*1000) -> 0.01103357261 | E30: =(E29*1000)/(E$53*1000) -> 0.01853888786 | F30: =(F29*1000)/(F$53*1000) -> 0.000702641959 | G30: =(G29*1000)/(G$53*1000) -> 0.001766666051 | H30: Emissions per MWh of sales
B32: SO2 | C32: Unit | D32: =D$4 -> 2024 | E32: =E$4 -> 2026 | F32: =F$4 -> 2030 | G32: =G$4 -> 2035 | H32: Notes
B33: Coal | C33: =$C$38 -> tonnes/yr | D33: =INDEX('Emission Calcs'!$E$4:$CF$4,0,MATCH(Results!$B33&"a"&Results!$B$32&"a"&Results!D$32,'Emission Calcs'!$E$1:$CF$1&"a"&'Emission Calcs'!$E$2:$CF$2&"a"&'Emission Calcs'!$E$3:$CF$3,0)) -> 0 | E33: =INDEX('Emission Calcs'!$E$4:$CF$4,0,MATCH(Results!$B33&"a"&Results!$B$32&"a"&Results!E$32,'Emission Calcs'!$E$1:$CF$1&"a"&'Emission Calcs'!$E$2:$CF$2&"a"&'Emission Calcs'!$E$3:$CF$3,0)) -> 0 | F33: =INDEX('Emission Calcs'!$E$4:$CF$4,0,MATCH(Results!$B33&"a"&Results!$B$32&"a"&Results!F$32,'Emission Calcs'!$E$1:$CF$1&"a"&'Emission Calcs'!$E$2:$CF$2&"a"&'Emission Calcs'!$E$3:$CF$3,0)) -> 0 | G33: =INDEX('Emission Calcs'!$E$4:$CF$4,0,MATCH(Results!$B33&"a"&Results!$B$32&"a"&Results!G$32,'Emission Calcs'!$E$1:$CF$1&"a"&'Emission Calcs'!$E$2:$CF$2&"a"&'Emission Calcs'!$E$3:$CF$3,0)) -> 0 | H33: =H24 -> Information only, not included in total
B34: CHP | C34: =$C$38 -> tonnes/yr | D34: =INDEX('Emission Calcs'!$E$4:$CF$4,0,MATCH(Results!$B34&"a"&Results!$B$32&"a"&Results!D$32,'Emission Calcs'!$E$1:$CF$1&"a"&'Emission Calcs'!$E$2:$CF$2&"a"&'Emission Calcs'!$E$3:$CF$3,0)) -> 0.5259344147 | E34: =INDEX('Emission Calcs'!$E$4:$CF$4,0,MATCH(Results!$B34&"a"&Results!$B$32&"a"&Results!E$32,'Emission Calcs'!$E$1:$CF$1&"a"&'Emission Calcs'!$E$2:$CF$2&"a"&'Emission Calcs'!$E$3:$CF$3,0)) -> 0.5118731944 | F34: =INDEX('Emission Calcs'!$E$4:$CF$4,0,MATCH(Results!$B34&"a"&Results!$B$32&"a"&Results!F$32,'Emission Calcs'!$E$1:$CF$1&"a"&'Emission Calcs'!$E$2:$CF$2&"a"&'Emission Calcs'!$E$3:$CF$3,0)) -> 0.4896879612 | G34: =INDEX('Emission Calcs'!$E$4:$CF$4,0,MATCH(Results!$B34&"a"&Results!$B$32&"a"&Results!G$32,'Emission Calcs'!$E$1:$CF$1&"a"&'Emission Calcs'!$E$2:$CF$2&"a"&'Emission Calcs'!$E$3:$CF$3,0)) -> 0.2935722453
B35: Biogas | C35: =$C$38 -> tonnes/yr | D35: =INDEX('Emission Calcs'!$E$4:$CF$4,0,MATCH(Results!$B35&"a"&Results!$B$32&"a"&Results!D$32,'Emission Calcs'!$E$1:$CF$1&"a"&'Emission Calcs'!$E$2:$CF$2&"a"&'Emission Calcs'!$E$3:$CF$3,0)) -> 2.162008663 | E35: =INDEX('Emission Calcs'!$E$4:$CF$4,0,MATCH(Results!$B35&"a"&Results!$B$32&"a"&Results!E$32,'Emission Calcs'!$E$1:$CF$1&"a"&'Emission Calcs'!$E$2:$CF$2&"a"&'Emission Calcs'!$E$3:$CF$3,0)) -> 0.4988118932 | F35: =INDEX('Emission Calcs'!$E$4:$CF$4,0,MATCH(Results!$B35&"a"&Results!$B$32&"a"&Results!F$32,'Emission Calcs'!$E$1:$CF$1&"a"&'Emission Calcs'!$E$2:$CF$2&"a"&'Emission Calcs'!$E$3:$CF$3,0)) -> 0.4400815413 | G35: =INDEX('Emission Calcs'!$E$4:$CF$4,0,MATCH(Results!$B35&"a"&Results!$B$32&"a"&Results!G$32,'Emission Calcs'!$E$1:$CF$1&"a"&'Emission Calcs'!$E$2:$CF$2&"a"&'Emission Calcs'!$E$3:$CF$3,0)) -> 0
B36: Biomass | C36: =$C$38 -> tonnes/yr | D36: =INDEX('Emission Calcs'!$E$4:$CF$4,0,MATCH(Results!$B36&"a"&Results!$B$32&"a"&Results!D$32,'Emission Calcs'!$E$1:$CF$1&"a"&'Emission Calcs'!$E$2:$CF$2&"a"&'Emission Calcs'!$E$3:$CF$3,0)) -> 0 | E36: =INDEX('Emission Calcs'!$E$4:$CF$4,0,MATCH(Results!$B36&"a"&Results!$B$32&"a"&Results!E$32,'Emission Calcs'!$E$1:$CF$1&"a"&'Emission Calcs'!$E$2:$CF$2&"a"&'Emission Calcs'!$E$3:$CF$3,0)) -> 15.50896575 | F36: =INDEX('Emission Calcs'!$E$4:$CF$4,0,MATCH(Results!$B36&"a"&Results!$B$32&"a"&Results!F$32,'Emission Calcs'!$E$1:$CF$1&"a"&'Emission Calcs'!$E$2:$CF$2&"a"&'Emission Calcs'!$E$3:$CF$3,0)) -> 0 | G36: =INDEX('Emission Calcs'!$E$4:$CF$4,0,MATCH(Results!$B36&"a"&Results!$B$32&"a"&Results!G$32,'Emission Calcs'!$E$1:$CF$1&"a"&'Emission Calcs'!$E$2:$CF$2&"a"&'Emission Calcs'!$E$3:$CF$3,0)) -> 0
B37: System Power | C37: =$C$38 -> tonnes/yr | D37: =INDEX('Emission Calcs'!$E$4:$CF$4,0,MATCH(Results!$B37&"a"&Results!$B$32&"a"&Results!D$32,'Emission Calcs'!$E$1:$CF$1&"a"&'Emission Calcs'!$E$2:$CF$2&"a"&'Emission Calcs'!$E$3:$CF$3,0)) -> 3.023723582 | E37: =INDEX('Emission Calcs'!$E$4:$CF$4,0,MATCH(Results!$B37&"a"&Results!$B$32&"a"&Results!E$32,'Emission Calcs'!$E$1:$CF$1&"a"&'Emission Calcs'!$E$2:$CF$2&"a"&'Emission Calcs'!$E$3:$CF$3,0)) -> 2.043121959 | F37: =INDEX('Emission Calcs'!$E$4:$CF$4,0,MATCH(Results!$B37&"a"&Results!$B$32&"a"&Results!F$32,'Emission Calcs'!$E$1:$CF$1&"a"&'Emission Calcs'!$E$2:$CF$2&"a"&'Emission Calcs'!$E$3:$CF$3,0)) -> -0.2416631463 | G37: =INDEX('Emission Calcs'!$E$4:$CF$4,0,MATCH(Results!$B37&"a"&Results!$B$32&"a"&Results!G$32,'Emission Calcs'!$E$1:$CF$1&"a"&'Emission Calcs'!$E$2:$CF$2&"a"&'Emission Calcs'!$E$3:$CF$3,0)) -> 0.3654246996 | H37: =H28 -> In-CAISO emissions only - unspecified import emissions excluded
B38: Total | C38: tonnes/yr | D38: =SUM(D34:D37) -> 5.71166666 | E38: =SUM(E34:E37) -> 18.5627728 | F38: =SUM(F34:F37) -> 0.6881063563 | G38: =SUM(G34:G37) -> 0.6589969448 | H38: Only In-CAISO emissions
B39: Average emissions intensity | C39: kg/MWh | D39: =(D38*1000)/(D$53*1000) -> 0.001570089023 | E39: =(E38*1000)/(E$53*1000) -> 0.005092024093 | F39: =(F38*1000)/(F$53*1000) -> 0.000186275784 | G39: =(G38*1000)/(G$53*1000) -> 0.0001739965953 | H39: Emissions per MWh of sales
B41: NOx | C41: Unit | D41: =D$4 -> 2024 | E41: =E$4 -> 2026 | F41: =F$4 -> 2030 | G41: =G$4 -> 2035 | H41: Notes
B42: Coal | C42: =$C$47 -> tonnes/yr | D42: =INDEX('Emission Calcs'!$E$4:$CF$4,0,MATCH(Results!$B42&"a"&Results!$B$41&"a"&Results!D$41,'Emission Calcs'!$E$1:$CF$1&"a"&'Emission Calcs'!$E$2:$CF$2&"a"&'Emission Calcs'!$E$3:$CF$3,0)) -> 0 | E42: =INDEX('Emission Calcs'!$E$4:$CF$4,0,MATCH(Results!$B42&"a"&Results!$B$41&"a"&Results!E$41,'Emission Calcs'!$E$1:$CF$1&"a"&'Emission Calcs'!$E$2:$CF$2&"a"&'Emission Calcs'!$E$3:$CF$3,0)) -> 0 | F42: =INDEX('Emission Calcs'!$E$4:$CF$4,0,MATCH(Results!$B42&"a"&Results!$B$41&"a"&Results!F$41,'Emission Calcs'!$E$1:$CF$1&"a"&'Emission Calcs'!$E$2:$CF$2&"a"&'Emission Calcs'!$E$3:$CF$3,0)) -> 0 | G42: =INDEX('Emission Calcs'!$E$4:$CF$4,0,MATCH(Results!$B42&"a"&Results!$B$41&"a"&Results!G$41,'Emission Calcs'!$E$1:$CF$1&"a"&'Emission Calcs'!$E$2:$CF$2&"a"&'Emission Calcs'!$E$3:$CF$3,0)) -> 0 | H42: =H24 -> Information only, not included in total
B43: CHP | C43: =$C$47 -> tonnes/yr | D43: =INDEX('Emission Calcs'!$E$4:$CF$4,0,MATCH(Results!$B43&"a"&Results!$B$41&"a"&Results!D$41,'Emission Calcs'!$E$1:$CF$1&"a"&'Emission Calcs'!$E$2:$CF$2&"a"&'Emission Calcs'!$E$3:$CF$3,0)) -> 23.0354135 | E43: =INDEX('Emission Calcs'!$E$4:$CF$4,0,MATCH(Results!$B43&"a"&Results!$B$41&"a"&Results!E$41,'Emission Calcs'!$E$1:$CF$1&"a"&'Emission Calcs'!$E$2:$CF$2&"a"&'Emission Calcs'!$E$3:$CF$3,0)) -> 22.251797 | F43: =INDEX('Emission Calcs'!$E$4:$CF$4,0,MATCH(Results!$B43&"a"&Results!$B$41&"a"&Results!F$41,'Emission Calcs'!$E$1:$CF$1&"a"&'Emission Calcs'!$E$2:$CF$2&"a"&'Emission Calcs'!$E$3:$CF$3,0)) -> 20.9410792 | G43: =INDEX('Emission Calcs'!$E$4:$CF$4,0,MATCH(Results!$B43&"a"&Results!$B$41&"a"&Results!G$41,'Emission Calcs'!$E$1:$CF$1&"a"&'Emission Calcs'!$E$2:$CF$2&"a"&'Emission Calcs'!$E$3:$CF$3,0)) -> 10.90101693
B44: Biogas | C44: =$C$47 -> tonnes/yr | D44: =INDEX('Emission Calcs'!$E$4:$CF$4,0,MATCH(Results!$B44&"a"&Results!$B$41&"a"&Results!D$41,'Emission Calcs'!$E$1:$CF$1&"a"&'Emission Calcs'!$E$2:$CF$2&"a"&'Emission Calcs'!$E$3:$CF$3,0)) -> 9.731925652 | E44: =INDEX('Emission Calcs'!$E$4:$CF$4,0,MATCH(Results!$B44&"a"&Results!$B$41&"a"&Results!E$41,'Emission Calcs'!$E$1:$CF$1&"a"&'Emission Calcs'!$E$2:$CF$2&"a"&'Emission Calcs'!$E$3:$CF$3,0)) -> 2.242564066 | F44: =INDEX('Emission Calcs'!$E$4:$CF$4,0,MATCH(Results!$B44&"a"&Results!$B$41&"a"&Results!F$41,'Emission Calcs'!$E$1:$CF$1&"a"&'Emission Calcs'!$E$2:$CF$2&"a"&'Emission Calcs'!$E$3:$CF$3,0)) -> 1.981033596 | G44: =INDEX('Emission Calcs'!$E$4:$CF$4,0,MATCH(Results!$B44&"a"&Results!$B$41&"a"&Results!G$41,'Emission Calcs'!$E$1:$CF$1&"a"&'Emission Calcs'!$E$2:$CF$2&"a"&'Emission Calcs'!$E$3:$CF$3,0)) -> 0
B45: Biomass | C45: =$C$47 -> tonnes/yr | D45: =INDEX('Emission Calcs'!$E$4:$CF$4,0,MATCH(Results!$B45&"a"&Results!$B$41&"a"&Results!D$41,'Emission Calcs'!$E$1:$CF$1&"a"&'Emission Calcs'!$E$2:$CF$2&"a"&'Emission Calcs'!$E$3:$CF$3,0)) -> 0 | E45: =INDEX('Emission Calcs'!$E$4:$CF$4,0,MATCH(Results!$B45&"a"&Results!$B$41&"a"&Results!E$41,'Emission Calcs'!$E$1:$CF$1&"a"&'Emission Calcs'!$E$2:$CF$2&"a"&'Emission Calcs'!$E$3:$CF$3,0)) -> 121.9497974 | F45: =INDEX('Emission Calcs'!$E$4:$CF$4,0,MATCH(Results!$B45&"a"&Results!$B$41&"a"&Results!F$41,'Emission Calcs'!$E$1:$CF$1&"a"&'Emission Calcs'!$E$2:$CF$2&"a"&'Emission Calcs'!$E$3:$CF$3,0)) -> 0 | G45: =INDEX('Emission Calcs'!$E$4:$CF$4,0,MATCH(Results!$B45&"a"&Results!$B$41&"a"&Results!G$41,'Emission Calcs'!$E$1:$CF$1&"a"&'Emission Calcs'!$E$2:$CF$2&"a"&'Emission Calcs'!$E$3:$CF$3,0)) -> 0
B46: System Power | C46: =$C$47 -> tonnes/yr | D46: =INDEX('Emission Calcs'!$E$4:$CF$4,0,MATCH(Results!$B46&"a"&Results!$B$41&"a"&Results!D$41,'Emission Calcs'!$E$1:$CF$1&"a"&'Emission Calcs'!$E$2:$CF$2&"a"&'Emission Calcs'!$E$3:$CF$3,0)) -> 35.99230735 | E46: =INDEX('Emission Calcs'!$E$4:$CF$4,0,MATCH(Results!$B46&"a"&Results!$B$41&"a"&Results!E$41,'Emission Calcs'!$E$1:$CF$1&"a"&'Emission Calcs'!$E$2:$CF$2&"a"&'Emission Calcs'!$E$3:$CF$3,0)) -> 24.3261771 | F46: =INDEX('Emission Calcs'!$E$4:$CF$4,0,MATCH(Results!$B46&"a"&Results!$B$41&"a"&Results!F$41,'Emission Calcs'!$E$1:$CF$1&"a"&'Emission Calcs'!$E$2:$CF$2&"a"&'Emission Calcs'!$E$3:$CF$3,0)) -> -4.457718502 | G46: =INDEX('Emission Calcs'!$E$4:$CF$4,0,MATCH(Results!$B46&"a"&Results!$B$41&"a"&Results!G$41,'Emission Calcs'!$E$1:$CF$1&"a"&'Emission Calcs'!$E$2:$CF$2&"a"&'Emission Calcs'!$E$3:$CF$3,0)) -> 4.960403222 | H46: =H28 -> In-CAISO emissions only - unspecified import emissions excluded
B47: Total | C47: tonnes/yr | D47: =SUM(D43:D46) -> 68.7596465 | E47: =SUM(E43:E46) -> 170.7703356 | F47: =SUM(F43:F46) -> 18.4643943 | G47: =SUM(G43:G46) -> 15.86142015 | H47: Only In-CAISO emissions
B48: Average emissions intensity | C48: kg/MWh | D48: =(D47*1000)/(D$53*1000) -> 0.01890144727 | E48: =(E47*1000)/(E$53*1000) -> 0.04684465368 | F48: =(F47*1000)/(F$53*1000) -> 0.004998456259 | G48: =(G47*1000)/(G$53*1000) -> 0.004187930044 | H48: Emissions per MWh of sales
B50: Supply and Demand Balance
B52: Demand Summary | C52: Unit | D52: =D$4 -> 2024 | E52: =E$4 -> 2026 | F52: =F$4 -> 2030 | G52: =G$4 -> 2035
B53: ='Demand Inputs'!B4 -> Managed Retail Sales Forecast (assigned to LSE) | C53: GWh | D53: ='Demand Inputs'!E4 -> 3637.797969 | E53: ='Demand Inputs'!F4 -> 3645.460521 | F53: ='Demand Inputs'!G4 -> 3694.019382 | G53: ='Demand Inputs'!H4 -> 3787.412872 | H53: Sales forecast (before T&D losses increase demand at generator bus-bar)
B54: ='Demand Calcs'!E$2 -> Baseline Demand, non-C&I | C54: GWh | D54: ='Demand Inputs'!E32 -> 2388.219383 | E54: ='Demand Inputs'!F32 -> 2422.971622 | F54: ='Demand Inputs'!G32 -> 2509.415779 | G54: ='Demand Inputs'!H32 -> 2586.302226 | H54: Summary of active inputs from Demand Inputs tab
B55: ='Demand Calcs'!I$2 -> Baseline Demand, C&I | C55: GWh | D55: ='Demand Inputs'!E33 -> 2254.224678 | E55: ='Demand Inputs'!F33 -> 2303.544304 | F55: ='Demand Inputs'!G33 -> 2434.677324 | G55: ='Demand Inputs'!H33 -> 2614.948584
B56: ='Demand Inputs'!B34 -> Electric Vehicle Load | C56: GWh | D56: ='Demand Inputs'!E34 -> 161.8682318 | E56: ='Demand Inputs'!F34 -> 230.4047542 | F56: ='Demand Inputs'!G34 -> 362.9011327 | G56: ='Demand Inputs'!H34 -> 563.2135842
B57: ='Demand Calcs'!U$2 -> Building Electrification | C57: GWh | D57: ='Demand Inputs'!E35 -> 18.34575815 | E57: ='Demand Inputs'!F35 -> 33.26587593 | F57: ='Demand Inputs'!G35 -> 66.75279734 | G57: ='Demand Inputs'!H35 -> 112.3526619
B58: ='Demand Inputs'!B36 -> Energy Efficiency | C58: GWh | D58: ='Demand Inputs'!E36 -> -63.28951111 | E58: ='Demand Inputs'!F36 -> -109.6015031 | F58: ='Demand Inputs'!G36 -> -194.7297833 | G58: ='Demand Inputs'!H36 -> -288.5196628
B59: ='Demand Calcs'!Y$2 -> BTM PV | C59: GWh | D59: ='Demand Inputs'!E37 -> -833.1921631 | E59: ='Demand Inputs'!F37 -> -946.4377223 | F59: ='Demand Inputs'!G37 -> -1193.304775 | G59: ='Demand Inputs'!H37 -> -1502.643258
B60: ='Demand Calcs'!AG$2 -> Demand (at generator bus-bar) | C60: GWh | D60: ='Demand Inputs'!E40 -> 3927.430597 | E60: ='Demand Inputs'!F40 -> 3936.15094 | F60: ='Demand Inputs'!G40 -> 3989.28662 | G60: ='Demand Inputs'!H40 -> 4091.017373
B62: Supply Summary | C62: Unit | D62: =D$4 -> 2024 | E62: =E$4 -> 2026 | F62: =F$4 -> 2030 | G62: =G$4 -> 2035 | H62: Notes
B63: ='Supply Calcs'!E2 -> Large Hydro | C63: GWh | D63: ='Supply Calcs'!E3 -> 0 | E63: ='Supply Calcs'!F3 -> 0 | F63: ='Supply Calcs'!G3 -> 0 | G63: ='Supply Calcs'!H3 -> 0
B64: ='Supply Calcs'!M2 -> Imported Hydro | C64: GWh | D64: ='Supply Calcs'!M3 -> 0 | E64: ='Supply Calcs'!N3 -> 0 | F64: ='Supply Calcs'!O3 -> 0 | G64: ='Supply Calcs'!P3 -> 0
B65: ='Supply Calcs'!I2 -> Asset Controlling Supplier | C65: GWh | D65: ='Supply Calcs'!I3 -> 0 | E65: ='Supply Calcs'!J3 -> 0 | F65: ='Supply Calcs'!K3 -> 0 | G65: ='Supply Calcs'!L3 -> 0
B66: ='Supply Calcs'!Q2 -> Nuclear | C66: GWh | D66: ='Supply Calcs'!Q3 -> 0 | E66: ='Supply Calcs'!R3 -> 0 | F66: ='Supply Calcs'!S3 -> 0 | G66: ='Supply Calcs'!T3 -> 0
B67: ='Supply Calcs'!U2 -> Biogas | C67: GWh | D67: ='Supply Calcs'!U3 -> 17.7511976 | E67: ='Supply Calcs'!V3 -> 4.095488021 | F67: ='Supply Calcs'!W3 -> 3.569901955 | G67: ='Supply Calcs'!X3 -> 0
B68: ='Supply Calcs'!Y2 -> Biomass | C68: GWh | D68: ='Supply Calcs'!Y3 -> 0 | E68: ='Supply Calcs'!Z3 -> 143.9685432 | F68: ='Supply Calcs'!AA3 -> 0 | G68: ='Supply Calcs'!AB3 -> 0
B69: ='Supply Calcs'!AC2 -> Geothermal | C69: GWh | D69: ='Supply Calcs'!AC3 -> 0 | E69: ='Supply Calcs'!AD3 -> 335.7568074 | F69: ='Supply Calcs'!AE3 -> 328.5745176 | G69: ='Supply Calcs'!AF3 -> 326.3876322
B70: ='Supply Calcs'!AG2 -> Small Hydro | C70: GWh | D70: ='Supply Calcs'!AG3 -> 8.588141097 | E70: ='Supply Calcs'!AH3 -> 8.588141097 | F70: ='Supply Calcs'!AI3 -> 6.811284318 | G70: ='Supply Calcs'!AJ3 -> 5.478641734
B71: ='Supply Calcs'!AK2 -> Wind CAISO | C71: GWh | D71: ='Supply Calcs'!AK3 -> 530.9580684 | E71: ='Supply Calcs'!AL3 -> 489.9390866 | F71: ='Supply Calcs'!AM3 -> 878.9233815 | G71: ='Supply Calcs'!AN3 -> 558.5759118 | H71: Wind and solar values represent production potential (pre-curtailment). Curtailment is calculated at the portfolio level (as opposed to the resource level), and is included as a line item below
B72: ='Supply Calcs'!AO2 -> Wind Out Of State | C72: GWh | D72: ='Supply Calcs'!AO3 -> 0 | E72: ='Supply Calcs'!AP3 -> 0 | F72: ='Supply Calcs'!AQ3 -> 0 | G72: ='Supply Calcs'!AR3 -> 0
B73: ='Supply Calcs'!AS2 -> Wind Offshore | C73: GWh | D73: ='Supply Calcs'!AS3 -> 0 | E73: ='Supply Calcs'!AT3 -> 0 | F73: ='Supply Calcs'!AU3 -> 500.8794674 | G73: ='Supply Calcs'!AV3 -> 500.8794674
B74: ='Supply Calcs'!AW2 -> Solar Utility Scale | C74: GWh | D74: ='Supply Calcs'!AW3 -> 854.7748496 | E74: ='Supply Calcs'!AX3 -> 854.7748496 | F74: ='Supply Calcs'!AY3 -> 2126.171193 | G74: ='Supply Calcs'!AZ3 -> 2433.019716
B75: ='Supply Calcs'!BA2 -> Solar Distributed | C75: GWh | D75: ='Supply Calcs'!BA3 -> 0 | E75: ='Supply Calcs'!BB3 -> 0 | F75: ='Supply Calcs'!BC3 -> 0 | G75: ='Supply Calcs'!BD3 -> 0 | H75: Distributed solar generation that is in front of the meter
B76: ='Supply Calcs'!BE2 -> Hybrid or Paired Solar and Battery | C76: GWh | D76: ='Supply Calcs'!BE3 -> 244.7127457 | E76: ='Supply Calcs'!BF3 -> 704.5552408 | F76: ='Supply Calcs'!BG3 -> 705.6319453 | G76: ='Supply Calcs'!BH3 -> 692.8680111
B77: ='Supply Calcs'!BI2 -> Shed DR | C77: GWh | D77: ='Supply Calcs'!BI3 -> 0.0144 | E77: ='Supply Calcs'!BJ3 -> 0 | F77: ='Supply Calcs'!BK3 -> 0.1608 | G77: ='Supply Calcs'!BL3 -> 0.3216
B78: ='Supply Calcs'!BM2 -> Pumped Storage | C78: GWh | D78: ='Supply Calcs'!BM3 -> -23.20374 | E78: ='Supply Calcs'!BN3 -> -24.034216 | F78: ='Supply Calcs'!BO3 -> -26.108848 | G78: ='Supply Calcs'!BP3 -> -24.274364 | H78: Negative because storage losses represent net negative energy production
B79: ='Supply Calcs'!BQ2 -> Battery Storage | C79: GWh | D79: ='Supply Calcs'!BQ3 -> -118.2522205 | E79: ='Supply Calcs'!BR3 -> -145.4535548 | F79: ='Supply Calcs'!BS3 -> -200.4180241 | G79: ='Supply Calcs'!BT3 -> -157.5122703 | H79: =H78 -> Negative because storage losses represent net negative energy production
B80: ='Supply Calcs'!BU2 -> Storage Resource Custom Profile | C80: GWh | D80: ='Supply Calcs'!BU3 -> 0 | E80: ='Supply Calcs'!BV3 -> 0 | F80: ='Supply Calcs'!BW3 -> 0 | G80: ='Supply Calcs'!BX3 -> 0 | H80: =H79 -> Negative because storage losses represent net negative energy production
B81: ='Supply Calcs'!BY2 -> RPS Resource Custom Profile | C81: GWh | D81: ='Supply Calcs'!BY3 -> 0 | E81: ='Supply Calcs'!BZ3 -> 0 | F81: ='Supply Calcs'!CA3 -> 0 | G81: ='Supply Calcs'!CB3 -> 0
B82: ='Supply Calcs'!CC2 -> GHG-free non-RPS Resource Custom Profile | C82: GWh | D82: ='Supply Calcs'!CC3 -> 0 | E82: ='Supply Calcs'!CD3 -> 0 | F82: ='Supply Calcs'!CE3 -> 0 | G82: ='Supply Calcs'!CF3 -> 0
B83: ='Supply Calcs'!CG2 -> Coal | C83: GWh | D83: ='Supply Calcs'!CG3 -> 0 | E83: ='Supply Calcs'!CH3 -> 0 | F83: ='Supply Calcs'!CI3 -> 0 | G83: ='Supply Calcs'!CJ3 -> 0
B84: ='Supply Calcs'!CK2 -> IFM CHP | C84: GWh | D84: ='Supply Calcs'!CK3 -> 197.9633426 | E84: ='Supply Calcs'!CL3 -> 192.5865011 | F84: ='Supply Calcs'!CM3 -> 184.1692482 | G84: ='Supply Calcs'!CN3 -> 110.6262919
B86: Supply Demand Balance Summary | C86: Unit | D86: =D$4 -> 2024 | E86: =E$4 -> 2026 | F86: =F$4 -> 2030 | G86: =G$4 -> 2035 | H86: Notes
B87: ='Supply Calcs'!CO2 -> LSE Supply, before curtailment and exports | C87: GWh | D87: ='Supply Calcs'!CO3 -> 1713.306785 | E87: ='Supply Calcs'!CP3 -> 2564.776887 | F87: ='Supply Calcs'!CQ3 -> 4508.364867 | G87: ='Supply Calcs'!CR3 -> 4446.370638 | H87: Represents LSE's net power production, before curtailment and exports reduce the power available to dispace CAISO dispatchable gas/unspecified imports
B88: ='Supply Demand Balance Calcs'!M2 -> Net Purchases, before curtailment and exports | C88: GWh | D88: ='Supply Demand Balance Calcs'!M3 -> 2214.123812 | E88: ='Supply Demand Balance Calcs'!N3 -> 1371.374053 | F88: ='Supply Demand Balance Calcs'!O3 -> -519.0782472 | G88: ='Supply Demand Balance Calcs'!P3 -> -355.3532646 | H88: The net system power that the LSE would consume (positive = consume from system, negative = supply to system) if dispatchable gas/unspecified imports were on the margin at the system level in all hours. For information only - not directly used to calculate LSE emissions.
B89: ='Supply Demand Balance Calcs'!AO2 -> Curtailment | C89: GWh | D89: ='Supply Demand Balance Calcs'!AO3 -> -7.323424265 | E89: ='Supply Demand Balance Calcs'!AP3 -> -51.55531556 | F89: ='Supply Demand Balance Calcs'!AQ3 -> -500.3244096 | G89: ='Supply Demand Balance Calcs'!AR3 -> -811.9193138 | H89: Power that, if supplied to the system, would not displace CAISO dispatchable gas and/or unspecified import emissions and would instead be curtailed
B90: Exports | C90: GWh | D90: ='Supply Demand Balance Calcs'!AK3 -> -8.267909928 | E90: ='Supply Demand Balance Calcs'!AL3 -> -22.66858593 | F90: ='Supply Demand Balance Calcs'!AM3 -> -117.4359618 | G90: ='Supply Demand Balance Calcs'!AN3 -> -142.1868069 | H90: Power that, if supplied to the system, would not displace CAISO dispatchable gas and/or unspecified import emissions and would instead be exported
B91: ='Supply Demand Balance Calcs'!AC2 -> Zero Emissions Power From System | C91: GWh | D91: ='Supply Demand Balance Calcs'!AC3 -> 32.47580406 | E91: ='Supply Demand Balance Calcs'!AD3 -> 23.99630958 | F91: ='Supply Demand Balance Calcs'!AE3 -> 3.208367544 | G91: ='Supply Demand Balance Calcs'!AF3 -> 0.0125366184 | H91: Power supplied to meet LSE demand that does not incur emissions. Oversupply conditions at the system level result in surplus zero emissions power in some hours.
B92: ='Supply Demand Balance Calcs'!Y2 -> Net System Power (incurs emissions) | C92: GWh | D92: ='Supply Demand Balance Calcs'!Y3 -> 2197.239342 | E92: ='Supply Demand Balance Calcs'!Z3 -> 1421.601645 | F92: ='Supply Demand Balance Calcs'!AA3 -> 95.47375669 | G92: ='Supply Demand Balance Calcs'!AB3 -> 598.7403194 | H92: Power supplied by the system (or sent back to the system from if negative) in hours when CAISO dispatchable gas and/or unspecified imports are on the margin. The net system power produced or consumed is multiplied by the system power emissions rate in each hour.
B93: Check: Supply equals demand | D93: =ROUND(D87+D89+D90+D91+D92-D60,0)=0 -> TRUE | E93: =ROUND(E87+E89+E90+E91+E92-E60,0)=0 -> TRUE | F93: =ROUND(F87+F89+F90+F91+F92-F60,0)=0 -> TRUE | G93: =ROUND(G87+G89+G90+G91+G92-G60,0)=0 -> TRUE
B95: Renewable and GHG-Free % | C95: Unit | D95: =D62 -> 2024 | E95: =E62 -> 2026 | F95: =F62 -> 2030 | G95: =G62 -> 2035 | H95: Notes
B96: Retail Sales | C96: GWh | D96: ='Demand Inputs'!E4 -> 3637.797969 | E96: ='Demand Inputs'!F4 -> 3645.460521 | F96: ='Demand Inputs'!G4 -> 3694.019382 | G96: ='Demand Inputs'!H4 -> 3787.412872
B97: RPS-Eligible Delivered Renewable | C97: GWh | D97: =SUM(D67:D76,D81,D89) -> 1649.461578 | E97: =SUM(E67:E76,E81,E89) -> 2490.122841 | F97: =SUM(F67:F76,F81,F89) -> 4050.237281 | G97: =SUM(G67:G76,G81,G89) -> 3705.290067 | H97: Represents delivered renewable energy. Not directly comparable to production from an LSE's RPS-eligible resources.
B98: GHG free | C98: GWh | D98: =SUM(D63:D64, D65*'Supply Inputs'!$Z$8,D66:D77,D81:D82,D89,D91) -> 1681.951782 | E98: =SUM(E63:E64, E65*'Supply Inputs'!$Z$8,E66:E77,E81:E82,E89,E91) -> 2514.119151 | F98: =SUM(F63:F64, F65*'Supply Inputs'!$Z$8,F66:F77,F81:F82,F89,F91) -> 4053.606449 | G98: =SUM(G63:G64, G65*'Supply Inputs'!$Z$8,G66:G77,G81:G82,G89,G91) -> 3705.624203 | H98: A small fraction of Asset Controlling Supplier imports are not counted as GHG-free
B99: RPS-Eligible Delivered Renewable Percentage | C99: % of retail sales | D99: =D97/D$96 -> 0.4534230851 | E99: 0.6830749714 | F99: 1.096430977 | G99: 0.9783169124 | H99: =H97 -> Represents delivered renewable energy. Not directly comparable to production from an LSE's RPS-eligible resources.
B100: GHG-free Percentage | C100: % of retail sales | D100: 0.4623543683 | E100: 0.6896574894 | F100: 1.097343037 | G100: 0.9784051353

Sheet LSE Demand Forecasts
A1: Individual LSE Energy Load Forecast Assignments for Use in 2022 LSE IRPs
A2: Assigned per June 15, 2022 ALJ Ruling - https://docs.cpuc.ca.gov/SearchRes.aspx?docformat=ALL&docid=485625915
A4: Service Area | B4: LSE CPUC ID | C4: LSE Name | D4: YEAR | E4: TYPE | F4: Final IRP Sales Forecast (GWH)
A5: PGE | C5: Pacific Gas and Electric (Direct Access) | D5: 2023 | E5: ESP | F5: 11393
A6: PGE | C6: Pacific Gas and Electric (Direct Access) | D6: 2024 | E6: ESP | F6: 11393
A7: PGE | C7: Pacific Gas and Electric (Direct Access) | D7: 2025 | E7: ESP | F7: 11393
A8: PGE | C8: Pacific Gas and Electric (Direct Access) | D8: 2026 | E8: ESP | F8: 11393
A9: PGE | C9: Pacific Gas and Electric (Direct Access) | D9: 2027 | E9: ESP | F9: 11393
A10: PGE | C10: Pacific Gas and Electric (Direct Access) | D10: 2028 | E10: ESP | F10: 11393
A11: PGE | C11: Pacific Gas and Electric (Direct Access) | D11: 2029 | E11: ESP | F11: 11393
A12: PGE | C12: Pacific Gas and Electric (Direct Access) | D12: 2030 | E12: ESP | F12: 11393
A13: PGE | C13: Pacific Gas and Electric (Direct Access) | D13: 2031 | E13: ESP | F13: 11393
A14: PGE | C14: Pacific Gas and Electric (Direct Access) | D14: 2032 | E14: ESP | F14: 11393
A15: PGE | C15: Pacific Gas and Electric (Direct Access) | D15: 2033 | E15: ESP | F15: 11393
A16: PGE | C16: Pacific Gas and Electric (Direct Access) | D16: 2034 | E16: ESP | F16: 11393
A17: PGE | C17: Pacific Gas and Electric (Direct Access) | D17: 2035 | E17: ESP | F17: 11393
A18: SCE | C18: Southern California Edison (Direct Access) | D18: 2023 | E18: ESP | F18: 13420.85103
A19: SCE | C19: Southern California Edison (Direct Access) | D19: 2024 | E19: ESP | F19: 13420.85103
A20: SCE | C20: Southern California Edison (Direct Access) | D20: 2025 | E20: ESP | F20: 13420.85103
A21: SCE | C21: Southern California Edison (Direct Access) | D21: 2026 | E21: ESP | F21: 13420.85103
A22: SCE | C22: Southern California Edison (Direct Access) | D22: 2027 | E22: ESP | F22: 13420.85103
A23: SCE | C23: Southern California Edison (Direct Access) | D23: 2028 | E23: ESP | F23: 13420.85103
A24: SCE | C24: Southern California Edison (Direct Access) | D24: 2029 | E24: ESP | F24: 13420.85103
A25: SCE | C25: Southern California Edison (Direct Access) | D25: 2030 | E25: ESP | F25: 13420.85103
A26: SCE | C26: Southern California Edison (Direct Access) | D26: 2031 | E26: ESP | F26: 13420.85103
A27: SCE | C27: Southern California Edison (Direct Access) | D27: 2032 | E27: ESP | F27: 13420.85103
A28: SCE | C28: Southern California Edison (Direct Access) | D28: 2033 | E28: ESP | F28: 13420.85103
A29: SCE | C29: Southern California Edison (Direct Access) | D29: 2034 | E29: ESP | F29: 13420.85103
A30: SCE | C30: Southern California Edison (Direct Access) | D30: 2035 | E30: ESP | F30: 13420.85103
A31: SDGE | C31: San Diego Gas and Electric (Direct Access) | D31: 2023 | E31: ESP | F31: 3940
A32: SDGE | C32: San Diego Gas and Electric (Direct Access) | D32: 2024 | E32: ESP | F32: 3940
A33: SDGE | C33: San Diego Gas and Electric (Direct Access) | D33: 2025 | E33: ESP | F33: 3940
A34: SDGE | C34: San Diego Gas and Electric (Direct Access) | D34: 2026 | E34: ESP | F34: 3940
A35: SDGE | C35: San Diego Gas and Electric (Direct Access) | D35: 2027 | E35: ESP | F35: 3940
A36: SDGE | C36: San Diego Gas and Electric (Direct Access) | D36: 2028 | E36: ESP | F36: 3940
A37: SDGE | C37: San Diego Gas and Electric (Direct Access) | D37: 2029 | E37: ESP | F37: 3940
A38: SDGE | C38: San Diego Gas and Electric (Direct Access) | D38: 2030 | E38: ESP | F38: 3940
A39: SDGE | C39: San Diego Gas and Electric (Direct Access) | D39: 2031 | E39: ESP | F39: 3940
A40: SDGE | C40: San Diego Gas and Electric (Direct Access) | D40: 2032 | E40: ESP | F40: 3940
A41: SDGE | C41: San Diego Gas and Electric (Direct Access) | D41: 2033 | E41: ESP | F41: 3940
A42: SDGE | C42: San Diego Gas and Electric (Direct Access) | D42: 2034 | E42: ESP | F42: 3940
A43: SDGE | C43: San Diego Gas and Electric (Direct Access) | D43: 2035 | E43: ESP | F43: 3940
A44: PGE | B44: PGE | C44: Pacific Gas and Electric (Bundled) | D44: 2023 | E44: IOU | F44: 26903.26284
A45: PGE | B45: PGE | C45: Pacific Gas and Electric (Bundled) | D45: 2024 | E45: IOU | F45: 27098.07432
A46: PGE | B46: PGE | C46: Pacific Gas and Electric (Bundled) | D46: 2025 | E46: IOU | F46: 27256.63316
A47: PGE | B47: PGE | C47: Pacific Gas and Electric (Bundled) | D47: 2026 | E47: IOU | F47: 27398.94755
A48: PGE | B48: PGE | C48: Pacific Gas and Electric (Bundled) | D48: 2027 | E48: IOU | F48: 27549.42552
A49: PGE | B49: PGE | C49: Pacific Gas and Electric (Bundled) | D49: 2028 | E49: IOU | F49: 27650.23956
A50: PGE | B50: PGE | C50: Pacific Gas and Electric (Bundled) | D50: 2029 | E50: IOU | F50: 27879.43092
A51: PGE | B51: PGE | C51: Pacific Gas and Electric (Bundled) | D51: 2030 | E51: IOU | F51: 28019.55891
A52: PGE | B52: PGE | C52: Pacific Gas and Electric (Bundled) | D52: 2031 | E52: IOU | F52: 28355.70048
A53: PGE | B53: PGE | C53: Pacific Gas and Electric (Bundled) | D53: 2032 | E53: IOU | F53: 28612.64363
A54: PGE | B54: PGE | C54: Pacific Gas and Electric (Bundled) | D54: 2033 | E54: IOU | F54: 29044.20862
A55: PGE | B55: PGE | C55: Pacific Gas and Electric (Bundled) | D55: 2034 | E55: IOU | F55: 29434.17981
A56: PGE | B56: PGE | C56: Pacific Gas and Electric (Bundled) | D56: 2035 | E56: IOU | F56: 29851.64209
A57: SCE | B57: SCE | C57: Southern California Edison (Bundled) | D57: 2023 | E57: IOU | F57: 51695.2
A58: SCE | B58: SCE | C58: Southern California Edison (Bundled) | D58: 2024 | E58: IOU | F58: 51866.12072
A59: SCE | B59: SCE | C59: Southern California Edison (Bundled) | D59: 2025 | E59: IOU | F59: 52196.11647
A60: SCE | B60: SCE | C60: Southern California Edison (Bundled) | D60: 2026 | E60: IOU | F60: 52501.94985
A61: SCE | B61: SCE | C61: Southern California Edison (Bundled) | D61: 2027 | E61: IOU | F61: 52943.77752
A62: SCE | B62: SCE | C62: Southern California Edison (Bundled) | D62: 2028 | E62: IOU | F62: 53251.41622
A63: SCE | B63: SCE | C63: Southern California Edison (Bundled) | D63: 2029 | E63: IOU | F63: 53601.83086
A64: SCE | B64: SCE | C64: Southern California Edison (Bundled) | D64: 2030 | E64: IOU | F64: 53909.21205
A65: SCE | B65: SCE | C65: Southern California Edison (Bundled) | D65: 2031 | E65: IOU | F65: 54293.30519
A66: SCE | B66: SCE | C66: Southern California Edison (Bundled) | D66: 2032 | E66: IOU | F66: 54525.33068
A67: SCE | B67: SCE | C67: Southern California Edison (Bundled) | D67: 2033 | E67: IOU | F67: 54791.53273
A68: SCE | B68: SCE | C68: Southern California Edison (Bundled) | D68: 2034 | E68: IOU | F68: 55033.0643
A69: SCE | B69: SCE | C69: Southern California Edison (Bundled) | D69: 2035 | E69: IOU | F69: 55275.88026
A70: SDGE | B70: SDGE | C70: San Diego Gas and Electric (Bundled) | D70: 2023 | E70: IOU | F70: 4421.698787
A71: SDGE | B71: SDGE | C71: San Diego Gas and Electric (Bundled) | D71: 2024 | E71: IOU | F71: 3637.797969
A72: SDGE | B72: SDGE | C72: San Diego Gas and Electric (Bundled) | D72: 2025 | E72: IOU | F72: 3638.915287
A73: SDGE | B73: SDGE | C73: San Diego Gas and Electric (Bundled) | D73: 2026 | E73: IOU | F73: 3645.460521
A74: SDGE | B74: SDGE | C74: San Diego Gas and Electric (Bundled) | D74: 2027 | E74: IOU | F74: 3656.224147
A75: SDGE | B75: SDGE | C75: San Diego Gas and Electric (Bundled) | D75: 2028 | E75: IOU | F75: 3663.552335
A76: SDGE | B76: SDGE | C76: San Diego Gas and Electric (Bundled) | D76: 2029 | E76: IOU | F76: 3677.819987
A77: SDGE | B77: SDGE | C77: San Diego Gas and Electric (Bundled) | D77: 2030 | E77: IOU | F77: 3694.019382
A78: SDGE | B78: SDGE | C78: San Diego Gas and Electric (Bundled) | D78: 2031 | E78: IOU | F78: 3716.292187
A79: SDGE | B79: SDGE | C79: San Diego Gas and Electric (Bundled) | D79: 2032 | E79: IOU | F79: 3734.006933
A80: SDGE | B80: SDGE | C80: San Diego Gas and Electric (Bundled) | D80: 2033 | E80: IOU | F80: 3755.697771
A81: SDGE | B81: SDGE | C81: San Diego Gas and Electric (Bundled) | D81: 2034 | E81: IOU | F81: 3772.751444
A82: SDGE | B82: SDGE | C82: San Diego Gas and Electric (Bundled) | D82: 2035 | E82: IOU | F82: 3787.412872
A83: PGE | B83: 3CE | C83: Central Coast Community Energy | D83: 2023 | E83: CCA | F83: 4557.05
A84: PGE | B84: 3CE | C84: Central Coast Community Energy | D84: 2024 | E84: CCA | F84: 4594.72
A85: PGE | B85: 3CE | C85: Central Coast Community Energy | D85: 2025 | E85: CCA | F85: 4617.45
A86: PGE | B86: 3CE | C86: Central Coast Community Energy | D86: 2026 | E86: CCA | F86: 4640.88
A87: PGE | B87: 3CE | C87: Central Coast Community Energy | D87: 2027 | E87: CCA | F87: 4672.05
A88: PGE | B88: 3CE | C88: Central Coast Community Energy | D88: 2028 | E88: CCA | F88: 4697.3
A89: PGE | B89: 3CE | C89: Central Coast Community Energy | D89: 2029 | E89: CCA | F89: 4729.19
A90: PGE | B90: 3CE | C90: Central Coast Community Energy | D90: 2030 | E90: CCA | F90: 4760.56
A91: PGE | B91: 3CE | C91: Central Coast Community Energy | D91: 2031 | E91: CCA | F91: 4799.79
A92: PGE | B92: 3CE | C92: Central Coast Community Energy | D92: 2032 | E92: CCA | F92: 4829.14
A93: PGE | B93: 3CE | C93: Central Coast Community Energy | D93: 2033 | E93: CCA | F93: 4864.25
A94: PGE | B94: 3CE | C94: Central Coast Community Energy | D94: 2034 | E94: CCA | F94: 4898.33
A95: PGE | B95: 3CE | C95: Central Coast Community Energy | D95: 2035 | E95: CCA | F95: 4935.53
A96: PGE | B96: CPSF | C96: CleanPowerSF | D96: 2023 | E96: CCA | F96: 2943.85
A97: PGE | B97: CPSF | C97: CleanPowerSF | D97: 2024 | E97: CCA | F97: 2969.61
A98: PGE | B98: CPSF | C98: CleanPowerSF | D98: 2025 | E98: CCA | F98: 2992.9
A99: PGE | B99: CPSF | C99: CleanPowerSF | D99: 2026 | E99: CCA | F99: 3015.45
A100: PGE | B100: CPSF | C100: CleanPowerSF | D100: 2027 | E100: CCA | F100: 3039.05
A101: PGE | B101: CPSF | C101: CleanPowerSF | D101: 2028 | E101: CCA | F101: 3061.6
A102: PGE | B102: CPSF | C102: CleanPowerSF | D102: 2029 | E102: CCA | F102: 3089.8
A103: PGE | B103: CPSF | C103: CleanPowerSF | D103: 2030 | E103: CCA | F103: 3119.16
A104: PGE | B104: CPSF | C104: CleanPowerSF | D104: 2031 | E104: CCA | F104: 3152.83
A105: PGE | B105: CPSF | C105: CleanPowerSF | D105: 2032 | E105: CCA | F105: 3181.17
A106: PGE | B106: CPSF | C106: CleanPowerSF | D106: 2033 | E106: CCA | F106: 3215.15
A107: PGE | B107: CPSF | C107: CleanPowerSF | D107: 2034 | E107: CCA | F107: 3247.21
A108: PGE | B108: CPSF | C108: CleanPowerSF | D108: 2035 | E108: CCA | F108: 3292.89
A109: PGE | B109: EBCE | C109: East Bay Community Energy | D109: 2023 | E109: CCA | F109: 6651.95
A110: PGE | B110: EBCE | C110: East Bay Community Energy | D110: 2024 | E110: CCA | F110: 6739.801978
A111: PGE | B111: EBCE | C111: East Bay Community Energy | D111: 2025 | E111: CCA | F111: 6815.883221
A112: PGE | B112: EBCE | C112: East Bay Community Energy | D112: 2026 | E112: CCA | F112: 6887.173079
A113: PGE | B113: EBCE | C113: East Bay Community Energy | D113: 2027 | E113: CCA | F113: 6954.652576
A114: PGE | B114: EBCE | C114: East Bay Community Energy | D114: 2028 | E114: CCA | F114: 7026.502967
A115: PGE | B115: EBCE | C115: East Bay Community Energy | D115: 2029 | E115: CCA | F115: 7100.580186
A116: PGE | B116: EBCE | C116: East Bay Community Energy | D116: 2030 | E116: CCA | F116: 7179.735255
A117: PGE | B117: EBCE | C117: East Bay Community Energy | D117: 2031 | E117: CCA | F117: 7259.19992
A118: PGE | B118: EBCE | C118: East Bay Community Energy | D118: 2032 | E118: CCA | F118: 7326.107566
A119: PGE | B119: EBCE | C119: East Bay Community Energy | D119: 2033 | E119: CCA | F119: 7393.583488
A120: PGE | B120: EBCE | C120: East Bay Community Energy | D120: 2034 | E120: CCA | F120: 7461.1969
A121: PGE | B121: EBCE | C121: East Bay Community Energy | D121: 2035 | E121: CCA | F121: 7539.969031
A122: PGE | B122: KCCP | C122: King City Community Power | D122: 2023 | E122: CCA | F122: 33.86
A123: PGE | B123: KCCP | C123: King City Community Power | D123: 2024 | E123: CCA | F123: 34.12
A124: PGE | B124: KCCP | C124: King City Community Power | D124: 2025 | E124: CCA | F124: 34.33
A125: PGE | B125: KCCP | C125: King City Community Power | D125: 2026 | E125: CCA | F125: 34.55
A126: PGE | B126: KCCP | C126: King City Community Power | D126: 2027 | E126: CCA | F126: 34.8
A127: PGE | B127: KCCP | C127: King City Community Power | D127: 2028 | E127: CCA | F127: 35.05
A128: PGE | B128: KCCP | C128: King City Community Power | D128: 2029 | E128: CCA | F128: 35.39
A129: PGE | B129: KCCP | C129: King City Community Power | D129: 2030 | E129: CCA | F129: 35.73
A130: PGE | B130: KCCP | C130: King City Community Power | D130: 2031 | E130: CCA | F130: 36.17
A131: PGE | B131: KCCP | C131: King City Community Power | D131: 2032 | E131: CCA | F131: 36.54
A132: PGE | B132: KCCP | C132: King City Community Power | D132: 2033 | E132: CCA | F132: 37
A133: PGE | B133: KCCP | C133: King City Community Power | D133: 2034 | E133: CCA | F133: 37.46
A134: PGE | B134: KCCP | C134: King City Community Power | D134: 2035 | E134: CCA | F134: 37.95
A135: PGE | B135: MCE | C135: Marin Clean Energy | D135: 2023 | E135: CCA | F135: 5728.63
A136: PGE | B136: MCE | C136: Marin Clean Energy | D136: 2024 | E136: CCA | F136: 5758.94
A137: PGE | B137: MCE | C137: Marin Clean Energy | D137: 2025 | E137: CCA | F137: 5755.61
A138: PGE | B138: MCE | C138: Marin Clean Energy | D138: 2026 | E138: CCA | F138: 5759.26
A139: PGE | B139: MCE | C139: Marin Clean Energy | D139: 2027 | E139: CCA | F139: 5766.74
A140: PGE | B140: MCE | C140: Marin Clean Energy | D140: 2028 | E140: CCA | F140: 5795.21
A141: PGE | B141: MCE | C141: Marin Clean Energy | D141: 2029 | E141: CCA | F141: 5827.36
A142: PGE | B142: MCE | C142: Marin Clean Energy | D142: 2030 | E142: CCA | F142: 5955.34
A143: PGE | B143: MCE | C143: Marin Clean Energy | D143: 2031 | E143: CCA | F143: 5982.79
A144: PGE | B144: MCE | C144: Marin Clean Energy | D144: 2032 | E144: CCA | F144: 6039.93
A145: PGE | B145: MCE | C145: Marin Clean Energy | D145: 2033 | E145: CCA | F145: 6040.19
A146: PGE | B146: MCE | C146: Marin Clean Energy | D146: 2034 | E146: CCA | F146: 6066.94
A147: PGE | B147: MCE | C147: Marin Clean Energy | D147: 2035 | E147: CCA | F147: 6098.58
A148: PGE | B148: PCEA | C148: Peninsula Clean Energy Authority | D148: 2023 | E148: CCA | F148: 3424.818232
A149: PGE | B149: PCEA | C149: Peninsula Clean Energy Authority | D149: 2024 | E149: CCA | F149: 3455.718591
A150: PGE | B150: PCEA | C150: Peninsula Clean Energy Authority | D150: 2025 | E150: CCA | F150: 3461.012172
A151: PGE | B151: PCEA | C151: Peninsula Clean Energy Authority | D151: 2026 | E151: CCA | F151: 3495.777431
A152: PGE | B152: PCEA | C152: Peninsula Clean Energy Authority | D152: 2027 | E152: CCA | F152: 3554.007395
A153: PGE | B153: PCEA | C153: Peninsula Clean Energy Authority | D153: 2028 | E153: CCA | F153: 3620.172784
A154: PGE | B154: PCEA | C154: Peninsula Clean Energy Authority | D154: 2029 | E154: CCA | F154: 3666.169348
A155: PGE | B155: PCEA | C155: Peninsula Clean Energy Authority | D155: 2030 | E155: CCA | F155: 3721.485725
A156: PGE | B156: PCEA | C156: Peninsula Clean Energy Authority | D156: 2031 | E156: CCA | F156: 3780.656887
A157: PGE | B157: PCEA | C157: Peninsula Clean Energy Authority | D157: 2032 | E157: CCA | F157: 3847.915327
A158: PGE | B158: PCEA | C158: Peninsula Clean Energy Authority | D158: 2033 | E158: CCA | F158: 3897.291658
A159: PGE | B159: PCEA | C159: Peninsula Clean Energy Authority | D159: 2034 | E159: CCA | F159: 3960.710089
A160: PGE | B160: PCEA | C160: Peninsula Clean Energy Authority | D160: 2035 | E160: CCA | F160: 4032.7067
A161: PGE | B161: PIONEER | C161: Pioneer Community Energy | D161: 2023 | E161: CCA | F161: 1888.43
A162: PGE | B162: PIONEER | C162: Pioneer Community Energy | D162: 2024 | E162: CCA | F162: 1904.69
A163: PGE | B163: PIONEER | C163: Pioneer Community Energy | D163: 2025 | E163: CCA | F163: 1916.17
A164: PGE | B164: PIONEER | C164: Pioneer Community Energy | D164: 2026 | E164: CCA | F164: 1926.85
A165: PGE | B165: PIONEER | C165: Pioneer Community Energy | D165: 2027 | E165: CCA | F165: 1938.95
A166: PGE | B166: PIONEER | C166: Pioneer Community Energy | D166: 2028 | E166: CCA | F166: 1951.69
A167: PGE | B167: PIONEER | C167: Pioneer Community Energy | D167: 2029 | E167: CCA | F167: 1968.03
A168: PGE | B168: PIONEER | C168: Pioneer Community Energy | D168: 2030 | E168: CCA | F168: 1986.47
A169: PGE | B169: PIONEER | C169: Pioneer Community Energy | D169: 2031 | E169: CCA | F169: 2006.21
A170: PGE | B170: PIONEER | C170: Pioneer Community Energy | D170: 2032 | E170: CCA | F170: 2023.27
A171: PGE | B171: PIONEER | C171: Pioneer Community Energy | D171: 2033 | E171: CCA | F171: 2044.07
A172: PGE | B172: PIONEER | C172: Pioneer Community Energy | D172: 2034 | E172: CCA | F172: 2065.07
A173: PGE | B173: PIONEER | C173: Pioneer Community Energy | D173: 2035 | E173: CCA | F173: 2089.92
A174: PGE | B174: RCEA | C174: Redwood Coast Energy Authority | D174: 2023 | E174: CCA | F174: 674.13
A175: PGE | B175: RCEA | C175: Redwood Coast Energy Authority | D175: 2024 | E175: CCA | F175: 677.92
A176: PGE | B176: RCEA | C176: Redwood Coast Energy Authority | D176: 2025 | E176: CCA | F176: 678.67
A177: PGE | B177: RCEA | C177: Redwood Coast Energy Authority | D177: 2026 | E177: CCA | F177: 680.61
A178: PGE | B178: RCEA | C178: Redwood Coast Energy Authority | D178: 2027 | E178: CCA | F178: 682.11
A179: PGE | B179: RCEA | C179: Redwood Coast Energy Authority | D179: 2028 | E179: CCA | F179: 683.33
A180: PGE | B180: RCEA | C180: Redwood Coast Energy Authority | D180: 2029 | E180: CCA | F180: 684.37
A181: PGE | B181: RCEA | C181: Redwood Coast Energy Authority | D181: 2030 | E181: CCA | F181: 685.27
A182: PGE | B182: RCEA | C182: Redwood Coast Energy Authority | D182: 2031 | E182: CCA | F182: 686.06
A183: PGE | B183: RCEA | C183: Redwood Coast Energy Authority | D183: 2032 | E183: CCA | F183: 686.77
A184: PGE | B184: RCEA | C184: Redwood Coast Energy Authority | D184: 2033 | E184: CCA | F184: 687.38
A185: PGE | B185: RCEA | C185: Redwood Coast Energy Authority | D185: 2034 | E185: CCA | F185: 687.96
A186: PGE | B186: RCEA | C186: Redwood Coast Energy Authority | D186: 2035 | E186: CCA | F186: 688.5
A187: PGE | B187: SJCE | C187: San José Clean Energy | D187: 2023 | E187: CCA | F187: 3789.74
A188: PGE | B188: SJCE | C188: San José Clean Energy | D188: 2024 | E188: CCA | F188: 3820.79
A189: PGE | B189: SJCE | C189: San José Clean Energy | D189: 2025 | E189: CCA | F189: 3844.49
A190: PGE | B190: SJCE | C190: San José Clean Energy | D190: 2026 | E190: CCA | F190: 3867.62
A191: PGE | B191: SJCE | C191: San José Clean Energy | D191: 2027 | E191: CCA | F191: 3894.5
A192: PGE | B192: SJCE | C192: San José Clean Energy | D192: 2028 | E192: CCA | F192: 3921.64
A193: PGE | B193: SJCE | C193: San José Clean Energy | D193: 2029 | E193: CCA | F193: 3957.58
A194: PGE | B194: SJCE | C194: San José Clean Energy | D194: 2030 | E194: CCA | F194: 3995.71
A195: PGE | B195: SJCE | C195: San José Clean Energy | D195: 2031 | E195: CCA | F195: 4040.38
A196: PGE | B196: SJCE | C196: San José Clean Energy | D196: 2032 | E196: CCA | F196: 4079.4
A197: PGE | B197: SJCE | C197: San José Clean Energy | D197: 2033 | E197: CCA | F197: 4126.86
A198: PGE | B198: SJCE | C198: San José Clean Energy | D198: 2034 | E198: CCA | F198: 4174.19
A199: PGE | B199: SJCE | C199: San José Clean Energy | D199: 2035 | E199: CCA | F199: 4227.4
A200: PGE | B200: SVCEA | C200: Silicon Valley Clean Energy Authority | D200: 2023 | E200: CCA | F200: 3654.29
A201: PGE | B201: SVCEA | C201: Silicon Valley Clean Energy Authority | D201: 2024 | E201: CCA | F201: 3681.47
... 271 more rows

Sheet LSE BTM PV Forecasts
A1: Individual LSE Behind-the-Meter Photovoltaic (BTM PV) Forecast Assignments for Use in 2022 LSE IRPs
A2: Assigned per June 15, 2022 ALJ Ruling - https://docs.cpuc.ca.gov/SearchRes.aspx?docformat=ALL&docid=485625915
E3: Generation (GWh) (measured at customer, not grossed up for T&D losses)
A4: Service Area | B4: Type | C4: LSE CPUC ID | D4: LSE Name | E4: 2023 | F4: 2024 | G4: 2025 | H4: 2026 | I4: 2027 | J4: 2028 | K4: 2029 | L4: 2030 | M4: 2031 | N4: 2032 | O4: 2033 | P4: 2034 | Q4: 2035
A6: PGE | B6: IOU | C6: PGE | D6: Pacific Gas and Electric (Bundled) | E6: 3907.002443 | F6: 4240.360023 | G6: 4552.412612 | H6: 4867.353158 | I6: 5197.639367 | J6: 5536.31028 | K6: 5893.279881 | L6: 6225.783155 | M6: 6588.224074 | N6: 6935.033772 | O6: 7309.049681 | P6: 7662.764606 | Q6: 8005.579854
A7: PGE | B7: ESP | D7: Pacific Gas and Electric (Direct Access) | E7: 1654.538302 | F7: 1782.799072 | G7: 1902.862932 | H7: 2023.937395 | I7: 2149.471512 | J7: 2281.180345 | K7: 2408.303738 | L7: 2531.45839 | M7: 2647.073978 | N7: 2761.396003 | O7: 2867.077706 | P7: 2966.003392 | Q7: 3055.361947
A8: PGE | B8: CCA | C8: 3CE | D8: Central Coast Community Energy | E8: 661.7935374 | F8: 718.9908321 | G8: 771.2081492 | H8: 824.4404965 | I8: 881.4568925 | J8: 940.5238685 | K8: 999.6775171 | L8: 1057.768766 | M8: 1115.193471 | N8: 1170.47028 | O8: 1224.101003 | P8: 1275.209637 | Q8: 1323.604893
A9: PGE | B9: CCA | C9: CPSF | D9: CleanPowerSF | E9: 427.5180007 | F9: 464.6904196 | G9: 499.8752276 | H9: 535.6870023 | I9: 573.3653469 | J9: 613.0134068 | K9: 653.1358631 | L9: 693.0592252 | M9: 732.535263 | N9: 771.041001 | O9: 809.1007536 | P9: 845.3643354 | Q9: 883.0835426
A10: PGE | B10: CCA | C10: EBCE | D10: East Bay Community Energy | E10: 966.0235286 | F10: 1054.657483 | G10: 1138.391251 | H10: 1223.488733 | I10: 1312.106345 | J10: 1406.891992 | K10: 1500.952673 | L10: 1595.295449 | M10: 1686.61803 | N10: 1775.676657 | O10: 1860.614271 | P10: 1942.415107 | Q10: 2022.060428
A11: PGE | B11: CCA | C11: KCCP | D11: King City Community Power | E11: 4.917288416 | F11: 5.339164779 | G11: 5.733808869 | H11: 6.137719388 | I11: 6.565576109 | J11: 7.017938303 | K11: 7.480897856 | L11: 7.938998357 | M11: 8.403815132 | N11: 8.856439038 | O11: 9.311145012 | P11: 9.75217125 | Q11: 10.17738839
A12: PGE | B12: CCA | C12: MCE | D12: Marin Clean Energy | E12: 831.9352019 | F12: 901.1702699 | G12: 961.3040392 | H12: 1023.117851 | I12: 1087.987654 | J12: 1160.354529 | K12: 1231.813646 | L12: 1323.241939 | M12: 1390.05422 | N12: 1463.937379 | O12: 1520.029324 | P12: 1579.440412 | Q12: 1635.510336
A13: PGE | B13: CCA | C13: PCEA | D13: Peninsula Clean Energy Authority | E13: 497.3661849 | F13: 540.757649 | G13: 578.0594899 | H13: 621.0159454 | I13: 670.5202885 | J13: 724.8544722 | K13: 774.971416 | L13: 826.892501 | M13: 878.4059043 | N13: 932.6444313 | O13: 980.7634536 | P13: 1031.113803 | Q13: 1081.486754
A14: PGE | B14: CCA | C14: PIONEER | D14: Pioneer Community Energy | E14: 274.2455689 | F14: 298.0496413 | G14: 320.0393982 | H14: 342.2999885 | I14: 365.8139022 | J14: 390.7800287 | K14: 416.0110598 | L14: 441.3820897 | M14: 466.1271207 | N14: 490.3931969 | O14: 514.3954644 | P14: 537.6112195 | Q14: 560.4723988
A15: PGE | B15: CCA | C15: RCEA | D15: Redwood Coast Energy Authority | E15: 97.89993029 | F15: 106.0822564 | G15: 113.351706 | H15: 120.9086308 | I15: 128.6909517 | J15: 136.8207641 | K15: 144.665218 | L15: 152.2630116 | M15: 159.4006472 | N15: 166.4569414 | O15: 172.9809421 | P15: 179.1004734 | Q15: 184.6411569
A16: PGE | B16: CCA | C16: SJCE | D16: San José Clean Energy | E16: 550.3616244 | F16: 597.8847419 | G16: 642.1080938 | H16: 687.0728295 | I16: 734.7596596 | J16: 785.2161931 | K16: 836.5711143 | L16: 887.8235411 | M16: 938.7505276 | N16: 988.7508871 | O16: 1038.534916 | P16: 1086.690222 | Q16: 1133.699385
A17: PGE | B17: CCA | C17: SVCEA | D17: Silicon Valley Clean Energy Authority | E17: 530.6910185 | F17: 576.083674 | G17: 618.0855558 | H17: 660.9959604 | I17: 706.4616493 | J17: 754.4193574 | K17: 803.2188661 | L17: 851.7658682 | M17: 900.1910264 | N17: 947.6874524 | O17: 994.8002165 | P17: 1040.282799 | Q17: 1084.418835
A18: PGE | B18: CCA | C18: SOMA | D18: Sonoma Clean Power | E18: 320.6751696 | F18: 348.4994281 | G18: 374.3310356 | H18: 400.5079519 | I18: 428.2189484 | J18: 457.6116249 | K18: 487.4252031 | L18: 517.3125098 | M18: 546.7056976 | N18: 575.5546205 | O18: 604.2102659 | P18: 631.936011 | Q18: 659.1622256
A19: PGE | B19: CCA | C19: VCEA | D19: Valley Clean Energy Alliance | E19: 105.6227525 | F19: 112.4167437 | G19: 121.7744796 | H19: 131.5739303 | I19: 141.823357 | J19: 153.0947064 | K19: 163.6364786 | L19: 174.7272608 | M19: 185.5972664 | N19: 196.9221534 | O19: 206.9617163 | P19: 217.1073736 | Q19: 227.0440698
A21: SCE | B21: IOU | C21: SCE | D21: Southern California Edison (Bundled) | E21: 4975.454699 | F21: 5374.128136 | G21: 5782.84254 | H21: 6212.015006 | I21: 6660.813842 | J21: 7123.015503 | K21: 7602.627129 | L21: 8098.877155 | M21: 8614.599704 | N21: 9141.634605 | O21: 9679.498355 | P21: 10224.74418 | Q21: 10773.96903
A22: SCE | B22: ESP | D22: Southern California Edison (Direct Access) | E22: 424.4403727 | F22: 456.9391624 | G22: 488.5818238 | H22: 521.7845242 | I22: 554.8128381 | J22: 589.8843279 | K22: 625.4868702 | L22: 662.5153701 | M22: 699.7178478 | N22: 739.3663497 | O22: 779.0647089 | P22: 819.3376015 | Q22: 859.5560194
A23: SCE | B23: CCA | C23: AVCE | D23: Apple Valley Choice Energy | E23: 48.77743734 | F23: 53.12238874 | G23: 57.20253773 | H23: 61.48366506 | I23: 65.96271003 | J23: 70.62766794 | K23: 75.39878512 | L23: 80.36236311 | M23: 85.34994639 | N23: 90.47343709 | O23: 95.67560591 | P23: 100.9434397 | Q23: 106.3129655
A24: SCE | B24: CCA | C24: COBP | D24: Baldwin Park, City of | E24: 0 | F24: 0 | G24: 0 | H24: 0 | I24: 0 | J24: 0 | K24: 0 | L24: 0 | M24: 0 | N24: 0 | O24: 0 | P24: 0 | Q24: 0
A25: SCE | B25: CCA | C25: 3CE | D25: Central Coast Community Energy | E25: 53.29139391 | F25: 57.09311402 | G25: 60.74541462 | H25: 64.55049605 | I25: 68.29426148 | J25: 72.24752704 | K25: 76.22366213 | L25: 80.33194009 | M25: 84.42238041 | N25: 88.76175774 | O25: 94.1600347 | P25: 99.67037695 | Q25: 105.3015662
A26: SCE | B26: CCA | C26: CPASC | D26: Clean Power Alliance | E26: 730.9309739 | F26: 795.0941107 | G26: 855.718315 | H26: 919.4004222 | I26: 985.8504801 | J26: 1054.902496 | K26: 1126.161467 | L26: 1200.051831 | M26: 1275.862356 | N26: 1353.59051 | O26: 1432.888934 | P26: 1513.286923 | Q26: 1594.632147
A27: SCE | B27: CCA | C27: DCE | D27: Desert Community Energy | E27: 64.02134939 | F27: 70.85602078 | G27: 76.33704164 | H27: 81.77641316 | I27: 87.26564021 | J27: 93.16273478 | K27: 99.24244188 | L27: 105.6532142 | M27: 112.2111776 | N27: 119.29286 | O27: 126.5210932 | P27: 133.996711 | Q27: 141.6253809
A28: SCE | B28: CCA | C28: PALMDALE | D28: Energy for Palmdale’s Independent Choice | E28: 53.20477254 | F28: 63.24165105 | G28: 68.13771163 | H28: 73.28036513 | I28: 78.6508147 | J28: 84.2849327 | K28: 90.13676233 | L28: 96.19617747 | M28: 102.4125137 | N28: 108.7987443 | O28: 115.340763 | P28: 121.9776477 | Q28: 128.6904458
A29: SCE | B29: CCA | C29: LCE | D29: Lancaster Choice Energy | E29: 119.1097663 | F29: 129.6399534 | G29: 139.5760596 | H29: 150.0055464 | I29: 160.9063768 | J29: 172.2520493 | K29: 183.9202925 | L29: 196.0387865 | M29: 208.3466318 | N29: 220.9797611 | O29: 233.8464503 | P29: 246.8830697 | Q29: 260.1233234
A30: SCE | B30: CCA | C30: OCPA | D30: Orange County Power Authority | E30: 344.732855 | F30: 408.5502875 | G30: 440.1793958 | H30: 473.4042732 | I30: 508.0924863 | J30: 544.4974714 | K30: 582.2960169 | L30: 621.4416267 | M30: 661.5907202 | N30: 702.8482331 | O30: 745.1173386 | P30: 787.9832252 | Q30: 831.3534941
A31: SCE | B31: CCA | C31: PRIME | D31: Pico Rivera Innovative Municipal Energy | E31: 14.42894309 | F31: 15.69083401 | G31: 16.8871784 | H31: 18.14493111 | I31: 19.45661112 | J31: 20.82083057 | K31: 22.23308905 | L31: 23.69612228 | M31: 25.20609743 | N31: 26.75365119 | O31: 28.33578021 | P31: 29.94016855 | Q31: 31.56016879
A32: SCE | B32: CCA | C32: POMONA | D32: Pomona Choice Energy | E32: 11.82426625 | F32: 12.85994392 | G32: 13.84935565 | H32: 14.8878438 | I32: 15.97126751 | J32: 17.10660554 | K32: 18.28096787 | L32: 19.49869209 | M32: 20.73974216 | N32: 22.01609684 | O32: 23.3210635 | P32: 24.64404021 | Q32: 25.98434188
A33: SCE | B33: CCA | C33: RMEA | D33: Rancho Mirage Energy Authority | E33: 71.84487369 | F33: 78.1766299 | G33: 84.09195117 | H33: 90.30454059 | I33: 96.78806757 | J33: 103.4870777 | K33: 110.3450529 | L33: 117.4736344 | M33: 124.7379017 | N33: 132.1766378 | O33: 139.7299382 | P33: 147.3836502 | Q33: 155.1477304
A34: SCE | B34: CCA | C34: SJP | D34: San Jacinto Power | E34: 37.73219364 | F34: 41.08072836 | G34: 44.22287074 | H34: 47.51530581 | I34: 50.96043221 | J34: 54.53766739 | K34: 58.19670693 | L34: 62.00303661 | M34: 65.84389215 | N34: 69.78221201 | O34: 73.78459656 | P34: 77.83728212 | Q34: 81.96280421
A35: SCE | B35: CCA | C35: SBCE | D35: Santa Barbara Clean Energy | E35: 32.78234004 | F35: 35.6467266 | G35: 38.38093615 | H35: 41.25188911 | I35: 44.24546183 | J35: 47.37426916 | K35: 50.61748691 | L35: 53.97787573 | M35: 57.42711569 | N35: 60.97175689 | O35: 64.5957432 | P35: 68.27244002 | Q35: 71.9893231
A36: SCE | B36: CCA | C36: WCE | D36: Western Community Energy | E36: 0 | F36: 0 | G36: 0 | H36: 0 | I36: 0 | J36: 0 | K36: 0 | L36: 0 | M36: 0 | N36: 0 | O36: 0 | P36: 0 | Q36: 0
A38: SDGE | B38: IOU | C38: SDGE | D38: San Diego Gas and Electric (Bundled) | E38: 874.7001248 | F38: 772.3336064 | G38: 823.1483639 | H38: 877.2707476 | I38: 933.8091252 | J38: 990.3996211 | K38: 1048.343187 | L38: 1106.313585 | M38: 1164.631268 | N38: 1222.847748 | O38: 1280.922758 | P38: 1337.977204 | Q38: 1393.037698
A39: SDGE | B39: ESP | D39: San Diego Gas and Electric (Direct Access) | E39: 779.4105066 | F39: 836.4935147 | G39: 891.2558545 | H39: 948.1509197 | I39: 1006.286214 | J39: 1065.134097 | K39: 1123.076217 | L39: 1179.981769 | M39: 1234.738003 | N39: 1290.308297 | O39: 1343.781096 | P39: 1397.290614 | Q39: 1449.160341
A40: SDGE | B40: CCA | C40: CEA | D40: Clean Energy Alliance | E40: 250.5804779 | F40: 315.7423325 | G40: 338.4197862 | H40: 361.9861086 | I40: 386.209151 | J40: 410.9552842 | K40: 435.7755262 | L40: 460.8593321 | M40: 486.1799864 | N40: 511.1406007 | O40: 535.9877784 | P40: 560.357479 | Q40: 584.5725816
A41: SDGE | B41: CCA | C41: OCPA | D41: Orange County Power Authority | E41: 4.441297224 | F41: 35.97814459 | G41: 38.5621476 | H41: 41.24743203 | I41: 44.00779459 | J41: 46.82736519 | K41: 49.6556445 | L41: 52.51378458 | M41: 55.39923353 | N41: 58.24332635 | O41: 61.07470425 | P41: 63.85144597 | Q41: 66.61060725
A42: SDGE | B42: CCA | C42: SDCP | D42: San Diego Community Power | E42: 1468.219487 | F42: 1684.027045 | G42: 1804.976333 | H42: 1930.666294 | I42: 2059.870434 | J42: 2191.845921 | K42: 2324.229035 | L42: 2458.009841 | M42: 2593.068893 | N42: 2726.19219 | O42: 2858.72034 | P42: 2988.691138 | Q42: 3117.839049

Sheet GHG Benchmarks
A1: ='Supply Inputs'!B1 -> 25 MMT in 2035
A2: GHG benchmarks assigned per June 15, 2022 ALJ Ruling - https://docs.cpuc.ca.gov/SearchRes.aspx?docformat=ALL&docid=485625915
A4: Utility | C4: Proportion of Total Emissions | D4: 2030 Load (GWh) | E4: 2035 Load (GWh) | F4: Proportion of 2030 Load within EDU | G4: Proportion of 2035 Load within EDU | H4: 2030 GHG Emissions Benchmark (MMT) | I4: 2035 GHG Emissions Benchmark (MMT)
B5: LSEs within Host Utility Territory
A6: Bear Valley Electric Service | B6: N/A | C6: 0.0005877733825 | D6: 138.8195496 | E6: 142.4237088 | F6: N/A | G6: N/A | H6: 0.01444692693 | I6: 0.01168469725
A7: Liberty Utilities | B7: N/A | C7: 0.002547815114 | D7: 579.4708324 | E7: 599.1643031 | F7: N/A | G7: N/A | H7: 0.06313407054 | I7: 0.05103409231
A8: Pacific Gas and Electric Company | B8: Pacific Gas and Electric (Bundled) | C8: 0.3383674017 | D8: 28019.55891 | E8: 29851.64209 | F8: 0.3601484713 | G8: 0.3661149201 | H8: 3.012752347 | I8: 2.466221635
B9: Pacific Gas and Electric (Direct Access) | D9: 11393 | E9: 11393 | F9: 0.1464395477 | G9: 0.1397292408 | H9: 1.2250117 | I9: 0.9412434669
B10: Central Coast Community Energy | D10: 4760.56 | E10: 4935.53 | F10: 0.06118970011 | G10: 0.0605317177 | H10: 0.5118705959 | I10: 0.4077534774
B11: CleanPowerSF | D11: 3119.16 | E11: 3292.89 | F11: 0.04009201963 | G11: 0.04038558937 | H11: 0.3353820323 | I11: 0.2720452207
B12: East Bay Community Energy | D12: 7179.735255 | E12: 7539.969031 | F12: 0.09228448904 | G12: 0.09247381271 | H12: 0.7719880358 | I12: 0.6229216704
B13: King City Community Power | D13: 35.73 | E13: 37.95 | F13: 0.0004592543702 | G13: 0.0004654370831 | H13: 0.003841803568 | I13: 0.003135275131
B14: Marin Clean Energy | D14: 5955.34 | E14: 6098.58 | F14: 0.07654676522 | G14: 0.07479592322 | H14: 0.6403371525 | I14: 0.5038399528
B15: Peninsula Clean Energy Authority | D15: 3721.485725 | E15: 4032.7067 | F15: 0.04783399337 | G15: 0.04945905779 | H15: 0.4001460156 | I15: 0.3331658769
B16: Pioneer Community Energy | D16: 1986.47 | E16: 2089.92 | F16: 0.02553302628 | G16: 0.02563178573 | H16: 0.2135915906 | I16: 0.1726607168
B17: Redwood Coast Energy Authority | D17: 685.27 | E17: 688.5 | F17: 0.008808095223 | G17: 0.008444095697 | H17: 0.0736824162 | I17: 0.05688107847
B18: San José Clean Energy | D18: 3995.71 | E18: 4227.4 | F18: 0.05135872599 | G18: 0.05184687022 | H18: 0.4296314843 | I18: 0.3492506479
B19: Silicon Valley Clean Energy Authority | D19: 3833.43 | E19: 4043.64 | F19: 0.04927286539 | G19: 0.04959314905 | H19: 0.412182621 | I19: 0.3340691418
B20: Sonoma Clean Power | D20: 2328.2 | E20: 2457.92 | F20: 0.0299254415 | G20: 0.03014511502 | H20: 0.2503354902 | I20: 0.2030633847
B21: Valley Clean Energy Alliance | D21: 786.3718754 | E21: 846.6142907 | F21: 0.01010760483 | G21: 0.01038328553 | H21: 0.08455321233 | I21: 0.06994384009
A22: PacifiCorp | B22: N/A | C22: 0.00746140236 | D22: 886.08 | E22: 896.63 | F22: N/A | G22: N/A | H22: 0.2035041994 | I22: 0.1675878547
A23: Southern California Edison Company | B23: Southern California Edison (Bundled) | C23: 0.3317060067 | D23: 53909.21205 | E23: 55275.88026 | F23: 0.6200276033 | G23: 0.6223652455 | H23: 4.932647908 | I23: 3.992990836
B24: Southern California Edison (Direct Access) | D24: 13420.85103 | E24: 13420.85103 | F24: 0.154357628 | G24: 0.1511087875 | H24: 1.227996668 | I24: 0.9694885893
B25: Apple Valley Choice Energy | D25: 271.62 | E25: 276.96 | F25: 0.003123991081 | G25: 0.003118363336 | H25: 0.0248530033 | I25: 0.02000689517
B26: Baldwin Park, City of | D26: 0 | E26: 0 | F26: 0 | G26: 0 | H26: 0 | I26: 0
B27: Central Coast Community Energy | D27: 534.72 | E27: 540.25 | F27: 0.006149990835 | G27: 0.006082812654 | H27: 0.04892643371 | I27: 0.03902630386
B28: Clean Power Alliance | D28: 11466.83 | E28: 11744.26 | F28: 0.1318837885 | G28: 0.1322316212 | H28: 1.049205374 | I28: 0.8483758618
B29: Desert Community Energy | D29: 469.42 | E29: 485 | F29: 0.005398954028 | G29: 0.0054607388 | H29: 0.04295153821 | I29: 0.03503518255
B30: Energy for Palmdale’s Independent Choice | D30: 640.3184083 | E30: 660.2467163 | F30: 0.007364512909 | G30: 0.007433886312 | H30: 0.05858859993 | I30: 0.04769456542
B31: Lancaster Choice Energy | D31: 621.33 | E31: 635.45 | F31: 0.007146120971 | G31: 0.007154693754 | H31: 0.05685117642 | I31: 0.04590331288
B32: Orange County Power Authority | D32: 4136.552239 | E32: 4265.261584 | F32: 0.04757584971 | G32: 0.04802366892 | H32: 0.3784910774 | I32: 0.3081117901
B33: Pico Rivera Innovative Municipal Energy | D33: 237.21 | E33: 243.51 | F33: 0.002728230337 | G33: 0.002741741248 | H33: 0.02170451702 | I33: 0.01759055114
B34: Pomona Choice Energy | D34: 408.68 | E34: 419.77 | F34: 0.004700363283 | G34: 0.00472629758 | H34: 0.0373938789 | I34: 0.03032313109
B35: Rancho Mirage Energy Authority | D35: 293.58 | E35: 298.85 | F35: 0.003376560273 | G35: 0.003364828434 | H35: 0.02686232497 | I35: 0.02158817382
B36: San Jacinto Power | D36: 176.85 | E36: 180.19 | F36: 0.002034010097 | G36: 0.002028805205 | H36: 0.0161816274 | I36: 0.01301647328
B37: Santa Barbara Clean Energy | D37: 359.2973066 | E37: 369.3414371 | F37: 0.004132396662 | G37: 0.004158509518 | H37: 0.03287540368 | I37: 0.02668029829
B38: Western Community Energy | D38: 0 | E38: 0 | F38: 0 | G38: 0 | H38: 0 | I38: 0
A39: San Diego Gas & Electric Company | B39: San Diego Gas and Electric (Bundled) | C39: 0.08842680821 | D39: 3694.019382 | E39: 3787.412872 | F39: 0.2104186524 | G39: 0.2107081052 | H39: 0.4734120137 | I39: 0.3857721302
B40: San Diego Gas and Electric (Direct Access) | D40: 3940 | E40: 3940 | F40: 0.2244301951 | G40: 0.2191971044 | H40: 0.5049359901 | I40: 0.4013141014
B41: Clean Energy Alliance | D41: 1538.825273 | E41: 1589.345158 | F41: 0.08765453203 | G41: 0.08842128339 | H41: 0.197210219 | I41: 0.1618849299
B42: Orange County Power Authority | D42: 175.3453456 | E42: 181.10197 | F42: 0.0099880178 | G42: 0.01007538767 | H42: 0.0224716182 | I42: 0.01844638943
B43: Solana Energy Alliance | D43: 0 | E43: 0 | F43: 0 | G43: 0 | H43: 0 | I43: 0
B44: San Diego Community Power | D44: 8207.38 | E44: 8476.83 | F44: 0.4675086027 | G44: 0.4715981194 | H44: 1.051827804 | I44: 0.8634191406
A45: TOTAL | C45: =SUM(C6:C44) -> 0.7690972074 | D45: =SUM(D6:D44) -> 183906.4332 | E45: =SUM(E6:E44) -> 189964.9912 | H45: =SUM(H6:H44) -> 18.85177887 | I45: =SUM(I6:I44) -> 15.21317069

Sheet Supply Demand Balance Calcs
B1: Supply Demand Balance Calculations
E2: ='Demand Calcs'!AG2 -> Demand (at generator bus-bar) | I2: ='Supply Calcs'!CO2 -> LSE Supply, before curtailment and exports | M2: Net Purchases, before curtailment and exports | Q2: Disp. Gas / Unspec. Imports are marginal? | U2: Share of non-displacable system power | Y2: Net System Power (incurs emissions) | AC2: Zero Emissions Power From System | AG2: Max Possible Exports (Sales-Weighted Share of CAISO-wide Exports) | AK2: Exports | AO2: Curtailment
B3: Total (GWh/yr) | E3: =SUM(E6:E8765)/1000 -> 3927.430597 | F3: 3936.15094 | G3: 3989.28662 | H3: 4091.017373 | I3: 1713.306785 | J3: 2564.776887 | K3: 4508.364867 | L3: 4446.370638 | M3: 2214.123812 | N3: 1371.374053 | O3: -519.0782472 | P3: -355.3532646 | Q3: Boolean | U3: =SUM(U6:U8765)/1000 -> 1.53351228 | V3: 2.42614713 | W3: 6.81306038 | X3: 10.09823989 | Y3: 2197.239342 | Z3: 1421.601645 | AA3: 95.47375669 | AB3: 598.7403194 | AC3: 32.47580406 | AD3: 23.99630958 | AE3: 3.208367544 | AF3: 0.0125366184 | AG3: =AVERAGE(AG6:AG8765) -> 16.06335616 | AH3: =AVERAGE(AH6:AH8765) -> 19.77351598 | AI3: =AVERAGE(AI6:AI8765) -> 27.21952055 | AJ3: =AVERAGE(AJ6:AJ8765) -> 27.76130137 | AK3: =SUM(AK6:AK8765)/1000 -> -8.267909928 | AL3: -22.66858593 | AM3: -117.4359618 | AN3: -142.1868069 | AO3: -7.323424265 | AP3: -51.55531556 | AQ3: -500.3244096 | AR3: -811.9193138
B4: Hourly values in MW
B5: Month | C5: Day | D5: Hour | E5: ='Demand Inputs'!E3 -> 2024 | F5: ='Demand Inputs'!F3 -> 2026 | G5: ='Demand Inputs'!G3 -> 2030 | H5: ='Demand Inputs'!H3 -> 2035 | I5: =E5 -> 2024 | J5: =F5 -> 2026 | K5: =G5 -> 2030 | L5: =H5 -> 2035 | M5: ='Supply Calcs'!CK5 -> 2024 | N5: ='Supply Calcs'!CL5 -> 2026 | O5: ='Supply Calcs'!CM5 -> 2030 | P5: ='Supply Calcs'!CN5 -> 2035 | Q5: =M5 -> 2024 | R5: =N5 -> 2026 | S5: 2030 | T5: 2035 | U5: 2024 | V5: 2026 | W5: 2030 | X5: 2035 | Y5: 2024 | Z5: 2026 | AA5: 2030 | AB5: 2035 | AC5: =AO5 -> 2024 | AD5: =AP5 -> 2026 | AE5: =AQ5 -> 2030 | AF5: =AR5 -> 2035 | AG5: ='Resource Profiles'!BQ3 -> 2024 | AH5: ='Resource Profiles'!BR3 -> 2026 | AI5: ='Resource Profiles'!BS3 -> 2030 | AJ5: ='Resource Profiles'!BT3 -> 2035 | AK5: =AO5 -> 2024 | AL5: =AP5 -> 2026 | AM5: =AQ5 -> 2030 | AN5: =AR5 -> 2035 | AO5: =Y5 -> 2024 | AP5: =Z5 -> 2026 | AQ5: =AA5 -> 2030 | AR5: =AB5 -> 2035
B6: 1 | C6: 1 | D6: 1 | E6: ='Demand Calcs'!AG6 -> 446.9317578 | F6: ='Demand Calcs'!AH6 -> 467.4952985 | G6: ='Demand Calcs'!AI6 -> 510.9697333 | H6: ='Demand Calcs'!AJ6 -> 570.3701087 | I6: ='Supply Calcs'!CO6 -> 160.1061608 | J6: ='Supply Calcs'!CP6 -> 289.0626444 | K6: ='Supply Calcs'!CQ6 -> 549.484552 | L6: ='Supply Calcs'!CR6 -> 436.7608295 | M6: =E6-I6 -> 286.825597 | N6: =F6-J6 -> 178.4326541 | O6: -38.51481874 | P6: 133.6092792 | Q6: =IF('Resource Profiles'!BM4>'Supply Inputs'!$Z$5,0,1) -> 1 | R6: =IF('Resource Profiles'!BN4>'Supply Inputs'!$Z$5,0,1) -> 1 | S6: =IF('Resource Profiles'!BO4>'Supply Inputs'!$Z$5,0,1) -> 1 | T6: =IF('Resource Profiles'!BP4>'Supply Inputs'!$Z$5,0,1) -> 1 | U6: ='Demand Inputs'!E$8*(1-Q6)*'Resource Profiles'!BI4 -> 0 | V6: ='Demand Inputs'!F$8*(1-R6)*'Resource Profiles'!BJ4 -> 0 | W6: ='Demand Inputs'!G$8*(1-S6)*'Resource Profiles'!BK4 -> 0 | X6: ='Demand Inputs'!H$8*(1-T6)*'Resource Profiles'!BL4 -> 0 | Y6: =IF(Q6=1,M6,U6) -> 286.825597 | Z6: =IF(R6=1,N6,V6) -> 178.4326541 | AA6: -38.51481874 | AB6: 133.6092792 | AC6: =IF(Y6<M6,M6-Y6, 0) -> 0 | AD6: =IF(Z6<N6,N6-Z6, 0) -> 0 | AE6: =IF(AA6<O6,O6-AA6, 0) -> 0 | AF6: =IF(AB6<P6,P6-AB6, 0) -> 0 | AG6: =ROUND('Resource Profiles'!BQ4*'Demand Inputs'!E$8,0) -> 0 | AH6: =ROUND('Resource Profiles'!BR4*'Demand Inputs'!F$8,0) -> 0 | AI6: =ROUND('Resource Profiles'!BS4*'Demand Inputs'!G$8,0) -> 0 | AJ6: =ROUND('Resource Profiles'!BT4*'Demand Inputs'!H$8,0) -> 0 | AK6: =MAX(IF(Y6>M6,M6-Y6, 0),-AG6) -> 0 | AL6: =MAX(IF(Z6>N6,N6-Z6, 0),-AH6) -> 0 | AM6: =MAX(IF(AA6>O6,O6-AA6, 0),-AI6) -> 0 | AN6: =MAX(IF(AB6>P6,P6-AB6, 0),-AJ6) -> 0 | AO6: =IF(Y6>M6,M6-Y6, 0)-AK6 -> 0 | AP6: =IF(Z6>N6,N6-Z6, 0)-AL6 -> 0 | AQ6: =IF(AA6>O6,O6-AA6, 0)-AM6 -> 0 | AR6: =IF(AB6>P6,P6-AB6, 0)-AN6 -> 0
B7: 1 | C7: 1 | D7: 2 | E7: ='Demand Calcs'!AG7 -> 418.1090215 | F7: ='Demand Calcs'!AH7 -> 434.5210578 | G7: ='Demand Calcs'!AI7 -> 470.7321741 | H7: ='Demand Calcs'!AJ7 -> 519.8869821 | I7: ='Supply Calcs'!CO7 -> 152.533878 | J7: ='Supply Calcs'!CP7 -> 246.415007 | K7: ='Supply Calcs'!CQ7 -> 512.4760293 | L7: ='Supply Calcs'!CR7 -> 406.2941243 | M7: =E7-I7 -> 265.5751435 | N7: 188.1060508 | O7: -41.74385522 | P7: 113.5928577 | Q7: =IF('Resource Profiles'!BM5>'Supply Inputs'!$Z$5,0,1) -> 1 | R7: =IF('Resource Profiles'!BN5>'Supply Inputs'!$Z$5,0,1) -> 1 | S7: =IF('Resource Profiles'!BO5>'Supply Inputs'!$Z$5,0,1) -> 1 | T7: =IF('Resource Profiles'!BP5>'Supply Inputs'!$Z$5,0,1) -> 1 | U7: ='Demand Inputs'!E$8*(1-Q7)*'Resource Profiles'!BI5 -> 0 | V7: ='Demand Inputs'!F$8*(1-R7)*'Resource Profiles'!BJ5 -> 0 | W7: ='Demand Inputs'!G$8*(1-S7)*'Resource Profiles'!BK5 -> 0 | X7: ='Demand Inputs'!H$8*(1-T7)*'Resource Profiles'!BL5 -> 0 | Y7: =IF(Q7=1,M7,U7) -> 265.5751435 | Z7: 188.1060508 | AA7: -41.74385522 | AB7: 113.5928577 | AC7: 0 | AD7: 0 | AE7: 0 | AF7: 0 | AG7: =ROUND('Resource Profiles'!BQ5*'Demand Inputs'!E$8,0) -> 0 | AH7: =ROUND('Resource Profiles'!BR5*'Demand Inputs'!F$8,0) -> 0 | AI7: =ROUND('Resource Profiles'!BS5*'Demand Inputs'!G$8,0) -> 0 | AJ7: =ROUND('Resource Profiles'!BT5*'Demand Inputs'!H$8,0) -> 0 | AK7: =MAX(IF(Y7>M7,M7-Y7, 0),-AG7) -> 0 | AL7: =MAX(IF(Z7>N7,N7-Z7, 0),-AH7) -> 0 | AM7: =MAX(IF(AA7>O7,O7-AA7, 0),-AI7) -> 0 | AN7: =MAX(IF(AB7>P7,P7-AB7, 0),-AJ7) -> 0 | AO7: =IF(Y7>M7,M7-Y7, 0)-AK7 -> 0 | AP7: 0 | AQ7: 0 | AR7: 0
B8: 1 | C8: 1 | D8: 3 | E8: ='Demand Calcs'!AG8 -> 395.7520821 | F8: ='Demand Calcs'!AH8 -> 408.9187165 | G8: ='Demand Calcs'!AI8 -> 438.8318954 | H8: ='Demand Calcs'!AJ8 -> 478.6608813 | I8: ='Supply Calcs'!CO8 -> 154.8782442 | J8: ='Supply Calcs'!CP8 -> 247.3966618 | K8: ='Supply Calcs'!CQ8 -> 470.3917563 | L8: ='Supply Calcs'!CR8 -> 361.36586 | M8: 240.873838 | N8: 161.5220547 | O8: -31.5598609 | P8: 117.2950213 | Q8: =IF('Resource Profiles'!BM6>'Supply Inputs'!$Z$5,0,1) -> 1 | R8: =IF('Resource Profiles'!BN6>'Supply Inputs'!$Z$5,0,1) -> 1 | S8: =IF('Resource Profiles'!BO6>'Supply Inputs'!$Z$5,0,1) -> 1 | T8: =IF('Resource Profiles'!BP6>'Supply Inputs'!$Z$5,0,1) -> 1 | U8: ='Demand Inputs'!E$8*(1-Q8)*'Resource Profiles'!BI6 -> 0 | V8: ='Demand Inputs'!F$8*(1-R8)*'Resource Profiles'!BJ6 -> 0 | W8: ='Demand Inputs'!G$8*(1-S8)*'Resource Profiles'!BK6 -> 0 | X8: ='Demand Inputs'!H$8*(1-T8)*'Resource Profiles'!BL6 -> 0 | Y8: 240.873838 | Z8: 161.5220547 | AA8: -31.5598609 | AB8: 117.2950213 | AC8: 0 | AD8: 0 | AE8: 0 | AF8: 0 | AG8: =ROUND('Resource Profiles'!BQ6*'Demand Inputs'!E$8,0) -> 0 | AH8: =ROUND('Resource Profiles'!BR6*'Demand Inputs'!F$8,0) -> 0 | AI8: =ROUND('Resource Profiles'!BS6*'Demand Inputs'!G$8,0) -> 0 | AJ8: =ROUND('Resource Profiles'!BT6*'Demand Inputs'!H$8,0) -> 0 | AK8: 0 | AL8: 0 | AM8: 0 | AN8: 0 | AO8: 0 | AP8: 0 | AQ8: 0 | AR8: 0
B9: 1 | C9: 1 | D9: 4 | E9: ='Demand Calcs'!AG9 -> 383.9814234 | F9: ='Demand Calcs'!AH9 -> 394.756114 | G9: ='Demand Calcs'!AI9 -> 420.4053898 | H9: ='Demand Calcs'!AJ9 -> 455.2997994 | I9: ='Supply Calcs'!CO9 -> 146.517176 | J9: ='Supply Calcs'!CP9 -> 190.0983423 | K9: ='Supply Calcs'!CQ9 -> 429.6758144 | L9: ='Supply Calcs'!CR9 -> 326.5298281 | M9: 237.4642473 | N9: 204.6577717 | O9: -9.270424614 | P9: 128.7699714 | Q9: =IF('Resource Profiles'!BM7>'Supply Inputs'!$Z$5,0,1) -> 1 | R9: =IF('Resource Profiles'!BN7>'Supply Inputs'!$Z$5,0,1) -> 1 | S9: =IF('Resource Profiles'!BO7>'Supply Inputs'!$Z$5,0,1) -> 1 | T9: =IF('Resource Profiles'!BP7>'Supply Inputs'!$Z$5,0,1) -> 1 | U9: ='Demand Inputs'!E$8*(1-Q9)*'Resource Profiles'!BI7 -> 0 | V9: ='Demand Inputs'!F$8*(1-R9)*'Resource Profiles'!BJ7 -> 0 | W9: ='Demand Inputs'!G$8*(1-S9)*'Resource Profiles'!BK7 -> 0 | X9: ='Demand Inputs'!H$8*(1-T9)*'Resource Profiles'!BL7 -> 0 | Y9: 237.4642473 | Z9: 204.6577717 | AA9: -9.270424614 | AB9: 128.7699714 | AC9: 0 | AD9: 0 | AE9: 0 | AF9: 0 | AG9: =ROUND('Resource Profiles'!BQ7*'Demand Inputs'!E$8,0) -> 0 | AH9: =ROUND('Resource Profiles'!BR7*'Demand Inputs'!F$8,0) -> 0 | AI9: =ROUND('Resource Profiles'!BS7*'Demand Inputs'!G$8,0) -> 0 | AJ9: =ROUND('Resource Profiles'!BT7*'Demand Inputs'!H$8,0) -> 0 | AK9: 0 | AL9: 0 | AM9: 0 | AN9: 0 | AO9: 0 | AP9: 0 | AQ9: 0 | AR9: 0
B10: 1 | C10: 1 | D10: 5 | E10: ='Demand Calcs'!AG10 -> 384.900767 | F10: ='Demand Calcs'!AH10 -> 394.0509735 | G10: ='Demand Calcs'!AI10 -> 417.2773997 | H10: ='Demand Calcs'!AJ10 -> 450.5391248 | I10: ='Supply Calcs'!CO10 -> 159.3490209 | J10: ='Supply Calcs'!CP10 -> 199.6488019 | K10: ='Supply Calcs'!CQ10 -> 372.1651934 | L10: ='Supply Calcs'!CR10 -> 320.5839551 | M10: 225.5517461 | N10: 194.4021715 | O10: 45.1122063 | P10: 129.9551697 | Q10: =IF('Resource Profiles'!BM8>'Supply Inputs'!$Z$5,0,1) -> 1 | R10: =IF('Resource Profiles'!BN8>'Supply Inputs'!$Z$5,0,1) -> 1 | S10: =IF('Resource Profiles'!BO8>'Supply Inputs'!$Z$5,0,1) -> 1 | T10: =IF('Resource Profiles'!BP8>'Supply Inputs'!$Z$5,0,1) -> 1 | U10: ='Demand Inputs'!E$8*(1-Q10)*'Resource Profiles'!BI8 -> 0 | V10: ='Demand Inputs'!F$8*(1-R10)*'Resource Profiles'!BJ8 -> 0 | W10: ='Demand Inputs'!G$8*(1-S10)*'Resource Profiles'!BK8 -> 0 | X10: ='Demand Inputs'!H$8*(1-T10)*'Resource Profiles'!BL8 -> 0 | Y10: 225.5517461 | Z10: 194.4021715 | AA10: 45.1122063 | AB10: 129.9551697 | AC10: 0 | AD10: 0 | AE10: 0 | AF10: 0 | AG10: =ROUND('Resource Profiles'!BQ8*'Demand Inputs'!E$8,0) -> 0 | AH10: =ROUND('Resource Profiles'!BR8*'Demand Inputs'!F$8,0) -> 0 | AI10: =ROUND('Resource Profiles'!BS8*'Demand Inputs'!G$8,0) -> 0 | AJ10: =ROUND('Resource Profiles'!BT8*'Demand Inputs'!H$8,0) -> 0 | AK10: 0 | AL10: 0 | AM10: 0 | AN10: 0 | AO10: 0 | AP10: 0 | AQ10: 0 | AR10: 0
B11: 1 | C11: 1 | D11: 6 | E11: ='Demand Calcs'!AG11 -> 405.8154834 | F11: ='Demand Calcs'!AH11 -> 414.5269873 | G11: ='Demand Calcs'!AI11 -> 438.2665029 | H11: ='Demand Calcs'!AJ11 -> 473.9337152 | I11: ='Supply Calcs'!CO11 -> 116.6144576 | J11: ='Supply Calcs'!CP11 -> 236.7900117 | K11: ='Supply Calcs'!CQ11 -> 418.2642761 | L11: ='Supply Calcs'!CR11 -> 355.5004438 | M11: 289.2010259 | N11: 177.7369756 | O11: 20.00222679 | P11: 118.4332715 | Q11: =IF('Resource Profiles'!BM9>'Supply Inputs'!$Z$5,0,1) -> 1 | R11: =IF('Resource Profiles'!BN9>'Supply Inputs'!$Z$5,0,1) -> 1 | S11: =IF('Resource Profiles'!BO9>'Supply Inputs'!$Z$5,0,1) -> 1 | T11: =IF('Resource Profiles'!BP9>'Supply Inputs'!$Z$5,0,1) -> 1 | U11: ='Demand Inputs'!E$8*(1-Q11)*'Resource Profiles'!BI9 -> 0 | V11: ='Demand Inputs'!F$8*(1-R11)*'Resource Profiles'!BJ9 -> 0 | W11: ='Demand Inputs'!G$8*(1-S11)*'Resource Profiles'!BK9 -> 0 | X11: ='Demand Inputs'!H$8*(1-T11)*'Resource Profiles'!BL9 -> 0 | Y11: 289.2010259 | Z11: 177.7369756 | AA11: 20.00222679 | AB11: 118.4332715 | AC11: 0 | AD11: 0 | AE11: 0 | AF11: 0 | AG11: =ROUND('Resource Profiles'!BQ9*'Demand Inputs'!E$8,0) -> 0 | AH11: =ROUND('Resource Profiles'!BR9*'Demand Inputs'!F$8,0) -> 0 | AI11: =ROUND('Resource Profiles'!BS9*'Demand Inputs'!G$8,0) -> 0 | AJ11: =ROUND('Resource Profiles'!BT9*'Demand Inputs'!H$8,0) -> 0 | AK11: 0 | AL11: 0 | AM11: 0 | AN11: 0 | AO11: 0 | AP11: 0 | AQ11: 0 | AR11: 0
B12: 1 | C12: 1 | D12: 7 | E12: ='Demand Calcs'!AG12 -> 447.538137 | F12: ='Demand Calcs'!AH12 -> 457.7080868 | G12: ='Demand Calcs'!AI12 -> 485.0563669 | H12: ='Demand Calcs'!AJ12 -> 528.3973145 | I12: ='Supply Calcs'!CO12 -> 162.4473909 | J12: ='Supply Calcs'!CP12 -> 276.9904988 | K12: ='Supply Calcs'!CQ12 -> 500.9776554 | L12: ='Supply Calcs'!CR12 -> 413.7363057 | M12: 285.0907462 | N12: 180.717588 | O12: -15.92128849 | P12: 114.6610088 | Q12: =IF('Resource Profiles'!BM10>'Supply Inputs'!$Z$5,0,1) -> 1 | R12: =IF('Resource Profiles'!BN10>'Supply Inputs'!$Z$5,0,1) -> 1 | S12: =IF('Resource Profiles'!BO10>'Supply Inputs'!$Z$5,0,1) -> 1 | T12: =IF('Resource Profiles'!BP10>'Supply Inputs'!$Z$5,0,1) -> 1 | U12: ='Demand Inputs'!E$8*(1-Q12)*'Resource Profiles'!BI10 -> 0 | V12: ='Demand Inputs'!F$8*(1-R12)*'Resource Profiles'!BJ10 -> 0 | W12: ='Demand Inputs'!G$8*(1-S12)*'Resource Profiles'!BK10 -> 0 | X12: ='Demand Inputs'!H$8*(1-T12)*'Resource Profiles'!BL10 -> 0 | Y12: 285.0907462 | Z12: 180.717588 | AA12: -15.92128849 | AB12: 114.6610088 | AC12: 0 | AD12: 0 | AE12: 0 | AF12: 0 | AG12: =ROUND('Resource Profiles'!BQ10*'Demand Inputs'!E$8,0) -> 0 | AH12: =ROUND('Resource Profiles'!BR10*'Demand Inputs'!F$8,0) -> 0 | AI12: =ROUND('Resource Profiles'!BS10*'Demand Inputs'!G$8,0) -> 0 | AJ12: =ROUND('Resource Profiles'!BT10*'Demand Inputs'!H$8,0) -> 0 | AK12: 0 | AL12: 0 | AM12: 0 | AN12: 0 | AO12: 0 | AP12: 0 | AQ12: 0 | AR12: 0
B13: 1 | C13: 1 | D13: 8 | E13: ='Demand Calcs'!AG13 -> 459.8878037 | F13: ='Demand Calcs'!AH13 -> 470.5298025 | G13: ='Demand Calcs'!AI13 -> 497.797168 | H13: ='Demand Calcs'!AJ13 -> 543.4637643 | I13: ='Supply Calcs'!CO13 -> 165.5039606 | J13: ='Supply Calcs'!CP13 -> 278.7453575 | K13: ='Supply Calcs'!CQ13 -> 588.2353395 | L13: ='Supply Calcs'!CR13 -> 565.7132394 | M13: 294.3838431 | N13: 191.7844451 | O13: -90.43817144 | P13: -22.24947517 | Q13: =IF('Resource Profiles'!BM11>'Supply Inputs'!$Z$5,0,1) -> 1 | R13: =IF('Resource Profiles'!BN11>'Supply Inputs'!$Z$5,0,1) -> 1 | S13: =IF('Resource Profiles'!BO11>'Supply Inputs'!$Z$5,0,1) -> 1 | T13: =IF('Resource Profiles'!BP11>'Supply Inputs'!$Z$5,0,1) -> 1 | U13: ='Demand Inputs'!E$8*(1-Q13)*'Resource Profiles'!BI11 -> 0 | V13: ='Demand Inputs'!F$8*(1-R13)*'Resource Profiles'!BJ11 -> 0 | W13: ='Demand Inputs'!G$8*(1-S13)*'Resource Profiles'!BK11 -> 0 | X13: ='Demand Inputs'!H$8*(1-T13)*'Resource Profiles'!BL11 -> 0 | Y13: 294.3838431 | Z13: 191.7844451 | AA13: -90.43817144 | AB13: -22.24947517 | AC13: 0 | AD13: 0 | AE13: 0 | AF13: 0 | AG13: =ROUND('Resource Profiles'!BQ11*'Demand Inputs'!E$8,0) -> 0 | AH13: =ROUND('Resource Profiles'!BR11*'Demand Inputs'!F$8,0) -> 0 | AI13: =ROUND('Resource Profiles'!BS11*'Demand Inputs'!G$8,0) -> 0 | AJ13: =ROUND('Resource Profiles'!BT11*'Demand Inputs'!H$8,0) -> 0 | AK13: 0 | AL13: 0 | AM13: 0 | AN13: 0 | AO13: 0 | AP13: 0 | AQ13: 0 | AR13: 0
B14: 1 | C14: 1 | D14: 9 | E14: ='Demand Calcs'!AG14 -> 457.940563 | F14: ='Demand Calcs'!AH14 -> 467.105382 | G14: ='Demand Calcs'!AI14 -> 490.5382962 | H14: ='Demand Calcs'!AJ14 -> 532.7078154 | I14: ='Supply Calcs'!CO14 -> 206.0342177 | J14: ='Supply Calcs'!CP14 -> 342.5519043 | K14: ='Supply Calcs'!CQ14 -> 597.1350976 | L14: ='Supply Calcs'!CR14 -> 759.7146879 | M14: 251.9063453 | N14: 124.5534777 | O14: -106.5968013 | P14: -227.0068725 | Q14: =IF('Resource Profiles'!BM12>'Supply Inputs'!$Z$5,0,1) -> 1 | R14: =IF('Resource Profiles'!BN12>'Supply Inputs'!$Z$5,0,1) -> 1 | S14: =IF('Resource Profiles'!BO12>'Supply Inputs'!$Z$5,0,1) -> 0 | T14: =IF('Resource Profiles'!BP12>'Supply Inputs'!$Z$5,0,1) -> 1 | U14: ='Demand Inputs'!E$8*(1-Q14)*'Resource Profiles'!BI12 -> 0 | V14: ='Demand Inputs'!F$8*(1-R14)*'Resource Profiles'!BJ12 -> 0 | W14: ='Demand Inputs'!G$8*(1-S14)*'Resource Profiles'!BK12 -> 40.83728465 | X14: ='Demand Inputs'!H$8*(1-T14)*'Resource Profiles'!BL12 -> 0 | Y14: 251.9063453 | Z14: 124.5534777 | AA14: 40.83728465 | AB14: -227.0068725 | AC14: 0 | AD14: 0 | AE14: 0 | AF14: 0 | AG14: =ROUND('Resource Profiles'!BQ12*'Demand Inputs'!E$8,0) -> 0 | AH14: =ROUND('Resource Profiles'!BR12*'Demand Inputs'!F$8,0) -> 0 | AI14: =ROUND('Resource Profiles'!BS12*'Demand Inputs'!G$8,0) -> 15 | AJ14: =ROUND('Resource Profiles'!BT12*'Demand Inputs'!H$8,0) -> 43 | AK14: 0 | AL14: 0 | AM14: -15 | AN14: 0 | AO14: 0 | AP14: 0 | AQ14: -132.434086 | AR14: 0
B15: 1 | C15: 1 | D15: 10 | E15: ='Demand Calcs'!AG15 -> 451.3058662 | F15: ='Demand Calcs'!AH15 -> 457.9344844 | G15: ='Demand Calcs'!AI15 -> 474.6568702 | H15: ='Demand Calcs'!AJ15 -> 507.8860679 | I15: ='Supply Calcs'!CO15 -> 227.6307693 | J15: ='Supply Calcs'!CP15 -> 345.7261144 | K15: ='Supply Calcs'!CQ15 -> 717.962515 | L15: ='Supply Calcs'!CR15 -> 800.7460594 | M15: 223.6750969 | N15: 112.20837 | O15: -243.3056448 | P15: -292.8599916 | Q15: =IF('Resource Profiles'!BM13>'Supply Inputs'!$Z$5,0,1) -> 1 | R15: =IF('Resource Profiles'!BN13>'Supply Inputs'!$Z$5,0,1) -> 1 | S15: =IF('Resource Profiles'!BO13>'Supply Inputs'!$Z$5,0,1) -> 0 | T15: =IF('Resource Profiles'!BP13>'Supply Inputs'!$Z$5,0,1) -> 0 | U15: ='Demand Inputs'!E$8*(1-Q15)*'Resource Profiles'!BI13 -> 0 | V15: ='Demand Inputs'!F$8*(1-R15)*'Resource Profiles'!BJ13 -> 0 | W15: ='Demand Inputs'!G$8*(1-S15)*'Resource Profiles'!BK13 -> 44.47075137 | X15: ='Demand Inputs'!H$8*(1-T15)*'Resource Profiles'!BL13 -> 30.41669091 | Y15: 223.6750969 | Z15: 112.20837 | AA15: 44.47075137 | AB15: 30.41669091 | AC15: 0 | AD15: 0 | AE15: 0 | AF15: 0 | AG15: =ROUND('Resource Profiles'!BQ13*'Demand Inputs'!E$8,0) -> 0 | AH15: =ROUND('Resource Profiles'!BR13*'Demand Inputs'!F$8,0) -> 0 | AI15: =ROUND('Resource Profiles'!BS13*'Demand Inputs'!G$8,0) -> 57 | AJ15: =ROUND('Resource Profiles'!BT13*'Demand Inputs'!H$8,0) -> 64 | AK15: 0 | AL15: 0 | AM15: -57 | AN15: -64 | AO15: 0 | AP15: 0 | AQ15: -230.7763962 | AR15: -259.2766825
B16: 1 | C16: 1 | D16: 11 | E16: ='Demand Calcs'!AG16 -> 418.3493446 | F16: ='Demand Calcs'!AH16 -> 418.181845 | G16: ='Demand Calcs'!AI16 -> 419.8170403 | H16: ='Demand Calcs'!AJ16 -> 433.6594738 | I16: ='Supply Calcs'!CO16 -> 196.019852 | J16: ='Supply Calcs'!CP16 -> 317.4727495 | K16: ='Supply Calcs'!CQ16 -> 691.2592206 | L16: ='Supply Calcs'!CR16 -> 757.3243949 | M16: 222.3294926 | N16: 100.7090955 | O16: -271.4421803 | P16: -323.6649211 | Q16: =IF('Resource Profiles'!BM14>'Supply Inputs'!$Z$5,0,1) -> 1 | R16: =IF('Resource Profiles'!BN14>'Supply Inputs'!$Z$5,0,1) -> 1 | S16: =IF('Resource Profiles'!BO14>'Supply Inputs'!$Z$5,0,1) -> 0 | T16: =IF('Resource Profiles'!BP14>'Supply Inputs'!$Z$5,0,1) -> 0 | U16: ='Demand Inputs'!E$8*(1-Q16)*'Resource Profiles'!BI14 -> 0 | V16: ='Demand Inputs'!F$8*(1-R16)*'Resource Profiles'!BJ14 -> 0 | W16: ='Demand Inputs'!G$8*(1-S16)*'Resource Profiles'!BK14 -> 49.50969999 | X16: ='Demand Inputs'!H$8*(1-T16)*'Resource Profiles'!BL14 -> 28.8249659 | Y16: 222.3294926 | Z16: 100.7090955 | AA16: 49.50969999 | AB16: 28.8249659 | AC16: 0 | AD16: 0 | AE16: 0 | AF16: 0 | AG16: =ROUND('Resource Profiles'!BQ14*'Demand Inputs'!E$8,0) -> 0 | AH16: =ROUND('Resource Profiles'!BR14*'Demand Inputs'!F$8,0) -> 0 | AI16: =ROUND('Resource Profiles'!BS14*'Demand Inputs'!G$8,0) -> 71 | AJ16: =ROUND('Resource Profiles'!BT14*'Demand Inputs'!H$8,0) -> 74 | AK16: 0 | AL16: 0 | AM16: -71 | AN16: -74 | AO16: 0 | AP16: 0 | AQ16: -249.9518803 | AR16: -278.489887
B17: 1 | C17: 1 | D17: 12 | E17: ='Demand Calcs'!AG17 -> 401.1100873 | F17: ='Demand Calcs'!AH17 -> 396.9085342 | G17: ='Demand Calcs'!AI17 -> 392.0684822 | H17: ='Demand Calcs'!AJ17 -> 395.2599506 | I17: ='Supply Calcs'!CO17 -> 181.7406457 | J17: ='Supply Calcs'!CP17 -> 304.3759713 | K17: ='Supply Calcs'!CQ17 -> 655.1775066 | L17: ='Supply Calcs'!CR17 -> 692.5328184 | M17: 219.3694416 | N17: 92.53256292 | O17: -263.1090245 | P17: -297.2728679 | Q17: =IF('Resource Profiles'!BM15>'Supply Inputs'!$Z$5,0,1) -> 1 | R17: =IF('Resource Profiles'!BN15>'Supply Inputs'!$Z$5,0,1) -> 1 | S17: =IF('Resource Profiles'!BO15>'Supply Inputs'!$Z$5,0,1) -> 0 | T17: =IF('Resource Profiles'!BP15>'Supply Inputs'!$Z$5,0,1) -> 0 | U17: ='Demand Inputs'!E$8*(1-Q17)*'Resource Profiles'!BI15 -> 0 | V17: ='Demand Inputs'!F$8*(1-R17)*'Resource Profiles'!BJ15 -> 0 | W17: ='Demand Inputs'!G$8*(1-S17)*'Resource Profiles'!BK15 -> 51.1612693 | X17: ='Demand Inputs'!H$8*(1-T17)*'Resource Profiles'!BL15 -> 25.40799899 | Y17: 219.3694416 | Z17: 92.53256292 | AA17: 51.1612693 | AB17: 25.40799899 | AC17: 0 | AD17: 0 | AE17: 0 | AF17: 0 | AG17: =ROUND('Resource Profiles'!BQ15*'Demand Inputs'!E$8,0) -> 0 | AH17: =ROUND('Resource Profiles'!BR15*'Demand Inputs'!F$8,0) -> 0 | AI17: =ROUND('Resource Profiles'!BS15*'Demand Inputs'!G$8,0) -> 78 | AJ17: =ROUND('Resource Profiles'!BT15*'Demand Inputs'!H$8,0) -> 79 | AK17: 0 | AL17: 0 | AM17: -78 | AN17: -79 | AO17: 0 | AP17: 0 | AQ17: -236.2702938 | AR17: -243.6808668
B18: 1 | C18: 1 | D18: 13 | E18: ='Demand Calcs'!AG18 -> 392.681357 | F18: ='Demand Calcs'!AH18 -> 387.6635269 | G18: ='Demand Calcs'!AI18 -> 380.0295855 | H18: ='Demand Calcs'!AJ18 -> 380.7874748 | I18: ='Supply Calcs'!CO18 -> 180.6391258 | J18: ='Supply Calcs'!CP18 -> 293.8973467 | K18: ='Supply Calcs'!CQ18 -> 578.3718931 | L18: ='Supply Calcs'!CR18 -> 663.9188891 | M18: 212.0422313 | N18: 93.76618025 | O18: -198.3423076 | P18: -283.1314144 | Q18: =IF('Resource Profiles'!BM16>'Supply Inputs'!$Z$5,0,1) -> 1 | R18: =IF('Resource Profiles'!BN16>'Supply Inputs'!$Z$5,0,1) -> 1 | S18: =IF('Resource Profiles'!BO16>'Supply Inputs'!$Z$5,0,1) -> 0 | T18: =IF('Resource Profiles'!BP16>'Supply Inputs'!$Z$5,0,1) -> 0 | U18: ='Demand Inputs'!E$8*(1-Q18)*'Resource Profiles'!BI16 -> 0 | V18: ='Demand Inputs'!F$8*(1-R18)*'Resource Profiles'!BJ16 -> 0 | W18: ='Demand Inputs'!G$8*(1-S18)*'Resource Profiles'!BK16 -> 55.08770176 | X18: ='Demand Inputs'!H$8*(1-T18)*'Resource Profiles'!BL16 -> 23.95105219 | Y18: 212.0422313 | Z18: 93.76618025 | AA18: 55.08770176 | AB18: 23.95105219 | AC18: 0 | AD18: 0 | AE18: 0 | AF18: 0 | AG18: =ROUND('Resource Profiles'!BQ16*'Demand Inputs'!E$8,0) -> 0 | AH18: =ROUND('Resource Profiles'!BR16*'Demand Inputs'!F$8,0) -> 0 | AI18: =ROUND('Resource Profiles'!BS16*'Demand Inputs'!G$8,0) -> 78 | AJ18: =ROUND('Resource Profiles'!BT16*'Demand Inputs'!H$8,0) -> 78 | AK18: 0 | AL18: 0 | AM18: -78 | AN18: -78 | AO18: 0 | AP18: 0 | AQ18: -175.4300093 | AR18: -229.0824666
B19: 1 | C19: 1 | D19: 14 | E19: ='Demand Calcs'!AG19 -> 397.2921787 | F19: ='Demand Calcs'!AH19 -> 393.0404365 | G19: ='Demand Calcs'!AI19 -> 387.7227561 | H19: ='Demand Calcs'!AJ19 -> 390.6089637 | I19: ='Supply Calcs'!CO19 -> 183.76131 | J19: ='Supply Calcs'!CP19 -> 293.6092311 | K19: ='Supply Calcs'!CQ19 -> 601.7126806 | L19: ='Supply Calcs'!CR19 -> 660.7058948 | M19: 213.5308687 | N19: 99.43120536 | O19: -213.9899245 | P19: -270.0969311 | Q19: =IF('Resource Profiles'!BM17>'Supply Inputs'!$Z$5,0,1) -> 1 | R19: =IF('Resource Profiles'!BN17>'Supply Inputs'!$Z$5,0,1) -> 1 | S19: =IF('Resource Profiles'!BO17>'Supply Inputs'!$Z$5,0,1) -> 0 | T19: =IF('Resource Profiles'!BP17>'Supply Inputs'!$Z$5,0,1) -> 0 | U19: ='Demand Inputs'!E$8*(1-Q19)*'Resource Profiles'!BI17 -> 0 | V19: ='Demand Inputs'!F$8*(1-R19)*'Resource Profiles'!BJ17 -> 0 | W19: ='Demand Inputs'!G$8*(1-S19)*'Resource Profiles'!BK17 -> 51.42353786 | X19: ='Demand Inputs'!H$8*(1-T19)*'Resource Profiles'!BL17 -> 17.84595075 | Y19: 213.5308687 | Z19: 99.43120536 | AA19: 51.42353786 | AB19: 17.84595075 | AC19: 0 | AD19: 0 | AE19: 0 | AF19: 0 | AG19: =ROUND('Resource Profiles'!BQ17*'Demand Inputs'!E$8,0) -> 0 | AH19: =ROUND('Resource Profiles'!BR17*'Demand Inputs'!F$8,0) -> 0 | AI19: =ROUND('Resource Profiles'!BS17*'Demand Inputs'!G$8,0) -> 72 | AJ19: =ROUND('Resource Profiles'!BT17*'Demand Inputs'!H$8,0) -> 73 | AK19: 0 | AL19: 0 | AM19: -72 | AN19: -73 | AO19: 0 | AP19: 0 | AQ19: -193.4134624 | AR19: -214.9428819
B20: 1 | C20: 1 | D20: 15 | E20: ='Demand Calcs'!AG20 -> 416.9622975 | F20: ='Demand Calcs'!AH20 -> 416.7730869 | G20: ='Demand Calcs'!AI20 -> 420.1337006 | H20: ='Demand Calcs'!AJ20 -> 434.0484808 | I20: ='Supply Calcs'!CO20 -> 178.6605687 | J20: ='Supply Calcs'!CP20 -> 312.7301745 | K20: ='Supply Calcs'!CQ20 -> 647.221408 | L20: ='Supply Calcs'!CR20 -> 718.4456655 | M20: 238.3017288 | N20: 104.0429124 | O20: -227.0877074 | P20: -284.3971847 | Q20: =IF('Resource Profiles'!BM18>'Supply Inputs'!$Z$5,0,1) -> 1 | R20: =IF('Resource Profiles'!BN18>'Supply Inputs'!$Z$5,0,1) -> 1 | S20: =IF('Resource Profiles'!BO18>'Supply Inputs'!$Z$5,0,1) -> 0 | T20: =IF('Resource Profiles'!BP18>'Supply Inputs'!$Z$5,0,1) -> 0 | U20: ='Demand Inputs'!E$8*(1-Q20)*'Resource Profiles'!BI18 -> 0 | V20: ='Demand Inputs'!F$8*(1-R20)*'Resource Profiles'!BJ18 -> 0 | W20: ='Demand Inputs'!G$8*(1-S20)*'Resource Profiles'!BK18 -> 44.3865094 | X20: ='Demand Inputs'!H$8*(1-T20)*'Resource Profiles'!BL18 -> 11.1853713 | Y20: 238.3017288 | Z20: 104.0429124 | AA20: 44.3865094 | AB20: 11.1853713 | AC20: 0 | AD20: 0 | AE20: 0 | AF20: 0 | AG20: =ROUND('Resource Profiles'!BQ18*'Demand Inputs'!E$8,0) -> 0 | AH20: =ROUND('Resource Profiles'!BR18*'Demand Inputs'!F$8,0) -> 0 | AI20: =ROUND('Resource Profiles'!BS18*'Demand Inputs'!G$8,0) -> 56 | AJ20: =ROUND('Resource Profiles'!BT18*'Demand Inputs'!H$8,0) -> 60 | AK20: 0 | AL20: 0 | AM20: -56 | AN20: -60 | AO20: 0 | AP20: 0 | AQ20: -215.4742168 | AR20: -235.582556
B21: 1 | C21: 1 | D21: 16 | E21: ='Demand Calcs'!AG21 -> 431.6766482 | F21: ='Demand Calcs'!AH21 -> 433.8866295 | G21: ='Demand Calcs'!AI21 -> 442.9365513 | H21: ='Demand Calcs'!AJ21 -> 463.8292399 | I21: ='Supply Calcs'!CO21 -> 188.322052 | J21: ='Supply Calcs'!CP21 -> 326.8759225 | K21: ='Supply Calcs'!CQ21 -> 596.6521677 | L21: ='Supply Calcs'!CR21 -> 703.1059659 | M21: 243.3545962 | N21: 107.0107069 | O21: -153.7156165 | P21: -239.276726 | Q21: =IF('Resource Profiles'!BM19>'Supply Inputs'!$Z$5,0,1) -> 1 | R21: =IF('Resource Profiles'!BN19>'Supply Inputs'!$Z$5,0,1) -> 1 | S21: =IF('Resource Profiles'!BO19>'Supply Inputs'!$Z$5,0,1) -> 0 | T21: =IF('Resource Profiles'!BP19>'Supply Inputs'!$Z$5,0,1) -> 0 | U21: ='Demand Inputs'!E$8*(1-Q21)*'Resource Profiles'!BI19 -> 0 | V21: ='Demand Inputs'!F$8*(1-R21)*'Resource Profiles'!BJ19 -> 0 | W21: ='Demand Inputs'!G$8*(1-S21)*'Resource Profiles'!BK19 -> 34.68021917 | X21: ='Demand Inputs'!H$8*(1-T21)*'Resource Profiles'!BL19 -> 9.194639819 | Y21: 243.3545962 | Z21: 107.0107069 | AA21: 34.68021917 | AB21: 9.194639819 | AC21: 0 | AD21: 0 | AE21: 0 | AF21: 0 | AG21: =ROUND('Resource Profiles'!BQ19*'Demand Inputs'!E$8,0) -> 0 | AH21: =ROUND('Resource Profiles'!BR19*'Demand Inputs'!F$8,0) -> 0 | AI21: =ROUND('Resource Profiles'!BS19*'Demand Inputs'!G$8,0) -> 15 | AJ21: =ROUND('Resource Profiles'!BT19*'Demand Inputs'!H$8,0) -> 32 | AK21: 0 | AL21: 0 | AM21: -15 | AN21: -32 | AO21: 0 | AP21: 0 | AQ21: -173.3958356 | AR21: -216.4713658
B22: 1 | C22: 1 | D22: 17 | E22: ='Demand Calcs'!AG22 -> 481.8744478 | F22: ='Demand Calcs'!AH22 -> 487.7420494 | G22: ='Demand Calcs'!AI22 -> 505.9829062 | H22: ='Demand Calcs'!AJ22 -> 533.7219508 | I22: ='Supply Calcs'!CO22 -> 194.4349887 | J22: ='Supply Calcs'!CP22 -> 273.9718695 | K22: ='Supply Calcs'!CQ22 -> 372.7960834 | L22: ='Supply Calcs'!CR22 -> 361.2642513 | M22: 287.439459 | N22: =F22-J22 -> 213.7701799 | O22: =G22-K22 -> 133.1868227 | P22: =H22-L22 -> 172.4576995 | Q22: =IF('Resource Profiles'!BM20>'Supply Inputs'!$Z$5,0,1) -> 1 | R22: =IF('Resource Profiles'!BN20>'Supply Inputs'!$Z$5,0,1) -> 1 | S22: =IF('Resource Profiles'!BO20>'Supply Inputs'!$Z$5,0,1) -> 1 | T22: =IF('Resource Profiles'!BP20>'Supply Inputs'!$Z$5,0,1) -> 1 | U22: ='Demand Inputs'!E$8*(1-Q22)*'Resource Profiles'!BI20 -> 0 | V22: ='Demand Inputs'!F$8*(1-R22)*'Resource Profiles'!BJ20 -> 0 | W22: ='Demand Inputs'!G$8*(1-S22)*'Resource Profiles'!BK20 -> 0 | X22: ='Demand Inputs'!H$8*(1-T22)*'Resource Profiles'!BL20 -> 0 | Y22: 287.439459 | Z22: =IF(R22=1,N22,V22) -> 213.7701799 | AA22: =IF(S22=1,O22,W22) -> 133.1868227 | AB22: =IF(T22=1,P22,X22) -> 172.4576995 | AC22: 0 | AD22: 0 | AE22: 0 | AF22: 0 | AG22: =ROUND('Resource Profiles'!BQ20*'Demand Inputs'!E$8,0) -> 0 | AH22: =ROUND('Resource Profiles'!BR20*'Demand Inputs'!F$8,0) -> 0 | AI22: =ROUND('Resource Profiles'!BS20*'Demand Inputs'!G$8,0) -> 0 | AJ22: =ROUND('Resource Profiles'!BT20*'Demand Inputs'!H$8,0) -> 0 | AK22: 0 | AL22: 0 | AM22: 0 | AN22: 0 | AO22: 0 | AP22: 0 | AQ22: 0 | AR22: 0
B23: 1 | C23: 1 | D23: 18 | E23: ='Demand Calcs'!AG23 -> 548.8633358 | F23: ='Demand Calcs'!AH23 -> 558.7809827 | G23: ='Demand Calcs'!AI23 -> 585.8624158 | H23: ='Demand Calcs'!AJ23 -> 623.5415212 | I23: ='Supply Calcs'!CO23 -> 302.3453524 | J23: ='Supply Calcs'!CP23 -> 407.6180026 | K23: ='Supply Calcs'!CQ23 -> 436.9262799 | L23: ='Supply Calcs'!CR23 -> 389.6425573 | M23: 246.5179834 | N23: 151.1629801 | O23: 148.9361359 | P23: 233.8989639 | Q23: =IF('Resource Profiles'!BM21>'Supply Inputs'!$Z$5,0,1) -> 1 | R23: =IF('Resource Profiles'!BN21>'Supply Inputs'!$Z$5,0,1) -> 1 | S23: =IF('Resource Profiles'!BO21>'Supply Inputs'!$Z$5,0,1) -> 1 | T23: =IF('Resource Profiles'!BP21>'Supply Inputs'!$Z$5,0,1) -> 1 | U23: ='Demand Inputs'!E$8*(1-Q23)*'Resource Profiles'!BI21 -> 0 | V23: ='Demand Inputs'!F$8*(1-R23)*'Resource Profiles'!BJ21 -> 0 | W23: ='Demand Inputs'!G$8*(1-S23)*'Resource Profiles'!BK21 -> 0 | X23: ='Demand Inputs'!H$8*(1-T23)*'Resource Profiles'!BL21 -> 0 | Y23: 246.5179834 | Z23: 151.1629801 | AA23: 148.9361359 | AB23: 233.8989639 | AC23: 0 | AD23: 0 | AE23: 0 | AF23: 0 | AG23: =ROUND('Resource Profiles'!BQ21*'Demand Inputs'!E$8,0) -> 0 | AH23: =ROUND('Resource Profiles'!BR21*'Demand Inputs'!F$8,0) -> 0 | AI23: =ROUND('Resource Profiles'!BS21*'Demand Inputs'!G$8,0) -> 0 | AJ23: =ROUND('Resource Profiles'!BT21*'Demand Inputs'!H$8,0) -> 0 | AK23: 0 | AL23: 0 | AM23: 0 | AN23: 0 | AO23: 0 | AP23: 0 | AQ23: 0 | AR23: 0
B24: 1 | C24: 1 | D24: 19 | E24: ='Demand Calcs'!AG24 -> 576.150749 | F24: ='Demand Calcs'!AH24 -> 587.3437484 | G24: ='Demand Calcs'!AI24 -> 616.5103353 | H24: ='Demand Calcs'!AJ24 -> 656.5701443 | I24: ='Supply Calcs'!CO24 -> 336.5940812 | J24: ='Supply Calcs'!CP24 -> 465.2467293 | K24: ='Supply Calcs'!CQ24 -> 466.9080596 | L24: ='Supply Calcs'!CR24 -> 395.1758596 | M24: 239.5566678 | N24: 122.0970192 | O24: 149.6022757 | P24: 261.3942847 | Q24: =IF('Resource Profiles'!BM22>'Supply Inputs'!$Z$5,0,1) -> 1 | R24: =IF('Resource Profiles'!BN22>'Supply Inputs'!$Z$5,0,1) -> 1 | S24: =IF('Resource Profiles'!BO22>'Supply Inputs'!$Z$5,0,1) -> 1 | T24: =IF('Resource Profiles'!BP22>'Supply Inputs'!$Z$5,0,1) -> 1 | U24: ='Demand Inputs'!E$8*(1-Q24)*'Resource Profiles'!BI22 -> 0 | V24: ='Demand Inputs'!F$8*(1-R24)*'Resource Profiles'!BJ22 -> 0 | W24: ='Demand Inputs'!G$8*(1-S24)*'Resource Profiles'!BK22 -> 0 | X24: ='Demand Inputs'!H$8*(1-T24)*'Resource Profiles'!BL22 -> 0 | Y24: 239.5566678 | Z24: 122.0970192 | AA24: 149.6022757 | AB24: 261.3942847 | AC24: 0 | AD24: 0 | AE24: 0 | AF24: 0 | AG24: =ROUND('Resource Profiles'!BQ22*'Demand Inputs'!E$8,0) -> 0 | AH24: =ROUND('Resource Profiles'!BR22*'Demand Inputs'!F$8,0) -> 0 | AI24: =ROUND('Resource Profiles'!BS22*'Demand Inputs'!G$8,0) -> 0 | AJ24: =ROUND('Resource Profiles'!BT22*'Demand Inputs'!H$8,0) -> 0 | AK24: 0 | AL24: 0 | AM24: 0 | AN24: 0 | AO24: 0 | AP24: 0 | AQ24: 0 | AR24: 0
B25: 1 | C25: 1 | D25: 20 | E25: ='Demand Calcs'!AG25 -> 570.7041759 | F25: ='Demand Calcs'!AH25 -> 581.852918 | G25: ='Demand Calcs'!AI25 -> 611.0311043 | H25: ='Demand Calcs'!AJ25 -> 651.6710825 | I25: ='Supply Calcs'!CO25 -> 319.9584275 | J25: ='Supply Calcs'!CP25 -> 445.56173 | K25: ='Supply Calcs'!CQ25 -> 451.2982663 | L25: ='Supply Calcs'!CR25 -> 362.509422 | M25: 250.7457484 | N25: 136.2911881 | O25: 159.732838 | P25: 289.1616604 | Q25: =IF('Resource Profiles'!BM23>'Supply Inputs'!$Z$5,0,1) -> 1 | R25: =IF('Resource Profiles'!BN23>'Supply Inputs'!$Z$5,0,1) -> 1 | S25: =IF('Resource Profiles'!BO23>'Supply Inputs'!$Z$5,0,1) -> 1 | T25: =IF('Resource Profiles'!BP23>'Supply Inputs'!$Z$5,0,1) -> 1 | U25: ='Demand Inputs'!E$8*(1-Q25)*'Resource Profiles'!BI23 -> 0 | V25: ='Demand Inputs'!F$8*(1-R25)*'Resource Profiles'!BJ23 -> 0 | W25: ='Demand Inputs'!G$8*(1-S25)*'Resource Profiles'!BK23 -> 0 | X25: ='Demand Inputs'!H$8*(1-T25)*'Resource Profiles'!BL23 -> 0 | Y25: 250.7457484 | Z25: 136.2911881 | AA25: 159.732838 | AB25: 289.1616604 | AC25: 0 | AD25: 0 | AE25: 0 | AF25: 0 | AG25: =ROUND('Resource Profiles'!BQ23*'Demand Inputs'!E$8,0) -> 0 | AH25: =ROUND('Resource Profiles'!BR23*'Demand Inputs'!F$8,0) -> 0 | AI25: =ROUND('Resource Profiles'!BS23*'Demand Inputs'!G$8,0) -> 0 | AJ25: =ROUND('Resource Profiles'!BT23*'Demand Inputs'!H$8,0) -> 0 | AK25: 0 | AL25: 0 | AM25: 0 | AN25: 0 | AO25: 0 | AP25: 0 | AQ25: 0 | AR25: 0
B26: 1 | C26: 1 | D26: 21 | E26: ='Demand Calcs'!AG26 -> 560.4141657 | F26: ='Demand Calcs'!AH26 -> 571.8954576 | G26: ='Demand Calcs'!AI26 -> 602.2910733 | H26: ='Demand Calcs'!AJ26 -> 643.3742525 | I26: ='Supply Calcs'!CO26 -> 305.7521968 | J26: ='Supply Calcs'!CP26 -> 428.8944656 | K26: ='Supply Calcs'!CQ26 -> 453.8964316 | L26: ='Supply Calcs'!CR26 -> 369.459106 | M26: 254.6619689 | N26: 143.0009919 | O26: 148.3946417 | P26: 273.9151465 | Q26: =IF('Resource Profiles'!BM24>'Supply Inputs'!$Z$5,0,1) -> 1 | R26: =IF('Resource Profiles'!BN24>'Supply Inputs'!$Z$5,0,1) -> 1 | S26: =IF('Resource Profiles'!BO24>'Supply Inputs'!$Z$5,0,1) -> 1 | T26: =IF('Resource Profiles'!BP24>'Supply Inputs'!$Z$5,0,1) -> 1 | U26: ='Demand Inputs'!E$8*(1-Q26)*'Resource Profiles'!BI24 -> 0 | V26: ='Demand Inputs'!F$8*(1-R26)*'Resource Profiles'!BJ24 -> 0 | W26: ='Demand Inputs'!G$8*(1-S26)*'Resource Profiles'!BK24 -> 0 | X26: ='Demand Inputs'!H$8*(1-T26)*'Resource Profiles'!BL24 -> 0 | Y26: 254.6619689 | Z26: 143.0009919 | AA26: 148.3946417 | AB26: 273.9151465 | AC26: 0 | AD26: 0 | AE26: 0 | AF26: 0 | AG26: =ROUND('Resource Profiles'!BQ24*'Demand Inputs'!E$8,0) -> 0 | AH26: =ROUND('Resource Profiles'!BR24*'Demand Inputs'!F$8,0) -> 0 | AI26: =ROUND('Resource Profiles'!BS24*'Demand Inputs'!G$8,0) -> 0 | AJ26: =ROUND('Resource Profiles'!BT24*'Demand Inputs'!H$8,0) -> 0 | AK26: 0 | AL26: 0 | AM26: 0 | AN26: 0 | AO26: 0 | AP26: 0 | AQ26: 0 | AR26: 0
B27: 1 | C27: 1 | D27: 22 | E27: ='Demand Calcs'!AG27 -> 548.9509965 | F27: ='Demand Calcs'!AH27 -> 565.7408541 | G27: ='Demand Calcs'!AI27 -> 605.3240367 | H27: ='Demand Calcs'!AJ27 -> 657.2437187 | I27: ='Supply Calcs'!CO27 -> 311.0167948 | J27: ='Supply Calcs'!CP27 -> 438.0362029 | K27: ='Supply Calcs'!CQ27 -> 468.7389719 | L27: ='Supply Calcs'!CR27 -> 395.7745455 | M27: 237.9342017 | N27: 127.7046512 | O27: 136.5850648 | P27: 261.4691732 | Q27: =IF('Resource Profiles'!BM25>'Supply Inputs'!$Z$5,0,1) -> 1 | R27: =IF('Resource Profiles'!BN25>'Supply Inputs'!$Z$5,0,1) -> 1 | S27: =IF('Resource Profiles'!BO25>'Supply Inputs'!$Z$5,0,1) -> 1 | T27: =IF('Resource Profiles'!BP25>'Supply Inputs'!$Z$5,0,1) -> 1 | U27: ='Demand Inputs'!E$8*(1-Q27)*'Resource Profiles'!BI25 -> 0 | V27: ='Demand Inputs'!F$8*(1-R27)*'Resource Profiles'!BJ25 -> 0 | W27: ='Demand Inputs'!G$8*(1-S27)*'Resource Profiles'!BK25 -> 0 | X27: ='Demand Inputs'!H$8*(1-T27)*'Resource Profiles'!BL25 -> 0 | Y27: 237.9342017 | Z27: 127.7046512 | AA27: 136.5850648 | AB27: 261.4691732 | AC27: 0 | AD27: 0 | AE27: 0 | AF27: 0 | AG27: =ROUND('Resource Profiles'!BQ25*'Demand Inputs'!E$8,0) -> 0 | AH27: =ROUND('Resource Profiles'!BR25*'Demand Inputs'!F$8,0) -> 0 | AI27: =ROUND('Resource Profiles'!BS25*'Demand Inputs'!G$8,0) -> 0 | AJ27: =ROUND('Resource Profiles'!BT25*'Demand Inputs'!H$8,0) -> 0 | AK27: 0 | AL27: 0 | AM27: 0 | AN27: 0 | AO27: 0 | AP27: 0 | AQ27: 0 | AR27: 0
B28: 1 | C28: 1 | D28: 23 | E28: ='Demand Calcs'!AG28 -> 507.8541139 | F28: ='Demand Calcs'!AH28 -> 525.3330716 | G28: ='Demand Calcs'!AI28 -> 564.6601979 | H28: ='Demand Calcs'!AJ28 -> 615.3354469 | I28: ='Supply Calcs'!CO28 -> 222.0145328 | J28: ='Supply Calcs'!CP28 -> 344.5750393 | K28: ='Supply Calcs'!CQ28 -> 420.9783135 | L28: ='Supply Calcs'!CR28 -> 339.8503293 | M28: 285.8395811 | N28: 180.7580323 | O28: 143.6818844 | P28: 275.4851176 | Q28: =IF('Resource Profiles'!BM26>'Supply Inputs'!$Z$5,0,1) -> 1 | R28: =IF('Resource Profiles'!BN26>'Supply Inputs'!$Z$5,0,1) -> 1 | S28: =IF('Resource Profiles'!BO26>'Supply Inputs'!$Z$5,0,1) -> 1 | T28: =IF('Resource Profiles'!BP26>'Supply Inputs'!$Z$5,0,1) -> 1 | U28: ='Demand Inputs'!E$8*(1-Q28)*'Resource Profiles'!BI26 -> 0 | V28: ='Demand Inputs'!F$8*(1-R28)*'Resource Profiles'!BJ26 -> 0 | W28: ='Demand Inputs'!G$8*(1-S28)*'Resource Profiles'!BK26 -> 0 | X28: ='Demand Inputs'!H$8*(1-T28)*'Resource Profiles'!BL26 -> 0 | Y28: 285.8395811 | Z28: 180.7580323 | AA28: 143.6818844 | AB28: 275.4851176 | AC28: 0 | AD28: 0 | AE28: 0 | AF28: 0 | AG28: =ROUND('Resource Profiles'!BQ26*'Demand Inputs'!E$8,0) -> 0 | AH28: =ROUND('Resource Profiles'!BR26*'Demand Inputs'!F$8,0) -> 0 | AI28: =ROUND('Resource Profiles'!BS26*'Demand Inputs'!G$8,0) -> 0 | AJ28: =ROUND('Resource Profiles'!BT26*'Demand Inputs'!H$8,0) -> 0 | AK28: 0 | AL28: 0 | AM28: 0 | AN28: 0 | AO28: 0 | AP28: 0 | AQ28: 0 | AR28: 0
